Workbook

Sheet Annexe
B5: Annexe 1 | C5: Tableau des propriétés effectives des sociétés retenues dans le périmétre
B6: Annexe 2 | C6: La nomenclature des flux
B7: Annexe 3 | C7: Compilation questionnaire général
B8: Annexe 4 | C8: Liste des pièces et informations à fournir en vue de l’obtention des permis et des autorisations
B9: Annexe 5 | C9: Schéma d’illustration de la procédure d’octroi des permis de recherche
B10: Annexe 6 | C10: Liste des pièces et informations à fournir en vue de l’obtention de l’agrément de production, d’exploitation et de commercialisation des eaux conditionnées
B11: Annexe 7 | C11: Tableau des octroi miniéres en 2023
B12: Annexe 8 | C12: Tableau des octroi de l'eau en 2023
B13: Annexe 9 | C13: Registre des titre minier et autorisation
B14: Annexe 10 | C14: Formulaire de déclaration Propriété réelle 2023
B15: Annexe 11 | C15: Tableau les bénéficiaires effectifs des sociétés retenues dans le périmétre en 2023
B16: Annexe 12 | C16: Détail des exportations 2023
B17: Annexe 13 | C17: Liste des entreprises retenues et les sociétés unilatérale
B18: Annexe 14 | C18: Liste des sociétés non extractives
B19: Annexe 15 | C19: Modèle du formulaire de déclaration
B20: Annexe 16 | C20: Compilation des paiements
B21: Annexe 17 | C21: Compilation des communes
B22: Annexe 18 | C22: Profil des sociétés retenues dans le périmètre de rapprochement
B23: Annexe 19 | C23: Fiche de conciliation par société
B24: Annexe 20 | C24: Tableau détail des paiements sociaux obligatoires
B25: Annexe 21 | C25: Tableau détail des paiements sociaux Volontaires
B26: Annexe 22 | C26: Tableau des paiements quasi-budgétaire
B27: Annexe 23 | C27: Tableau des effectifs par société
B28: Annexe 24 | C28: Transferts au titre des taxes de droit commun
B29: Annexe 25 | C29: Détail des contributions des communes

Sheet Structure de capital (hidden)
B3: SCAN TOGO
B4: PARTICIPATIONS AU 31/12/2022 | C4: N° | D4: Nom/Entité | E4: % Participation | F4: Nationalité de l'Entité | G4: L'entité est-elle coté en bourse, ou filiale à 100% d'une entreprise coté en bourse (oui/non) | H4: Place boursière | I4: Propriétaires et % de détention (A remplir uniquement si l'entité n'est pas cotée)
B5: Participation publique (Etat Togolais) | C5: 1 | D5: N/A | E5: 10.0% | F5: N/A | G5: N/A | H5: N/A | I5: N/A
B6: Participation publique (Entités publiques ) | C6: 2 | D6: N/A | E6: 0.0% | F6: N/A | G6: N/A | H6: N/A | I6: N/A
B7: % participation des Actionnaires privés (entités privés/ personnes physiques) | C7: 1 | F7: N/A | G7: N/A | H7: N/A | I7: N/A
C8: 2 | D8: SCANCEM INTERNATIONAL | E8: 90.0% | F8: NORVEGIENNE | G8: NON
C9: 3
C10: 4
C11: 5
E12: =SUM(E5:E11) -> 100% | F12: Le total doit être de 100%
B14: SNPT
B15: PARTICIPATIONS AU 31/12/2022 | C15: N° | D15: Nom/Entité | E15: % Participation | F15: Nationalité de l'Entité | G15: L'entité est-elle coté en bourse, ou filiale à 100% d'une entreprise coté en bourse (oui/non) | H15: Place boursière | I15: Propriétaires et % de détention (A remplir uniquement si l'entité n'est pas cotée)
B16: Participation publique (Etat Togolais) | C16: 1 | D16: N/A | E16: 100% | F16: N/A | G16: N/A | H16: N/A | I16: N/A
B17: Participation publique (Entités publiques ) | C17: 2 | F17: N/A | G17: N/A | H17: N/A | I17: N/A
B18: % participation des Actionnaires privés (entités privés/ personnes physiques) | C18: 1 | F18: N/A | G18: N/A | H18: N/A | I18: N/A
C19: 2
C20: 3
C21: 4
C22: 5
E23: =SUM(E16:E22) -> 100% | F23: Le total doit être de 100%
B26: WACEM
B27: PARTICIPATIONS AU 31/12/2022 | C27: N° | D27: Nom/Entité | E27: % Participation | F27: Nationalité de l'Entité | G27: L'entité est-elle coté en bourse, ou filiale à 100% d'une entreprise coté en bourse (oui/non) | H27: Place boursière | I27: Propriétaires et % de détention (A remplir uniquement si l'entité n'est pas cotée)
B28: Participation publique (Etat Togolais) | C28: 1 | D28: ETAT | E28: 10% | F28: Togolaise | G28: non | I28: ETAT TOGOLAIS
B29: Participation publique (Entités publiques ) | C29: 2 | E29: 0
B30: % participation des Actionnaires privés (entités privés/ personnes physiques) | C30: 1 | D30: KENELM Ltd | E30: 43% | F30: Royaume-Uni | G30: non
C31: 2 | D31: Mr MOTAPARTI PRASAD | E31: 26% | F31: Idienne | G31: non | I31: Mr MOTAPARTI PRASAD
C32: 3 | D32: KAZITOM Ltd | E32: 17% | F32: Panama | G32: non
C33: 4 | D33: QUARTZ Ltd | E33: 4% | F33: Royaume-Uni | G33: non
E34: =SUM(E28:E33) -> 100% | F34: Le total doit être de 100%
B38: CIMCO
B39: PARTICIPATIONS AU 31/12/2022 | C39: N° | D39: Nom/Entité | E39: % Participation | F39: Nationalité de l'Entité | G39: L'entité est-elle coté en bourse, ou filiale à 100% d'une entreprise coté en bourse (oui/non) | H39: Place boursière | I39: Propriétaires et % de détention (A remplir uniquement si l'entité n'est pas cotée)
B40: Participation publique (Etat Togolais) | C40: 1 | D40: N/A | F40: N/A | G40: N/A | H40: N/A | I40: N/A
B41: Participation publique (Entités publiques ) | C41: 2 | F41: N/A | G41: N/A | H41: N/A | I41: N/A
B42: % participation des Actionnaires privés (entités privés/ personnes physiques) | C42: 1 | F42: N/A | G42: N/A | H42: N/A | I42: N/A
C43: 2
C44: 3
C45: 4
C46: 5
E47: =SUM(E40:E46) -> 0% | F47: Le total doit être de 100%
B51: TOGO CARRIERE
B52: PARTICIPATIONS AU 31/12/2022 | C52: N° | D52: Nom/Entité | E52: % Participation | F52: Nationalité de l'Entité | G52: L'entité est-elle coté en bourse, ou filiale à 100% d'une entreprise coté en bourse (oui/non) | H52: Place boursière | I52: Propriétaires et % de détention (A remplir uniquement si l'entité n'est pas cotée)
B53: Participation publique (Etat Togolais) | C53: 1 | D53: N/A | E53: 0 | F53: N/A | G53: N/A | H53: N/A | I53: N/A
B54: Participation publique (Entités publiques ) | C54: 2 | E54: 0 | F54: N/A | G54: N/A | H54: N/A | I54: N/A
B55: % participation des Actionnaires privés (entités privés/ personnes physiques) | C55: 1 | F55: N/A | G55: N/A | H55: N/A | I55: N/A
C56: 2 | D56: CMTP TOGO | E56: 88% | F56: TOGO | G56: NON | H56: N/A | I56: CMTP GABON 50%
C57: 3 | I57: ACC 50%
C58: 4 | D58: KOUMAKPAYI FATAI | E58: 4% | F58: Française
C59: 5 | D59: IOVE NICOLAIE | E59: 4% | F59: ROUMANIE
C60: 6 | D60: IVOE IULIAN | E60: 4% | F60: ROUMANIE
E61: =SUM(E53:E60) -> 100% | F61: Le total doit être de 100%
B65: TOGO RAIL
B66: PARTICIPATIONS AU 31/12/2022 | C66: N° | D66: Nom/Entité | E66: % Participation | F66: Nationalité de l'Entité | G66: L'entité est-elle coté en bourse, ou filiale à 100% d'une entreprise coté en bourse (oui/non) | H66: Place boursière | I66: Propriétaires et % de détention (A remplir uniquement si l'entité n'est pas cotée)
B67: Participation publique (Etat Togolais) | C67: 1 | D67: N/A | E67: 0 | F67: N/A | G67: N/A | H67: N/A | I67: N/A
B68: Participation publique (Entités publiques ) | C68: 2 | E68: 0 | F68: N/A | G68: N/A | H68: N/A | I68: N/A
B69: % participation des Actionnaires privés (entités privés/ personnes physiques) | C69: 1 | D69: WACEM | E69: 0.750
C70: 2 | D70: BPEC | E70: 0.050
C71: 3 | D71: SALT | E71: 0.050
C72: 4 | D72: TGCD | E72: 0.050
C73: 5 | D73: SGI-TOGO | E73: 0.025
C74: 6 | D74: AHIALEY | E74: 0.025
C75: 7 | D75: ABIDI | E75: 0.010
C76: 8 | D76: DJOMATIN | E76: 0.010
C77: 9 | D77: GAFFA | E77: 0.010
C78: 10 | D78: KANGOULINE | E78: 0.005
C79: 11 | D79: SANI | E79: 0.005
C80: 12 | D80: BAKOUSSAM | E80: 0.005
E81: =SUM(E67:E80) -> 100% | F81: Le total doit être de 100%
B85: GRANUTOGO
B86: PARTICIPATIONS AU 31/12/2022 | C86: N° | D86: Nom/Entité | E86: % Participation | F86: Nationalité de l'Entité | G86: L'entité est-elle coté en bourse, ou filiale à 100% d'une entreprise coté en bourse (oui/non) | H86: Place boursière | I86: Propriétaires et % de détention (A remplir uniquement si l'entité n'est pas cotée)
B87: Participation publique (Etat Togolais) | C87: 1 | D87: N/A | E87: 10.0% | F87: N/A | G87: N/A | H87: N/A | I87: N/A
B88: Participation publique (Entités publiques ) | C88: 2 | F88: N/A | G88: N/A | H88: N/A | I88: N/A
B89: % participation des Actionnaires privés (entités privés/ personnes physiques) | C89: 1 | F89: N/A | G89: N/A | H89: N/A | I89: N/A
C90: 2 | D90: GOULIGNAC Eric | E90: 0.1% | F90: FRANCAISE
C91: 3 | D91: SCANCEM | E91: 89.9% | F91: NORVEGIENNE
C92: 4
C93: 5
E94: =SUM(E87:E93) -> 100% | F94: Le total doit être de 100%
B99: TDE
B100: PARTICIPATIONS AU 31/12/2022 | C100: N° | D100: Nom/Entité | E100: % Participation | F100: Nationalité de l'Entité | G100: L'entité est-elle coté en bourse, ou filiale à 100% d'une entreprise coté en bourse (oui/non) | H100: Place boursière | I100: Propriétaires et % de détention (A remplir uniquement si l'entité n'est pas cotée)
B101: Participation publique (Etat Togolais) | C101: 1 | D101: TdE | E101: 100% | F101: Togolaise | G101: N/A | H101: N/A | I101: N/A
B102: Participation publique (Entités publiques ) | C102: 2 | F102: N/A | G102: N/A | H102: N/A | I102: N/A
B103: % participation des Actionnaires privés (entités privés/ personnes physiques) | C103: 1 | F103: N/A | G103: N/A | H103: N/A | I103: N/A
C104: 2
C105: 3
C106: 4
C107: 5
E108: =SUM(E101:E107) -> 100% | F108: Le total doit être de 100%

Sheet 1
A1: Tableau des propriétés effectives des sociétés retenues dans le périmétre
A4: Entreprises extractives
A6: Société | B6: Secteur | C6: FD reçu | D6: FD signé | E6: FD certifié | F6: Les états financiers de 2023 ont-ils fait l'objet d'un audit | G6: Transmission de la preuve d'audit des EF 2023
A7: SNPT | B7: Minière (société d’Etat) | C7: Oui | D7: Oui | E7: Non | F7: Oui | G7: Non
A8: SCANTOGO MINES | B8: Minière | C8: Oui | D8: Oui | E8: Non | F8: Oui | G8: Non
A9: WACEM | B9: Minière | C9: Oui | D9: Non | E9: Non | F9: Oui | G9: Non
A10: TOGO CARRIERE | B10: Carrière | C10: Oui | D10: Oui | E10: Non | F10: Oui | G10: Non
A11: TDE | B11: Production d'eau | C11: Oui | D11: Oui | E11: Non | F11: Oui | G11: Non
A12: POMAR TOGO | B12: Minière | C12: Oui | D12: Oui | E12: Non | F12: Oui | G12: Non
A13: MING MING MATCO | B13: Minière | C13: Oui | D13: Non | E13: Non | F13: Oui | G13: Non
A14: TOGO RAIL | B14: Transport | C14: Oui | D14: Non | E14: Non | F14: Oui | G14: Non
A15: GRANUTOGO | B15: Minière | C15: Oui | D15: Oui | E15: Non | F15: Oui | G15: Non
A16: CIMCO | B16: Minière | C16: Oui | D16: Non | E16: Non | F16: Oui | G16: Non
A17: SAMARIA | B17: Minière | C17: Oui | D17: Oui | E17: Oui | F17: Oui | G17: Non
A18: TOGOLAISE DE MANGANESE | B18: Minière (société d’Etat) | C18: Oui | D18: Non | E18: Non | F18: Oui | G18: Non
A19: TOGOLAISE DES GRANDS CAOUS | B19: Carrière | C19: Non | D19: Non | E19: Non | F19: Non | G19: Non
A20: TOGO INVEST CORPORATION | B20: Minière (société d’Etat) | C20: Oui | D20: Oui | E20: Non | F20: Non | G20: Non
A23: Régies financières
A25: Régies financières | B25: FD Réçu | C25: Déclaration signée par un représentant habilité | D25: Déclaration certifiée
A26: Commissariat des Impôts (CI) | B26: Oui | C26: Non | D26: Non
A27: Commissariat des Douanes et Droits Indirects (CDDI) | B27: Oui | C27: Oui | D27: Non
A28: Direction Générale du Trésor et de la Comptabilité Publique (DGTCP) | B28: Oui | C28: Oui | D28: Non
A29: Direction Générale des Mines et de la Géologie (DGMG) | B29: Oui | C29: Oui | D29: Non
A30: Direction Générale du Travail et de Lois Sociales (DGTLS) | B30: Oui | C30: Oui | D30: Non
A31: Société Togolaise des Eaux (TdE) | B31: Oui | C31: Oui | D31: Non
A32: Caisse Nationale de Sécurité Sociale (CNSS) | B32: Oui | C32: Oui | D32: Non
A33: Agence Nationale de Gestion de l’Environnement (ANGE) | B33: Oui | C33: Oui | D33: Non
A39: Comités de Développement Locaux Miniers (CDLM) | B39: FD Réçu | C39: Déclaration signée par un représentant habilité
A40: YOTO 1 | B40: Oui | C40: Non
A41: YOTO 3 | B41: Oui | C41: Oui
A42: VO 3 | B42: Oui | C42: Oui
A43: VO4 | B43: Oui | C43: Non
A44: ZIO 1 | B44: Oui | C44: Oui
A45: ZIO 2 | B45: Oui | C45: Oui
A46: ZIO 3 | B46: Oui | C46: Oui
A47: ZIO 4 | B47: Oui | C47: Oui
A48: HAHO 3 | B48: Oui | C48: Non
A49: KOZAH 2 | B49: Oui | C49: Oui
A50: KOZAH 3 | B50: Oui | C50: Oui
A51: DANKPEN 2 | B51: Oui | C51: Oui
A52: TCHAOUDJO 3 | B52: Oui | C52: Non
A53: BLITTA 2 | B53: Oui | C53: Oui
A54: BLITTA 3 | B54: Oui | C54: Oui
A55: ANIE 1 | B55: Oui | C55: Non
A56: AVE 2 | B56: Oui | C56: Oui
A57: LACS3 | B57: Oui | C57: Oui
A58: LACS4 | B58: Oui | C58: Oui

Sheet 2
B1: La nomenclature des flux
B3: Réf FD | C3: Nomenclature des flux | D3: Description de la taxe | E3: Payé à/ reçu par | F3: Référence
B5: Direction Générale des Mines et de la Géologie (DGMG)
B6: 1.1 | C6: Frais d’instruction du dossier | D6: Frais du dossier de demande d'un titre minier ou d'une autorisation de commercialisation, payable au receveur du trésor à la direction générale des mines et de la géologie avant l’instruction du dossier . | E6: DGMG | F6: Art. 49 du Code Minier
B7: 1.2 | C7: Droits Fixes | D7: Droits perçus au moment de la demande d’attribution, de renouvellement ou de transfert de titres miniers et dont le montant et les modalités sont déterminés par voie réglementaires . | E7: DGMG | F7: Art. 49 du Code Minier
B8: 1.3 | C8: Redevances Superficiaires | D8: Taxe payée par les titulaires des titres miniers, d’autorisations d’exploitation artisanale et de carrière, des permis de recherche et d’exploitation à petite et grande échelle. Cette redevance est fixée par voie réglementaire, sur une base annuelle et est payée par anticipation à compter de la date d’attribution du titre. | E8: DGMG | F8: Art. 50 du Code Minier
B9: 1.4 | C9: Redevances Minières (Substance minière) | D9: Tout titulaire d'un titre minier paye une redevance minière sur les substances minérales produites ou vendues. Les montants de ces redevances sont décidés par arrêté interministériel, précisant les conditions de paiement. | E9: DGMG | F9: Art. 51 du Code Minier
B10: 1.5 | C10: Pénalités aux infractions minières | D10: Il s’agit des montants versés par les sociétés minières à la suite d’infractions à la réglementation régissant le secteur minier . | E10: DGMG | F10: Art. 58 du Code Minier
B11: Commissariat des Impôts (CI)
B12: 2.1 | C12: Impôt sur les Sociétés (IS) | D12: Les taux d’impôt sur les sociétés est fixé 27% du bénéfice imposable. Le bénéfice imposable est le bénéfice net déterminé d’après les résultats d’ensemble des opérations de toute nature effectuées par les entreprises, y compris notamment, les produits accessoires, les produits financiers, les plus-values de cessions d’éléments quelconques de l’actif soit en cours, soit en fin d’exploitation et les plus-values de réévaluation libre des bilans. | E12: CI | F12: Art 97 du CGI Art 113 du CGI
B13: 2.2 | C13: Impôt sur le Revenu des Capitaux Mobiliers (IRCM) | D13: L'IRCM est prélevé à la source sur les dividendes, jetons de présence, tantièmes, et autres revenus des actions, parts sociales et obligations mis à la disposition des bénéficiaires. | E13: CI | F13: Art 79 du CGI Art 80 du CGI
B14: 2.3 | C14: Impôt Minimum Forfaitaire (IMF) | D14: Les sociétés et autres personnes morales soumises à l’IS sont passibles d’un minimum forfaitaire d’imposition. Il est dû en cas de déficit ou lorsque le résultat fiscal ne permet pas de déterminer un impôt supérieur à celui-ci. Il est fait application d’un taux de 1% du chiffre d’affaires hors taxe sur la valeur ajoutée (TVA), du dernier exercice clos. En aucun cas, son montant ne peut être inférieur à vingt mille (20 000) francs CFA pour les contribuables qui sont au régime du bénéfice réel d’imposition. | E14: CI | F14: Art 120 du CGI
B15: 2.4 | C15: Taxe professionnelle (TP) | D15: La taxe professionnelle est due chaque année par les personnes physiques ou morales qui exercent à titre habituel une activité professionnelle non salariée. La base de calcul de la taxe professionnelle se compose de deux éléments déterminés au cours d'une période de référence, soit : le chiffre d'affaires global toutes taxes comprises et la valeur locative des locaux et terrains de dépôts. | E15: CI | F15: De l'Art 128 à l'Art 140 du CGI
B16: 2.5 | C16: Taxes Foncières (TF) | D16: Conformément au Code Général des Impôts, la taxe foncière est établie annuellement sur les propriétés bâties et sur les propriétés non bâties sises au Togo. Le taux de la taxe foncière sur les propriétés bâties (TFPB) est fixé à 7.5 % du revenu net cadastral. Le taux de la taxe foncière sur les propriétés non bâties (TFPNB) est fixé à 0.5 % de la valeur vénale. | E16: CI | F16: De l'Art 257 à l'Art 287 du CGI
B17: 2.6 | C17: Impôt sur le Revenu des Personnes Physiques IRPP/IRTS | D17: les revenus de la catégorie des traitements et salaires, pensions et rentes viagères font l'objet d'une retenue à la source opérée sur chaque paiement effectué, lorsque l'employeur ou le débirentier est domicilié ou établi au Togo, quel que soit le lieu du domicile fiscal du bénéficiaire de ces revenus. | E17: CI | F17: De l'Art 64 à l'Art 68 du CGI et de l'Art 114 à l'Art 127 du CGI
B18: 2.7 | C18: Taxes sur Salaires (TS) | D18: La base de la taxe est constituée par le montant total des rémunérations et des avantages en nature effectivement alloués durant l'année civile à l'ensemble du personnel qui entrent dans la catégorie des traitements et salaires imposables à l'impôt sur le revenu. Le taux de l'impôt est égal à 3% de la base définie dont : 0.6% doit être affecté à un fonds national d'apprentissage, de formation et de perfectionnement professionnels et 0.6% doit être reversé à un fonds spécial de développement de l'habitat. | E18: CI | F18: De l'Art 171 à l'Art 178 du CGI (2016)
B19: 2.8 | C19: Taxes Complémentaires sur Salaire (TCS) | D19: La taxe complémentaire à l'impôt sur le revenu est annexée au calcul de ce dernier impôt et représente 25% du total de l'impôt dû à ce titre. Le produit de la taxe comporte un minimum fixé à 6 000 francs par redevable et un plafond de 200 000 francs par cote d'impôt sur le revenu. Toutefois, pour les contribuables bénéficiant exclusivement ou à titre principal de traitements, salaires, retraites et rentes viagères, le montant de la taxe complémentaire est fixé à 1 500 francs lorsque le produit de l'impôt sur le revenu est égal ou supérieur à 1 500 francs. Lorsque ce même produit est inférieur à 1 500 francs ou nul c'est uniformément une taxe complémentaire de 3 000 francs qui est retenue par contribuable à titre de minimum d'impôt. | E19: CI | F19: Art 220 du CGI (2016)
B20: 2.9 | C20: Taxe sur la Valeur Ajoutée (TVA) | D20: Les détenteurs d'une autorisation de prospection, d'un permis de recherche, d'un permis d'exploitation, ses prestataires de services et fournisseurs sont exonérés de la taxe sur la valeur ajoutée pour tous les services rendus au titulaire, que ce soit à l'étranger ou sur le territoire national, et pour tous les biens d'équipement, machines, véhicules utilitaires, outillages, pièces détachées et produits consommables (sauf les produits pétroliers) achetés sur le marché intérieur pour les activités minières relatives au titre minier. | E20: CI | F20: Art. 52 du Code Minier
B21: 2.1 | C21: Retenue sur prestation de services (RSPS) | D21: Les personnes physiques ou morales passibles ou non de l’IS ou de l’IRPP catégories BIC, BNC, ou BA, sont tenues d’opérer une retenue sur les honoraires, courtages, commissions et toutes autres rémunérations assimilées versés à des tiers domiciliés au Togo et ne faisant pas partie de l’entreprise. | E21: CI | F21: Art 1186 du CGI (2016)
B22: 2.11 | C22: Retenue sur loyer (RSL) | D22: Les personnes morales ou physiques de droit public ou privé sont tenues d'opérer une retenue sur les loyers payés aux propriétaires des immeubles, autres que ceux servant à une habitation, qu'elles prennent à bail et d'en reverser le montant au comptable public dans les quinze jours suivant la date à laquelle la retenue a été pratiquée. | E22: CI | F22: Art 1186 du CGI (2016)
B23: 2.12 | C23: Taxe sur la Fabrication et la commercialisation des boissons | D23: La taxe spéciale sur la fabrication et le commerce des boissons est retenue à la source par les services des Douanes pour le compte de l’Administration des impôts en ce qui concerne les boissons importées et par le producteur en ce qui concerne les boissons de fabrication locale. Cette taxe ne constitue pas une taxe sur l’extraction | E23: CI | F23: De l'Art 305 à l'Art 307 du CGI (2016)
B24: 2.13 | C24: Taxe d'enlèvement d'ordure (TEO) | D24: La taxe d'enlèvement des ordures est établie annuellement sur les propriétés bâties et non bâties sises au Togo dans les parties des communes où fonctionne un service d'enlèvement et de destruction des ordures. | E24: CI | F24: Art 291 du CGI (2016)
B25: 2.14 | C25: Taxe professionnelle unique (TPU) | D25: la TPU suivant le régime déclaratif est déterminée par application des taux ci-après à la base d’imposition : - 2% du chiffre d’affaires pour les activités de production et/ou de commerce ; - 8% du chiffre d’affaires pour les activités de prestation de services. | E25: CI | F25: De l'Art 128 à l'Art 140 du CGI
B26: 2.15 | C26: Redressements fiscaux et pénalités payés au CI | D26: Rappels d'impôts suite au contrôle fiscal. Ils sont majorés des pénalités et amendes | E26: CI | F26: De l'Art 234 à l'Art 241 du LPF
B27: 2.16 | C27: Les Droits d’Enregistrement | D27: Les droits d'enregistrement sont fixes, proportionnels ou progressifs suivant la nature des actes et mutations. Il ne peut être perçu moins de cinq mille (5 000) FCFA pour l’enregistrement des actes et mutations dont les sommes et valeurs ne produiraient pas cinq mille (5 000) FCFA de droit proportionnel ou de droit progressif. | E27: CI | F27: De l'Art 301 à l'Art 3017 du CGI
B28: 2.17 | C28: Taxes sur les véhicules | D28: Conformément à l’article 179 du CGI, la taxe sur les véhicules est dûe sur les véhicules immatriculés. Il s’agit d’une taxe anuelle exigible par toute personne physique ou morale à l’exception des personnes morales d’intérêt général, Le tarif de la taxe annuelle sur les véhicules des sociétés est fixé à : - 150 000 francs CFA pour les véhicules dont la puissance fiscale n’excède pas 7 CV ; - 200 000 francs CFA pour les autres véhicules. | E28: CI | F28: De l'Art 154 à l'Art 171 du CGI
B29: Commissariat des Douanes et Droits Indirects (CDDI)
B30: 3.1 | C30: Droit de Douane (DD-RS-PCS-PC-RI et autres) | D30: Les détenteurs d'une autorisation de prospection, d'un permis de recherche, d'un permis d'exploitation, ses prestataires de services et fournisseurs bénéficient du régime de l’admission temporaire pour tous les biens d'équipement, machines, véhicules utilitaires, outillages, pièces détachées et produits consommables (sauf les produits pétroliers) importés pour les activités minières relatives au titre minier. Ces avantages comprennent l'exonération de tout droit et toute taxe de douane, de la taxe de statistique et de la TVA sur l'importation et l'exportation de tous ces biens. | E30: CDDI | F30: Art 53 du Code Minier
B31: 3.2 | C31: Taxe sur la Valeur Ajoutée (TVA) au cordon douanier | D31: Les détenteurs d'une autorisation de prospection, d'un permis de recherche, d'un permis d'exploitation, sont exonérés de la taxe sur la valeur ajoutée sur tous les services, biens d'équipement, machines, véhicules utilitaires, outillages, pièces détachées et produits consommables (sauf les produits pétroliers) importés ou achetés localement pour le besoin des activités minières. En conséquence, les sociétés minières paient la TVA au cordon douanier sur les importations de biens et services non liés à l'activité minière. | E31: CDDI | F31: Art 52 du Code Minier
B32: 3.3 | C32: Taxe sur la commercialisation des pierres et substances précieuses | D32: Les frais d'exportation des substances minérales précieuses et semi-précieuses sont fixés à 4,5% de la valeur mercuriale dont : | E32: CDDI | F32: Décret N°2009-299/PR
B33: 3.4 | C33: Pénalités douanières | D33: Il s’agit des montants versés par les sociétés minières en cas de constatation d’infractions à la législation douanière en vigueur ou à des redressements douaniers. | E33: CDDI
B34: Direction Générale du Trésor et de la Comptabilité Publique (DGTCP)
B35: 4.1 | C35: Dividendes | D35: Il s’agit des dividendes versés au Gouvernement Togolais directement dans le compte du Trésor. En effet, le gouvernement prend une participation gratuite de dix pour cent (10%) du capital de l'investissement sauf dans les activités artisanales. | E35: DGTCP | F35: Art 55 du Code Minier
B36: 4.2 | C36: Avances sur dividendes | D36: Il s’agit des dividendes versés au Gouvernement Togolais directement dans le compte du Trésor. En effet, le gouvernement prend une participation gratuite de dix pour cent (10%) du capital de l'investissement sauf dans les activités artisanales. | E36: DGTCP | F36: Art 55 du Code Minier
B37: 4.3 | C37: Contribution financière au développement local et régional | D37: La contribution est fixée pour les exlpoitants à grande échelle, les exploitants à petite échelle et les exploitants des matériaux de constricution à 0.75% du chiffre d'affaires annuel. | E37: DGTCP | F37: Décret N° 2017-023
B38: 4.4 | C38: Taxes écologiques | D38: Il s'agit des taxes dont le produit est versé à l'État et aux collectivités riveraines, basées sur les activités autorisées qui polluent l'environnement ou dégradent les ressources naturelles, ainsi que sur les activités à but lucratif utilisant ces ressources naturelles. | E38: DGTCP | F38: Art 54 du loi- cadre de l'environnement
B39: Agence Nationale de Gestion de l'Environnement (ANGE)
B40: 5.1 | C40: Taxe sur la délivrance de conformité environnementale | D40: Selon le site officiel du portail de l'investissement, la taxe perçue au taux de 5% des frais d'évaluation environnementale du rapport d'étude d'impact. | E40: ANGE | F40: https://investirautogo.tg/procedure/159/step/597?l=fr
B41: 5.2 | C41: Certificat de régularisation environnementale | D41: Montant payé pour l'obtention du certificat de régulation environnementale pour les structures qui n'ont pas fait l'objet d'étude d'impact environnemental avant le démarrage de leurs activités. | E41: ANGE | F41: Decret N° 2011-041 /PR
B42: 5.3 | C42: Taxe sur autorisation de rejet | D42: La délivrance des autorisations de rejet donne lieu au versement d’une taxe dont les assiettes et les taux sont fixés par arrêté conjoint du ministre chargé de l’environnement et du ministre chargé des finances. | E42: ANGE | F42: Art 126 de la loi- cadre de l'environnement
B43: 5.4 | C43: Amendes au titrre des infractions environnementales | D43: Sera punie d’un emprisonnement de six (06) mois à deux (02) ans et d’une amende de cinq millions (5.000.000) à cinquante millions (50.000.000) de francs CFA, ou l’une de ces deux peines seulement, toute personne qui : - aura réalisé, sans étude d’impact, des activités, projets ou programmes de développement nécessitant une étude d’impact. - aura réalisé les opérations ci-dessus mentionnées en violation des critères, normes et mesures édictés pour l’étude d’impact. | E43: ANGE | F43: De l'Art. 151à l'Art 158 de la loi- cadre de l'environnement
B44: 5.5 | C44: Taxe sur cessions et transferts de crédit carbonne (+) | D44: Les opérations de cession et de transfert sont assujetties au paiement d’une taxe dont les modalités de recouvrement et de gestion sont fixées par arrêté conjoint du ministre chargé des finances et du ministre chargé des changements climatiques. | E44: ANGE | F44: Art 12 du DECRET N° 2023-034/PR DU 15/03/2023 relatif aux mécanismes de carbone
B45: Direction Générale du travail et de lois Sociales (DGTLS)
B46: 6.1 | C46: Taxes d'autorisation d'embauche | D46: Les taxes d'autorisation d'embauche s'élèvent à 25% du salaire soumis à cotisation. | E46: DGTLS | F46: Arrêté interministériel n°009/MEF/MYESS
B47: 6.2 | C47: Frais d'attestation de paiement de créance de salaire | D47: Les frais d'attestation de payement de créance de salaire s'élèvent à 10 000 FCFA. | E47: DGTLS | F47: Arrêté interministériel n°009/MEF/MYESS
B48: 6.3 | C48: Frais d'étude et de visa des règlements intérieurs | D48: Les frais d'étude et de visa des règlements intérieurs s'élèvent à 10 000 FCFA. | E48: DGTLS | F48: Arrêté interministériel n°009/MEF/MYESS
B49: 6.4 | C49: Taxes de visa des contrats des étrangers | D49: Les taxes de visa des contrats des étrangers s'élèvent à 20% du salaire soumis à cotisation. | E49: DGTLS | F49: Arrêté interministériel n°009/MEF/MYESS
B50: 6.5 | C50: Frais de certification de la qualité de documents | D50: Les frais de certification de la qualité de documents s'élèvent à 10 000 FCFA. | E50: DGTLS | F50: Arrêté interministériel n°009/MEF/MYESS
B51: 6.6 | C51: Taxe de visa des contrats d'apprentissage | D51: Les taxes de visa des contrats d'apprentissage s'élèvent à 2 000 FCFA. | E51: DGTLS | F51: Arrêté interministériel n°009/MEF/MYESS
B52: Togolaise des Eaux (TdE)
B53: 7.1 | C53: Taxe de prélèvement d’eau dans la nappe | D53: Les sociétés exploitant les nappes d'eau doivent payer des taxes de prélèvement qui sont déterminées par des compteurs d'eau placés par la TdE sur les forages utilisant la nappe d'eau. Ces forages sont facturés chaque mois au prix de 100 FCFA pour le m3. | E53: TdE | F53: Arrêté interministériel n°31/MCITDZF/MEMEPT
B54: Caisse Nationale de Sécurité Sociale (CNSS)
B55: 8.1 | C55: Cotisations sociales | D55: La cotisation à la Caisse Nationale de Sécurité Sociale est instituée par le Code de la Sécurité Sociale. Elle est obligatoire pour tous employeurs et employés soumis au Code du Travail sans distinction aucune. | E55: CNSS | F55: Art. 11 du Code de la Sécurité Sociale

Sheet 3
A1: Compilation questionnaire général
A3: Gestion de l'impact social et environnemental et de genre | B3: SNPT | C3: SCANTOGO | D3: WACEM | E3: TOGO CARRIERE | F3: TdE | G3: Ming Ming Matco | H3: TOGO RAIL | I3: GRANUTOGO | J3: COMCO | K3: SAMARIA | L3: POMAR
A4: La société possède-t-elle une politique de gestion de l'impact social (oui/non) | B4: NON | C4: Nc | D4: OUI | E4: NON | F4: Non | G4: Nc | H4: OUI | I4: Nc | J4: Nc | K4: NON | L4: Oui
A5: Si oui, est ce qu'elle est conforme aux lignes directrices de l'OCDE/ONU ou un autre standards (oui/non/Autres à préciser) ? | B5: Nc | C5: Nc | D5: Nc | E5: Nc | F5: Nc | G5: Nc | H5: Nc | I5: Nc | J5: Nc | K5: Nc | L5: Oui
A6: La société possède-t-elle une politique de gestion de l'impact environnemental (oui/non) | B6: OUI | C6: Nc | D6: OUI | E6: Nc | F6: Non | G6: Nc | H6: OUI | I6: Nc | J6: Nc | K6: NON | L6: Oui
A7: Si oui, est ce qu'elle est conforme à la norme ISO 14001 ou à un autre Standards ? (oui/non/Autres à préciser) ? | B7: OUI | C7: Nc | D7: Nc | E7: Nc | F7: Nc | G7: Nc | H7: Nc | I7: Nc | J7: Nc | K7: Nc | L7: Oui
A8: La société possède-t-elle une politique genre? (oui/non) | B8: NON | C8: Nc | D8: Nc | E8: Nc | F8: Non | G8: Nc | H8: NON | I8: Nc | J8: Nc | K8: NON | L8: Oui
A9: Si oui, est ce qu'elle est conforme aux principes d’égalité de genre de l’ONU ou à autre standard ? (oui/non/Autres à préciser) ? | B9: Nc | C9: Nc | D9: Nc | E9: Nc | F9: Nc | G9: Nc | H9: Nc | I9: Nc | J9: Nc | K9: Nc | L9: Oui
A10: Luttre contre la corruption
A11: La société possède-t-elle une politique de lutte contre la corruption? (oui/non) | B11: NON | C11: Nc | D11: NON | E11: NON | F11: Non | G11: Nc | H11: NON | I11: Nc | J11: Nc | K11: NON | L11: Oui
A12: Si oui, est-ce qu'elle couvre l’utilisation qu’elles font des données sur la propriété effective? (oui/non) | B12: Nc | C12: Nc | D12: Nc | E12: Nc | F12: Nc | G12: Nc | H12: Nc | I12: Nc | J12: Nc | K12: Nc | L12: Oui
A13: Votre politique de lutte contre la corruption est-elle publique? (oui/non) | B13: Nc | C13: Nc | D13: Nc | E13: Nc | F13: Nc | G13: Nc | H13: Nc | I13: Nc | J13: Nc | K13: NON | L13: Non
A14: Si oui, mettre le lien de publication | B14: Nc | C14: Nc | D14: Nc | E14: Nc | F14: Nc | G14: Nc | H14: Nc | I14: Nc | J14: Nc | K14: Nc | L14: Non
A15: Si non, préciser les obstacles à la publication: | B15: RAS | C15: Nc | D15: Nc | E15: Nc | F15: Nc | G15: Nc | H15: Nc | I15: Nc | J15: Nc | K15: Nc | L15: N/A
A16: Emissions de Gaz à effet de serre
A17: La société publie-t-elle les émissions de gaz à effet de serre? (oui/non) | B17: NON | C17: Nc | D17: NON | E17: NON | F17: Nc | G17: Nc | H17: Nc | I17: Nc | J17: Nc | K17: NON | L17: Non
A18: Si oui, mettre le lien de publication | B18: Nc | C18: Nc | D18: Nc | E18: Nc | F18: Nc | G18: Nc | H18: Nc | I18: Nc | J18: Nc | K18: Nc | L18: Non
A19: Si non, préciser les obstacles à la publication | B19: RAS | C19: Nc | D19: Nc | E19: Nc | F19: Nc | G19: Nc | H19: Nc | I19: Nc | J19: Nc | K19: ABSENCE DE MECANISME DE MESURE DES EMISSIONS DE GAZ AEFFET DE SERRE | L19: N/A
A20: Audit des comptes
A21: Les états financiers de 2023 ont-ils fait l'objet d'un audit ? (oui/non) | B21: OUI | C21: Nc | D21: OUI | E21: OUI | F21: Oui | G21: Nc | H21: OUI | I21: Nc | J21: Nc | K21: OUI | L21: Oui
A22: La société publie-t-elle les comptes financiers audités (ou principaux documents financiers le cas échéant)? (oui/non) | B22: NON | C22: Nc | D22: Nc | E22: NON | F22: aux Partenaires Techniques et Financiers et sur demande | G22: Nc | H22: NON | I22: Nc | J22: Nc | K22: NON | L22: Non
A23: Si oui, mettre le lien de publication | B23: Nc | C23: Nc | D23: Nc | E23: Nc | F23: Nc | G23: Nc | H23: Nc | I23: Nc | J23: Nc | K23: Nc | L23: N/A
A24: Si non, préciser les obstacles à la publication | B24: RAS | C24: Nc | D24: Nc | E24: AUCUN | F24: Les informations porraient être exploitées à des difficilement maîtrisable | G24: Nc | H24: Nc | I24: Nc | J24: Nc | K24: ABSENCE DE SITE PROFESSIONNEL A CET EFFET | L24: N/A
A25: Déductions fiscales
A26: La société a-t-elle bénéficié de déductions et incitations fiscales au cours de 2023 ? | B26: NON | C26: Nc | D26: NON | E26: NON | F26: non | G26: Nc | H26: NON | I26: Nc | J26: Nc | K26: NON | L26: Non
A27: Si oui, indiquer la référence juridique ou contractuelle ? | B27: Nc | C27: Nc | D27: Nc | E27: Nc | F27: Nc | G27: Nc | H27: Nc | I27: Nc | J27: Nc | K27: Nc | L27: N/A
A28: Données sur les reserves
A29: Renseignez l'estimation des reserves économiques de vos projets (Pétrole/Gaz/Minerais) | B29: Nc | C29: Nc | D29: Nc | E29: Nc | F29: Nc | G29: Nc | H29: Nc | I29: Nc | J29: Nc | K29: N/A | L29: Nc

Sheet 4
B12: Liste des pièces et informations à fournir en vue de l’obtention des permis et des autorisations

Sheet 5
A1: Schéma d’illustration de la procédure d’octroi des permis de recherche

Sheet 6
B1: Liste des pièces et informations à fournir en vue de l’obtention de l’agrément de production, d’exploitation et de commercialisation des eaux conditionnées

Sheet 7
B1: Tableau des octroi miniéres en 2023
B3: Identité de l'attributaire | C3: Type de permis | D3: Substance principale | E3: Date de la demande | F3: Date d'octroi | G3: Durée (an) | H3: Mode ou procédure d'octroi/ de transfert | I3: Superficie (en km2) | J3: Localité et prefecture | K3: Coordonnées géographique_Long. | L3: Coordonnées géographique_Lat.
B4: ISAGES | C4: Autorisation artisanale | D4: sable | E4: Nc | F4: 2023-01-09 | G4: 1 | H4: Principe du Premier venu Premier servi | I4: 0.0129 | J4: Tchékpo-Dzigbé (Yoto)
B5: NTIFAFA COME AND SEE | C5: Autorisation artisanale | D5: sable | E5: Nc | F5: 2023-01-09 | G5: 1 | H5: Principe du Premier venu Premier servi | I5: 0.0269 | J5: Batoumé (Avé)
B6: ATTIO ET FILS | C6: Autorisation artisanale | D6: sable | E6: Nc | F6: 2023-01-09 | G6: 1 | H6: Principe du Premier venu Premier servi | I6: 0.03 | J6: Abaté-Kopé (Lacs)
B7: BLEWU ET FILS | C7: Autorisation artisanale | D7: sable | E7: Nc | F7: 2023-01-09 | G7: 1 | H7: Principe du Premier venu Premier servi | I7: 0.0193 | J7: Tchékpo-Dévé (Yoto)
B8: ROSADE | C8: Autorisation artisanale | D8: sable | E8: Nc | F8: 2023-09-27 | G8: 1 | H8: Principe du Premier venu Premier servi | I8: 0.0696 | J8: Helenyi-Adakope (Agou)
B9: MNS-GROUP/CRSSG-TOGO | C9: Autorisation artisanale | D9: sable | E9: Nc | F9: 2023-09-27 | G9: 1 | H9: Principe du Premier venu Premier servi | I9: 0.010349 | J9: Lassa-Tchow (Kozah)
B10: CARRIERE LUMIERE | C10: Autorisation artisanale | D10: sable | E10: Nc | F10: 2023-10-05 | G10: 1 | H10: Principe du Premier venu Premier servi | I10: 0.042 | J10: Tchékpo-Dzigbé (Yoto)
B11: MARANATHA | C11: Autorisation artisanale | D11: sable | E11: Nc | F11: 2023-11-28 | G11: 1 | H11: Principe du Premier venu Premier servi | I11: 0.0808 | J11: Koudassi-Gbogamé (Avé)
B12: SOROUBAT-TG | C12: Permis d'exploitation pour Matériaux de construction | D12: Gneiss | E12: 2021-02-12 | F12: 2023-03-27 | G12: 2 | H12: Principe du Premier venu Premier servi | I12: 0.127 | J12: Alibi 2 (Tchamba) | K12: 1° 17' 16.400'' E 1° 17' 14.000'' E 1° 17' 14.300'' E 1° 17' 12.313'' E 1° 17' 12.100'' E 1° 17' 11.431'' E 1° 17' 11.000'' E 1° 17' 09.200'' E 1° 17' 05.600'' E 1° 17' 01.800'' E 1° 16' 58.600'' E 1° 17' 01.300'' E 1° 17' 06.600'' E 1° 17' 12.200'' E 1° 17' 14.900'' E 1° 17' 19.600'' E 1° 17' 19.700'' E | L12: 8° 58' 20.200'' N 8° 58' 21.400'' N 8° 58' 24.300'' N 8° 58' 24.360'' N 8° 58' 24.900'' N 8° 58' 24.387'' N 8° 58' 24.400'' N 8° 58' 22.800'' N 8° 58' 21.300'' N 8° 58' 23.600'' N 8° 58' 28.200'' N 8° 58' 32.100'' N 8° 58' 33.900'' N 8° 58' 31.600'' N 8° 58' 26.300'' N 8° 58' 26.900'' N 8° 58' 23.500'' N
B13: EMT | C13: Permis d'exploitation pour Matériaux de construction | D13: Gneiss | E13: 2015-12-01 | F13: 2023-02-09 | G13: 3 | H13: Principe du Premier venu Premier servi | I13: 0.1248 | J13: Bolou Vavatsi (Zio) | K13: 1° 09' 12.888'' E 1° 09' 14.198'' E 1° 09' 20.099'' E 1° 09' 19.804'' E 1° 09' 23.198'' E 1° 09' 23.198'' E 1° 09' 28.501'' E 1° 09' 27.101'' E | L13: 6° 27' 08.442'' N 6° 27' 17.899'' N 6° 27' 16.600'' N 6° 27' 13.303'' N 6° 27' 11.599'' N 6° 27' 13.298'' N 6° 27' 10.901'' N 6° 27' 02.700'' N
B14: TGC | C14: Permis d'exploitation pour Matériaux de construction | D14: Gneiss | F14: 2023-12-20 | G14: 3 | H14: Principe du Premier venu Premier servi | I14: 0.3 | J14: Lassa-Tchou (Kozah) | K14: 1° 15' 23.930'' E 1° 15' 25.980'' E 1° 15' 11.590'' E 1° 15' 15.150'' E 1° 15' 05.790'' E 1° 15' 07.080'' E | L14: 9° 35' 39.230'' N 9° 35' 29.440'' N 9° 35' 29.460'' N 9° 35' 11.700'' N 9° 35' 14.940'' N 9° 35' 38.230'' N
B15: TOGO CARRIERE | C15: Permis d'exploitation pour Matériaux de construction | D15: Migmatite | F15: 2023-01-06 | G15: 3 | H15: Principe du Premier venu Premier servi | I15: 0.3 | J15: Amékpé-Lilikopé (Zio) | K15: 1° 09' 04.000'' E 1° 09' 15.000'' E 1° 09' 12.000'' E 1° 09' 02.000'' E 1° 08' 50.000'' E | L15: 6° 33' 43.000'' N 6° 33' 40.000'' N 6° 33' 28.000'' N 6° 33' 17.000'' N 6° 33' 25.000'' N
B16: CRBC-TOGO | C16: Permis d'exploitation pour Matériaux de construction | D16: Gneiss | E16: 2021-06-08 | F16: 2023-03-21 | G16: 2 | H16: Principe du Premier venu Premier servi | I16: 0.127 | J16: Badja-Fiamé (Avé) | K16: 1° 01' 33.250'' E 1° 01' 31.183'' E 1° 01' 29.949'' E 1° 01' 30.032'' E 1° 01' 30.612'' E 1° 01' 30.858'' E 1° 01' 33.368'' E 1° 01' 34.567'' E 1° 01' 36.710'' E 1° 01' 37.362'' E 1° 01' 39.663'' E 1° 01' 40.773'' E 1° 01' 43.724'' E 1° 01' 45.616'' E 1° 01' 42.013'' E 1° 01' 40.980'' E 1° 01' 39.970'' E 1° 01' 37.160'' E | L16: 6° 22' 09.090'' N 6° 22' 12.077'' N 6° 22' 12.997'' N 6° 22' 14.659'' N 6° 22' 15.234'' N 6° 22' 18.554'' N 6° 22' 18.123'' N 6° 22' 18.186'' N 6° 22' 17.798'' N 6° 22' 17.594'' N 6° 22' 16.580'' N 6° 22' 15.680'' N 6° 22' 13.562'' N 6° 22' 11.857'' N 6° 22' 06.890'' N 6° 22' 05.496'' N 6° 22' 04.087'' N 6° 22' 05.380'' N
B17: SOGEA SATOM | C17: Permis d'exploitation pour Matériaux de construction | D17: Gneiss | E17: 2022-08-28 | F17: 2023-01-03 | G17: 18 mois | H17: Principe du Premier venu Premier servi | I17: 0.16 | J17: Tsimanè (Zio) | K17: 1° 15' 32.530'' E 1° 15' 41.290'' E 1° 15' 41.340'' E 1° 15' 22.770'' E 1° 15' 22.750'' E 1° 15' 32.550'' E | L17: 6° 38' 04.950'' N 6° 38' 04.980'' N 6° 37' 52.970'' N 6° 37' 52.910'' N 6° 37' 59.480'' N 6° 37' 59.510'' N
B18: TOGO MINERALS | C18: Permis d'exploitation pour Matériaux de construction | D18: Gneiss granulitique | E18: 2022-10-20 | F18: 2023-08-24 | G18: 3 | H18: Principe du Premier venu Premier servi | I18: 0.22 | J18: Kpinzidè (Kozah) | K18: 1° 17' 38.530'' E 1° 17' 31.240'' E 1° 17' 33.790'' E 1° 17' 23.260'' E 1° 17' 28.740'' E 1° 17' 45.440'' E | L18: 9° 30' 39.940'' N 9° 30' 47.580'' N 9° 30' 50.170'' N 9° 31' 04.730'' N 9° 31' 09.050'' N 9° 30' 47.030'' N
B19: CORNERSTONE GROUP INTERNATIONAL | C19: Permis d'exploitation pour Matériaux de construction | D19: Granite | E19: 2022-04-13 | F19: 2023-07-07 | G19: 3 | H19: Principe du Premier venu Premier servi | I19: 0.243 | J19: Asrama Siyimé (Haho) | K19: 1° 28' 39.100'' E 1° 28' 41.900'' E 1° 28' 44.800'' E 1° 28' 47.900'' E 1° 28' 49.200'' E 1° 28' 47.900'' E 1° 28' 45.000'' E 1° 28' 40.700'' E 1° 28' 40.000'' E 1° 28' 35.200'' E 1° 28' 33.000'' E 1° 28' 33.200'' E 1° 28' 32.200'' E 1° 28' 34.200'' E | L19: 6° 57' 54.900'' N 6° 57' 53.300'' N 6° 57' 51.700'' N 6° 57' 50.700'' N 6° 57' 41.000'' N 6° 57' 36.700'' N 6° 57' 34.300'' N 6° 57' 34.400'' N 6° 57' 33.800'' N 6° 57' 34.400'' N 6° 57' 37.200'' N 6° 57' 39.100'' N 6° 57' 40.800'' N 6° 57' 46.400'' N
B20: MARBRERIE ET CONCASSAGE DE ONYAWOLOU (MACO) | C20: Permis d'exploitation à petite échelle | D20: Marbre | F20: 2023-01-06 | G20: 5 | H20: Principe du Premier venu Premier servi | I20: 0.06 | J20: Onyawolou (Amou)

Sheet 8
B1: Tableau des octroi de l'eau en 2023
A3: N° | B3: Société | C3: Nom du produit | D3: Prélévement autorisé | E3: Localisation | F3: Présence de compteur | G3: Date agrément
A4: 1 | B4: CRYSTAL SARL | C4: CRISTAL AQUALINDA | D4: 240 | E4: Adidogomé lomé maritime | F4: non | G4: 16/12/2013 (renouvelé juin 2019) (renuvelé 5/1/2022)
A5: 2 | B5: AL HALAL | C5: colombe | D5: 510 | E5: Kpalimé, Kpéta / maritime | F5: non | G5: 29/07/2014 (renouvelé 05/01/2022)
A6: 3 | B6: PURE WAY LIMITED | C6: AQUA PSP/MAI TOGO | D6: 1000 | E6: Agoé Kitidjan / Maritime | F6: non | G6: 2022-01-05
A7: 4 | B7: BAGANA NADJOMBE | C7: D'Djore gnim | D7: 200 | E7: Préfecture de Bassar/kara | F7: non | G7: 2022-01-05
A8: 5 | B8: SOCIETE INDUSTRIELLE D'INGENIERIE ET D'EXPLOITATION | C8: O Douce / Hilio | D8: 150 | E8: Préfecture de doufelgou/kara | F8: non | G8: 2022-01-05
A9: 6 | B9: ETS J'AI FAIT UN REVE | C9: Eau de reve | D9: Nc | E9: préfecture de tone/savanes | F9: non | G9: 2022-01-05
A10: 7 | B10: AYIDOK MARKET | C10: SUPER ZAGLA WATER | D10: 150 | E10: Nc | F10: non | G10: 2023-04-24
A11: 8 | B11: CECAO-TOGO | C11: GLORY WATER | D11: 120 | E11: Préfecture de Kloto/ Plateaux | F11: non | G11: 2023-04-24
A12: 9 | B12: TOLERANCE DELICE | C12: DELICE PLUS | D12: 650 | E12: Préfecture de Golfe/ Maritime | F12: non | G12: 2023-04-24
A13: 10 | B13: TRUST ONLY | C13: TRUST WATER | D13: 650 | E13: Préfecture de Golfe/ Maritime | F13: non | G13: 2023-04-24

Sheet 9
B1: Registre des titre minier et autorisation
A3: AP & PR valides
A4: N° | B4: REFERENCE_TITRE | C4: Nature de permis | D4: ENTREPRISE_DENOMINATION SOCIALE | E4: DATE(DEMANDE) | F4: DATE(OCTROI) | G4: DATE(EXPIRATION) | H4: LIEU_DIT | I4: COMMUNE | J4: PREFECTURE | K4: REGION | L4: ETAT | M4: DUREE(ANNEE) | N4: SUPERFICIE(KM2) | O4: SUBSTANCES_MINERALES(RECHERCHEES)
A5: 1 | B5: DECISION_N_019_PR_MDEM_CAB_DGMG_DRGM_2024 | C5: Autorisation de Prospection | D5: PLANET ONE NATURAL RESOURCES TOGO SARL U | E5: 2023-11-21 | F5: 2024-04-15 | G5: 2026-04-14 | H5: Badja et Alokoegbé | J5: Avé et Zio | K5: Maritime | L5: Attribution | M5: 2 | N5: 200.00 | O5: Ilménite_et_métaux_associés
A6: 2 | B6: DECISION_N_007_PR_MDEM_CAB_DGMG_DRGM_2024 | C6: Autorisation de Prospection | D6: PLATE FORME INDUSTRIELLE D'ADETIKOPE (PIA) SAS | E6: 2023-08-08 | F6: 2024-02-21 | G6: 2026-02-20 | H6: Bangéli | J6: Bassar | K6: Kara | L6: Attribution | M6: 2 | N6: 4.00 | O6: Argiles
A7: 3 | B7: DECISION_N_006_PR_MDEM_CAB_DGMG_DRGM_2024 | C7: Autorisation de Prospection | D7: PLATE FORME INDUSTRIELLE D'ADETIKOPE (PIA) SAS | E7: 2023-08-08 | F7: 2024-02-21 | G7: 2026-02-20 | H7: Kpodzi | J7: Kloto | K7: Plateaux | L7: Attribution | M7: 2 | N7: 4.00 | O7: Argiles
A8: 4 | B8: DECISION_N_005_PR_MDEM_CAB_DGMG_DRGM_2024 | C8: Autorisation de Prospection | D8: PLATE FORME INDUSTRIELLE D'ADETIKOPE (PIA) SAS | E8: 2023-08-08 | F8: 2024-02-21 | G8: 2026-02-20 | H8: Noépé | J8: Avé | K8: Maritime | L8: Attribution | M8: 2 | N8: 4.00 | O8: Argiles
A9: 5 | B9: DECISION_N_008_PR_MDEM_CAB_DGMG_DRGM_2024 | C9: Autorisation de Prospection | D9: SCANTOGO MINES SA | E9: 2023-05-15 | F9: 2024-02-19 | G9: 2026-02-18 | H9: Nyitoé-Zoukpé | J9: Agou | K9: Plateaux | L9: Attribution | M9: 2 | N9: 100.00 | O9: Argiles
A10: 1 | B10: ARRÊTÉ_N_102_MDPREM_CAB_DGMG_DRGM_2020 | C10: Permis de Recherche | D10: FG MINERALS SA U | E10: 2020-12-10 | F10: 2020-12-29 | G10: 2023-12-28 | H10: Bassar Nord | J10: Bassar | K10: Kara | L10: Attribution | M10: 3 | N10: 200.00 | O10: Phosphates_métamorphiques
A11: 2 | B11: ARRÊTÉ_N_101_MDPREM_CAB_DGMG_DRGM_2020 | C11: Permis de Recherche | D11: FG MINERALS SA U | E11: 2020-12-10 | F11: 2020-12-29 | G11: 2023-12-28 | H11: Bassar Centre | J11: Bassar | K11: Kara | L11: Attribution | M11: 3 | N11: 200.00 | O11: Phosphates_métamorphiques
A12: 3 | B12: ARRÊTÉ_N_100_MDPREM_CAB_DGMG_DRGM_2020 | C12: Permis de Recherche | D12: FG MINERALS SA U | E12: 2020-12-10 | F12: 2020-12-29 | G12: 2023-12-28 | H12: Bassar Sud | J12: Bassar | K12: Kara | L12: Attribution | M12: 3 | N12: 200.00 | O12: Phosphates_métamorphiques
A13: 4 | B13: ARRÊTÉ_N_079_MMÉ_CAB_DGMG_DRGM_2020 | C13: Permis de Recherche | D13: CIMCO SA | E13: 2020-04-16 | F13: 2020-09-10 | G13: 2023-09-09 | H13: Tokpli | J13: Yoto | K13: Maritime | L13: Attribution | M13: 3 | N13: 4.33 | O13: Calcaires_sédimentaires
A14: 5 | B14: ARRÊTÉ_N_064_MMÉ_CAB_DGMG_DRGM_2020 | C14: Permis de Recherche | D14: PGCT SARL | E14: 2020-05-29 | F14: 2020-07-24 | G14: 2023-07-23 | H14: Assoumanou Kondji | J14: Blitta | K14: Centrale | L14: Attribution | M14: 3 | N14: 200.00 | O14: Or_et_minéraux_associés
A15: 6 | B15: ARRÊTÉ_N_065_MMÉ_CAB_DGMG_DRGM_2020 | C15: Permis de Recherche | D15: PGCT SARL | E15: 2020-05-29 | F15: 2020-07-24 | G15: 2023-07-23 | H15: Agbandi | J15: Blitta | K15: Centrale | L15: Attribution | M15: 3 | N15: 200.00 | O15: Or_et_minéraux_associés
A16: 7 | B16: ARRÊTÉ_N_066_MMÉ_CAB_DGMG_DRGM_2020 | C16: Permis de Recherche | D16: PGCT SARL | E16: 2020-05-29 | F16: 2020-07-24 | G16: 2023-07-23 | H16: Kaza | J16: Sotouboua | K16: Centrale | L16: Attribution | M16: 3 | N16: 200.00 | O16: Or_et_minéraux_associés
A17: 8 | B17: ARRÊTÉ_N_063_MMÉ_CAB_DGMG_DRGM_2020 | C17: Permis de Recherche | D17: POYA RESOURCES TOGO SARL | E17: 2020-06-20 | F17: 2020-07-09 | G17: 2023-07-08 | H17: Doumé | J17: Wawa | K17: Plateaux | L17: Renonciation | M17: 3 | N17: 59.80 | O17: Diamant_Or_et_minéraux_associés
A18: 9 | B18: ARRÊTÉ_N_055_MMÉ_CAB_DGMG_DRGM_2020 | C18: Permis de Recherche | D18: THEE COREE SARLU | E18: 2020-05-06 | F18: 2020-05-25 | G18: 2023-05-24 | H18: Agbandi | J18: Blitta | K18: Centrale | L18: Attribution | M18: 3 | N18: 20.00 | O18: Or
A19: 10 | B19: ARRÊTÉ_N_040_MMÉ_CAB_DGMG_DRGM_2020 | C19: Permis de Recherche | D19: CIMCO SA | E19: 2020-03-16 | F19: 2020-04-03 | G19: 2023-04-02 | H19: Tabligbo Nord | J19: Yoto | K19: Maritime | L19: Attribution | M19: 3 | N19: 91.50 | O19: Calcaires_sédimentaires
A20: 11 | B20: ARRÊTÉ_N_041_MMÉ_CAB_DGMG_DRGM_2020 | C20: Permis de Recherche | D20: CIMCO SA | E20: 2020-03-16 | F20: 2020-04-03 | G20: 2023-04-02 | H20: Tabligbo Sud | J20: Yoto | K20: Maritime | L20: Attribution | M20: 3 | N20: 97.60 | O20: Calcaires_sédimentaires
A21: 12 | B21: ARRÊTÉ_N_009_MMÉ_CAB_DGMG_DRGM_2020 | C21: Permis de Recherche | D21: DANGOTE CEMENT TOGO SA | E21: 2019-11-25 | F21: 2020-02-11 | G21: 2023-02-10 | H21: Akoumapé | J21: Vo | K21: Maritime | L21: Attribution | M21: 3 | N21: 90.60 | O21: Phosphate_carbonaté
A22: 13 | B22: ARRÊTÉ_N_008_MMÉ_CAB_DGMG_DRGM_2020 | C22: Permis de Recherche | D22: DANGOTE CEMENT TOGO SA | E22: 2019-11-25 | F22: 2020-02-11 | G22: 2023-02-10 | H22: Kpomé Apéyémé | J22: Zio | K22: Maritime | L22: Attribution | M22: 3 | N22: 43.00 | O22: Phosphate_carbonaté
A23: 14 | B23: ARRÊTÉ_N_005_MMÉ_CAB_DGMG_DRGM_2020 | C23: Permis de Recherche | D23: CIMCO SA | E23: 2020-01-17 | F23: 2020-01-22 | G23: 2023-01-21 | H23: Dagbati | J23: Vo | K23: Maritime | L23: Attribution | M23: 3 | N23: 28.60 | O23: Calcaire_sédimentaire
A24: 15 | B24: ARRÊTÉ_N_006_MMÉ_CAB_DGMG_DRGM_2020 | C24: Permis de Recherche | D24: CIMCO SA | E24: 2020-01-17 | F24: 2020-01-22 | G24: 2023-01-21 | H24: Tchékpo Dédékpoé | J24: Yoto | K24: Maritime | L24: Attribution | M24: 3 | N24: 91.44 | O24: Calcaire_sédimentaire
B27: Société | C27: Type de permis | D27: Substance principale | E27: Date de la demande | F27: Date d'octroi | G27: Durée (an) | H27: Mode ou procédure d'octroi/ de transfert | I27: Superficie (en km2) | J27: Localité et prefecture | K27: Coordonnées géographique_Long. | L27: Coordonnées géographique_Lat. | M27: Y-a-t-il un rapport d'étude d'impact environnementale publique (oui/non)
B28: LAMA SAPHIR | C28: Autorisation artisanale | D28: sable | E28: 2021-02-12 | F28: 2022-11-16 | G28: 1 | H28: Principe du Premier venu Premier servi | I28: 0.05 | J28: Tchékpo-Dzigbé (Yoto) | K28: 1° 26' 06.400'' E 1° 26' 09.900'' E 1° 26' 14.100'' E 1° 26' 13.600'' E 1° 26' 13.000'' E 1° 26' 12.900'' E 1° 26' 09.700'' E 1° 26' 06.600'' E 1° 26' 04.000'' E 1° 26' 01.100'' E 1° 25' 59.800'' E 1° 25' 59.400'' E 1° 26' 01.000'' E 1° 26' 04.900'' E | L28: 6° 32' 04.200'' N 6° 32' 03.000'' N 6° 32' 02.900'' N 6° 32' 01.200'' N 6° 32' 00.600'' N 6° 31' 59.200'' N 6° 31' 59.400'' N 6° 31' 59.300'' N 6° 31' 59.700'' N 6° 32' 00.600'' N 6° 32' 00.800'' N 6° 32' 01.900'' N 6° 32' 04.000'' N 6° 32' 04.000'' N | M28: Oui
B29: SAFE TOGO | C29: Autorisation artisanale | D29: sable | E29: 2022-06-13 | F29: 2022-11-16 | G29: 1 | H29: Principe du Premier venu Premier servi | I29: 0.01 | J29: Tchékpo-Dzigbé (Yoto) | K29: 1° 24' 18.700'' E 1° 24' 21.900'' E 1° 24' 21.400'' E 1° 24' 18.000'' E | L29: 6° 30' 05.700'' N 6° 30' 04.900'' N 6° 30' 02.400'' N 6° 30' 02.800'' N | M29: Oui
B30: DANORA | C30: Autorisation artisanale | D30: sable | E30: 2022-01-12 | F30: 2022-11-16 | G30: 1 | H30: Principe du Premier venu Premier servi | I30: 0.021 | J30: Tchékpo-Davou (Yoto) | K30: 1° 24' 27.400'' E 1° 24' 31.600'' E 1° 24' 31.800'' E 1° 24' 29.000'' E 1° 24' 27.200'' E 1° 24' 27.100'' E 1° 24' 27.300'' E | L30: 6° 30' 59.700'' N 6° 30' 59.300'' N 6° 30' 58.700'' N 6° 30' 53.100'' N 6° 30' 53.400'' N 6° 30' 55.700'' N 6° 30' 57.600'' N | M30: Oui
B31: STMC | C31: Autorisation artisanale | D31: sable | E31: 2021-04-15 | F31: 2022-11-16 | G31: 1 | H31: Principe du Premier venu Premier servi | I31: 0.093 | J31: Tchékpo-Dévé (Yoto) | K31: 1° 24' 13.100'' E 1° 24' 14.400'' E 1° 24' 06.500'' E 1° 24' 04.500'' E 1° 24' 00.700'' E 1° 24' 01.000'' E 1° 24' 00.900'' E | L31: 6° 28' 59.900'' N 6° 28' 55.200'' N 6° 28' 47.100'' N 6° 28' 47.900'' N 6° 28' 49.200'' N 6° 28' 49.800'' N 6° 28' 54.300'' N | M31: Oui
B32: MARANATHA | C32: Autorisation artisanale | D32: sable | E32: 2020-05-13 | F32: 2022-11-16 | G32: 1 | H32: Principe du Premier venu Premier servi | I32: 0.031 | J32: Weko (Avé) | K32: 0° 49' 46.308'' E 0° 49' 49.692'' E 0° 49' 47.100'' E 0° 49' 43.284'' E 0° 49' 40.116'' E 0° 49' 38.784'' E 0° 49' 41.592'' E 0° 49' 43.608'' E 0° 49' 45.588'' E | L32: 6° 28' 07.608'' N 6° 28' 03.396'' N 6° 28' 02.892'' N 6° 28' 01.992'' N 6° 28' 03.216'' N 6° 28' 05.916'' N 6° 28' 06.600'' N 6° 28' 05.916'' N 6° 28' 05.196'' N | M32: Oui
B33: NAEL SHOP | C33: Autorisation artisanale | D33: sable | E33: 2021-08-02 | F33: 2022-11-16 | G33: 1 | H33: Principe du Premier venu Premier servi | I33: 0.0296 | J33: Tchékpo-Dévé (Yoto) | K33: 1° 23' 38.364'' E 1° 23' 38.544'' E 1° 23' 38.508'' E 1° 23' 38.292'' E 1° 23' 40.704'' E 1° 23' 41.640'' E 1° 23' 42.252'' E 1° 23' 43.152'' E 1° 23' 43.584'' E 1° 23' 44.268'' E 1° 23' 45.888'' E 1° 23' 47.004'' E 1° 23' 48.480'' E 1° 23' 49.056'' E 1° 23' 49.056'' E 1° 23' 49.452'' E 1° 23' 49.632'' E 1° 23' 48.480'' E 1° 23' 47.760'' E 1° 23' 46.716'' E 1° 23' 45.456'' E 1° 23' 42.684'' E 1° 23' 41.316'' E 1° 23' 40.164'' E 1° 23' 39.192'' E 1° 23' 38.220'' E 1° 23' 37.428'' E 1° 23' 36.600'' E 1° 23' 36.060'' E | L33: 6° 28' 44.220'' N 6° 28' 43.392'' N 6° 28' 40.548'' N 6° 28' 39.936'' N 6° 28' 40.044'' N 6° 28' 39.936'' N 6° 28' 39.648'' N 6° 28' 39.000'' N 6° 28' 38.892'' N 6° 28' 38.748'' N 6° 28' 38.784'' N 6° 28' 38.928'' N 6° 28' 39.612'' N 6° 28' 39.684'' N 6° 28' 38.892'' N 6° 28' 38.208'' N 6° 28' 37.776'' N 6° 28' 37.848'' N 6° 28' 37.596'' N 6° 28' 37.344'' N 6° 28' 37.200'' N 6° 28' 37.020'' N 6° 28' 37.272'' N 6° 28' 37.668'' N 6° 28' 38.028'' N 6° 28' 38.532'' N 6° 28' 39.144'' N 6° 28' 39.684'' N 6° 28' 43.572'' N | M33: Oui
B34: AKUE ALLAH | C34: Autorisation artisanale | D34: sable | E34: 2022-03-09 | F34: 2022-11-16 | G34: 1 | H34: Principe du Premier venu Premier servi | I34: 0.0145 | J34: Tchékpo-Gougoume (Yoto) | K34: 1° 24' 36.100'' E 1° 24' 35.800'' E 1° 24' 35.600'' E 1° 24' 37.700'' E 1° 24' 41.200'' E 1° 24' 40.900'' E 1° 24' 39.300'' E 1° 24' 37.800'' E 1° 24' 37.500'' E | L34: 6° 29' 08.500'' N 6° 29' 09.700'' N 6° 29' 10.600'' N 6° 29' 12.800'' N 6° 29' 14.200'' N 6° 29' 10.600'' N 6° 29' 10.600'' N 6° 29' 09.800'' N 6° 29' 09.600'' N | M34: Oui
B35: 3FCI | C35: Autorisation artisanale | D35: sable | E35: 2021-01-07 | F35: 2022-11-16 | G35: 1 | H35: Principe du Premier venu Premier servi | I35: 0.0592 | J35: Tchékpo-Davou (Yoto) | K35: 1° 24' 39.200'' E 1° 24' 46.400'' E 1° 24' 45.600'' E 1° 24' 44.900'' E 1° 24' 44.700'' E 1° 24' 37.200'' E 1° 24' 38.200'' E | L35: 6° 29' 58.800'' N 6° 29' 56.700'' N 6° 29' 52.300'' N 6° 29' 52.300'' N 6° 29' 50.100'' N 6° 29' 51.100'' N 6° 29' 58.700'' N | M35: Oui
B36: AME-ENO COMMERCE | C36: Autorisation artisanale | D36: sable | E36: 2020-07-28 | F36: 2022-11-16 | G36: 1 | H36: Principe du Premier venu Premier servi | I36: 0.01 | J36: Gogo-Kondji (Yoto) | K36: 1° 36' 06.900'' E 1° 36' 07.700'' E 1° 36' 08.800'' E 1° 36' 11.000'' E 1° 36' 09.900'' E 1° 36' 09.300'' E | L36: 6° 38' 02.000'' N 6° 38' 02.300'' N 6° 38' 03.400'' N 6° 38' 01.900'' N 6° 37' 59.900'' N 6° 37' 59.000'' N | M36: Oui
B37: NATIVITE INVEST | C37: Autorisation artisanale | D37: sable | E37: 2020-03-05 | F37: 2022-11-16 | G37: 1 | H37: Principe du Premier venu Premier servi | I37: 0.0389 | J37: Kossidamé (Vo) | K37: 1° 29' 10.100'' E 1° 29' 12.600'' E 1° 29' 13.000'' E 1° 29' 10.400'' E 1° 29' 10.200'' E 1° 29' 07.500'' E 1° 29' 07.100'' E 1° 29' 07.200'' E 1° 29' 06.600'' E 1° 29' 04.200'' E 1° 29' 05.500'' E 1° 29' 05.200'' E 1° 29' 05.000'' E 1° 29' 07.000'' E | L37: 6° 25' 32.700'' N 6° 25' 29.400'' N 6° 25' 28.100'' N 6° 25' 28.200'' N 6° 25' 28.300'' N 6° 25' 28.700'' N 6° 25' 27.100'' N 6° 25' 25.300'' N 6° 25' 21.900'' N 6° 25' 22.000'' N 6° 25' 28.100'' N 6° 25' 28.400'' N 6° 25' 32.200'' N 6° 25' 32.000'' N | M37: Oui
C38: Autorisation artisanale | D38: sable | E38: 2021-07-21 | F38: 2022-11-16 | G38: 1 | H38: Principe du Premier venu Premier servi | I38: 0.026 | J38: Tchékpo-Dévé (Yoto) | K38: 1° 24' 38.592'' E 1° 24' 34.488'' E 1° 24' 35.496'' E 1° 24' 35.784'' E 1° 24' 36.000'' E 1° 24' 36.900'' E 1° 24' 36.900'' E 1° 24' 37.512'' E 1° 24' 37.404'' E 1° 24' 37.594'' E 1° 24' 37.200'' E 1° 24' 38.835'' E 1° 24' 38.916'' E | L38: 6° 29' 49.596'' N 6° 29' 50.100'' N 6° 29' 57.804'' N 6° 29' 58.416'' N 6° 30' 00.000'' N 6° 29' 59.784'' N 6° 29' 57.912'' N 6° 29' 55.608'' N 6° 29' 54.096'' N 6° 29' 54.096'' N 6° 29' 51.100'' N 6° 29' 50.882'' N 6° 29' 49.812'' N | M38: Oui
B39: 2ESG | C39: Autorisation artisanale | D39: sable | E39: 2020-05-20 | F39: 2022-11-16 | G39: 1 | H39: Principe du Premier venu Premier servi | I39: 0.0606 | J39: Tchékpo-Dzigbé (Yoto) | K39: 1° 26' 05.172'' E 1° 26' 06.072'' E 1° 26' 08.160'' E 1° 26' 09.960'' E 1° 26' 12.804'' E 1° 26' 12.048'' E 1° 26' 13.524'' E 1° 26' 14.244'' E 1° 26' 14.568'' E 1° 26' 14.244'' E 1° 26' 14.136'' E 1° 26' 12.516'' E 1° 26' 09.888'' E 1° 26' 08.412'' E 1° 26' 07.224'' E 1° 26' 07.080'' E 1° 26' 05.640'' E 1° 26' 04.380'' E 1° 26' 04.704'' E | L39: 6° 31' 26.760'' N 6° 31' 26.544'' N 6° 31' 25.788'' N 6° 31' 24.780'' N 6° 31' 22.836'' N 6° 31' 20.352'' N 6° 31' 19.164'' N 6° 31' 18.336'' N 6° 31' 17.508'' N 6° 31' 14.916'' N 6° 31' 12.828'' N 6° 31' 13.800'' N 6° 31' 16.320'' N 6° 31' 17.616'' N 6° 31' 18.732'' N 6° 31' 21.036'' N 6° 31' 23.520'' N 6° 31' 25.536'' N 6° 31' 25.896'' N | M39: Oui
B40: MAWULE AMENUVEVE | C40: Autorisation artisanale | D40: sable | E40: 2020-08-17 | F40: 2022-11-16 | G40: 1 | H40: Principe du Premier venu Premier servi | I40: 0.0582 | J40: Tchékpo-Dzigbé (Yoto) | K40: 1° 25' 35.400'' E 1° 25' 37.812'' E 1° 25' 41.484'' E 1° 25' 41.304'' E 1° 25' 40.116'' E 1° 25' 36.912'' E 1° 25' 35.796'' E 1° 25' 34.788'' E 1° 25' 28.812'' E 1° 25' 29.388'' E 1° 25' 29.712'' E 1° 25' 30.000'' E 1° 25' 31.188'' E 1° 25' 33.312'' E | L40: 6° 30' 53.496'' N 6° 30' 49.392'' N 6° 30' 48.204'' N 6° 30' 47.196'' N 6° 30' 46.008'' N 6° 30' 46.404'' N 6° 30' 44.100'' N 6° 30' 45.000'' N 6° 30' 46.188'' N 6° 30' 46.908'' N 6° 30' 50.616'' N 6° 30' 50.508'' N 6° 30' 51.192'' N 6° 30' 52.092'' N | M40: Oui
B41: PGS | C41: Autorisation artisanale | D41: sable | E41: 2020-10-01 | F41: 2022-11-16 | G41: 1 | H41: Principe du Premier venu Premier servi | I41: 0.053 | J41: Ezor (Zio) | K41: 1° 21' 44.784'' E 1° 21' 48.816'' E 1° 21' 49.104'' E 1° 21' 50.400'' E 1° 21' 51.300'' E 1° 21' 51.192'' E 1° 21' 50.508'' E 1° 21' 50.616'' E 1° 21' 45.792'' E 1° 21' 46.512'' E 1° 21' 47.016'' E 1° 21' 45.000'' E 1° 21' 43.704'' E 1° 21' 42.804'' E 1° 21' 42.408'' E 1° 21' 42.588'' E 1° 21' 43.596'' E | L41: 6° 24' 12.312'' N 6° 24' 11.196'' N 6° 24' 09.612'' N 6° 24' 09.396'' N 6° 24' 09.792'' N 6° 24' 08.892'' N 6° 24' 05.112'' N 6° 24' 02.412'' N 6° 24' 03.204'' N 6° 24' 04.608'' N 6° 24' 05.400'' N 6° 24' 05.796'' N 6° 24' 06.588'' N 6° 24' 06.912'' N 6° 24' 08.604'' N 6° 24' 10.512'' N 6° 24' 11.988'' N | M41: Oui
B42: EZIAN ET FRERES | C42: Autorisation artisanale | D42: sable | E42: 2020-08-14 | F42: 2022-11-16 | G42: 1 | H42: Principe du Premier venu Premier servi | I42: 0.016 | J42: Akoumapé-Doulassamé (Vo) | K42: 1° 27' 17.440'' E 1° 27' 18.330'' E 1° 27' 19.289'' E 1° 27' 19.470'' E 1° 27' 19.476'' E 1° 27' 16.874'' E 1° 27' 15.303'' E 1° 27' 15.170'' E 1° 27' 15.164'' E 1° 27' 15.328'' E 1° 27' 15.961'' E | L42: 6° 24' 32.956'' N 6° 24' 31.160'' N 6° 24' 28.819'' N 6° 24' 28.560'' N 6° 24' 27.504'' N 6° 24' 27.916'' N 6° 24' 28.104'' N 6° 24' 29.208'' N 6° 24' 31.040'' N 6° 24' 32.422'' N 6° 24' 32.565'' N | M42: Oui
B43: RAKAKO BTP | C43: Autorisation artisanale | D43: sable | E43: 2020-12-17 | F43: 2022-11-16 | G43: 1 | H43: Principe du Premier venu Premier servi | I43: 0.0147 | J43: Tchékpo-Dzigbé (Yoto) | K43: 1° 26' 12.876'' E 1° 26' 14.316'' E 1° 26' 13.740'' E 1° 26' 13.740'' E 1° 26' 14.136'' E 1° 26' 16.404'' E 1° 26' 15.432'' E 1° 26' 15.216'' E 1° 26' 14.064'' E 1° 26' 13.200'' E 1° 26' 12.336'' E 1° 26' 10.752'' E 1° 26' 09.672'' E 1° 26' 04.236'' E 1° 26' 04.128'' E 1° 26' 07.836'' E 1° 26' 09.096'' E 1° 26' 09.996'' E 1° 26' 10.320'' E 1° 26' 11.900'' E 1° 26' 12.600'' E | L43: 6° 31' 41.952'' N 6° 31' 41.232'' N 6° 31' 40.296'' N 6° 31' 39.432'' N 6° 31' 39.180'' N 6° 31' 37.956'' N 6° 31' 35.544'' N 6° 31' 34.212'' N 6° 31' 35.184'' N 6° 31' 33.888'' N 6° 31' 34.068'' N 6° 31' 34.716'' N 6° 31' 34.824'' N 6° 31' 34.716'' N 6° 31' 36.372'' N 6° 31' 36.048'' N 6° 31' 35.976'' N 6° 31' 35.868'' N 6° 31' 37.128'' N 6° 31' 39.400'' N 6° 31' 40.900'' N | M43: Oui
B44: UNICITE | C44: Autorisation artisanale | D44: sable | E44: 2020-03-13 | F44: 2022-11-16 | G44: 1 | H44: Principe du Premier venu Premier servi | I44: 0.076 | J44: Koudassi (Avé) | K44: 0° 52' 08.300'' E 0° 52' 09.800'' E 0° 52' 10.700'' E 0° 52' 08.800'' E 0° 52' 07.200'' E 0° 52' 05.800'' E 0° 52' 01.600'' E 0° 52' 00.500'' E 0° 51' 57.800'' E 0° 51' 56.600'' E 0° 51' 55.100'' E 0° 51' 56.700'' E 0° 51' 58.000'' E 0° 51' 57.900'' E 0° 51' 58.500'' E 0° 52' 02.400'' E 0° 52' 03.300'' E 0° 52' 06.000'' E | L44: 6° 37' 52.600'' N 6° 37' 49.600'' N 6° 37' 49.300'' N 6° 37' 48.500'' N 6° 37' 47.000'' N 6° 37' 45.600'' N 6° 37' 41.600'' N 6° 37' 36.700'' N 6° 37' 37.800'' N 6° 37' 39.200'' N 6° 37' 39.800'' N 6° 37' 44.200'' N 6° 37' 45.700'' N 6° 37' 46.700'' N 6° 37' 48.300'' N 6° 37' 48.400'' N 6° 37' 48.400'' N 6° 37' 49.500'' N | M44: Oui
B45: ATM | C45: Autorisation artisanale | D45: sable | E45: 2020-09-28 | F45: 2022-11-16 | G45: 1 | H45: Principe du Premier venu Premier servi | I45: 0.0337 | J45: Kpotamé-Aviahonou (Vo) | K45: 1° 29' 32.460'' E 1° 29' 32.892'' E 1° 29' 33.864'' E 1° 29' 34.260'' E 1° 29' 34.836'' E 1° 29' 35.304'' E 1° 29' 35.412'' E 1° 29' 36.384'' E 1° 29' 36.528'' E 1° 29' 36.384'' E 1° 29' 36.276'' E 1° 29' 35.016'' E 1° 29' 34.728'' E 1° 29' 34.152'' E 1° 29' 33.180'' E 1° 29' 32.460'' E 1° 29' 31.884'' E 1° 29' 31.056'' E 1° 29' 30.192'' E 1° 29' 29.652'' E 1° 29' 28.896'' E 1° 29' 28.860'' E 1° 29' 28.680'' E 1° 29' 28.392'' E 1° 29' 28.392'' E 1° 29' 30.480'' E 1° 29' 31.560'' E | L45: 6° 24' 17.100'' N 6° 24' 17.064'' N 6° 24' 17.100'' N 6° 24' 16.524'' N 6° 24' 16.200'' N 6° 24' 15.624'' N 6° 24' 15.156'' N 6° 24' 15.048'' N 6° 24' 14.256'' N 6° 24' 13.536'' N 6° 24' 13.212'' N 6° 24' 12.744'' N 6° 24' 12.168'' N 6° 24' 11.520'' N 6° 24' 11.052'' N 6° 24' 11.160'' N 6° 24' 11.376'' N 6° 24' 11.556'' N 6° 24' 11.664'' N 6° 24' 11.628'' N 6° 24' 11.448'' N 6° 24' 11.988'' N 6° 24' 13.284'' N 6° 24' 14.004'' N 6° 24' 14.508'' N 6° 24' 16.848'' N 6° 24' 16.848'' N | M45: Oui
B46: TOP SUPPLIES | C46: Autorisation artisanale | D46: sable | E46: 2019-11-20 | F46: 2022-11-16 | G46: 1 | H46: Principe du Premier venu Premier servi | I46: 0.021 | J46: Tchékpo-Davou (Yoto) | K46: 1° 24' 22.680'' E 1° 24' 25.390'' E 1° 24' 26.500'' E 1° 24' 25.240'' E 1° 24' 20.810'' E 1° 24' 22.140'' E | L46: 6° 30' 16.150'' N 6° 30' 14.990'' N 6° 30' 12.000'' N 6° 30' 09.710'' N 6° 30' 11.720'' N 6° 30' 14.330'' N | M46: Oui
B47: SOTESSGRAV | C47: Autorisation artisanale | D47: sable | E47: 2020-02-07 | F47: 2022-11-16 | G47: 1 | H47: Principe du Premier venu Premier servi | I47: 0.0422 | J47: Tchékpo-Dédékpoe (Yoto) | K47: 1° 25' 41.160'' E 1° 25' 39.684'' E 1° 25' 37.632'' E 1° 25' 38.193'' E 1° 25' 38.500'' E 1° 25' 37.683'' E 1° 25' 37.308'' E 1° 25' 36.372'' E 1° 25' 34.924'' E 1° 25' 34.800'' E 1° 25' 34.693'' E 1° 25' 35.364'' E 1° 25' 36.192'' E 1° 25' 37.164'' E 1° 25' 38.568'' E 1° 25' 39.432'' E 1° 25' 40.836'' E 1° 25' 42.564'' E 1° 25' 42.456'' E | L47: 6° 30' 53.532'' N 6° 30' 54.900'' N 6° 30' 55.512'' N 6° 30' 56.340'' N 6° 30' 56.600'' N 6° 30' 57.262'' N 6° 30' 57.924'' N 6° 30' 58.896'' N 6° 30' 59.499'' N 6° 30' 59.600'' N 6° 30' 59.636'' N 6° 30' 59.904'' N 6° 31' 00.876'' N 6° 31' 01.848'' N 6° 31' 03.468'' N 6° 31' 03.252'' N 6° 31' 03.324'' N 6° 31' 03.540'' N 6° 30' 59.652'' N | M47: Oui
B48: ERGP | C48: Autorisation artisanale | D48: sable | E48: 2020-12-01 | F48: 2022-11-16 | G48: 1 | H48: Principe du Premier venu Premier servi | I48: 0.05074 | J48: Tchékpo-Dévé (Yoto) | K48: 1° 24' 22.600'' E 1° 24' 19.600'' E 1° 24' 19.600'' E 1° 24' 20.000'' E 1° 24' 20.100'' E 1° 24' 17.500'' E 1° 24' 19.300'' E 1° 24' 20.800'' E 1° 24' 21.300'' E 1° 24' 21.800'' E 1° 24' 23.600'' E 1° 24' 24.100'' E 1° 24' 22.200'' E 1° 24' 22.800'' E | L48: 6° 29' 22.100'' N 6° 29' 21.300'' N 6° 29' 23.700'' N 6° 29' 27.500'' N 6° 29' 28.100'' N 6° 29' 28.200'' N 6° 29' 30.500'' N 6° 29' 33.300'' N 6° 29' 34.600'' N 6° 29' 40.100'' N 6° 29' 40.300'' N 6° 29' 34.900'' N 6° 29' 29.200'' N 6° 29' 26.300'' N | M48: Oui
B49: SESESON’S ENTREPRISE | C49: Autorisation artisanale | D49: sable | E49: 2020-10-20 | F49: 2022-11-16 | G49: 1 | H49: Principe du Premier venu Premier servi | I49: 0.0237 | J49: Ezor (Zio) | K49: 1° 21' 06.156'' E 1° 21' 11.088'' E 1° 21' 11.952'' E 1° 21' 11.484'' E 1° 21' 10.512'' E 1° 21' 09.540'' E 1° 21' 08.100'' E 1° 21' 07.704'' E 1° 21' 06.264'' E 1° 21' 04.536'' E | L49: 6° 24' 29.664'' N 6° 24' 28.260'' N 6° 24' 26.892'' N 6° 24' 25.848'' N 6° 24' 24.840'' N 6° 24' 25.128'' N 6° 24' 25.020'' N 6° 24' 24.624'' N 6° 24' 24.948'' N 6° 24' 25.488'' N | M49: Oui
B50: SYCHAR SERVICES | C50: Autorisation artisanale | D50: sable | E50: 2020-01-27 | F50: 2022-11-16 | G50: 1 | H50: Principe du Premier venu Premier servi | I50: 0.0413 | J50: Tchékpo-Dévé (Yoto) | K50: 1° 25' 43.400'' E 1° 25' 45.700'' E 1° 25' 42.300'' E 1° 25' 42.318'' E 1° 25' 42.456'' E 1° 25' 42.541'' E 1° 25' 42.600'' E 1° 25' 48.100'' E 1° 25' 48.900'' E 1° 25' 43.800'' E | L50: 6° 30' 51.700'' N 6° 30' 54.400'' N 6° 30' 58.700'' N 6° 30' 59.001'' N 6° 30' 59.652'' N 6° 31' 02.720'' N 6° 31' 03.700'' N 6° 31' 02.800'' N 6° 30' 58.100'' N 6° 30' 51.700'' N | M50: Oui
B51: MATERIAUX DU TOGO | C51: Autorisation artisanale | D51: sable | E51: 2020-11-24 | F51: 2022-11-16 | G51: 1 | H51: Principe du Premier venu Premier servi | I51: 0.0165 | J51: Badja (Avé) | K51: 1° 00' 05.796'' E 1° 00' 06.012'' E 1° 00' 06.192'' E 1° 00' 06.408'' E 1° 00' 06.984'' E 1° 00' 06.408'' E 1° 00' 07.812'' E 1° 00' 07.488'' E 1° 00' 06.804'' E 1° 00' 05.508'' E 1° 00' 03.600'' E 1° 00' 02.592'' E 1° 00' 03.204'' E 1° 00' 04.392'' E 1° 00' 03.384'' E 1° 00' 04.104'' E 1° 00' 04.608'' E 1° 00' 04.896'' E 1° 00' 05.004'' E | L51: 6° 22' 24.492'' N 6° 22' 24.384'' N 6° 22' 23.988'' N 6° 22' 23.700'' N 6° 22' 23.088'' N 6° 22' 22.512'' N 6° 22' 21.684'' N 6° 22' 20.892'' N 6° 22' 19.992'' N 6° 22' 18.084'' N 6° 22' 16.500'' N 6° 22' 18.012'' N 6° 22' 18.084'' N 6° 22' 18.912'' N 6° 22' 20.892'' N 6° 22' 21.612'' N 6° 22' 22.404'' N 6° 22' 22.584'' N 6° 22' 23.484'' N | M51: Oui
B52: WALAI SARL | C52: Autorisation artisanale | D52: sable | E52: 2022-03-01 | F52: 2022-11-16 | G52: 1 | H52: Principe du Premier venu Premier servi | I52: 0.022 | J52: Sétékpé-Assahoun (Avé) | K52: 0° 50' 41.354'' E 0° 50' 42.999'' E 0° 50' 39.832'' E 0° 50' 38.187'' E | L52: 6° 33' 58.580'' N 6° 33' 51.612'' N 6° 33' 50.865'' N 6° 33' 57.833'' N | M52: Oui
B53: SE2S | C53: Autorisation artisanale | D53: sable | E53: 2020-03-02 | F53: 2022-11-16 | G53: 1 | H53: Principe du Premier venu Premier servi | I53: 0.0216 | J53: Tchékpo-Davou (Yoto) | K53: 1° 24' 20.900'' E 1° 24' 21.300'' E 1° 24' 23.400'' E 1° 24' 26.400'' E 1° 24' 23.400'' E 1° 24' 21.000'' E | L53: 6° 30' 29.100'' N 6° 30' 28.900'' N 6° 30' 28.800'' N 6° 30' 22.400'' N 6° 30' 22.200'' N 6° 30' 25.000'' N | M53: Oui
B54: AK.FILS.COM | C54: Autorisation artisanale | D54: sable | F54: 2022-11-16 | G54: 1 | H54: Principe du Premier venu Premier servi | I54: 0.037 | J54: Dalavé-Gniné (Zio) | M54: Oui
B55: ECODES | C55: Autorisation artisanale | D55: sable | E55: 2021-05-11 | F55: 2022-11-16 | G55: 1 | H55: Principe du Premier venu Premier servi | I55: 0.04 | J55: Tchékpo-Dzigbé (Yoto) | K55: 1° 25' 47.892'' E 1° 25' 50.196'' E 1° 25' 51.816'' E 1° 25' 52.716'' E 1° 25' 53.508'' E 1° 25' 55.200'' E 1° 25' 56.892'' E 1° 25' 58.116'' E 1° 25' 59.700'' E 1° 26' 00.888'' E 1° 25' 59.808'' E 1° 25' 54.984'' E 1° 25' 50.808'' E 1° 25' 47.604'' E 1° 25' 47.892'' E 1° 25' 47.784'' E 1° 25' 47.784'' E | L55: 6° 31' 07.104'' N 6° 31' 06.996'' N 6° 31' 06.384'' N 6° 31' 05.808'' N 6° 31' 05.700'' N 6° 31' 05.988'' N 6° 31' 05.988'' N 6° 31' 05.304'' N 6° 31' 04.584'' N 6° 31' 04.512'' N 6° 31' 01.416'' N 6° 31' 02.388'' N 6° 31' 03.288'' N 6° 31' 04.008'' N 6° 31' 05.412'' N 6° 31' 06.096'' N 6° 31' 06.996'' N | M55: Oui
B56: FISSO | C56: Autorisation artisanale | D56: sable | E56: 2018-06-04 | F56: 2022-11-16 | G56: 1 | H56: Principe du Premier venu Premier servi | I56: 0.022 | J56: Tsidémé (Vo) | K56: 1° 25' 14.000'' E 1° 25' 15.000'' E 1° 25' 11.000'' E 1° 25' 10.500'' E 1° 25' 10.300'' E 1° 25' 11.000'' E 1° 25' 11.100'' E | L56: 6° 19' 16.000'' N 6° 19' 09.400'' N 6° 19' 10.000'' N 6° 19' 11.000'' N 6° 19' 12.500'' N 6° 19' 13.400'' N 6° 19' 14.500'' N | M56: Oui
B57: JDK GROUPE | C57: Autorisation artisanale | D57: sable | E57: 2021-03-03 | F57: 2022-11-16 | G57: 1 | H57: Principe du Premier venu Premier servi | I57: 0.034 | J57: Kpomé-Apéyémé (Zio) | K57: 1° 21' 36.612'' E 1° 21' 37.692'' E 1° 21' 38.484'' E 1° 21' 39.600'' E 1° 21' 42.012'' E 1° 21' 38.916'' E 1° 21' 33.588'' E | L57: 6° 18' 28.404'' N 6° 18' 25.416'' N 6° 18' 25.308'' N 6° 18' 29.016'' N 6° 18' 23.796'' N 6° 18' 21.708'' N 6° 18' 23.004'' N | M57: Oui
B58: GLI | C58: Autorisation artisanale | D58: sable | E58: 2021-05-25 | F58: 2022-11-16 | G58: 1 | H58: Principe du Premier venu Premier servi | I58: 0.02 | J58: Alokoegbé (Zio) | K58: 1° 04' 30.200'' E 1° 04' 37.800'' E 1° 04' 37.700'' E 1° 04' 29.100'' E | L58: 6° 26' 57.100'' N 6° 26' 55.100'' N 6° 26' 52.500'' N 6° 26' 54.000'' N | M58: Oui
B59: ELIJAH ELOHIM | C59: Autorisation artisanale | D59: sable | E59: 2021-08-10 | F59: 2022-11-16 | G59: 1 | H59: Principe du Premier venu Premier servi | I59: 0.0212 | J59: Tchékpo-Dédékpoe (Yoto) | K59: 1° 25' 20.352'' E 1° 25' 21.036'' E 1° 25' 21.612'' E 1° 25' 21.684'' E 1° 25' 22.440'' E 1° 25' 21.504'' E 1° 25' 21.252'' E 1° 25' 21.504'' E 1° 25' 20.892'' E 1° 25' 19.812'' E 1° 25' 19.056'' E 1° 25' 18.372'' E 1° 25' 17.292'' E 1° 25' 17.472'' E 1° 25' 18.084'' E 1° 25' 18.732'' E 1° 25' 18.408'' E 1° 25' 18.192'' E 1° 25' 18.732'' E 1° 25' 19.812'' E | L59: 6° 31' 36.588'' N 6° 31' 35.220'' N 6° 31' 34.572'' N 6° 31' 33.996'' N 6° 31' 32.700'' N 6° 31' 32.052'' N 6° 31' 31.620'' N 6° 31' 31.224'' N 6° 31' 29.856'' N 6° 31' 29.064'' N 6° 31' 27.732'' N 6° 31' 28.020'' N 6° 31' 28.776'' N 6° 31' 29.424'' N 6° 31' 30.252'' N 6° 31' 31.656'' N 6° 31' 32.412'' N 6° 31' 33.528'' N 6° 31' 34.680'' N 6° 31' 35.832'' N | M59: Oui
B60: WWB SARL U | C60: Autorisation artisanale | D60: sable | E60: 2021-02-17 | F60: 2022-11-16 | G60: 1 | H60: Principe du Premier venu Premier servi | I60: 0.0441 | J60: Tchékpo-Dévé (Yoto) | K60: 1° 24' 35.676'' E 1° 24' 34.812'' E 1° 24' 34.740'' E 1° 24' 34.416'' E 1° 24' 34.200'' E 1° 24' 34.704'' E 1° 24' 33.804'' E 1° 24' 32.700'' E 1° 24' 33.365'' E 1° 24' 34.488'' E 1° 24' 35.028'' E 1° 24' 36.144'' E 1° 24' 35.604'' E 1° 24' 35.460'' E 1° 24' 34.992'' E 1° 24' 34.776'' E 1° 24' 34.740'' E 1° 24' 35.064'' E 1° 24' 36.216'' E 1° 24' 36.504'' E | L60: 6° 29' 25.656'' N 6° 29' 28.104'' N 6° 29' 28.428'' N 6° 29' 30.732'' N 6° 29' 32.035'' N 6° 29' 32.208'' N 6° 29' 34.692'' N 6° 29' 45.300'' N 6° 29' 50.158'' N 6° 29' 50.100'' N 6° 29' 50.028'' N 6° 29' 49.812'' N 6° 29' 47.328'' N 6° 29' 45.312'' N 6° 29' 42.756'' N 6° 29' 40.704'' N 6° 29' 39.588'' N 6° 29' 38.040'' N 6° 29' 31.596'' N 6° 29' 26.124'' N | M60: Oui
B61: MAWU NUTEPE WOLA | C61: Autorisation artisanale | D61: sable | E61: 2021-10-04 | F61: 2022-11-16 | G61: 1 | H61: Principe du Premier venu Premier servi | I61: 0.015 | J61: Tchékpo-Davou (Yoto) | K61: 1° 25' 44.600'' E 1° 25' 45.300'' E 1° 25' 45.700'' E 1° 25' 44.000'' E 1° 25' 43.500'' E 1° 25' 42.800'' E 1° 25' 40.200'' E 1° 25' 39.600'' E 1° 25' 39.700'' E 1° 25' 40.500'' E | L61: 6° 30' 31.000'' N 6° 30' 29.100'' N 6° 30' 28.800'' N 6° 30' 28.300'' N 6° 30' 26.400'' N 6° 30' 26.800'' N 6° 30' 27.600'' N 6° 30' 28.400'' N 6° 30' 30.300'' N 6° 30' 29.800'' N | M61: Oui
B62: CIPA | C62: Autorisation artisanale | D62: sable | E62: 2022-01-19 | F62: 2022-11-16 | G62: 1 | H62: Principe du Premier venu Premier servi | I62: 0.034 | J62: Tchékpo-Dzigbé (Yoto) | K62: 1° 24' 42.948'' E 1° 24' 44.532'' E 1° 24' 45.036'' E 1° 24' 45.864'' E 1° 24' 46.872'' E 1° 24' 48.960'' E 1° 24' 50.292'' E 1° 24' 51.228'' E 1° 24' 51.912'' E 1° 24' 52.452'' E 1° 24' 53.712'' E 1° 24' 53.640'' E 1° 24' 52.704'' E 1° 24' 50.328'' E 1° 24' 47.232'' E 1° 24' 45.252'' E 1° 24' 44.172'' E 1° 24' 43.020'' E 1° 24' 41.976'' E 1° 24' 40.644'' E 1° 24' 38.772'' E 1° 24' 37.944'' E 1° 24' 37.728'' E 1° 24' 39.852'' E 1° 24' 40.212'' E 1° 24' 41.076'' E 1° 24' 41.328'' E 1° 24' 42.408'' E | L62: 6° 31' 13.260'' N 6° 31' 13.152'' N 6° 31' 12.468'' N 6° 31' 11.568'' N 6° 31' 10.920'' N 6° 31' 09.984'' N 6° 31' 11.424'' N 6° 31' 10.740'' N 6° 31' 09.768'' N 6° 31' 09.156'' N 6° 31' 07.392'' N 6° 31' 06.744'' N 6° 31' 06.600'' N 6° 31' 05.988'' N 6° 31' 04.836'' N 6° 31' 04.188'' N 6° 31' 05.052'' N 6° 31' 05.628'' N 6° 31' 04.692'' N 6° 31' 03.972'' N 6° 31' 09.012'' N 6° 31' 10.308'' N 6° 31' 11.460'' N 6° 31' 12.648'' N 6° 31' 12.108'' N 6° 31' 12.396'' N 6° 31' 12.648'' N 6° 31' 12.900'' N | M62: Oui
B63: AMEKANOU HOUENOUMADJI | C63: Autorisation artisanale | D63: sable | E63: 2021-10-12 | F63: 2022-11-16 | G63: 1 | H63: Principe du Premier venu Premier servi | I63: 0.0203 | J63: Kpomé-Apéyémé (Zio) | K63: 1° 22' 14.124'' E 1° 22' 15.312'' E 1° 22' 15.996'' E 1° 22' 17.364'' E 1° 22' 18.408'' E 1° 22' 15.204'' E 1° 22' 14.772'' E 1° 22' 13.584'' E 1° 22' 12.720'' E 1° 22' 12.288'' E | L63: 6° 17' 40.668'' N 6° 17' 41.100'' N 6° 17' 39.336'' N 6° 17' 36.636'' N 6° 17' 35.772'' N 6° 17' 33.612'' N 6° 17' 34.440'' N 6° 17' 37.032'' N 6° 17' 39.012'' N 6° 17' 39.840'' N | M63: Oui
B64: UNION CHEZ NOVOR | C64: Autorisation artisanale | D64: sable | E64: 2021-01-11 | F64: 2022-11-16 | G64: 1 | H64: Principe du Premier venu Premier servi | I64: 0.0784 | J64: Agbéssia (Avé) | K64: 0° 54' 51.000'' E 0° 54' 58.500'' E 0° 54' 54.600'' E 0° 54' 51.900'' E 0° 54' 50.500'' E 0° 54' 49.700'' E | L64: 6° 33' 45.600'' N 6° 33' 38.400'' N 6° 33' 30.900'' N 6° 33' 33.100'' N 6° 33' 32.000'' N 6° 33' 41.600'' N | M64: Oui
C65: Autorisation artisanale | D65: sable | E65: 2021-03-31 | F65: 2022-11-16 | G65: 1 | H65: Principe du Premier venu Premier servi | I65: 0.04 | J65: Koudassi-Gbogamé (Avé) | K65: 0° 50' 25.800'' E 0° 50' 28.392'' E 0° 50' 33.288'' E 0° 50' 38.184'' E 0° 50' 40.092'' E 0° 50' 42.216'' E 0° 50' 34.008'' E 0° 50' 24.792'' E | L65: 6° 37' 35.004'' N 6° 37' 34.212'' N 6° 37' 33.204'' N 6° 37' 31.296'' N 6° 37' 30.900'' N 6° 37' 28.884'' N 6° 37' 29.496'' N 6° 37' 32.484'' N | M65: Oui
B66: SINAGOS | C66: Autorisation artisanale | D66: sable | E66: 2021-08-31 | F66: 2022-11-17 | G66: 1 | H66: Principe du Premier venu Premier servi | I66: 0.05 | J66: Ezor (Zio) | K66: 1° 20' 52.512'' E 1° 20' 42.396'' E 1° 20' 42.216'' E 1° 20' 42.108'' E 1° 20' 42.000'' E 1° 20' 42.000'' E 1° 20' 44.988'' E 1° 20' 46.500'' E 1° 20' 48.300'' E 1° 20' 51.000'' E | L66: 6° 24' 10.404'' N 6° 24' 09.900'' N 6° 24' 11.304'' N 6° 24' 12.384'' N 6° 24' 14.292'' N 6° 24' 17.784'' N 6° 24' 17.316'' N 6° 24' 16.100'' N 6° 24' 15.000'' N 6° 24' 12.384'' N | M66: Oui
B67: EDEM-ADJRAH | C67: Autorisation artisanale | D67: sable | E67: 2020-11-12 | F67: 2022-11-18 | G67: 1 | H67: Principe du Premier venu Premier servi | I67: 0.0386 | J67: Tchékpo-Dévé (Yoto) | K67: 1° 24' 00.756'' E 1° 24' 00.900'' E 1° 24' 01.001'' E 1° 24' 00.698'' E 1° 24' 00.720'' E 1° 24' 00.432'' E 1° 23' 59.784'' E 1° 23' 58.200'' E 1° 23' 54.780'' E 1° 23' 53.268'' E | L67: 6° 28' 55.232'' N 6° 28' 54.300'' N 6° 28' 49.800'' N 6° 28' 49.199'' N 6° 28' 49.152'' N 6° 28' 48.432'' N 6° 28' 48.648'' N 6° 28' 49.116'' N 6° 28' 50.592'' N 6° 28' 51.600'' N | M67: Oui
B68: HENRI ET FILS | C68: Autorisation artisanale | D68: sable | E68: 2021-09-28 | F68: 2022-11-19 | G68: 1 | H68: Principe du Premier venu Premier servi | I68: 0.0214 | J68: Tchékpo-Dévé (Yoto) | K68: 1° 23' 42.172'' E 1° 23' 40.128'' E 1° 23' 38.004'' E 1° 23' 37.392'' E 1° 23' 37.536'' E 1° 23' 37.500'' E 1° 23' 36.888'' E 1° 23' 35.916'' E 1° 23' 33.540'' E 1° 23' 33.648'' E 1° 23' 33.864'' E 1° 23' 33.792'' E 1° 23' 36.545'' E 1° 23' 36.600'' E 1° 23' 37.428'' E 1° 23' 38.220'' E 1° 23' 39.192'' E 1° 23' 40.164'' E 1° 23' 41.316'' E | L68: 6° 28' 37.114'' N 6° 28' 36.660'' N 6° 28' 36.840'' N 6° 28' 36.264'' N 6° 28' 35.184'' N 6° 28' 34.464'' N 6° 28' 34.752'' N 6° 28' 34.896'' N 6° 28' 34.680'' N 6° 28' 35.292'' N 6° 28' 38.136'' N 6° 28' 39.000'' N 6° 28' 40.084'' N 6° 28' 39.684'' N 6° 28' 39.144'' N 6° 28' 38.532'' N 6° 28' 38.028'' N 6° 28' 37.668'' N 6° 28' 37.272'' N | M68: Oui
B69: CASA ANGELI | C69: Autorisation artisanale | D69: sable | F69: 2022-11-20 | G69: 1 | H69: Principe du Premier venu Premier servi | I69: 0.0205 | J69: Dalavé-Xéme (Zio) | M69: Oui
B70: NGB | C70: Autorisation artisanale | D70: sable | E70: 2021-08-09 | F70: 2022-11-21 | G70: 1 | H70: Principe du Premier venu Premier servi | I70: 0.016 | J70: Tchékpo-Loukpodji (Yoto) | K70: 1° 25' 56.712'' E 1° 25' 58.692'' E 1° 26' 00.888'' E 1° 26' 03.192'' E 1° 26' 02.688'' E 1° 26' 02.508'' E 1° 26' 00.816'' E 1° 25' 58.188'' E 1° 25' 55.992'' E 1° 25' 54.300'' E | L70: 6° 31' 13.908'' N 6° 31' 12.612'' N 6° 31' 11.496'' N 6° 31' 10.704'' N 6° 31' 09.804'' N 6° 31' 08.616'' N 6° 31' 09.588'' N 6° 31' 10.704'' N 6° 31' 11.208'' N 6° 31' 12.288'' N | M70: Oui
B71: ISAGES | C71: Autorisation artisanale | D71: sable | F71: 2023-01-09 | G71: 1 | H71: Principe du Premier venu Premier servi | I71: 0.0129 | J71: Tchékpo-Dzigbé (Yoto) | M71: Oui
B72: NTIFAFA COME AND SEE | C72: Autorisation artisanale | D72: sable | F72: 2023-01-09 | G72: 1 | H72: Principe du Premier venu Premier servi | I72: 0.0269 | J72: Batoumé (Avé) | M72: Oui
B73: ATTIO ET FILS | C73: Autorisation artisanale | D73: sable | F73: 2023-01-09 | G73: 1 | H73: Principe du Premier venu Premier servi | I73: 0.03 | J73: Abaté-Kopé (Lacs) | M73: Oui
B74: BLEWU ET FILS | C74: Autorisation artisanale | D74: sable | F74: 2023-01-09 | G74: 1 | H74: Principe du Premier venu Premier servi | I74: 0.0193 | J74: Tchékpo-Dévé (Yoto) | M74: Oui
B75: ROSADE | C75: Autorisation artisanale | D75: sable | F75: 2023-09-27 | G75: 1 | H75: Principe du Premier venu Premier servi | I75: 0.0696 | J75: Helenyi-Adakope (Agou) | M75: Oui
B76: MNS-GROUP/CRSSG-TOGO | C76: Autorisation artisanale | D76: sable | F76: 2023-09-27 | G76: 1 | H76: Principe du Premier venu Premier servi | I76: 0.010349 | J76: Lassa-Tchow (Kozah) | M76: Oui
B77: CARRIERE LUMIERE | C77: Autorisation artisanale | D77: sable | F77: 2023-10-05 | G77: 1 | H77: Principe du Premier venu Premier servi | I77: 0.042 | J77: Tchékpo-Dzigbé (Yoto) | M77: Oui
B78: MARANATHA | C78: Autorisation artisanale | D78: sable | F78: 2023-11-28 | G78: 1 | H78: Principe du Premier venu Premier servi | I78: 0.0808 | J78: Koudassi-Gbogamé (Avé) | M78: Oui
B79: NATIVITE INVESTE | C79: Permis d'exploitation pour Matériaux de construction | D79: sable | E79: 2018-01-29 | F79: 2022-10-21 | G79: 3 | H79: Principe du Premier venu Premier servi | I79: 0.11 | J79: Akoumapé (Vo) | K79: 1° 26' 49.200'' E 1° 26' 52.000'' E 1° 26' 52.100'' E 1° 26' 47.600'' E 1° 26' 49.100'' E 1° 26' 46.400'' E | L79: 6° 22' 29.200'' N 6° 22' 29.000'' N 6° 21' 58.300'' N 6° 21' 58.100'' N 6° 22' 06.400'' N 6° 22' 06.800'' N | M79: Oui
B80: TESGRAV | C80: Permis d'exploitation pour Matériaux de construction | D80: sable | F80: 2020-06-10 | G80: 3 | H80: Principe du Premier venu Premier servi | I80: 0.12 | J80: Dalavé (Zio) | M80: Oui
B81: COMMERZGROUP | C81: Permis d'exploitation pour Matériaux de construction | D81: sable | E81: 2019-08-13 | F81: 2021-01-19 | G81: 3 | H81: Principe du Premier venu Premier servi | I81: 0.1008 | J81: Tchékpo-Dévé (Yoto) | K81: 1° 24' 23.900'' E 1° 24' 27.500'' E 1° 24' 33.400'' E 1° 24' 32.700'' E 1° 24' 33.800'' E 1° 24' 34.700'' E 1° 24' 32.100'' E 1° 24' 30.600'' E 1° 24' 29.200'' E 1° 24' 27.600'' E 1° 24' 27.500'' E 1° 24' 24.100'' E | L81: 6° 29' 52.200'' N 6° 29' 52.000'' N 6° 29' 50.600'' N 6° 29' 45.300'' N 6° 29' 34.700'' N 6° 29' 32.200'' N 6° 29' 31.400'' N 6° 29' 31.500'' N 6° 29' 38.800'' N 6° 29' 43.700'' N 6° 29' 48.100'' N 6° 29' 47.800'' N | M81: Oui
B82: MATERIAUX DU TOGO | C82: Permis d'exploitation pour Matériaux de construction | D82: sable | E82: 2020-06-19 | F82: 2021-01-19 | G82: 3 | H82: Principe du Premier venu Premier servi | I82: 0.1049 | J82: Tchékpo-Davou (Yoto) | K82: 1° 25' 29.500'' E 1° 25' 28.700'' E 1° 25' 36.000'' E 1° 25' 32.200'' E 1° 25' 29.500'' E 1° 25' 25.900'' E 1° 25' 23.500'' E 1° 25' 24.900'' E 1° 25' 27.300'' E 1° 25' 27.400'' E | L82: 6° 30' 50.600'' N 6° 30' 46.000'' N 6° 30' 44.000'' N 6° 30' 34.800'' N 6° 30' 34.800'' N 6° 30' 31.900'' N 6° 30' 32.700'' N 6° 30' 38.200'' N 6° 30' 42.800'' N 6° 30' 50.300'' N | M82: Oui
B83: TSOKOPHI | C83: Permis d'exploitation pour Matériaux de construction | D83: sable | E83: 2019-12-30 | F83: 2021-01-19 | G83: 3 | H83: Principe du Premier venu Premier servi | I83: 0.1 | J83: Tchékpo-Dzigbé (Yoto) | K83: 1° 25' 30.300'' E 1° 25' 34.800'' E 1° 25' 38.500'' E 1° 25' 33.300'' E 1° 25' 27.400'' E 1° 25' 27.300'' E 1° 25' 23.300'' E 1° 25' 20.400'' E 1° 25' 15.800'' E 1° 25' 16.400'' E 1° 25' 22.700'' E 1° 25' 25.600'' E 1° 25' 25.800'' E 1° 25' 23.200'' E 1° 25' 26.000'' E | L83: 6° 31' 01.100'' N 6° 30' 59.600'' N 6° 30' 56.600'' N 6° 30' 52.200'' N 6° 30' 50.300'' N 6° 30' 42.800'' N 6° 30' 40.000'' N 6° 30' 35.000'' N 6° 30' 36.000'' N 6° 30' 40.200'' N 6° 30' 47.400'' N 6° 30' 45.800'' N 6° 30' 51.000'' N 6° 30' 52.300'' N 6° 30' 58.700'' N | M83: Oui
B84: MAWUTODZI | C84: Permis d'exploitation pour Matériaux de construction | D84: sable | E84: 2020-06-29T10:47:07 | F84: 2022-12-02 | G84: 3 | H84: Principe du Premier venu Premier servi | I84: 0.111 | J84: Tchékpo-Davou (Yoto) | K84: 1° 24' 38.592'' E 1° 24' 35.784'' E 1° 24' 32.400'' E 1° 24' 31.284'' E 1° 24' 30.312'' E 1° 24' 32.508'' E 1° 24' 31.788'' E 1° 24' 32.112'' E 1° 24' 32.004'' E 1° 24' 32.508'' E 1° 24' 34.596'' E 1° 24' 35.100'' E 1° 24' 34.992'' E 1° 24' 36.396'' E 1° 24' 37.404'' E 1° 24' 37.512'' E 1° 24' 39.492'' E 1° 24' 42.984'' E 1° 24' 43.992'' E 1° 24' 45.684'' E 1° 24' 46.008'' E 1° 24' 45.000'' E 1° 24' 44.316'' E 1° 24' 43.200'' E 1° 24' 41.112'' E 1° 24' 39.996'' E | L84: 6° 30' 52.704'' N 6° 30' 53.316'' N 6° 30' 56.988'' N 6° 31' 00.408'' N 6° 31' 05.016'' N 6° 31' 06.204'' N 6° 31' 06.888'' N 6° 31' 08.184'' N 6° 31' 09.696'' N 6° 31' 11.604'' N 6° 31' 11.784'' N 6° 31' 10.308'' N 6° 31' 08.112'' N 6° 31' 05.700'' N 6° 31' 03.900'' N 6° 31' 02.316'' N 6° 30' 59.616'' N 6° 30' 57.708'' N 6° 30' 57.600'' N 6° 30' 58.284'' N 6° 30' 57.204'' N 6° 30' 57.492'' N 6° 30' 57.204'' N 6° 30' 56.988'' N 6° 30' 55.116'' N 6° 30' 53.604'' N
B85: AKICOM | C85: Permis d'exploitation pour Matériaux de construction | D85: sable | F85: 2022-10-21 | G85: 3 | H85: Principe du Premier venu Premier servi | I85: 0.15 | J85: Ezor (Dalavé) | M85: Oui
B86: VIRAGE AUTO | C86: Permis d'exploitation pour Matériaux de construction | D86: sable | E86: 2019-12-05 | F86: 2022-10-21 | G86: 3 | H86: Principe du Premier venu Premier servi | I86: 0.1945 | J86: Taklavé (Avé) | K86: 0° 48' 57.924'' E 0° 49' 03.432'' E 0° 49' 07.500'' E 0° 49' 10.740'' E 0° 49' 05.592'' E 0° 49' 02.604'' E 0° 48' 58.896'' E 0° 48' 56.592'' E 0° 48' 51.732'' E 0° 48' 48.096'' E 0° 48' 51.876'' E 0° 48' 54.036'' E 0° 48' 54.576'' E | L86: 6° 32' 17.088'' N 6° 32' 10.068'' N 6° 32' 04.740'' N 6° 32' 03.120'' N 6° 31' 59.160'' N 6° 31' 56.136'' N 6° 31' 58.224'' N 6° 32' 00.456'' N 6° 32' 07.116'' N 6° 32' 07.332'' N 6° 32' 10.716'' N 6° 32' 12.444'' N 6° 32' 13.524'' N | M86: Oui
B87: FELICIA | C87: Permis d'exploitation pour Matériaux de construction | D87: sable | E87: 2019-07-22 | F87: 2022-10-21 | G87: 3 | H87: Principe du Premier venu Premier servi | I87: 0.1 | J87: Tchékpo-Dévé (Yoto) | K87: 1° 24' 49.700'' E 1° 24' 54.300'' E 1° 24' 49.800'' E 1° 24' 48.400'' E 1° 24' 47.000'' E 1° 24' 46.800'' E 1° 24' 45.400'' E 1° 24' 45.400'' E 1° 24' 47.700'' E 1° 24' 47.700'' E | L87: 6° 29' 52.400'' N 6° 29' 51.500'' N 6° 29' 38.000'' N 6° 29' 36.000'' N 6° 29' 36.100'' N 6° 29' 29.100'' N 6° 29' 28.900'' N 6° 29' 49.300'' N 6° 29' 49.800'' N 6° 29' 51.900'' N | M87: Oui
B88: AKM | C88: Permis d'exploitation pour Matériaux de construction | D88: sable | E88: 2017-09-27 | F88: 2022-10-21 | G88: 3 | H88: Principe du Premier venu Premier servi | I88: 0.1 | J88: Dalavé (Zio) | K88: 1° 17' 35.900'' E 1° 17' 46.200'' E 1° 17' 40.500'' E 1° 17' 30.400'' E | L88: 6° 22' 58.200'' N 6° 22' 52.800'' N 6° 22' 45.000'' N 6° 22' 49.800'' N | M88: Oui
B89: JDR | C89: Permis d'exploitation pour Matériaux de construction | D89: sable | E89: 2019-01-25 | F89: 2022-10-21 | G89: 3 | H89: Principe du Premier venu Premier servi | I89: 0.1 | J89: Tchékpo-Dzigbé (Yoto) | K89: 1° 25' 56.500'' E 1° 26' 06.000'' E 1° 26' 06.800'' E 1° 26' 07.900'' E 1° 26' 08.800'' E 1° 26' 12.600'' E 1° 26' 11.900'' E 1° 26' 01.000'' E 1° 25' 53.700'' E | L89: 6° 31' 48.900'' N 6° 31' 47.500'' N 6° 31' 44.300'' N 6° 31' 44.000'' N 6° 31' 44.200'' N 6° 31' 40.900'' N 6° 31' 39.400'' N 6° 31' 40.300'' N 6° 31' 42.900'' N | M89: Oui
B90: BLEWU ET FILS | C90: Permis d'exploitation pour Matériaux de construction | D90: sable | E90: 2021-03-16 | F90: 2022-10-21 | G90: 3 | H90: Principe du Premier venu Premier servi | I90: 0.12 | J90: Tchékpo-Avéhé (Yoto) | K90: 1° 19' 27.100'' E 1° 19' 35.800'' E 1° 19' 33.700'' E 1° 19' 27.600'' E 1° 19' 24.600'' E 1° 19' 23.200'' E 1° 19' 23.600'' E 1° 19' 17.500'' E 1° 19' 21.400'' E 1° 19' 25.300'' E | L90: 6° 32' 58.000'' N 6° 32' 53.000'' N 6° 32' 48.600'' N 6° 32' 43.300'' N 6° 32' 47.300'' N 6° 32' 47.700'' N 6° 32' 45.000'' N 6° 32' 49.400'' N 6° 32' 52.300'' N 6° 32' 53.500'' N | M90: Oui
B91: GEFSA | C91: Permis d'exploitation pour Matériaux de construction | D91: sable | E91: 2021-05-05 | F91: 2022-10-21 | G91: 3 | H91: Principe du Premier venu Premier servi | I91: 0.1002 | J91: Tchékpo-Dévé (Yoto) | K91: 1° 24' 51.500'' E 1° 25' 01.000'' E 1° 25' 01.100'' E 1° 24' 52.000'' E 1° 24' 45.800'' E 1° 24' 44.300'' E 1° 24' 47.400'' E | L91: 6° 29' 27.300'' N 6° 29' 27.100'' N 6° 29' 20.000'' N 6° 29' 19.000'' N 6° 29' 19.600'' N 6° 29' 20.400'' N 6° 29' 23.600'' N | M91: Oui
B92: LAGUDA ET FILS | C92: Permis d'exploitation pour Matériaux de construction | D92: sable | F92: 2022-10-21 | G92: 3 | H92: Principe du Premier venu Premier servi | I92: 0.1 | J92: Ezor (Zio) | M92: Oui
B93: BERJ BUSINESS | C93: Permis d'exploitation pour Matériaux de construction | D93: sable | E93: 2016-09-06 | F93: 2022-10-21 | G93: 3 | H93: Principe du Premier venu Premier servi | I93: 0.1 | J93: Agomé-Séva (Bas-mono) | K93: 1° 44' 44.556'' E 1° 44' 46.248'' E 1° 45' 14.724'' E 1° 45' 14.076'' E | L93: 6° 27' 34.524'' N 6° 27' 37.368'' N 6° 27' 29.880'' N 6° 27' 25.632'' N | M93: Oui
B94: ECOB CARRIERE | C94: Permis d'exploitation pour Matériaux de construction | D94: sable | F94: 2022-10-21 | G94: 3 | H94: Principe du Premier venu Premier servi | I94: 0.18 | J94: Rivière Kara à Agbang (Kozah) | K94: 1° 19' 41.900'' E 1° 19' 57.100'' E 1° 19' 25.500'' E 1° 19' 09.700'' E | L94: 9° 29' 17.400'' N 9° 29' 29.000'' N 9° 30' 12.300'' N 9° 30' 03.300'' N | M94: Oui
B95: ECOB CARRIERE | C95: Permis d'exploitation pour Matériaux de construction | D95: Gravier roulé | F95: 2022-10-21 | G95: 3 | H95: Principe du Premier venu Premier servi | I95: 1.012 | J95: Rivière Kawa (Assoli et Bassar) | M95: Oui
B96: LES CARRIERES DE ZIO | C96: Permis d'exploitation pour Matériaux de construction | D96: Gneiss | E96: 2021-05-11 | F96: 2022-12-02 | G96: 3 | H96: Principe du Premier venu Premier servi | I96: 0.1144 | J96: Bolou Ayivi Kopé (Zio) | K96: 1° 07' 35.040'' E 1° 07' 36.840'' E 1° 07' 39.360'' E 1° 07' 40.440'' E 1° 07' 40.080'' E 1° 07' 39.756'' E 1° 07' 39.180'' E 1° 07' 38.496'' E 1° 07' 36.336'' E 1° 07' 34.500'' E 1° 07' 32.448'' E 1° 07' 30.864'' E 1° 07' 30.288'' E 1° 07' 29.568'' E 1° 07' 29.640'' E 1° 07' 31.980'' E 1° 07' 32.844'' E 1° 07' 33.420'' E 1° 07' 33.996'' E 1° 07' 34.356'' E | L96: 6° 27' 43.596'' N 6° 27' 42.984'' N 6° 27' 42.228'' N 6° 27' 40.644'' N 6° 27' 37.872'' N 6° 27' 34.812'' N 6° 27' 32.076'' N 6° 27' 29.808'' N 6° 27' 28.476'' N 6° 27' 27.792'' N 6° 27' 27.432'' N 6° 27' 28.548'' N 6° 27' 33.948'' N 6° 27' 37.080'' N 6° 27' 38.304'' N 6° 27' 38.268'' N 6° 27' 40.248'' N 6° 27' 40.176'' N 6° 27' 41.184'' N 6° 27' 41.292'' N
B97: TOGO RAIL | C97: Permis d'exploitation pour Matériaux de construction | D97: Gneiss | E97: 2018-02-07 | F97: 2022-12-02 | G97: 3 | H97: Principe du Premier venu Premier servi | I97: 0.62 | J97: Agbélouvé (Zio) | K97: 1° 09' 54.300'' E 1° 09' 52.400'' E 1° 09' 27.100'' E 1° 09' 09.000'' E 1° 09' 25.000'' E 1° 09' 32.900'' E | L97: 6° 41' 58.000'' N 6° 41' 43.800'' N 6° 41' 38.800'' N 6° 41' 49.300'' N 6° 42' 01.700'' N 6° 41' 58.000'' N | M97: Oui
B98: TPI GROUPE | C98: Permis d'exploitation pour Matériaux de construction | D98: Gneiss | E98: 2021-05-11 | F98: 2022-12-02 | G98: 3 | H98: Principe du Premier venu Premier servi | I98: 0.1144 | J98: Bolou Ayivi-Kopé (Zio) | K98: 1° 07' 35.040'' E 1° 07' 36.840'' E 1° 07' 39.360'' E 1° 07' 40.440'' E 1° 07' 40.080'' E 1° 07' 39.756'' E 1° 07' 39.180'' E 1° 07' 38.496'' E 1° 07' 36.336'' E 1° 07' 34.500'' E 1° 07' 32.448'' E 1° 07' 30.864'' E 1° 07' 30.288'' E 1° 07' 29.568'' E 1° 07' 29.640'' E 1° 07' 31.980'' E 1° 07' 32.844'' E 1° 07' 33.420'' E 1° 07' 33.996'' E 1° 07' 34.356'' E | L98: 6° 27' 43.596'' N 6° 27' 42.984'' N 6° 27' 42.228'' N 6° 27' 40.644'' N 6° 27' 37.872'' N 6° 27' 34.812'' N 6° 27' 32.076'' N 6° 27' 29.808'' N 6° 27' 28.476'' N 6° 27' 27.792'' N 6° 27' 27.432'' N 6° 27' 28.548'' N 6° 27' 33.948'' N 6° 27' 37.080'' N 6° 27' 38.304'' N 6° 27' 38.268'' N 6° 27' 40.248'' N 6° 27' 40.176'' N 6° 27' 41.184'' N 6° 27' 41.292'' N | M98: Oui
B99: SOROUBAT-TG | C99: Permis d'exploitation pour Matériaux de construction | D99: Gneiss | F99: 2020-01-08 | G99: 3 | H99: Principe du Premier venu Premier servi | I99: 0.54 | J99: Goka-Kopé (Avé) | M99: Oui
C100: Permis d'exploitation pour Matériaux de construction | D100: Gneiss | E100: 2021-02-12 | F100: 2023-03-27 | G100: 2 | H100: Principe du Premier venu Premier servi | I100: 0.127 | J100: Alibi 2 (Tchamba) | K100: 1° 17' 16.400'' E 1° 17' 14.000'' E 1° 17' 14.300'' E 1° 17' 12.313'' E 1° 17' 12.100'' E 1° 17' 11.431'' E 1° 17' 11.000'' E 1° 17' 09.200'' E 1° 17' 05.600'' E 1° 17' 01.800'' E 1° 16' 58.600'' E 1° 17' 01.300'' E 1° 17' 06.600'' E 1° 17' 12.200'' E 1° 17' 14.900'' E 1° 17' 19.600'' E 1° 17' 19.700'' E | L100: 8° 58' 20.200'' N 8° 58' 21.400'' N 8° 58' 24.300'' N 8° 58' 24.360'' N 8° 58' 24.900'' N 8° 58' 24.387'' N 8° 58' 24.400'' N 8° 58' 22.800'' N 8° 58' 21.300'' N 8° 58' 23.600'' N 8° 58' 28.200'' N 8° 58' 32.100'' N 8° 58' 33.900'' N 8° 58' 31.600'' N 8° 58' 26.300'' N 8° 58' 26.900'' N 8° 58' 23.500'' N | M100: Oui
B101: TOGO MATERIAUX | C101: Permis d'exploitation pour Matériaux de construction | D101: Gneiss | E101: 2016-10-17 | F101: 2020-03-12 | G101: 3 | H101: Principe du Premier venu Premier servi | I101: 0.18 | J101: Gamé-Kové (Agbélouvé) | K101: 1° 07' 40.800'' E 1° 07' 46.700'' E 1° 07' 47.600'' E 1° 07' 45.200'' E 1° 07' 38.300'' E 1° 07' 31.700'' E 1° 07' 35.400'' E | L101: 6° 39' 11.700'' N 6° 39' 08.100'' N 6° 39' 00.400'' N 6° 38' 56.000'' N 6° 38' 54.400'' N 6° 39' 04.800'' N 6° 39' 11.500'' N | M101: Oui
B102: U.S.XIN-ALAFIA | C102: Permis d'exploitation pour Matériaux de construction | D102: Gneiss | E102: 2016-01-06 | F102: 2019-07-24 | G102: 3 | H102: Principe du Premier venu Premier servi | I102: 0.21 | J102: Adangbé-Kpévé (Zio) | K102: 1° 15' 43.438'' E 1° 15' 49.139'' E 1° 15' 53.556'' E 1° 15' 47.898'' E | L102: 6° 33' 34.116'' N 6° 33' 39.028'' N 6° 33' 34.432'' N 6° 33' 29.176'' N
B103: EMT | C103: Permis d'exploitation pour Matériaux de construction | D103: Gneiss | E103: 2015-12-01 | F103: 2023-02-09 | G103: 3 | H103: Principe du Premier venu Premier servi | I103: 0.1248 | J103: Bolou Vavatsi (Zio) | K103: 1° 09' 12.888'' E 1° 09' 14.198'' E 1° 09' 20.099'' E 1° 09' 19.804'' E 1° 09' 23.198'' E 1° 09' 23.198'' E 1° 09' 28.501'' E 1° 09' 27.101'' E | L103: 6° 27' 08.442'' N 6° 27' 17.899'' N 6° 27' 16.600'' N 6° 27' 13.303'' N 6° 27' 11.599'' N 6° 27' 13.298'' N 6° 27' 10.901'' N 6° 27' 02.700'' N | M103: Oui
B104: TGC | C104: Permis d'exploitation pour Matériaux de construction | D104: Gneiss | F104: 2023-12-20 | G104: 3 | H104: Principe du Premier venu Premier servi | I104: 0.3 | J104: Lassa-Tchou (Kozah) | K104: 1° 15' 23.930'' E 1° 15' 25.980'' E 1° 15' 11.590'' E 1° 15' 15.150'' E 1° 15' 05.790'' E 1° 15' 07.080'' E | L104: 9° 35' 39.230'' N 9° 35' 29.440'' N 9° 35' 29.460'' N 9° 35' 11.700'' N 9° 35' 14.940'' N 9° 35' 38.230'' N | M104: Oui
B105: COLAS AFRIQUE | C105: Permis d'exploitation pour Matériaux de construction | D105: Gneiss | F105: 2020-01-15 | G105: 3 | H105: Principe du Premier venu Premier servi | I105: 0.11 | J105: Gbleinvié (Zio) | M105: Oui
B106: SOGECAR | C106: Permis d'exploitation pour Matériaux de construction | D106: Gneiss | F106: 2020-11-18 | G106: 3 | H106: Principe du Premier venu Premier servi | I106: 0.0111 | J106: Goka-Kopé (Avé) | K106: 1° 01' 41.600'' E 1° 01' 34.000'' E 1° 01' 29.800'' E 1° 01' 40.900'' E | L106: 6° 21' 48.500'' N 6° 21' 52.700'' N 6° 21' 43.900'' N 6° 21' 36.200'' N | M106: Oui
B107: TOGO CARRIERE | C107: Permis d'exploitation pour Matériaux de construction | D107: Migmatite | F107: 2023-01-06 | G107: 3 | H107: Principe du Premier venu Premier servi | I107: 0.3 | J107: Amékpé-Lilikopé (Zio) | K107: 1° 09' 04.000'' E 1° 09' 15.000'' E 1° 09' 12.000'' E 1° 09' 02.000'' E 1° 08' 50.000'' E | L107: 6° 33' 43.000'' N 6° 33' 40.000'' N 6° 33' 28.000'' N 6° 33' 17.000'' N 6° 33' 25.000'' N | M107: Oui
B108: ALMACAR | C108: Permis d'exploitation pour Matériaux de construction | D108: Gneiss | F108: 2020-01-08 | G108: 3 | H108: Principe du Premier venu Premier servi | I108: 0.12 | J108: AGOUDJA BADJA (Avé) | K108: 1° 01' 53.000'' E 1° 01' 56.000'' E 1° 02' 04.000'' E 1° 01' 46.000'' E 1° 01' 42.000'' E | L108: 6° 23' 51.000'' N 6° 23' 51.000'' N 6° 23' 41.000'' N 6° 23' 29.000'' N 6° 23' 31.000'' N | M108: Oui
B109: SHEHU DAN FODIO | C109: Permis d'exploitation pour Matériaux de construction | D109: Gneiss | F109: 2020-05-06 | G109: 3 | H109: Principe du Premier venu Premier servi | I109: 0.33 | J109: Atti-Touwui (Avé) | K109: 0° 52' 45.232'' E 0° 52' 44.872'' E 0° 52' 46.193'' E 0° 52' 46.571'' E | L109: 6° 30' 24.458'' N 6° 30' 21.348'' N 6° 30' 21.553'' N 6° 30' 24.526'' N | M109: Oui
B110: XING FA SARL U | C110: Permis d'exploitation pour Matériaux de construction | D110: Gneiss | E110: 2017-01-13 | F110: 2018-07-18 | G110: 3 | H110: Principe du Premier venu Premier servi | I110: 0.038 | J110: Sedina (Kara) | K110: 1° 11' 27.300'' E 1° 11' 25.700'' E 1° 11' 28.500'' E 1° 11' 31.500'' E 1° 11' 34.700'' E 1° 11' 38.100'' E 1° 11' 35.500'' E | L110: 9° 43' 44.400'' N 9° 43' 45.700'' N 9° 43' 49.300'' N 9° 43' 49.700'' N 9° 43' 52.400'' N 9° 43' 50.300'' N 9° 43' 47.700'' N
B111: EBOMAF | C111: Permis d'exploitation pour Matériaux de construction | D111: Gneiss | E111: 2020-07-21 | F111: 2021-01-19 | G111: 3 | H111: Principe du Premier venu Premier servi | I111: 0.15 | J111: Agoudja-Badja (Avé) | K111: 1° 01' 57.500'' E 1° 02' 03.300'' E 1° 02' 10.600'' E 1° 02' 01.200'' E 1° 01' 57.100'' E 1° 01' 53.700'' E 1° 01' 54.300'' E | L111: 6° 24' 30.000'' N 6° 24' 28.800'' N 6° 24' 20.900'' N 6° 24' 14.000'' N 6° 24' 18.100'' N 6° 24' 22.500'' N 6° 24' 24.400'' N | M111: Oui
B112: CECO BTP | C112: Permis d'exploitation pour Matériaux de construction | D112: Gneiss | F112: 2020-05-12 | G112: 3 | H112: Principe du Premier venu Premier servi | I112: 0.1 | J112: Atiho-Avati (Zio) | M112: Oui
C113: Permis d'exploitation pour Matériaux de construction | D113: Gneiss | E113: 2020-05-18 | F113: 2021-01-29 | G113: 3 | H113: Principe du Premier venu Premier servi | I113: 0.1845 | J113: Agoudja Wonougba (Avé) | K113: 1° 01' 50.500'' E 1° 01' 57.600'' E 1° 01' 54.300'' E 1° 01' 52.200'' E 1° 01' 49.200'' E 1° 01' 53.500'' E 1° 01' 49.700'' E 1° 01' 43.300'' E 1° 01' 43.900'' E 1° 01' 47.700'' E 1° 01' 45.200'' E 1° 01' 47.900'' E | L113: 6° 25' 30.500'' N 6° 25' 28.500'' N 6° 25' 21.900'' N 6° 25' 21.700'' N 6° 25' 11.000'' N 6° 25' 08.200'' N 6° 24' 59.600'' N 6° 25' 00.900'' N 6° 25' 07.400'' N 6° 25' 13.300'' N 6° 25' 14.800'' N 6° 25' 26.700'' N
B114: R-B CARRIERE | C114: Permis d'exploitation pour Matériaux de construction | D114: Granite | E114: 2022-03-01 | F114: 2022-08-12 | G114: 3 | H114: Principe du Premier venu Premier servi | I114: 0.1261 | J114: Alibi 2 (Tchamba) | K114: 1° 17' 01.700'' E 1° 17' 05.600'' E 1° 17' 09.100'' E 1° 17' 12.100'' E 1° 17' 14.000'' E 1° 17' 17.500'' E 1° 17' 12.300'' E 1° 17' 07.400'' E 1° 16' 57.800'' E | L114: 8° 58' 23.600'' N 8° 58' 21.200'' N 8° 58' 22.600'' N 8° 58' 24.900'' N 8° 58' 20.100'' N 8° 58' 17.100'' N 8° 58' 14.700'' N 8° 58' 13.000'' N 8° 58' 14.900'' N | M114: Oui
B115: EBOMAF | C115: Permis d'exploitation pour Matériaux de construction | D115: Granite | F115: 2022-10-21 | G115: 3 | H115: Principe du Premier venu Premier servi | I115: 0.1389 | J115: Timbou (Cinkassé) | M115: Oui
B116: NOUVELLE CARRIERE DE NOTSE | C116: Permis d'exploitation pour Matériaux de construction | D116: Migmatite | E116: 2018-09-26 | F116: 2022-10-21 | G116: 3 | H116: Principe du Premier venu Premier servi | I116: 69.15 | J116: Alati (Haho) | K116: 1° 06' 49.300'' E 1° 06' 35.800'' E 1° 06' 08.700'' E 1° 06' 13.200'' E 1° 06' 20.100'' E 1° 06' 23.100'' E 1° 06' 26.100'' E | L116: 6° 59' 32.500'' N 6° 59' 19.200'' N 6° 59' 30.300'' N 6° 59' 47.100'' N 6° 59' 43.700'' N 6° 59' 51.200'' N 6° 59' 50.400'' N | M116: Oui
B117: VIRAS-INDUSTRIE | C117: Permis d'exploitation pour Matériaux de construction | D117: Gneiss granulitique | E117: 2019-06-26 | F117: 2022-10-21 | G117: 3 | H117: Principe du Premier venu Premier servi | I117: 0.17 | J117: Kouméa-Sèdina (Kozah) | K117: 1° 11' 53.600'' E 1° 11' 56.100'' E 1° 11' 57.100'' E 1° 11' 55.300'' E 1° 11' 53.500'' E 1° 11' 52.500'' E 1° 11' 47.300'' E 1° 11' 45.000'' E 1° 11' 44.300'' E 1° 11' 44.700'' E 1° 11' 44.300'' E 1° 11' 45.500'' E 1° 11' 47.700'' E 1° 11' 50.400'' E 1° 11' 53.800'' E 1° 11' 53.900'' E 1° 11' 53.400'' E 1° 11' 54.500'' E | L117: 9° 43' 53.500'' N 9° 43' 53.000'' N 9° 43' 49.900'' N 9° 43' 45.700'' N 9° 43' 38.600'' N 9° 43' 26.900'' N 9° 43' 27.300'' N 9° 43' 28.600'' N 9° 43' 30.400'' N 9° 43' 35.200'' N 9° 43' 38.600'' N 9° 43' 44.300'' N 9° 43' 42.900'' N 9° 43' 46.200'' N 9° 43' 45.000'' N 9° 43' 46.600'' N 9° 43' 47.300'' N 9° 43' 50.400'' N | M117: Oui
B118: CRBC-TOGO | C118: Permis d'exploitation pour Matériaux de construction | D118: Gneiss | E118: 2021-06-08 | F118: 2023-03-21 | G118: 2 | H118: Principe du Premier venu Premier servi | I118: 0.127 | J118: Badja-Fiamé (Avé) | K118: 1° 01' 33.250'' E 1° 01' 31.183'' E 1° 01' 29.949'' E 1° 01' 30.032'' E 1° 01' 30.612'' E 1° 01' 30.858'' E 1° 01' 33.368'' E 1° 01' 34.567'' E 1° 01' 36.710'' E 1° 01' 37.362'' E 1° 01' 39.663'' E 1° 01' 40.773'' E 1° 01' 43.724'' E 1° 01' 45.616'' E 1° 01' 42.013'' E 1° 01' 40.980'' E 1° 01' 39.970'' E 1° 01' 37.160'' E | L118: 6° 22' 09.090'' N 6° 22' 12.077'' N 6° 22' 12.997'' N 6° 22' 14.659'' N 6° 22' 15.234'' N 6° 22' 18.554'' N 6° 22' 18.123'' N 6° 22' 18.186'' N 6° 22' 17.798'' N 6° 22' 17.594'' N 6° 22' 16.580'' N 6° 22' 15.680'' N 6° 22' 13.562'' N 6° 22' 11.857'' N 6° 22' 06.890'' N 6° 22' 05.496'' N 6° 22' 04.087'' N 6° 22' 05.380'' N | M118: Oui
B119: SOGEA SATOM | C119: Permis d'exploitation pour Matériaux de construction | D119: Gneiss | E119: 2022-08-28 | F119: 2023-01-03 | G119: 18 mois | H119: Principe du Premier venu Premier servi | I119: 0.16 | J119: Tsimanè (Zio) | K119: 1° 15' 32.530'' E 1° 15' 41.290'' E 1° 15' 41.340'' E 1° 15' 22.770'' E 1° 15' 22.750'' E 1° 15' 32.550'' E | L119: 6° 38' 04.950'' N 6° 38' 04.980'' N 6° 37' 52.970'' N 6° 37' 52.910'' N 6° 37' 59.480'' N 6° 37' 59.510'' N | M119: Oui
B120: TOGO MINERALS | C120: Permis d'exploitation pour Matériaux de construction | D120: Gneiss granulitique | E120: 2022-10-20 | F120: 2023-08-24 | G120: 3 | H120: Principe du Premier venu Premier servi | I120: 0.22 | J120: Kpinzidè (Kozah) | K120: 1° 17' 38.530'' E 1° 17' 31.240'' E 1° 17' 33.790'' E 1° 17' 23.260'' E 1° 17' 28.740'' E 1° 17' 45.440'' E | L120: 9° 30' 39.940'' N 9° 30' 47.580'' N 9° 30' 50.170'' N 9° 31' 04.730'' N 9° 31' 09.050'' N 9° 30' 47.030'' N | M120: Oui
B121: CORNERSTONE GROUP INTERNATIONAL | C121: Permis d'exploitation pour Matériaux de construction | D121: Granite | E121: 2022-04-13 | F121: 2023-07-07 | G121: 3 | H121: Principe du Premier venu Premier servi | I121: 0.243 | J121: Asrama Siyimé (Haho) | K121: 1° 28' 39.100'' E 1° 28' 41.900'' E 1° 28' 44.800'' E 1° 28' 47.900'' E 1° 28' 49.200'' E 1° 28' 47.900'' E 1° 28' 45.000'' E 1° 28' 40.700'' E 1° 28' 40.000'' E 1° 28' 35.200'' E 1° 28' 33.000'' E 1° 28' 33.200'' E 1° 28' 32.200'' E 1° 28' 34.200'' E | L121: 6° 57' 54.900'' N 6° 57' 53.300'' N 6° 57' 51.700'' N 6° 57' 50.700'' N 6° 57' 41.000'' N 6° 57' 36.700'' N 6° 57' 34.300'' N 6° 57' 34.400'' N 6° 57' 33.800'' N 6° 57' 34.400'' N 6° 57' 37.200'' N 6° 57' 39.100'' N 6° 57' 40.800'' N 6° 57' 46.400'' N | M121: Oui
B122: GRANUTOGO | C122: Permis d'exploitation à petite échelle | D122: Migmatite | E122: 2017-12-07 | F122: 2018-07-06 | G122: 5 | H122: Principe du Premier venu Premier servi | I122: 0.0779 | J122: Amélépké (Zio) | K122: 1° 11' 41.000'' E 1° 11' 55.700'' E 1° 11' 55.700'' E 1° 11' 41.000'' E | L122: 6° 39' 25.600'' N 6° 39' 25.600'' N 6° 39' 17.100'' N 6° 39' 17.100'' N | M122: Oui
B123: SCANTOGO-MINE | C123: Permis d'exploitation à petite échelle | D123: Dolomie | E123: 2019-03-20 | F123: 2020-05-06 | G123: 5 | H123: Principe du Premier venu Premier servi | I123: 3.92 | J123: Kamina (Akébou) | M123: Oui
B124: SCANTOGO-MINE | C124: Permis d'exploitation à petite échelle | D124: Dolomie | E124: 2016-03-07 | F124: 2017-01-16 | G124: 5 | H124: Principe du Premier venu Premier servi | I124: 4.05 | J124: Namon (Dankpen) | K124: 0° 46' 49.000'' E 0° 46' 46.100'' E 0° 46' 16.600'' E 0° 45' 41.600'' E 0° 45' 15.300'' E 0° 45' 20.500'' E 0° 45' 46.700'' E 0° 46' 19.500'' E | L124: 9° 45' 59.500'' N 9° 45' 07.400'' N 9° 45' 07.200'' N 9° 45' 11.300'' N 9° 45' 12.400'' N 9° 45' 55.700'' N 9° 45' 55.900'' N 9° 45' 59.300'' N | M124: Oui
B125: SAMARIA | C125: Permis d'exploitation à petite échelle | D125: Sable | F125: 2019-12-06 | G125: 5 | H125: Principe du Premier venu Premier servi | I125: 0.065 | J125: Boka Dévégo (Golfe) | M125: Oui
B126: MSTD | C126: Permis d'exploitation à petite échelle | D126: Marbre | E126: 2020-01-07 | F126: 2020-04-28 | G126: 5 | H126: Principe du Premier venu Premier servi | I126: 0.43 | J126: Onyawlou (Amou) | K126: 1° 00' 32.100'' E 1° 00' 31.200'' E 1° 00' 14.900'' E 1° 00' 07.900'' E 1° 00' 12.700'' E 1° 00' 10.700'' E 1° 00' 13.400'' E 1° 00' 09.900'' E 1° 00' 24.000'' E 1° 00' 26.900'' E 1° 00' 30.100'' E | L126: 7° 14' 53.600'' N 7° 14' 49.900'' N 7° 14' 10.400'' N 7° 14' 13.300'' N 7° 14' 23.600'' N 7° 14' 26.300'' N 7° 14' 32.300'' N 7° 14' 34.200'' N 7° 14' 55.900'' N 7° 14' 54.300'' N 7° 14' 54.600'' N | M126: Oui
B127: SEERMA | C127: Permis d'exploitation à petite échelle | D127: Sable | E127: 2019-09-04 | F127: 2020-08-06 | G127: 5 | H127: Principe du Premier venu Premier servi | I127: 1.72 | J127: Tamani-Adamavo (Golfe) | K127: 1° 19' 18.800'' E 1° 19' 20.000'' E 1° 18' 43.200'' E 1° 18' 33.800'' E 1° 18' 32.100'' E 1° 18' 26.100'' E 1° 18' 04.200'' E 1° 17' 57.700'' E 1° 17' 55.500'' E | L127: 6° 11' 47.000'' N 6° 11' 26.600'' N 6° 11' 09.800'' N 6° 11' 11.100'' N 6° 10' 57.000'' N 6° 10' 52.300'' N 6° 10' 50.000'' N 6° 10' 45.100'' N 6° 11' 06.800'' N | M127: Oui
B128: SAMARIA | C128: Permis d'exploitation à petite échelle | D128: Sable | E128: 2018-12-11 | F128: 2022-10-21 | G128: 5 | H128: Principe du Premier venu Premier servi | I128: 0.3018 | J128: Baté-Kopé (Lacs) | K128: 1° 32' 28.200'' E 1° 32' 48.000'' E 1° 32' 46.700'' E 1° 32' 33.300'' E 1° 32' 35.000'' E 1° 32' 28.000'' E | L128: 6° 14' 07.800'' N 6° 14' 07.100'' N 6° 13' 46.300'' N 6° 13' 46.000'' N 6° 13' 59.500'' N 6° 14' 02.300'' N | M128: Oui
B129: TOGO DRAGAGE | C129: Permis d'exploitation à petite échelle | D129: Sable | E129: 2019-12-02 | F129: 21/1 0/2022 | G129: 5 | H129: Principe du Premier venu Premier servi | I129: 2 | J129: Sewatsri Kopé (Lacs) | K129: 1° 29' 49.800'' E 1° 30' 07.500'' E 1° 30' 41.900'' E 1° 30' 55.400'' E 1° 31' 11.700'' E 1° 31' 26.500'' E 1° 30' 59.100'' E 1° 30' 13.300'' E 1° 30' 02.700'' E | L129: 6° 14' 04.300'' N 6° 14' 06.400'' N 6° 13' 57.800'' N 6° 14' 00.900'' N 6° 14' 11.000'' N 6° 13' 45.700'' N 6° 13' 35.400'' N 6° 13' 38.500'' N 6° 13' 37.500'' N | M129: Oui
B130: Société Africaine de Dragage (SAD) | C130: Permis d'exploitation à petite échelle | D130: Sable | E130: 2016-02-10 | F130: 2016-06-07 | G130: 5 | H130: Principe du Premier venu Premier servi | I130: 25.1253 | J130: Lac Togo (Zio, Lacs, Lac Togoo) | K130: 1° 23' 04.900'' E 1° 23' 03.000'' E 1° 23' 15.800'' E 1° 23' 05.700'' E 1° 26' 02.700'' E 1° 28' 31.200'' E 1° 28' 37.000'' E 1° 28' 08.200'' E 1° 27' 29.200'' E 1° 27' 03.100'' E 1° 27' 01.900'' E 1° 26' 40.000'' E 1° 24' 59.900'' E | L130: 6° 12' 31.900'' N 6° 13' 45.000'' N 6° 14' 14.500'' N 6° 14' 56.300'' N 6° 14' 14.000'' N 6° 13' 20.300'' N 6° 12' 37.800'' N 6° 12' 31.900'' N 6° 12' 36.500'' N 6° 12' 53.800'' N 6° 13' 05.300'' N 6° 13' 16.100'' N 6° 12' 57.300'' N
B131: LES QUATRES FRERES | C131: Permis d'exploitation à petite échelle | D131: Sable | E131: 2020-08-19 | F131: 21/1 0/2022 | G131: 5 | H131: Principe du Premier venu Premier servi | I131: 0.3796 | J131: Baté-Kopé (Lacs) | K131: 1° 31' 49.584'' E 1° 32' 18.168'' E 1° 32' 23.211'' E 1° 32' 18.024'' E 1° 31' 59.016'' E 1° 31' 48.720'' E | L131: 6° 14' 02.688'' N 6° 14' 21.084'' N 6° 14' 21.123'' N 6° 14' 05.784'' N 6° 13' 56.640'' N 6° 13' 54.696'' N | M131: Oui
B132: LEADAF-TOGO | C132: Permis d'exploitation à petite échelle | D132: Sable | E132: 2020-05-04T17:39:00 | F132: 2022-12-02 | G132: 5 | H132: Principe du Premier venu Premier servi | I132: 0.75 | J132: Togblé-kopé Hlan-kopé (Zio, Golfe) | K132: 306305° 00' 00.000'' E 306146° 00' 00.000'' E 306140° 00' 00.000'' E 306254° 00' 00.000'' E 306065° 00' 00.000'' E 305720° 00' 00.000'' E 305574° 00' 00.000'' E 305497° 35' 24.000'' E 305628° 00' 36.000'' E 305630° 47' 24.000'' E 305691° 00' 00.000'' E 306265° 00' 00.000'' E 306491° 00' 00.000'' E 306459° 00' 00.000'' E 306812° 00' 00.000'' E | L132: 692151° 00' 00.000'' N 692844° 00' 00.000'' N 693086° 00' 00.000'' N 693216° 00' 00.000'' N 693706° 00' 00.000'' N 693712° 00' 00.000'' N 693625° 00' 00.000'' N 693683° 52' 12.000'' N 693944° 00' 36.000'' N 693968° 06' 36.000'' N 693983° 00' 00.000'' N 693855° 00' 00.000'' N 693467° 00' 00.000'' N 693224° 00' 00.000'' N 692618° 00' 00.000'' N
B133: TOGO SANDMEN | C133: Permis d'exploitation à petite échelle | D133: Sable | E133: 2019-06-26 | F133: 21/1 0/2022 | G133: 5 | H133: Principe du Premier venu Premier servi | I133: 0.5 | J133: Lébé (Zio) | K133: 1° 20' 31.900'' E 1° 20' 13.000'' E 1° 19' 58.100'' E 1° 20' 17.600'' E 1° 20' 24.500'' E | L133: 6° 12' 55.300'' N 6° 12' 36.100'' N 6° 12' 49.800'' N 6° 13' 08.600'' N 6° 13' 01.300'' N | M133: Oui
B134: SIDEGBA | C134: Permis d'exploitation à petite échelle | D134: Sable | E134: 2020-08-03 | F134: 2021-01-29 | G134: 5 | H134: Principe du Premier venu Premier servi | I134: 1.38 | J134: Dzrékpon (Yoto) | K134: 1° 34' 58.400'' E 1° 35' 18.900'' E 1° 35' 20.400'' E 1° 35' 24.800'' E 1° 35' 28.500'' E 1° 35' 32.400'' E 1° 35' 38.600'' E 1° 35' 40.700'' E 1° 35' 49.800'' E 1° 36' 13.100'' E 1° 36' 34.500'' E 1° 36' 43.600'' E 1° 36' 52.600'' E 1° 36' 48.200'' E 1° 36' 40.400'' E 1° 36' 33.100'' E 1° 36' 34.300'' E 1° 36' 32.700'' E 1° 36' 36.300'' E 1° 36' 46.200'' E 1° 36' 42.800'' E 1° 36' 38.400'' E 1° 36' 43.400'' E 1° 36' 41.700'' E 1° 36' 42.700'' E 1° 36' 51.400'' E 1° 36' 42.600'' E 1° 36' 35.000'' E 1° 36' 21.300'' E 1° 36' 12.100'' E 1° 35' 49.700'' E 1° 35' 46.600'' E 1° 35' 48.900'' E 1° 35' 46.400'' E 1° 35' 40.200'' E 1° 35' 45.400'' E 1° 35' 47.100'' E 1° 35' 50.800'' E 1° 35' 51.400'' E 1° 35' 38.500'' E 1° 35' 33.200'' E 1° 35' 25.200'' E 1° 35' 38.100'' E 1° 35' 27.300'' E 1° 35' 22.300'' E 1° 35' 15.100'' E 1° 35' 24.400'' E 1° 35' 19.300'' E 1° 34' 59.500'' E | L134: 6° 48' 09.800'' N 6° 47' 55.300'' N 6° 47' 50.800'' N 6° 47' 50.900'' N 6° 47' 48.300'' N 6° 47' 53.500'' N 6° 47' 51.100'' N 6° 47' 53.000'' N 6° 47' 47.200'' N 6° 47' 47.000'' N 6° 47' 41.500'' N 6° 47' 29.800'' N 6° 47' 11.300'' N 6° 47' 05.800'' N 6° 46' 56.100'' N 6° 46' 58.200'' N 6° 47' 01.600'' N 6° 47' 05.900'' N 6° 47' 23.500'' N 6° 47' 14.800'' N 6° 47' 15.300'' N 6° 47' 05.800'' N 6° 47' 05.800'' N 6° 47' 01.100'' N 6° 47' 00.600'' N 6° 47' 10.700'' N 6° 47' 29.500'' N 6° 47' 40.100'' N 6° 47' 44.200'' N 6° 47' 46.000'' N 6° 47' 46.100'' N 6° 47' 45.600'' N 6° 47' 42.500'' N 6° 47' 33.400'' N 6° 47' 23.200'' N 6° 47' 21.500'' N 6° 47' 12.500'' N 6° 47' 09.500'' N 6° 47' 05.100'' N 6° 47' 05.300'' N 6° 47' 02.000'' N 6° 47' 06.600'' N 6° 47' 24.100'' N 6° 47' 27.800'' N 6° 47' 23.500'' N 6° 47' 35.800'' N 6° 47' 44.600'' N 6° 47' 49.300'' N 6° 48' 00.200'' N | M134: Oui
B135: SAMI | C135: Permis d'exploitation à petite échelle | D135: Sable | E135: 2021-04-16 | F135: 2022-12-02 | G135: 5 | H135: Principe du Premier venu Premier servi | I135: 0.071 | J135: Sivame (Lacs) | K135: 1° 43' 09.800'' E 1° 43' 15.300'' E 1° 43' 15.200'' E 1° 43' 12.200'' E 1° 43' 07.200'' E 1° 43' 07.400'' E | L135: 6° 17' 26.500'' N 6° 17' 24.300'' N 6° 17' 18.600'' N 6° 17' 15.500'' N 6° 17' 15.200'' N 6° 17' 25.200'' N | M135: Oui
B136: ILES DES GRACES | C136: Permis d'exploitation à petite échelle | D136: Sable | E136: 2021-02-13 | F136: 2022-12-02 | G136: 5 | H136: Principe du Premier venu Premier servi | I136: 0.46 | J136: Baté-Kopé Kéta-Akoda (Lacs) | K136: 1° 32' 46.700'' E 1° 32' 48.823'' E 1° 32' 55.000'' E 1° 33' 03.400'' E | L136: 6° 13' 46.300'' N 6° 14' 16.200'' N 6° 14' 16.200'' N 6° 13' 46.400'' N | M136: Oui
B137: MING MING MATCO | C137: Permis d'exploitation à petite échelle | D137: Sable | E137: 2021-02-24 | F137: 2022-12-02 | G137: 5 | H137: Principe du Premier venu Premier servi | I137: 0.482 | J137: Baté-Kopé (Lacs) | K137: 1° 31' 11.712'' E 1° 31' 38.822'' E 1° 31' 40.257'' E 1° 31' 26.508'' E | L137: 6° 14' 11.004'' N 6° 14' 12.058'' N 6° 13' 50.215'' N 6° 13' 45.696'' N | M137: Oui
B138: CIMCO | C138: Permis d'exploitation à petite échelle | D138: Dolomie | E138: 2020-08-24 | F138: 2022-02-14 | G138: 5 | H138: Principe du Premier venu Premier servi | I138: 2.8 | J138: Hommagan-Kpéli (Ogou) | K138: 1° 34' 32.400'' E 1° 34' 53.800'' E 1° 34' 29.300'' E 1° 34' 07.000'' E | L138: 7° 26' 25.000'' N 7° 26' 20.500'' N 7° 24' 10.400'' N 7° 24' 15.200'' N | M138: Oui
B139: PANAFRICAN GOLD CORPORATION (PGCT) | C139: Permis d'exploitation à petite échelle | D139: Or | E139: 2022-03-23 | F139: 2022-11-23 | G139: 5 | H139: Principe du Premier venu Premier servi | I139: 72.22 | J139: Agbandi (Blitta) | K139: 1° 11' 49.740'' E 1° 11' 49.632'' E 1° 10' 10.380'' E 1° 10' 10.200'' E 1° 09' 45.972'' E 1° 09' 47.300'' E 1° 09' 00.769'' E 1° 09' 01.368'' E 1° 09' 38.088'' E 1° 09' 37.980'' E 1° 09' 11.700'' E 1° 09' 11.556'' E 1° 08' 23.532'' E 1° 08' 23.424'' E 1° 08' 52.908'' E 1° 09' 11.016'' E 1° 08' 52.800'' E 1° 09' 10.872'' E 1° 09' 31.104'' E 1° 09' 30.996'' E 1° 09' 51.516'' E 1° 09' 51.372'' E 1° 11' 02.940'' E 1° 10' 58.692'' E 1° 12' 01.188'' E 1° 12' 00.828'' E 1° 13' 15.708'' E 1° 13' 15.888'' E 1° 14' 54.204'' E 1° 14' 54.384'' E 1° 13' 28.380'' E 1° 13' 28.524'' E 1° 14' 46.176'' E 1° 14' 46.284'' E 1° 13' 55.740'' E 1° 13' 55.956'' E 1° 12' 48.276'' E 1° 13' 05.844'' E 1° 13' 05.988'' E 1° 12' 55.584'' E 1° 12' 55.872'' E | L139: 8° 11' 11.256'' N 8° 11' 32.208'' N 8° 11' 31.740'' N 8° 12' 09.720'' N 8° 12' 09.455'' N 8° 12' 58.100'' N 8° 12' 58.408'' N 8° 13' 40.152'' N 8° 13' 40.332'' N 8° 14' 02.724'' N 8° 14' 06.684'' N 8° 14' 36.024'' N 8° 14' 35.808'' N 8° 15' 01.836'' N 8° 15' 01.980'' N 8° 15' 26.820'' N 8° 15' 26.748'' N 8° 15' 54.576'' N 8° 15' 54.648'' N 8° 16' 14.124'' N 8° 16' 14.232'' N 8° 16' 46.524'' N 8° 16' 46.848'' N 8° 15' 35.136'' N 8° 15' 35.424'' N 8° 16' 52.788'' N 8° 16' 53.112'' N 8° 16' 14.232'' N 8° 16' 14.664'' N 8° 15' 36.180'' N 8° 15' 35.820'' N 8° 15' 04.896'' N 8° 15' 05.220'' N 8° 14' 37.860'' N 8° 14' 37.644'' N 8° 13' 47.676'' N 8° 13' 47.388'' N 8° 12' 38.844'' N 8° 12' 12.600'' N 8° 12' 12.564'' N 8° 11' 11.544'' N | M139: Oui
B140: MARBRERIE ET CONCASSAGE DE ONYAWOLOU (MACO) | C140: Permis d'exploitation à petite échelle | D140: Marbre | F140: 2023-01-06 | G140: 5 | H140: Principe du Premier venu Premier servi | I140: 0.06 | J140: Onyawolou (Amou) | M140: Oui
B141: WACEM | C141: Permis d'exploitation à grande échelle | D141: Calcaire | F141: 1996-12-30 | G141: 20 | H141: Principe du Premier venu Premier servi | I141: 20 | J141: Tabligbo (Yoto) | K141: 1° 30' 39.000'' E 1° 33' 02.000'' E 1° 34' 06.000'' E 1° 31' 37.000'' E | L141: 6° 36' 00.000'' N 6° 37' 15.000'' N 6° 35' 21.000'' N 6° 34' 09.000'' N | M141: Oui
C142: Permis d'exploitation à grande échelle | D142: Calcaire | F142: 2009-08-12 | G142: 20 | H142: Principe du Premier venu Premier servi | I142: 5.5 | J142: Tabligbo (Yoto) | K142: 340770° 00' 00.000'' E 341674° 00' 00.000'' E 342676° 00' 00.000'' E 343450° 00' 00.000'' E 341720° 00' 00.000'' E 339765° 00' 00.000'' E | L142: 732395° 00' 00.000'' N 730399° 00' 00.000'' N 730853° 00' 00.000'' N 729146° 00' 00.000'' N 728560° 00' 00.000'' N 732067° 00' 00.000'' N | M142: Oui
B143: SNPT | C143: Permis d'exploitation à grande échelle | D143: Phosphate | F143: 1997-04-29 | G143: 20 | H143: Principe du Premier venu Premier servi | I143: 24.42 | J143: Hahotoé (Vo) | K143: 1° 27' 57.000'' E 1° 32' 00.000'' E 1° 32' 35.000'' E 1° 30' 45.000'' E 1° 30' 51.000'' E 1° 28' 49.000'' E | L143: 6° 28' 16.000'' N 6° 30' 06.000'' N 6° 28' 42.000'' N 6° 27' 44.000'' N 6° 27' 27.000'' N 6° 26' 32.000'' N | M143: Oui
C144: Permis d'exploitation à grande échelle | D144: Phosphate | F144: 1997-04-29 | G144: 20 | H144: Principe du Premier venu Premier servi | I144: 15.46 | J144: Kpogamé (Zio) | K144: 1° 19' 51.000'' E 1° 19' 00.000'' E 1° 17' 35.000'' E 1° 18' 45.000'' E 1° 19' 51.000'' E 1° 19' 49.000'' E 1° 20' 00.000'' E 1° 20' 38.000'' E | L144: 6° 18' 55.000'' N 6° 18' 23.000'' N 6° 16' 06.000'' N 6° 15' 07.000'' N 6° 15' 56.000'' N 6° 16' 06.000'' N 6° 17' 24.000'' N 6° 18' 03.000'' N | M144: Oui
B145: MM MINING | C145: Permis d'exploitation à grande échelle | D145: Fer | F145: 2008-02-12 | G145: 20 | H145: Principe du Premier venu Premier servi | I145: 65 | J145: Bassar (Bassar) | M145: Oui
B146: SCANTOGO-MINE | C146: Permis d'exploitation à grande échelle | D146: Calcaire | F146: 2009-08-12 | G146: 20 | H146: Principe du Premier venu Premier servi | I146: 14.1 | J146: Tabligbo (Yoto) | K146: 1° 33' 34.693'' E 1° 35' 54.705'' E 1° 36' 22.198'' E 1° 35' 02.241'' E 1° 34' 36.893'' E 1° 34' 04.313'' E | L146: 6° 37' 25.762'' N 6° 39' 17.017'' N 6° 36' 07.583'' N 6° 35' 43.494'' N 6° 36' 35.739'' N 6° 36' 20.866'' N | M146: Oui
B147: POMAR | C147: Permis d'exploitation à grande échelle | D147: Marbre | F147: 2010-11-24 | G147: 20 | H147: Principe du Premier venu Premier servi | I147: 12.4 | J147: Pagala village (Blitta) | K147: 0° 50' 36.000'' E 0° 52' 36.000'' E 0° 52' 27.000'' E 0° 50' 53.000'' E | L147: 8° 14' 56.000'' N 8° 15' 07.000'' N 8° 12' 56.000'' N 8° 12' 45.000'' N | M147: Oui
B148: ICA INVEST | C148: Permis d'exploitation à grande échelle | D148: Argile | E148: 2017-09-22 | F148: 2019-07-24 | G148: 20 | H148: Principe du Premier venu Premier servi | I148: 0.98 | J148: Ledjoblibo (Dankpen) | K148: 0° 37' 48.252'' E 0° 37' 55.740'' E 0° 38' 21.696'' E 0° 38' 16.008'' E | L148: 9° 33' 41.328'' N 9° 34' 19.956'' N 9° 34' 15.204'' N 9° 33' 37.728'' N | M148: Oui

Sheet 10
B10: Formulaire de déclaration Propriété réelle 2023
C15: Formulaire de déclaration Propriété réelle

Sheet 11
B1: Tableau les bénéficiaires effectifs des sociétés retenues dans le périmétre en 2023
A3: N° | B3: Dénomination officielle complète de l'entreprise | C3: Actionnaire(s) | D3: % Actions | E3: Type : (PP), (PM), (EC) ou une entité de l'Etat (ETAT) | F3: Juridiction de l'enregistrement (ou nationalité de la personne physique) | G3: Numéro d'identification unique (si PM)
A4: 1 | B4: SNPT | C4: Etat Togolais | D4: 100% | E4: ETAT | F4: TOGO | G4: Non Applicable
A5: 2 | B5: SCANTOGO | C5: Etat Togolais | D5: 10% | E5: ETAT | F5: TOGO | G5: Non Applicable
C6: SCANCEM INTERNATIONAL | D6: 90% | E6: PM | F6: NORVEGE | G6: 943513716
A7: 3 | B7: WACEM | C7: Etat Togolais | D7: 10% | E7: ETAT | F7: TOGO | G7: Non Applicable
C8: KENELM Ltd | D8: 43% | E8: PM | F8: Royaume-Uni | G8: Nc
C9: Mr MOTAPARTI PRASAD | D9: 26% | E9: PM | F9: Idienne | G9: Nc
C10: KAZITOM Ltd | D10: 17% | E10: PM | F10: Panama | G10: Nc
C11: QUARTZ Ltd | D11: 4% | E11: PM | F11: Royaume-Uni | G11: Nc
A12: 4 | B12: TOGO CARRIERE | C12: CMTP TOGO | D12: 88% | E12: PM | F12: TOGO | G12: 1000034173
C13: KOUMAKPAYI FATAI | D13: 4% | E13: PP | F13: Française | G13: Non Applicable
C14: IOVE NICOLAIE | D14: 4% | E14: PP | F14: ROUMANIE | G14: Non Applicable
C15: IVOE IULIAN | D15: 4% | E15: PP | F15: ROUMANIE | G15: Non Applicable
A16: 5 | B16: TDE | C16: Etat Togolais | D16: 100% | E16: ETAT | F16: TOGO | G16: Non Applicable
A17: 6 | B17: POMAR | C17: ETAT TOGOLAIS | D17: 10% | E17: ETAT | F17: TOGOLAISE | G17: Non Applicable
C18: DENNIS ADOUM | D18: 80% | E18: PP | F18: Française | G18: Nc
C19: ATAYI REBECCA | D19: 10% | E19: PP | F19: TOGOLAISE | G19: Nc
A20: 7 | B20: Ming Ming Matco | C20: Nc | D20: Nc | E20: Nc | F20: Nc | G20: Nc
A21: 8 | B21: TOGO RAIL | C21: WACEM | D21: 75% | E21: PM | F21: TOGO | G21: Non Applicable
C22: BPEC | D22: 5% | E22: Nc | F22: Nc | G22: Nc
C23: SALT | D23: 5% | E23: Nc | F23: Nc | G23: Nc
C24: TGCD | D24: 5% | E24: Nc | F24: Nc | G24: Nc
C25: SGI-TOGO | D25: 3% | E25: Nc | F25: Nc | G25: Nc
C26: AHIALEY | D26: 3% | E26: Nc | F26: Nc | G26: Nc
C27: ABIDI | D27: 1% | E27: Nc | F27: Nc | G27: Nc
C28: DJOMATIN | D28: 1% | E28: Nc | F28: Nc | G28: Nc
C29: GAFFA | D29: 1% | E29: Nc | F29: Nc | G29: Nc
C30: KANGOULINE | D30: 1% | E30: Nc | F30: Nc | G30: Nc
C31: SANI | D31: 1% | E31: Nc | F31: Nc | G31: Nc
C32: BAKOUSSAM | D32: 1% | E32: Nc | F32: Nc | G32: Nc
A33: 9 | B33: GRANUTOGO | C33: ETAT TOGOLAIS | D33: 10% | E33: ETAT | F33: TOGOLAISE | G33: Non Applicable
C34: SCANCEM | D34: 90% | E34: PM | F34: NORVEGIENNE | G34: 943513716
A35: 10 | B35: CIMCO | C35: Nc | D35: Nc | E35: Nc | F35: Nc | G35: Nc
A36: 11 | B36: SAMARIA | C36: ETAT TOGOLAIS | D36: 10% | E36: ETAT | F36: TOGOLAISE | G36: Non Applicable
C37: ATTISSO H KOMI | D37: 90% | E37: PP | F37: TOGOLAISE | G37: 943513716
A38: 12 | B38: Société Togolaise de Manganèse | C38: Etat Togolais | D38: 100% | E38: ETAT | F38: TOGO | G38: 1001950093

Sheet 12
B1: Détail des exportations 2023
A3: Société | B3: N° déclaration d'exportation/ Ref. Expédition/ Cargaison (Pour les exportations) | C3: Date de l'expédition ou Mois de la vente | D3: Minerais/Substance exportés ou vendu | E3: Poids/ Volume | F3: Unité | G3: Qualité (concentration) | H3: Valeur FOB en FCFA | I3: Valeur FOB en USD | J3: Projet:Numéro de permis/ de l'autorisation | K3: Nom | L3: Entité acheteuse est une société affiliée/associée (Oui/Non) | M3: Pays du destinataire de l'expédition/ Cargaison | N3: Code HS
A4: SCANTOGO | B4: E 3 | C4: 2023-05-05 | D4: CLINKER EN VRAC | E4: 225,680 | F4: KG | G4: Nc | H4: 9,329,344 | I4: Nc | J4: Nc | K4: CIMBENIN COTONOU-BENIN | L4: Nc | M4: Bénin | N4: 25231000000
A5: SCANTOGO | B5: E 43 | C5: 2023-05-09 | D5: CLINKER EN VRAC | E5: 406,240 | F5: KG | G5: Nc | H5: 16,793,392 | I5: Nc | J5: Nc | K5: CIMBENIN COTONOU-BENIN | L5: Nc | M5: Bénin | N5: 25231000000
A6: SCANTOGO | B6: E 44 | C6: 2023-05-05 | D6: CLINKER EN VRAC | E6: 453,040 | F6: KG | G6: Nc | H6: 18,718,832 | I6: Nc | J6: Nc | K6: CIMBENIN COTONOU-BENIN | L6: Nc | M6: Bénin | N6: 25231000000
A7: SCANTOGO | B7: E 50 | C7: 2023-05-05 | D7: CLINKER EN VRAC | E7: 1,875,840 | F7: KG | G7: Nc | H7: 77,655,072 | I7: Nc | J7: Nc | K7: CIMBENIN COTONOU-BENIN | L7: Nc | M7: Bénin | N7: 25231000000
A8: SCANTOGO | B8: E 51 | C8: 2023-05-05 | D8: CLINKER EN VRAC | E8: 1,846,640 | F8: KG | G8: Nc | H8: 76,359,712 | I8: Nc | J8: Nc | K8: CIMBENIN COTONOU-BENIN | L8: Nc | M8: Bénin | N8: 25231000000
A9: SCANTOGO | B9: E 55 | C9: 2023-05-05 | D9: CLINKER EN VRAC | E9: 544,600 | F9: KG | G9: Nc | H9: 22,496,680 | I9: Nc | J9: Nc | K9: CIMBENIN COTONOU-BENIN | L9: Nc | M9: Bénin | N9: 25231000000
A10: SCANTOGO | B10: E 56 | C10: 2023-05-05 | D10: CLINKER EN VRAC | E10: 1,304,900 | F10: KG | G10: Nc | H10: 53,965,420 | I10: Nc | J10: Nc | K10: CIMBENIN COTONOU-BENIN | L10: Nc | M10: Bénin | N10: 25231000000
A11: SCANTOGO | B11: E 70 | C11: 2023-05-15 | D11: CLINKER EN VRAC | E11: 939,500 | F11: KG | G11: Nc | H11: 38,884,100 | I11: Nc | J11: Nc | K11: CIMBENIN COTONOU-BENIN | L11: Nc | M11: Bénin | N11: 25231000000
A12: SCANTOGO | B12: E 78 | C12: 2023-05-05 | D12: CLINKER EN VRAC | E12: 728,100 | F12: KG | G12: Nc | H12: 30,065,980 | I12: Nc | J12: Nc | K12: CIMBENIN COTONOU-BENIN | L12: Nc | M12: Bénin | N12: 25231000000
A13: SCANTOGO | B13: E 79 | C13: 2023-05-15 | D13: CLINKER EN VRAC | E13: 867,160 | F13: KG | G13: Nc | H13: 35,794,328 | I13: Nc | J13: Nc | K13: CIMBENIN COTONOU-BENIN | L13: Nc | M13: Bénin | N13: 25231000000
A14: SCANTOGO | B14: E 89 | C14: 2023-05-05 | D14: CLINKER EN VRAC | E14: 592,280 | F14: KG | G14: Nc | H14: 24,703,624 | I14: Nc | J14: Nc | K14: CIMBENIN COTONOU-BENIN | L14: Nc | M14: Bénin | N14: 25231000000
A15: SCANTOGO | B15: E 90 | C15: 2023-05-05 | D15: CLINKER EN VRAC | E15: 719,080 | F15: KG | G15: Nc | H15: 29,743,064 | I15: Nc | J15: Nc | K15: CIMBENIN COTONOU-BENIN | L15: Nc | M15: Bénin | N15: 25231000000
A16: SCANTOGO | B16: E 3564 | C16: 2023-03-28 | D16: CLINKER EN VRAC | E16: 5,000,000 | F16: KG | G16: Nc | H16: 191,500,000 | I16: Nc | J16: Nc | K16: CIMBURKINA 01BP 6337 OUAGA 01 BURKINA FASO | L16: Nc | M16: Burkina Faso | N16: 25231000000
A17: SCANTOGO | B17: E 3565 | C17: 2023-03-28 | D17: CLINKER EN VRAC | E17: 5,000,000 | F17: KG | G17: Nc | H17: 191,500,000 | I17: Nc | J17: Nc | K17: CIMBURKINA 01BP 6337 OUAGA 01 BURKINA FASO | L17: Nc | M17: Burkina Faso | N17: 25231000000
A18: SCANTOGO | B18: E 3758 | C18: 2023-03-28 | D18: CLINKER EN VRAC | E18: 5,000,000 | F18: KG | G18: Nc | H18: 191,500,000 | I18: Nc | J18: Nc | K18: CIMBURKINA 01BP 6337 OUAGA 01 BURKINA FASO | L18: Nc | M18: Burkina Faso | N18: 25231000000
A19: SCANTOGO | B19: E 3760 | C19: 2023-03-28 | D19: CLINKER EN VRAC | E19: 5,000,000 | F19: KG | G19: Nc | H19: 191,500,000 | I19: Nc | J19: Nc | K19: CIMBURKINA 01BP 6337 OUAGA 01 BURKINA FASO | L19: Nc | M19: Burkina Faso | N19: 25231000000
A20: SCANTOGO | B20: E 3785 | C20: 2023-03-28 | D20: CLINKER EN VRAC | E20: 5,000,000 | F20: KG | G20: Nc | H20: 191,500,000 | I20: Nc | J20: Nc | K20: CIMBURKINA 01BP 6337 OUAGA 01 BURKINA FASO | L20: Nc | M20: Burkina Faso | N20: 25231000000
A21: SCANTOGO | B21: E 3787 | C21: 2023-03-28 | D21: CLINKER EN VRAC | E21: 5,000,000 | F21: KG | G21: Nc | H21: 191,500,000 | I21: Nc | J21: Nc | K21: CIMBURKINA 01BP 6337 OUAGA 01 BURKINA FASO | L21: Nc | M21: Burkina Faso | N21: 25231000000
A22: SCANTOGO | B22: E 3936 | C22: 2023-03-28 | D22: CLINKER EN VRAC | E22: 5,000,000 | F22: KG | G22: Nc | H22: 211,500,000 | I22: Nc | J22: Nc | K22: CIMAF BURKINA 01BP 5604 OUAGA 01 BURKINA FASO | L22: Nc | M22: Burkina Faso | N22: 25231000000
A23: SCANTOGO | B23: E 3942 | C23: 2023-03-28 | D23: CLINKER EN VRAC | E23: 5,000,000 | F23: KG | G23: Nc | H23: 191,500,000 | I23: Nc | J23: Nc | K23: CIMBURKINA 01BP 6337 OUAGA 01 BURKINA FASO | L23: Nc | M23: Burkina Faso | N23: 25231000000
A24: SCANTOGO | B24: E 3943 | C24: 2023-03-28 | D24: CLINKER EN VRAC | E24: 5,000,000 | F24: KG | G24: Nc | H24: 191,500,000 | I24: Nc | J24: Nc | K24: CIMBURKINA 01BP 6337 OUAGA 01 BURKINA FASO | L24: Nc | M24: Burkina Faso | N24: 25231000000
A25: SCANTOGO | B25: E 4053 | C25: 2023-03-28 | D25: CLINKER EN VRAC | E25: 5,000,000 | F25: KG | G25: Nc | H25: 191,500,000 | I25: Nc | J25: Nc | K25: CIMBURKINA 01BP 6337 OUAGA 01 BURKINA FASO | L25: Nc | M25: Burkina Faso | N25: 25231000000
A26: SCANTOGO | B26: E 4054 | C26: 2023-03-28 | D26: CLINKER EN VRAC | E26: 5,000,000 | F26: KG | G26: Nc | H26: 191,500,000 | I26: Nc | J26: Nc | K26: CIMBURKINA 01BP 6337 OUAGA 01 BURKINA FASO | L26: Nc | M26: Burkina Faso | N26: 25231000000
A27: SCANTOGO | B27: E 4056 | C27: 2023-03-28 | D27: CLINKER EN VRAC | E27: 5,000,000 | F27: KG | G27: Nc | H27: 217,940,000 | I27: Nc | J27: Nc | K27: DIAMOND CEMENT BURKINA SA BURKINA FASO | L27: Nc | M27: Burkina Faso | N27: 25231000000
A28: SCANTOGO | B28: E 4130 | C28: 2023-03-28 | D28: CLINKER EN VRAC | E28: 5,000,000 | F28: KG | G28: Nc | H28: 191,500,000 | I28: Nc | J28: Nc | K28: CIMBURKINA 01BP 6337 OUAGA 01 BURKINA FASO | L28: Nc | M28: Burkina Faso | N28: 25231000000
A29: SCANTOGO | B29: E 4131 | C29: 2023-03-28 | D29: CLINKER EN VRAC | E29: 5,000,000 | F29: KG | G29: Nc | H29: 191,500,000 | I29: Nc | J29: Nc | K29: CIMBURKINA 01BP 6337 OUAGA 01 BURKINA FASO | L29: Nc | M29: Burkina Faso | N29: 25231000000
A30: SCANTOGO | B30: E 4163 | C30: 2023-03-28 | D30: CLINKER EN VRAC | E30: 10,000,000 | F30: KG | G30: Nc | H30: 435,880,000 | I30: Nc | J30: Nc | K30: CIMAF BURKINA 01BP 5604 OUAGA 01 BURKINA FASO | L30: Nc | M30: Burkina Faso | N30: 25231000000
A31: SCANTOGO | B31: E 4241 | C31: 2023-03-28 | D31: CLINKER EN VRAC | E31: 5,000,000 | F31: KG | G31: Nc | H31: 191,500,000 | I31: Nc | J31: Nc | K31: CIMBURKINA 01BP 6337 OUAGA 01 BURKINA FASO | L31: Nc | M31: Burkina Faso | N31: 25231000000
A32: SCANTOGO | B32: E 4242 | C32: 2023-03-28 | D32: CLINKER EN VRAC | E32: 5,000,000 | F32: KG | G32: Nc | H32: 191,500,000 | I32: Nc | J32: Nc | K32: CIMBURKINA 01BP 6337 OUAGA 01 BURKINA FASO | L32: Nc | M32: Burkina Faso | N32: 25231000000
A33: SCANTOGO | B33: E 4268 | C33: 2023-03-28 | D33: CLINKER EN VRAC | E33: 10,000,000 | F33: KG | G33: Nc | H33: 435,880,000 | I33: Nc | J33: Nc | K33: DIAMOND CEMENT BURKINA SA BURKINA FASO | L33: Nc | M33: Burkina Faso | N33: 25231000000
A34: SCANTOGO | B34: E 4429 | C34: 2023-03-28 | D34: CLINKER EN VRAC | E34: 5,000,000 | F34: KG | G34: Nc | H34: 185,310,000 | I34: Nc | J34: Nc | K34: CIMAF BURKINA 01BP 5604 OUAGA 01 BURKINA FASO | L34: Nc | M34: Burkina Faso | N34: 25231000000
A35: SCANTOGO | B35: E 4489 | C35: 2023-03-28 | D35: CLINKER EN VRAC | E35: 10,000,000 | F35: KG | G35: Nc | H35: 464,000,000 | I35: Nc | J35: Nc | K35: CIMAF BURKINA 01BP 5604 OUAGA 01 BURKINA FASO | L35: Nc | M35: Burkina Faso | N35: 25231000000
A36: SCANTOGO | B36: E 4491 | C36: 2023-03-28 | D36: CLINKER EN VRAC | E36: 5,000,000 | F36: KG | G36: Nc | H36: 191,500,000 | I36: Nc | J36: Nc | K36: CIMBURKINA 01BP 6337 OUAGA 01 BURKINA FASO | L36: Nc | M36: Burkina Faso | N36: 25231000000
A37: SCANTOGO | B37: E 4497 | C37: 2023-03-28 | D37: CLINKER EN VRAC | E37: 10,000,000 | F37: KG | G37: Nc | H37: 435,880,000 | I37: Nc | J37: Nc | K37: DIAMOND CEMENT BURKINA SA BURKINA FASO | L37: Nc | M37: Burkina Faso | N37: 25231000000
A38: SCANTOGO | B38: E 4650 | C38: 2023-03-28 | D38: CLINKER EN VRAC | E38: 5,000,000 | F38: KG | G38: Nc | H38: 191,500,000 | I38: Nc | J38: Nc | K38: CIMBURKINA 01BP 6337 OUAGA 01 BURKINA FASO | L38: Nc | M38: Burkina Faso | N38: 25231000000
A39: SCANTOGO | B39: E 4651 | C39: 2023-03-28 | D39: CLINKER EN VRAC | E39: 5,000,000 | F39: KG | G39: Nc | H39: 191,500,000 | I39: Nc | J39: Nc | K39: CIMBURKINA 01BP 6337 OUAGA 01 BURKINA FASO | L39: Nc | M39: Burkina Faso | N39: 25231000000
A40: SCANTOGO | B40: E 4768 | C40: 2023-03-28 | D40: CLINKER EN VRAC | E40: 5,000,000 | F40: KG | G40: Nc | H40: 191,500,000 | I40: Nc | J40: Nc | K40: CIMBURKINA 01BP 6337 OUAGA 01 BURKINA FASO | L40: Nc | M40: Burkina Faso | N40: 25231000000
A41: SCANTOGO | B41: E 4769 | C41: 2023-03-28 | D41: CLINKER EN VRAC | E41: 5,000,000 | F41: KG | G41: Nc | H41: 191,500,000 | I41: Nc | J41: Nc | K41: CIMBURKINA 01BP 6337 OUAGA 01 BURKINA FASO | L41: Nc | M41: Burkina Faso | N41: 25231000000
A42: SCANTOGO | B42: E 4897 | C42: 2023-03-28 | D42: CLINKER EN VRAC | E42: 5,000,000 | F42: KG | G42: Nc | H42: 191,500,000 | I42: Nc | J42: Nc | K42: CIMBURKINA 01BP 6337 OUAGA 01 BURKINA FASO | L42: Nc | M42: Burkina Faso | N42: 25231000000
A43: SCANTOGO | B43: E 4898 | C43: 2023-03-28 | D43: CLINKER EN VRAC | E43: 5,000,000 | F43: KG | G43: Nc | H43: 191,500,000 | I43: Nc | J43: Nc | K43: CIMBURKINA 01BP 6337 OUAGA 01 BURKINA FASO | L43: Nc | M43: Burkina Faso | N43: 25231000000
A44: SCANTOGO | B44: E 5087 | C44: 2023-03-28 | D44: CLINKER EN VRAC | E44: 5,000,000 | F44: KG | G44: Nc | H44: 191,500,000 | I44: Nc | J44: Nc | K44: CIMBURKINA 01BP 6337 OUAGA 01 BURKINA FASO | L44: Nc | M44: Burkina Faso | N44: 25231000000
A45: SCANTOGO | B45: E 5089 | C45: 2023-03-28 | D45: CLINKER EN VRAC | E45: 5,000,000 | F45: KG | G45: Nc | H45: 191,500,000 | I45: Nc | J45: Nc | K45: CIMBURKINA 01BP 6337 OUAGA 01 BURKINA FASO | L45: Nc | M45: Burkina Faso | N45: 25231000000
A46: SCANTOGO | B46: E 5264 | C46: 2023-03-28 | D46: CLINKER EN VRAC | E46: 5,000,000 | F46: KG | G46: Nc | H46: 191,500,000 | I46: Nc | J46: Nc | K46: CIMBURKINA 01BP 6337 OUAGA 01 BURKINA FASO | L46: Nc | M46: Burkina Faso | N46: 25231000000
A47: SCANTOGO | B47: E 5266 | C47: 2023-03-28 | D47: CLINKER EN VRAC | E47: 5,000,000 | F47: KG | G47: Nc | H47: 191,500,000 | I47: Nc | J47: Nc | K47: CIMBURKINA 01BP 6337 OUAGA 01 BURKINA FASO | L47: Nc | M47: Burkina Faso | N47: 25231000000
A48: SCANTOGO | B48: E 5387 | C48: 2023-03-28 | D48: CLINKER EN VRAC | E48: 10,000,000 | F48: KG | G48: Nc | H48: 464,000,000 | I48: Nc | J48: Nc | K48: CIMAF BURKINA 01BP 5604 OUAGA 01 BURKINA FASO | L48: Nc | M48: Burkina Faso | N48: 25231000000
A49: SCANTOGO | B49: E 5490 | C49: 2023-03-28 | D49: CLINKER EN VRAC | E49: 5,000,000 | F49: KG | G49: Nc | H49: 191,500,000 | I49: Nc | J49: Nc | K49: CIMBURKINA 01BP 6337 OUAGA 01 BURKINA FASO | L49: Nc | M49: Burkina Faso | N49: 25231000000
A50: SCANTOGO | B50: E 5491 | C50: 2023-03-28 | D50: CLINKER EN VRAC | E50: 5,000,000 | F50: KG | G50: Nc | H50: 191,500,000 | I50: Nc | J50: Nc | K50: CIMBURKINA 01BP 6337 OUAGA 01 BURKINA FASO | L50: Nc | M50: Burkina Faso | N50: 25231000000
A51: SCANTOGO | B51: E 404 | C51: 2023-05-05 | D51: CLINKER EN VRAC | E51: 1,414,300 | F51: KG | G51: Nc | H51: 86,352,220 | I51: Nc | J51: Nc | K51: CIMBENIN COTONOU-BENIN | L51: Nc | M51: Bénin | N51: 25231000000
A52: SCANTOGO | B52: E 405 | C52: 2023-05-05 | D52: CLINKER EN VRAC | E52: 1,497,420 | F52: KG | G52: Nc | H52: 91,457,068 | I52: Nc | J52: Nc | K52: CIMBENIN COTONOU-BENIN | L52: Nc | M52: Bénin | N52: 25231000000
A53: SCANTOGO | B53: E 406 | C53: 2023-05-05 | D53: CLINKER EN VRAC | E53: 1,824,800 | F53: KG | G53: Nc | H53: 111,343,920 | I53: Nc | J53: Nc | K53: CIMBENIN COTONOU-BENIN | L53: Nc | M53: Bénin | N53: 25231000000
A54: SCANTOGO | B54: E 407 | C54: 2023-05-05 | D54: CLINKER EN VRAC | E54: 651,140 | F54: KG | G54: Nc | H54: 39,823,156 | I54: Nc | J54: Nc | K54: CIMBENIN COTONOU-BENIN | L54: Nc | M54: Bénin | N54: 25231000000
A55: SCANTOGO | B55: E 408 | C55: 2023-05-05 | D55: CLINKER EN VRAC | E55: 204,560 | F55: KG | G55: Nc | H55: 12,582,624 | I55: Nc | J55: Nc | K55: CIMBENIN COTONOU-BENIN | L55: Nc | M55: Bénin | N55: 25231000000
A56: SCANTOGO | B56: E 409 | C56: 2023-05-05 | D56: CLINKER EN VRAC | E56: 653,740 | F56: KG | G56: Nc | H56: 39,967,196 | I56: Nc | J56: Nc | K56: CIMBENIN COTONOU-BENIN | L56: Nc | M56: Bénin | N56: 25231000000
A57: SCANTOGO | B57: E 410 | C57: 2023-05-05 | D57: CLINKER EN VRAC | E57: 169,300 | F57: KG | G57: Nc | H57: 10,379,220 | I57: Nc | J57: Nc | K57: CIMBENIN COTONOU-BENIN | L57: Nc | M57: Bénin | N57: 25231000000
A58: SCANTOGO | B58: E 411 | C58: 2023-05-05 | D58: CLINKER EN VRAC | E58: 966,020 | F58: KG | G58: Nc | H58: 59,017,508 | I58: Nc | J58: Nc | K58: CIMBENIN COTONOU-BENIN | L58: Nc | M58: Bénin | N58: 25231000000
A59: SCANTOGO | B59: E 412 | C59: 2023-05-05 | D59: CLINKER EN VRAC | E59: 240,240 | F59: KG | G59: Nc | H59: 14,809,296 | I59: Nc | J59: Nc | K59: CIMBENIN COTONOU-BENIN | L59: Nc | M59: Bénin | N59: 25231000000
A60: SCANTOGO | B60: E 413 | C60: 2023-05-05 | D60: CLINKER EN VRAC | E60: 264,740 | F60: KG | G60: Nc | H60: 16,166,596 | I60: Nc | J60: Nc | K60: CIMBENIN COTONOU-BENIN | L60: Nc | M60: Bénin | N60: 25231000000
A61: SCANTOGO | B61: E 414 | C61: 2023-05-05 | D61: CLINKER EN VRAC | E61: 621,180 | F61: KG | G61: Nc | H61: 37,913,372 | I61: Nc | J61: Nc | K61: CIMBENIN COTONOU-BENIN | L61: Nc | M61: Bénin | N61: 25231000000
A62: SCANTOGO | B62: E 415 | C62: 2023-05-05 | D62: CLINKER EN VRAC | E62: 1,342,300 | F62: KG | G62: Nc | H62: 82,113,420 | I62: Nc | J62: Nc | K62: CIMBENIN COTONOU-BENIN | L62: Nc | M62: Bénin | N62: 25231000000
A63: SCANTOGO | B63: E 417 | C63: 2023-05-05 | D63: CLINKER EN VRAC | E63: 220,680 | F63: KG | G63: Nc | H63: 13,475,672 | I63: Nc | J63: Nc | K63: CIMBENIN COTONOU-BENIN | L63: Nc | M63: Bénin | N63: 25231000000
A64: SCANTOGO | B64: E 5626 | C64: 2023-03-28 | D64: CLINKER EN VRAC | E64: 5,000,000 | F64: KG | G64: Nc | H64: 191,500,000 | I64: Nc | J64: Nc | K64: CIMBURKINA 01BP 6337 OUAGA 01 BURKINA FASO | L64: Nc | M64: Burkina Faso | N64: 25231000000
A65: SCANTOGO | B65: E 5627 | C65: 2023-03-28 | D65: CLINKER EN VRAC | E65: 5,000,000 | F65: KG | G65: Nc | H65: 191,500,000 | I65: Nc | J65: Nc | K65: CIMBURKINA 01BP 6337 OUAGA 01 BURKINA FASO | L65: Nc | M65: Burkina Faso | N65: 25231000000
A66: SCANTOGO | B66: E 429 | C66: 2023-05-09 | D66: CLINKER EN VRAC | E66: 353,260 | F66: KG | G66: Nc | H66: 21,570,604 | I66: Nc | J66: Nc | K66: CIMBENIN COTONOU-BENIN | L66: Nc | M66: Bénin | N66: 25231000000
A67: SCANTOGO | B67: E 430 | C67: 2023-05-09 | D67: CLINKER EN VRAC | E67: 226,100 | F67: KG | G67: Nc | H67: 13,775,940 | I67: Nc | J67: Nc | K67: CIMBENIN COTONOU-BENIN | L67: Nc | M67: Bénin | N67: 25231000000
A68: SCANTOGO | B68: E 5780 | C68: 2023-03-28 | D68: CLINKER EN VRAC | E68: 5,000,000 | F68: KG | G68: Nc | H68: 191,500,000 | I68: Nc | J68: Nc | K68: CIMBURKINA 01BP 6337 OUAGA 01 BURKINA FASO | L68: Nc | M68: Burkina Faso | N68: 25231000000
A69: SCANTOGO | B69: E 5781 | C69: 2023-03-28 | D69: CLINKER EN VRAC | E69: 5,000,000 | F69: KG | G69: Nc | H69: 191,500,000 | I69: Nc | J69: Nc | K69: CIMBURKINA 01BP 6337 OUAGA 01 BURKINA FASO | L69: Nc | M69: Burkina Faso | N69: 25231000000
A70: SCANTOGO | B70: E 5871 | C70: 2023-03-28 | D70: CLINKER EN VRAC | E70: 10,000,000 | F70: KG | G70: Nc | H70: 464,000,000 | I70: Nc | J70: Nc | K70: DIAMOND CEMENT BURKINA SA BURKINA FASO | L70: Nc | M70: Burkina Faso | N70: 25231000000
A71: SCANTOGO | B71: E 5905 | C71: 2023-03-28 | D71: CLINKER EN VRAC | E71: 10,000,000 | F71: KG | G71: Nc | H71: 464,000,000 | I71: Nc | J71: Nc | K71: CIMAF BURKINA 01BP 5604 OUAGA 01 BURKINA FASO | L71: Nc | M71: Burkina Faso | N71: 25231000000
A72: SCANTOGO | B72: E 5912 | C72: 2023-03-28 | D72: CLINKER EN VRAC | E72: 5,000,000 | F72: KG | G72: Nc | H72: 191,500,000 | I72: Nc | J72: Nc | K72: CIMBURKINA 01BP 6337 OUAGA 01 BURKINA FASO | L72: Nc | M72: Burkina Faso | N72: 25231000000
A73: SCANTOGO | B73: E 5914 | C73: 2023-03-28 | D73: CLINKER EN VRAC | E73: 5,000,000 | F73: KG | G73: Nc | H73: 191,500,000 | I73: Nc | J73: Nc | K73: CIMBURKINA 01BP 6337 OUAGA 01 BURKINA FASO | L73: Nc | M73: Burkina Faso | N73: 25231000000
A74: SCANTOGO | B74: E 6044 | C74: 2023-03-28 | D74: CLINKER EN VRAC | E74: 10,000,000 | F74: KG | G74: Nc | H74: 464,000,000 | I74: Nc | J74: Nc | K74: DIAMOND CEMENT BURKINA SA BURKINA FASO | L74: Nc | M74: Burkina Faso | N74: 25231000000
A75: SCANTOGO | B75: E 6045 | C75: 2023-03-28 | D75: CLINKER EN VRAC | E75: 5,000,000 | F75: KG | G75: Nc | H75: 191,500,000 | I75: Nc | J75: Nc | K75: CIMBURKINA 01BP 6337 OUAGA 01 BURKINA FASO | L75: Nc | M75: Burkina Faso | N75: 25231000000
A76: SCANTOGO | B76: E 6046 | C76: 2023-03-28 | D76: CLINKER EN VRAC | E76: 5,000,000 | F76: KG | G76: Nc | H76: 191,500,000 | I76: Nc | J76: Nc | K76: CIMBURKINA 01BP 6337 OUAGA 01 BURKINA FASO | L76: Nc | M76: Burkina Faso | N76: 25231000000
A77: SCANTOGO | B77: E 6144 | C77: 2023-03-28 | D77: CLINKER EN VRAC | E77: 5,000,000 | F77: KG | G77: Nc | H77: 232,000,000 | I77: Nc | J77: Nc | K77: GCM INDUSTRIE SECTEUR 02 OUAGADOUGOU ST LEON BURKINA FASO | L77: Nc | M77: Burkina Faso | N77: 25231000000
A78: SCANTOGO | B78: E 6151 | C78: 2023-03-28 | D78: CLINKER EN VRAC | E78: 5,000,000 | F78: KG | G78: Nc | H78: 191,500,000 | I78: Nc | J78: Nc | K78: CIMBURKINA 01BP 6337 OUAGA 01 BURKINA FASO | L78: Nc | M78: Burkina Faso | N78: 25231000000
A79: SCANTOGO | B79: E 6152 | C79: 2023-03-28 | D79: CLINKER EN VRAC | E79: 5,000,000 | F79: KG | G79: Nc | H79: 191,500,000 | I79: Nc | J79: Nc | K79: CIMBURKINA 01BP 6337 OUAGA 01 BURKINA FASO | L79: Nc | M79: Burkina Faso | N79: 25231000000
A80: SCANTOGO | B80: E 6226 | C80: 2023-03-28 | D80: CLINKER EN VRAC | E80: 5,000,000 | F80: KG | G80: Nc | H80: 191,500,000 | I80: Nc | J80: Nc | K80: CIMBURKINA 01BP 6337 OUAGA 01 BURKINA FASO | L80: Nc | M80: Burkina Faso | N80: 25231000000
A81: SCANTOGO | B81: E 6227 | C81: 2023-03-28 | D81: CLINKER EN VRAC | E81: 5,000,000 | F81: KG | G81: Nc | H81: 191,500,000 | I81: Nc | J81: Nc | K81: CIMBURKINA 01BP 6337 OUAGA 01 BURKINA FASO | L81: Nc | M81: Burkina Faso | N81: 25231000000
A82: SCANTOGO | B82: E 6301 | C82: 2023-03-28 | D82: CLINKER EN VRAC | E82: 10,000,000 | F82: KG | G82: Nc | H82: 464,000,000 | I82: Nc | J82: Nc | K82: DIAMOND CEMENT BURKINA SA BURKINA FASO | L82: Nc | M82: Burkina Faso | N82: 25231000000
A83: SCANTOGO | B83: E 6332 | C83: 2023-03-28 | D83: CLINKER EN VRAC | E83: 5,000,000 | F83: KG | G83: Nc | H83: 191,500,000 | I83: Nc | J83: Nc | K83: CIMBURKINA 01BP 6337 OUAGA 01 BURKINA FASO | L83: Nc | M83: Burkina Faso | N83: 25231000000
A84: SCANTOGO | B84: E 6333 | C84: 2023-03-28 | D84: CLINKER EN VRAC | E84: 5,000,000 | F84: KG | G84: Nc | H84: 191,500,000 | I84: Nc | J84: Nc | K84: CIMBURKINA 01BP 6337 OUAGA 01 BURKINA FASO | L84: Nc | M84: Burkina Faso | N84: 25231000000
A85: SCANTOGO | B85: E 6395 | C85: 2023-03-28 | D85: CLINKER EN VRAC | E85: 10,000,000 | F85: KG | G85: Nc | H85: 464,000,000 | I85: Nc | J85: Nc | K85: CIMENTS D'AFRIQUE CIMBUR | L85: Nc | M85: Burkina Faso | N85: 25231000000
A86: SCANTOGO | B86: E 6464 | C86: 2023-03-28 | D86: CLINKER EN VRAC | E86: 5,000,000 | F86: KG | G86: Nc | H86: 191,500,000 | I86: Nc | J86: Nc | K86: CIMBURKINA 01BP 6337 OUAGA 01 BURKINA FASO | L86: Nc | M86: Burkina Faso | N86: 25231000000
A87: SCANTOGO | B87: E 6465 | C87: 2023-03-28 | D87: CLINKER EN VRAC | E87: 5,000,000 | F87: KG | G87: Nc | H87: 191,500,000 | I87: Nc | J87: Nc | K87: CIMBURKINA 01BP 6337 OUAGA 01 BURKINA FASO | L87: Nc | M87: Burkina Faso | N87: 25231000000
A88: SCANTOGO | B88: E 6583 | C88: 2023-03-28 | D88: CLINKER EN VRAC | E88: 5,000,000 | F88: KG | G88: Nc | H88: 191,500,000 | I88: Nc | J88: Nc | K88: CIMBURKINA 01BP 6337 OUAGA 01 BURKINA FASO | L88: Nc | M88: Burkina Faso | N88: 25231000000
A89: SCANTOGO | B89: E 6584 | C89: 2023-03-28 | D89: CLINKER EN VRAC | E89: 5,000,000 | F89: KG | G89: Nc | H89: 191,500,000 | I89: Nc | J89: Nc | K89: CIMBURKINA 01BP 6337 OUAGA 01 BURKINA FASO | L89: Nc | M89: Burkina Faso | N89: 25231000000
A90: SCANTOGO | B90: E 6659 | C90: 2023-03-28 | D90: CLINKER EN VRAC | E90: 5,000,000 | F90: KG | G90: Nc | H90: 191,500,000 | I90: Nc | J90: Nc | K90: CIMBURKINA 01BP 6337 OUAGA 01 BURKINA FASO | L90: Nc | M90: Burkina Faso | N90: 25231000000
A91: SCANTOGO | B91: E 6660 | C91: 2023-03-28 | D91: CLINKER EN VRAC | E91: 5,000,000 | F91: KG | G91: Nc | H91: 191,500,000 | I91: Nc | J91: Nc | K91: CIMBURKINA 01BP 6337 OUAGA 01 BURKINA FASO | L91: Nc | M91: Burkina Faso | N91: 25231000000
A92: SCANTOGO | B92: E 6717 | C92: 2023-03-28 | D92: CLINKER EN VRAC | E92: 5,000,000 | F92: KG | G92: Nc | H92: 191,500,000 | I92: Nc | J92: Nc | K92: CIMBURKINA 01BP 6337 OUAGA 01 BURKINA FASO | L92: Nc | M92: Burkina Faso | N92: 25231000000
A93: SCANTOGO | B93: E 6799 | C93: 2023-03-28 | D93: CLINKER EN VRAC | E93: 5,000,000 | F93: KG | G93: Nc | H93: 191,500,000 | I93: Nc | J93: Nc | K93: CIMBURKINA 01BP 6337 OUAGA 01 BURKINA FASO | L93: Nc | M93: Burkina Faso | N93: 25231000000
A94: SCANTOGO | B94: E 6800 | C94: 2023-03-28 | D94: CLINKER EN VRAC | E94: 5,000,000 | F94: KG | G94: Nc | H94: 191,500,000 | I94: Nc | J94: Nc | K94: CIMBURKINA 01BP 6337 OUAGA 01 BURKINA FASO | L94: Nc | M94: Burkina Faso | N94: 25231000000
A95: SCANTOGO | B95: E 571 | C95: 2023-05-09 | D95: CLINKER EN VRAC | E95: 472,520 | F95: KG | G95: Nc | H95: 28,927,608 | I95: Nc | J95: Nc | K95: CIMBENIN COTONOU-BENIN | L95: Nc | M95: Bénin | N95: 25231000000
A96: SCANTOGO | B96: E 573 | C96: 2023-05-09 | D96: CLINKER EN VRAC | E96: 1,529,060 | F96: KG | G96: Nc | H96: 93,209,924 | I96: Nc | J96: Nc | K96: CIMBENIN COTONOU-BENIN | L96: Nc | M96: Bénin | N96: 25231000000
A97: SCANTOGO | B97: E 6864 | C97: 2023-03-28 | D97: CLINKER EN VRAC | E97: 5,000,000 | F97: KG | G97: Nc | H97: 191,500,000 | I97: Nc | J97: Nc | K97: CIMBURKINA 01BP 6337 OUAGA 01 BURKINA FASO | L97: Nc | M97: Burkina Faso | N97: 25231000000
A98: SCANTOGO | B98: E 6865 | C98: 2023-03-28 | D98: CLINKER EN VRAC | E98: 5,000,000 | F98: KG | G98: Nc | H98: 191,500,000 | I98: Nc | J98: Nc | K98: CIMBURKINA 01BP 6337 OUAGA 01 BURKINA FASO | L98: Nc | M98: Burkina Faso | N98: 25231000000
A99: SCANTOGO | B99: E 6982 | C99: 2023-03-28 | D99: CLINKER EN VRAC | E99: 5,000,000 | F99: KG | G99: Nc | H99: 191,500,000 | I99: Nc | J99: Nc | K99: CIMBURKINA 01BP 6337 OUAGA 01 BURKINA FASO | L99: Nc | M99: Burkina Faso | N99: 25231000000
A100: SCANTOGO | B100: E 6983 | C100: 2023-03-28 | D100: CLINKER EN VRAC | E100: 5,000,000 | F100: KG | G100: Nc | H100: 191,500,000 | I100: Nc | J100: Nc | K100: CIMBURKINA 01BP 6337 OUAGA 01 BURKINA FASO | L100: Nc | M100: Burkina Faso | N100: 25231000000
A101: SCANTOGO | B101: E 7070 | C101: 2023-03-28 | D101: CLINKER EN VRAC | E101: 5,000,000 | F101: KG | G101: Nc | H101: 191,500,000 | I101: Nc | J101: Nc | K101: CIMBURKINA 01BP 6337 OUAGA 01 BURKINA FASO | L101: Nc | M101: Burkina Faso | N101: 25231000000
A102: SCANTOGO | B102: E 7071 | C102: 2023-03-28 | D102: CLINKER EN VRAC | E102: 5,000,000 | F102: KG | G102: Nc | H102: 191,500,000 | I102: Nc | J102: Nc | K102: CIMBURKINA 01BP 6337 OUAGA 01 BURKINA FASO | L102: Nc | M102: Burkina Faso | N102: 25231000000
A103: SCANTOGO | B103: E 7209 | C103: 2023-08-30 | D103: CLINKER EN VRAC | E103: 5,000,000 | F103: KG | G103: Nc | H103: 191,500,000 | I103: Nc | J103: Nc | K103: CIMBURKINA 01BP 6337 OUAGA 01 BURKINA FASO | L103: Nc | M103: Burkina Faso | N103: 25231000000
A104: SCANTOGO | B104: E 7210 | C104: 2023-08-30 | D104: CLINKER EN VRAC | E104: 5,000,000 | F104: KG | G104: Nc | H104: 191,500,000 | I104: Nc | J104: Nc | K104: CIMBURKINA 01BP 6337 OUAGA 01 BURKINA FASO | L104: Nc | M104: Burkina Faso | N104: 25231000000
A105: SCANTOGO | B105: E 7339 | C105: 2023-08-30 | D105: CLINKER EN VRAC | E105: 5,000,000 | F105: KG | G105: Nc | H105: 191,500,000 | I105: Nc | J105: Nc | K105: CIMBURKINA 01BP 6337 OUAGA 01 BURKINA FASO | L105: Nc | M105: Burkina Faso | N105: 25231000000
A106: SCANTOGO | B106: E 7340 | C106: 2023-08-30 | D106: CLINKER EN VRAC | E106: 5,000,000 | F106: KG | G106: Nc | H106: 191,500,000 | I106: Nc | J106: Nc | K106: CIMBURKINA 01BP 6337 OUAGA 01 BURKINA FASO | L106: Nc | M106: Burkina Faso | N106: 25231000000
A107: SCANTOGO | B107: E 7531 | C107: 2023-08-30 | D107: CLINKER EN VRAC | E107: 5,000,000 | F107: KG | G107: Nc | H107: 191,500,000 | I107: Nc | J107: Nc | K107: CIMBURKINA 01BP 6337 OUAGA 01 BURKINA FASO | L107: Nc | M107: Burkina Faso | N107: 25231000000
A108: SCANTOGO | B108: E 7532 | C108: 2023-08-30 | D108: CLINKER EN VRAC | E108: 5,000,000 | F108: KG | G108: Nc | H108: 191,500,000 | I108: Nc | J108: Nc | K108: CIMBURKINA 01BP 6337 OUAGA 01 BURKINA FASO | L108: Nc | M108: Burkina Faso | N108: 25231000000
A109: SCANTOGO | B109: E 639 | C109: 2023-05-09 | D109: CLINKER EN VRAC | E109: 569,620 | F109: KG | G109: Nc | H109: 34,806,948 | I109: Nc | J109: Nc | K109: CIMBENIN COTONOU-BENIN | L109: Nc | M109: Bénin | N109: 25231000000
A110: SCANTOGO | B110: E 640 | C110: 2023-05-09 | D110: CLINKER EN VRAC | E110: 1,706,040 | F110: KG | G110: Nc | H110: 104,014,616 | I110: Nc | J110: Nc | K110: CIMBENIN COTONOU-BENIN | L110: Nc | M110: Bénin | N110: 25231000000
A111: SCANTOGO | B111: E 7727 | C111: 2023-08-30 | D111: CLINKER EN VRAC | E111: 5,000,000 | F111: KG | G111: Nc | H111: 191,500,000 | I111: Nc | J111: Nc | K111: CIMBURKINA 01BP 6337 OUAGA 01 BURKINA FASO | L111: Nc | M111: Burkina Faso | N111: 25231000000
A112: SCANTOGO | B112: E 645 | C112: 2023-01-12 | D112: CLINKER EN VRAC | E112: 809,400 | F112: KG | G112: Nc | H112: 49,340,760 | I112: Nc | J112: Nc | K112: CIMBENIN COTONOU-BENIN | L112: Nc | M112: Bénin | N112: 25231000000
A113: SCANTOGO | B113: E 652 | C113: 2023-05-09 | D113: CLINKER EN VRAC | E113: 2,014,800 | F113: KG | G113: Nc | H113: 122,869,920 | I113: Nc | J113: Nc | K113: CIMBENIN COTONOU-BENIN | L113: Nc | M113: Bénin | N113: 25231000000
A114: SCANTOGO | B114: E 653 | C114: 2023-01-12 | D114: CLINKER EN VRAC | E114: 90,520 | F114: KG | G114: Nc | H114: 5,514,808 | I114: Nc | J114: Nc | K114: CIMBENIN COTONOU-BENIN | L114: Nc | M114: Bénin | N114: 25231000000
A115: SCANTOGO | B115: E 655 | C115: 2023-05-09 | D115: CLINKER EN VRAC | E115: 489,820 | F115: KG | G115: Nc | H115: 29,886,028 | I115: Nc | J115: Nc | K115: CIMBENIN COTONOU-BENIN | L115: Nc | M115: Bénin | N115: 25231000000
A116: SCANTOGO | B116: E 660 | C116: 2023-01-12 | D116: CLINKER EN VRAC | E116: 635,660 | F116: KG | G116: Nc | H116: 38,965,564 | I116: Nc | J116: Nc | K116: CIMBENIN COTONOU-BENIN | L116: Nc | M116: Bénin | N116: 25231000000
A117: SCANTOGO | B117: E 665 | C117: 2023-05-09 | D117: CLINKER EN VRAC | E117: 1,270,160 | F117: KG | G117: Nc | H117: 77,616,864 | I117: Nc | J117: Nc | K117: CIMBENIN COTONOU-BENIN | L117: Nc | M117: Bénin | N117: 25231000000
A118: SCANTOGO | B118: E 666 | C118: 2023-05-09 | D118: CLINKER EN VRAC | E118: 1,486,200 | F118: KG | G118: Nc | H118: 90,585,480 | I118: Nc | J118: Nc | K118: CIMBENIN COTONOU-BENIN | L118: Nc | M118: Bénin | N118: 25231000000
A119: SCANTOGO | B119: E 671 | C119: 2023-01-12 | D119: CLINKER EN VRAC | E119: 703,860 | F119: KG | G119: Nc | H119: 42,993,844 | I119: Nc | J119: Nc | K119: CIMBENIN COTONOU-BENIN | L119: Nc | M119: Bénin | N119: 25231000000
A120: SCANTOGO | B120: E 8019 | C120: 2023-08-30 | D120: CLINKER EN VRAC | E120: 5,000,000 | F120: KG | G120: Nc | H120: 191,500,000 | I120: Nc | J120: Nc | K120: CIMBURKINA 01BP 6337 OUAGA 01 BURKINA FASO | L120: Nc | M120: Burkina Faso | N120: 25231000000
A121: SCANTOGO | B121: E 8020 | C121: 2023-08-30 | D121: CLINKER EN VRAC | E121: 5,000,000 | F121: KG | G121: Nc | H121: 191,500,000 | I121: Nc | J121: Nc | K121: CIMBURKINA 01BP 6337 OUAGA 01 BURKINA FASO | L121: Nc | M121: Burkina Faso | N121: 25231000000
A122: SCANTOGO | B122: E 674 | C122: 2023-01-12 | D122: CLINKER EN VRAC | E122: 1,047,100 | F122: KG | G122: Nc | H122: 64,009,340 | I122: Nc | J122: Nc | K122: CIMBENIN COTONOU-BENIN | L122: Nc | M122: Bénin | N122: 25231000000
A123: SCANTOGO | B123: E 680 | C123: 2023-01-12 | D123: CLINKER EN VRAC | E123: 588,020 | F123: KG | G123: Nc | H123: 35,826,308 | I123: Nc | J123: Nc | K123: CIMBENIN COTONOU-BENIN | L123: Nc | M123: Bénin | N123: 25231000000
A124: SCANTOGO | B124: E 682 | C124: 2023-01-12 | D124: CLINKER EN VRAC | E124: 1,215,680 | F124: KG | G124: Nc | H124: 74,098,672 | I124: Nc | J124: Nc | K124: CIMBENIN COTONOU-BENIN | L124: Nc | M124: Bénin | N124: 25231000000
A125: SCANTOGO | B125: E 685 | C125: 2023-01-27 | D125: CLINKER EN VRAC | E125: 767,620 | F125: KG | G125: Nc | H125: 46,776,148 | I125: Nc | J125: Nc | K125: CIMBENIN COTONOU-BENIN | L125: Nc | M125: Bénin | N125: 25231000000
A126: SCANTOGO | B126: E 690 | C126: 2023-01-12 | D126: CLINKER EN VRAC | E126: 589,800 | F126: KG | G126: Nc | H126: 35,924,920 | I126: Nc | J126: Nc | K126: CIMBENIN COTONOU-BENIN | L126: Nc | M126: Bénin | N126: 25231000000
A127: SCANTOGO | B127: E 8202 | C127: 2023-08-30 | D127: CLINKER EN VRAC | E127: 5,000,000 | F127: KG | G127: Nc | H127: 191,500,000 | I127: Nc | J127: Nc | K127: CIMBURKINA 01BP 6337 OUAGA 01 BURKINA FASO | L127: Nc | M127: Burkina Faso | N127: 25231000000
A128: SCANTOGO | B128: E 8203 | C128: 2023-08-30 | D128: CLINKER EN VRAC | E128: 5,000,000 | F128: KG | G128: Nc | H128: 191,500,000 | I128: Nc | J128: Nc | K128: CIMBURKINA 01BP 6337 OUAGA 01 BURKINA FASO | L128: Nc | M128: Burkina Faso | N128: 25231000000
A129: SCANTOGO | B129: E 693 | C129: 2023-01-12 | D129: CLINKER EN VRAC | E129: 769,820 | F129: KG | G129: Nc | H129: 46,898,028 | I129: Nc | J129: Nc | K129: CIMBENIN COTONOU-BENIN | L129: Nc | M129: Bénin | N129: 25231000000
A130: SCANTOGO | B130: E 694 | C130: 2023-01-12 | D130: CLINKER EN VRAC | E130: 760,040 | F130: KG | G130: Nc | H130: 46,356,216 | I130: Nc | J130: Nc | K130: CIMBENIN COTONOU-BENIN | L130: Nc | M130: Bénin | N130: 25231000000
A131: SCANTOGO | B131: E 1 | C131: 2023-01-12 | D131: CLINKER EN VRAC | E131: 1,805,260 | F131: KG | G131: Nc | H131: 110,011,404 | I131: Nc | J131: Nc | K131: CIMBENIN COTONOU-BENIN | L131: Nc | M131: Bénin | N131: 25231000000
A132: SCANTOGO | B132: E 2 | C132: 2023-01-12 | D132: CLINKER EN VRAC | E132: 1,784,120 | F132: KG | G132: Nc | H132: 108,840,248 | I132: Nc | J132: Nc | K132: CIMBENIN COTONOU-BENIN | L132: Nc | M132: Bénin | N132: 25231000000
A133: SCANTOGO | B133: E 3 | C133: 2023-01-12 | D133: CLINKER EN VRAC | E133: 620,980 | F133: KG | G133: Nc | H133: 37,902,292 | I133: Nc | J133: Nc | K133: CIMBENIN COTONOU-BENIN | L133: Nc | M133: Bénin | N133: 25231000000
A134: SCANTOGO | B134: E 4 | C134: 2023-01-27 | D134: CLINKER EN VRAC | E134: 565,460 | F134: KG | G134: Nc | H134: 34,576,484 | I134: Nc | J134: Nc | K134: CIMBENIN COTONOU-BENIN | L134: Nc | M134: Bénin | N134: 25231000000
A135: SCANTOGO | B135: E 6 | C135: 2023-01-27 | D135: CLINKER EN VRAC | E135: 1,298,100 | F135: KG | G135: Nc | H135: 79,164,740 | I135: Nc | J135: Nc | K135: CIMBENIN COTONOU-BENIN | L135: Nc | M135: Bénin | N135: 25231000000
A136: SCANTOGO | B136: E 10 | C136: 2023-01-27 | D136: CLINKER EN VRAC | E136: 401,960 | F136: KG | G136: Nc | H136: 24,518,584 | I136: Nc | J136: Nc | K136: CIMBENIN COTONOU-BENIN | L136: Nc | M136: Bénin | N136: 25231000000
A137: SCANTOGO | B137: E 11 | C137: 2023-02-24 | D137: CLINKER EN VRAC | E137: 1,309,540 | F137: KG | G137: Nc | H137: 80,048,516 | I137: Nc | J137: Nc | K137: CIMBENIN COTONOU-BENIN | L137: Nc | M137: Bénin | N137: 25231000000
A138: SCANTOGO | B138: E 12 | C138: 2023-02-24 | D138: CLINKER EN VRAC | E138: 754,260 | F138: KG | G138: Nc | H138: 46,036,004 | I138: Nc | J138: Nc | K138: CIMBENIN COTONOU-BENIN | L138: Nc | M138: Bénin | N138: 25231000000
A139: SCANTOGO | B139: E 13 | C139: 2023-02-24 | D139: CLINKER EN VRAC | E139: 312,240 | F139: KG | G139: Nc | H139: 19,048,096 | I139: Nc | J139: Nc | K139: CIMBENIN COTONOU-BENIN | L139: Nc | M139: Bénin | N139: 25231000000
A140: SCANTOGO | B140: E 195 | C140: 2023-10-04 | D140: CLINKER EN VRAC | E140: 5,000,000 | F140: KG | G140: Nc | H140: 191,500,000 | I140: Nc | J140: Nc | K140: CIMBURKINA 01BP 6337 OUAGA 01 BURKINA FASO | L140: Nc | M140: Burkina Faso | N140: 25231000000
A141: SCANTOGO | B141: E 196 | C141: 2023-10-04 | D141: CLINKER EN VRAC | E141: 5,000,000 | F141: KG | G141: Nc | H141: 191,500,000 | I141: Nc | J141: Nc | K141: CIMBURKINA 01BP 6337 OUAGA 01 BURKINA FASO | L141: Nc | M141: Burkina Faso | N141: 25231000000
A142: SCANTOGO | B142: E 21 | C142: 2023-02-24 | D142: CLINKER EN VRAC | E142: 901,960 | F142: KG | G142: Nc | H142: 55,218,584 | I142: Nc | J142: Nc | K142: CIMBENIN COTONOU-BENIN | L142: Nc | M142: Bénin | N142: 25231000000
A143: SCANTOGO | B143: E 22 | C143: 2023-02-24 | D143: CLINKER EN VRAC | E143: 879,100 | F143: KG | G143: Nc | H143: 53,702,140 | I143: Nc | J143: Nc | K143: CIMBENIN COTONOU-BENIN | L143: Nc | M143: Bénin | N143: 25231000000
A144: SCANTOGO | B144: E 26 | C144: 2023-02-24 | D144: CLINKER EN VRAC | E144: 488,420 | F144: KG | G144: Nc | H144: 29,808,468 | I144: Nc | J144: Nc | K144: CIMBENIN COTONOU-BENIN | L144: Nc | M144: Bénin | N144: 25231000000
A145: SCANTOGO | B145: E 27 | C145: 2023-02-24 | D145: CLINKER EN VRAC | E145: 1,929,560 | F145: KG | G145: Nc | H145: 117,897,624 | I145: Nc | J145: Nc | K145: CIMBENIN COTONOU-BENIN | L145: Nc | M145: Bénin | N145: 25231000000
A146: SCANTOGO | B146: E 346 | C146: 2023-10-04 | D146: CLINKER EN VRAC | E146: 5,000,000 | F146: KG | G146: Nc | H146: 191,500,000 | I146: Nc | J146: Nc | K146: CIMBURKINA 01BP 6337 OUAGA 01 BURKINA FASO | L146: Nc | M146: Burkina Faso | N146: 25231000000
A147: SCANTOGO | B147: E 347 | C147: 2023-10-04 | D147: CLINKER EN VRAC | E147: 5,000,000 | F147: KG | G147: Nc | H147: 191,500,000 | I147: Nc | J147: Nc | K147: CIMBURKINA 01BP 6337 OUAGA 01 BURKINA FASO | L147: Nc | M147: Burkina Faso | N147: 25231000000
A148: SCANTOGO | B148: E 33 | C148: 2023-02-24 | D148: CLINKER EN VRAC | E148: 934,980 | F148: KG | G148: Nc | H148: 57,047,892 | I148: Nc | J148: Nc | K148: CIMBENIN COTONOU-BENIN | L148: Nc | M148: Bénin | N148: 25231000000
A149: SCANTOGO | B149: E 34 | C149: 2023-02-24 | D149: CLINKER EN VRAC | E149: 127,740 | F149: KG | G149: Nc | H149: 7,826,796 | I149: Nc | J149: Nc | K149: CIMBENIN COTONOU-BENIN | L149: Nc | M149: Bénin | N149: 25231000000
A150: SCANTOGO | B150: E 35 | C150: 2023-02-24 | D150: CLINKER EN VRAC | E150: 374,680 | F150: KG | G150: Nc | H150: 23,007,272 | I150: Nc | J150: Nc | K150: CIMBENIN COTONOU-BENIN | L150: Nc | M150: Bénin | N150: 25231000000
A151: SCANTOGO | B151: E 491 | C151: 2023-10-04 | D151: CLINKER EN VRAC | E151: 5,000,000 | F151: KG | G151: Nc | H151: 191,500,000 | I151: Nc | J151: Nc | K151: CIMBURKINA 01BP 6337 OUAGA 01 BURKINA FASO | L151: Nc | M151: Burkina Faso | N151: 25231000000
A152: SCANTOGO | B152: E 492 | C152: 2023-10-04 | D152: CLINKER EN VRAC | E152: 5,000,000 | F152: KG | G152: Nc | H152: 191,500,000 | I152: Nc | J152: Nc | K152: CIMBURKINA 01BP 6337 OUAGA 01 BURKINA FASO | L152: Nc | M152: Burkina Faso | N152: 25231000000
A153: SCANTOGO | B153: E 37 | C153: 2023-02-24 | D153: CLINKER EN VRAC | E153: 1,765,220 | F153: KG | G153: Nc | H153: 107,793,188 | I153: Nc | J153: Nc | K153: CIMBENIN COTONOU-BENIN | L153: Nc | M153: Bénin | N153: 25231000000
A154: SCANTOGO | B154: E 38 | C154: 2023-02-24 | D154: CLINKER EN VRAC | E154: 909,600 | F154: KG | G154: Nc | H154: 55,641,840 | I154: Nc | J154: Nc | K154: CIMBENIN COTONOU-BENIN | L154: Nc | M154: Bénin | N154: 25231000000
A155: SCANTOGO | B155: E 39 | C155: 2023-02-24 | D155: CLINKER EN VRAC | E155: 542,180 | F155: KG | G155: Nc | H155: 33,036,772 | I155: Nc | J155: Nc | K155: CIMBENIN COTONOU-BENIN | L155: Nc | M155: Bénin | N155: 25231000000
A156: SCANTOGO | B156: E 619 | C156: 2023-10-04 | D156: CLINKER EN VRAC | E156: 5,000,000 | F156: KG | G156: Nc | H156: 191,500,000 | I156: Nc | J156: Nc | K156: CIMBURKINA 01BP 6337 OUAGA 01 BURKINA FASO | L156: Nc | M156: Burkina Faso | N156: 25231000000
A157: SCANTOGO | B157: E 620 | C157: 2023-10-04 | D157: CLINKER EN VRAC | E157: 5,000,000 | F157: KG | G157: Nc | H157: 191,500,000 | I157: Nc | J157: Nc | K157: CIMBURKINA 01BP 6337 OUAGA 01 BURKINA FASO | L157: Nc | M157: Burkina Faso | N157: 25231000000
A158: SCANTOGO | B158: E 48 | C158: 2023-02-24 | D158: CLINKER EN VRAC | E158: 209,180 | F158: KG | G158: Nc | H158: 12,838,572 | I158: Nc | J158: Nc | K158: CIMBENIN COTONOU-BENIN | L158: Nc | M158: Bénin | N158: 25231000000
A159: SCANTOGO | B159: E 712 | C159: 2023-10-04 | D159: CLINKER EN VRAC | E159: 5,000,000 | F159: KG | G159: Nc | H159: 191,500,000 | I159: Nc | J159: Nc | K159: CIMBURKINA 01BP 6337 OUAGA 01 BURKINA FASO | L159: Nc | M159: Burkina Faso | N159: 25231000000
A160: SCANTOGO | B160: E 714 | C160: 2023-10-04 | D160: CLINKER EN VRAC | E160: 5,000,000 | F160: KG | G160: Nc | H160: 191,500,000 | I160: Nc | J160: Nc | K160: CIMBURKINA 01BP 6337 OUAGA 01 BURKINA FASO | L160: Nc | M160: Burkina Faso | N160: 25231000000
A161: SCANTOGO | B161: E 1069 | C161: 2023-10-04 | D161: CLINKER EN VRAC | E161: 5,000,000 | F161: KG | G161: Nc | H161: 191,500,000 | I161: Nc | J161: Nc | K161: CIMBURKINA S.A. ZONE INDUSTRIELLE DE KOSSODO 01 BP 6337 OUAGADOUGOU BURKINA FASO | L161: Nc | M161: Burkina Faso | N161: 25231000000
A162: SCANTOGO | B162: E 1070 | C162: 2023-10-04 | D162: CLINKER EN VRAC | E162: 5,000,000 | F162: KG | G162: Nc | H162: 191,500,000 | I162: Nc | J162: Nc | K162: CIMBURKINA S.A. ZONE INDUSTRIELLE DE KOSSODO 01 BP 6337 OUAGADOUGOU BURKINA FASO | L162: Nc | M162: Burkina Faso | N162: 25231000000
A163: SCANTOGO | B163: E 1166 | C163: 2023-11-24 | D163: CLINKER EN VRAC | E163: 5,000,000 | F163: KG | G163: Nc | H163: 191,500,000 | I163: Nc | J163: Nc | K163: CIMBURKINA 01BP 6337 OUAGA 01 BURKINA FASO | L163: Nc | M163: Burkina Faso | N163: 25231000000
A164: SCANTOGO | B164: E 1167 | C164: 2023-11-24 | D164: CLINKER EN VRAC | E164: 5,000,000 | F164: KG | G164: Nc | H164: 191,500,000 | I164: Nc | J164: Nc | K164: CIMBURKINA 01BP 6337 OUAGA 01 BURKINA FASO | L164: Nc | M164: Burkina Faso | N164: 25231000000
A165: SCANTOGO | B165: E 1336 | C165: 2023-10-04 | D165: CLINKER EN VRAC | E165: 5,000,000 | F165: KG | G165: Nc | H165: 191,500,000 | I165: Nc | J165: Nc | K165: CIMBURKINA S.A. ZONE INDUSTRIELLE DE KOSSODO 01 BP 6337 OUAGADOUGOU BURKINA FASO | L165: Nc | M165: Burkina Faso | N165: 25231000000
A166: SCANTOGO | B166: E 1338 | C166: 2023-10-04 | D166: CLINKER EN VRAC | E166: 5,000,000 | F166: KG | G166: Nc | H166: 191,500,000 | I166: Nc | J166: Nc | K166: CIMBURKINA S.A. ZONE INDUSTRIELLE DE KOSSODO 01 BP 6337 OUAGADOUGOU BURKINA FASO | L166: Nc | M166: Burkina Faso | N166: 25231000000
A167: SCANTOGO | B167: E 1389 | C167: 2023-05-08 | D167: CLINKER EN VRAC | E167: 5,000,000 | F167: KG | G167: Nc | H167: 191,500,000 | I167: Nc | J167: Nc | K167: CIMBURKINA S.A. ZONE INDUSTRIELLE DE KOSSODO 01 BP 6337 OUAGADOUGOU BURKINA FASO | L167: Nc | M167: Burkina Faso | N167: 25231000000
A168: SCANTOGO | B168: E 1391 | C168: 2023-10-04 | D168: CLINKER EN VRAC | E168: 5,000,000 | F168: KG | G168: Nc | H168: 191,500,000 | I168: Nc | J168: Nc | K168: CIMBURKINA S.A. ZONE INDUSTRIELLE DE KOSSODO 01 BP 6337 OUAGADOUGOU BURKINA FASO | L168: Nc | M168: Burkina Faso | N168: 25231000000
A169: SCANTOGO | B169: E 1541 | C169: 2023-10-04 | D169: CLINKER EN VRAC | E169: 5,000,000 | F169: KG | G169: Nc | H169: 191,500,000 | I169: Nc | J169: Nc | K169: CIMBURKINA S.A. ZONE INDUSTRIELLE DE KOSSODO 01 BP 6337 OUAGADOUGOU BURKINA FASO | L169: Nc | M169: Burkina Faso | N169: 25231000000
A170: SCANTOGO | B170: E 1542 | C170: 2023-05-08 | D170: CLINKER EN VRAC | E170: 5,000,000 | F170: KG | G170: Nc | H170: 191,500,000 | I170: Nc | J170: Nc | K170: CIMBURKINA S.A. ZONE INDUSTRIELLE DE KOSSODO 01 BP 6337 OUAGADOUGOU BURKINA FASO | L170: Nc | M170: Burkina Faso | N170: 25231000000
A171: SCANTOGO | B171: E 1674 | C171: 2023-05-08 | D171: CLINKER EN VRAC | E171: 5,000,000 | F171: KG | G171: Nc | H171: 191,500,000 | I171: Nc | J171: Nc | K171: CIMBURKINA 01BP 6337 OUAGA 01 BURKINA FASO | L171: Nc | M171: Burkina Faso | N171: 25231000000
A172: SCANTOGO | B172: E 1675 | C172: 2023-05-08 | D172: CLINKER EN VRAC | E172: 5,000,000 | F172: KG | G172: Nc | H172: 191,500,000 | I172: Nc | J172: Nc | K172: CIMBURKINA 01BP 6337 OUAGA 01 BURKINA FASO | L172: Nc | M172: Burkina Faso | N172: 25231000000
A173: SCANTOGO | B173: E 1749 | C173: 2023-05-08 | D173: CLINKER EN VRAC | E173: 5,000,000 | F173: KG | G173: Nc | H173: 191,500,000 | I173: Nc | J173: Nc | K173: CIMBURKINA 01BP 6337 OUAGA 01 BURKINA FASO | L173: Nc | M173: Burkina Faso | N173: 25231000000
A174: SCANTOGO | B174: E 1750 | C174: 2023-05-08 | D174: CLINKER EN VRAC | E174: 5,000,000 | F174: KG | G174: Nc | H174: 191,500,000 | I174: Nc | J174: Nc | K174: CIMBURKINA 01BP 6337 OUAGA 01 BURKINA FASO | L174: Nc | M174: Burkina Faso | N174: 25231000000
A175: SCANTOGO | B175: E 1954 | C175: 2023-05-08 | D175: CLINKER EN VRAC | E175: 5,000,000 | F175: KG | G175: Nc | H175: 191,500,000 | I175: Nc | J175: Nc | K175: CIMBURKINA 01BP 6337 OUAGA 01 BURKINA FASO | L175: Nc | M175: Burkina Faso | N175: 25231000000
A176: SCANTOGO | B176: E 1955 | C176: 2023-05-08 | D176: CLINKER EN VRAC | E176: 5,000,000 | F176: KG | G176: Nc | H176: 191,500,000 | I176: Nc | J176: Nc | K176: CIMBURKINA 01BP 6337 OUAGA 01 BURKINA FASO | L176: Nc | M176: Burkina Faso | N176: 25231000000
A177: SCANTOGO | B177: E 2143 | C177: 2023-05-08 | D177: CLINKER EN VRAC | E177: 5,000,000 | F177: KG | G177: Nc | H177: 191,500,000 | I177: Nc | J177: Nc | K177: CIMBURKINA 01BP 6337 OUAGA 01 BURKINA FASO | L177: Nc | M177: Burkina Faso | N177: 25231000000
A178: SCANTOGO | B178: E 2144 | C178: 2023-05-08 | D178: CLINKER EN VRAC | E178: 5,000,000 | F178: KG | G178: Nc | H178: 191,500,000 | I178: Nc | J178: Nc | K178: CIMBURKINA 01BP 6337 OUAGA 01 BURKINA FASO | L178: Nc | M178: Burkina Faso | N178: 25231000000
A179: SCANTOGO | B179: E 2415 | C179: 2023-05-08 | D179: CLINKER EN VRAC | E179: 5,000,000 | F179: KG | G179: Nc | H179: 191,500,000 | I179: Nc | J179: Nc | K179: CIMBURKINA 01BP 6337 OUAGA 01 BURKINA FASO | L179: Nc | M179: Burkina Faso | N179: 25231000000
A180: SCANTOGO | B180: E 2720 | C180: 2023-05-08 | D180: CLINKER EN VRAC | E180: 5,000,000 | F180: KG | G180: Nc | H180: 191,500,000 | I180: Nc | J180: Nc | K180: CIMBURKINA 01BP 6337 OUAGA 01 BURKINA FASO | L180: Nc | M180: Burkina Faso | N180: 25231000000
A181: SCANTOGO | B181: E 2722 | C181: 2023-05-08 | D181: CLINKER EN VRAC | E181: 5,000,000 | F181: KG | G181: Nc | H181: 191,500,000 | I181: Nc | J181: Nc | K181: CIMBURKINA 01BP 6337 OUAGA 01 BURKINA FASO | L181: Nc | M181: Burkina Faso | N181: 25231000000
A182: SCANTOGO | B182: E 3090 | C182: 2023-10-04 | D182: CLINKER EN VRAC | E182: 5,000,000 | F182: KG | G182: Nc | H182: 191,500,000 | I182: Nc | J182: Nc | K182: CIMBURKINA 01BP 6337 OUAGA 01 BURKINA FASO | L182: Nc | M182: Burkina Faso | N182: 25231000000
A183: SCANTOGO | B183: E 3091 | C183: 2023-10-04 | D183: CLINKER EN VRAC | E183: 5,000,000 | F183: KG | G183: Nc | H183: 191,500,000 | I183: Nc | J183: Nc | K183: CIMBURKINA 01BP 6337 OUAGA 01 BURKINA FASO | L183: Nc | M183: Burkina Faso | N183: 25231000000
A184: SCANTOGO | B184: E 3287 | C184: 2023-10-04 | D184: CLINKER EN VRAC | E184: 5,000,000 | F184: KG | G184: Nc | H184: 191,500,000 | I184: Nc | J184: Nc | K184: CIMBURKINA 01BP 6337 OUAGA 01 BURKINA FASO | L184: Nc | M184: Burkina Faso | N184: 25231000000
A185: SCANTOGO | B185: E 3288 | C185: 2023-11-24 | D185: CLINKER EN VRAC | E185: 5,000,000 | F185: KG | G185: Nc | H185: 191,500,000 | I185: Nc | J185: Nc | K185: CIMBURKINA 01BP 6337 OUAGA 01 BURKINA FASO | L185: Nc | M185: Burkina Faso | N185: 25231000000
A186: SCANTOGO | B186: E 3475 | C186: 2023-11-24 | D186: CLINKER EN VRAC | E186: 5,000,000 | F186: KG | G186: Nc | H186: 191,500,000 | I186: Nc | J186: Nc | K186: CIMBURKINA 01BP 6337 OUAGA 01 BURKINA FASO | L186: Nc | M186: Burkina Faso | N186: 25231000000
A187: SCANTOGO | B187: E 3476 | C187: 2023-11-24 | D187: CLINKER EN VRAC | E187: 5,000,000 | F187: KG | G187: Nc | H187: 191,500,000 | I187: Nc | J187: Nc | K187: CIMBURKINA 01BP 6337 OUAGA 01 BURKINA FASO | L187: Nc | M187: Burkina Faso | N187: 25231000000
A188: SCANTOGO | B188: E 3717 | C188: 2023-11-24 | D188: CLINKER EN VRAC | E188: 5,000,000 | F188: KG | G188: Nc | H188: 191,500,000 | I188: Nc | J188: Nc | K188: CIMBURKINA 01BP 6337 OUAGA 01 BURKINA FASO | L188: Nc | M188: Burkina Faso | N188: 25231000000
A189: SCANTOGO | B189: E 3718 | C189: 2023-11-24 | D189: CLINKER EN VRAC | E189: 5,000,000 | F189: KG | G189: Nc | H189: 191,500,000 | I189: Nc | J189: Nc | K189: CIMBURKINA 01BP 6337 OUAGA 01 BURKINA FASO | L189: Nc | M189: Burkina Faso | N189: 25231000000
A190: SCANTOGO | B190: E 4009 | C190: 2023-11-24 | D190: CLINKER EN VRAC | E190: 5,000,000 | F190: KG | G190: Nc | H190: 191,500,000 | I190: Nc | J190: Nc | K190: CIMBURKINA 01BP 6337 OUAGA 01 BURKINA FASO | L190: Nc | M190: Burkina Faso | N190: 25231000000
A191: SCANTOGO | B191: E 4011 | C191: 2023-11-24 | D191: CLINKER EN VRAC | E191: 5,000,000 | F191: KG | G191: Nc | H191: 191,500,000 | I191: Nc | J191: Nc | K191: CIMBURKINA 01BP 6337 OUAGA 01 BURKINA FASO | L191: Nc | M191: Burkina Faso | N191: 25231000000
A192: SCANTOGO | B192: E 216 | C192: 2023-07-03 | D192: CLINKER EN VRAC | E192: 316,000 | F192: KG | G192: Nc | H192: 19,382,800 | I192: Nc | J192: Nc | K192: CIMBENIN COTONOU-BENIN | L192: Nc | M192: Bénin | N192: 25231000000
A193: SCANTOGO | B193: E 4311 | C193: 2023-11-24 | D193: CLINKER EN VRAC | E193: 5,000,000 | F193: KG | G193: Nc | H193: 191,500,000 | I193: Nc | J193: Nc | K193: CIMBURKINA 01BP 6337 OUAGA 01 BURKINA FASO | L193: Nc | M193: Burkina Faso | N193: 25231000000
A194: SCANTOGO | B194: E 4337 | C194: 2023-11-24 | D194: CLINKER EN VRAC | E194: 5,000,000 | F194: KG | G194: Nc | H194: 191,500,000 | I194: Nc | J194: Nc | K194: CIMBURKINA 01BP 6337 OUAGA 01 BURKINA FASO | L194: Nc | M194: Burkina Faso | N194: 25231000000
A195: SCANTOGO | B195: E 4338 | C195: 2023-11-24 | D195: CLINKER EN VRAC | E195: 5,000,000 | F195: KG | G195: Nc | H195: 191,500,000 | I195: Nc | J195: Nc | K195: CIMBURKINA 01BP 6337 OUAGA 01 BURKINA FASO | L195: Nc | M195: Burkina Faso | N195: 25231000000
A196: SCANTOGO | B196: E 4564 | C196: 2023-11-24 | D196: CLINKER EN VRAC | E196: 5,000,000 | F196: KG | G196: Nc | H196: 191,500,000 | I196: Nc | J196: Nc | K196: CIMBURKINA 01BP 6337 OUAGA 01 BURKINA FASO | L196: Nc | M196: Burkina Faso | N196: 25231000000
A197: SCANTOGO | B197: E 4565 | C197: 2023-11-24 | D197: CLINKER EN VRAC | E197: 5,000,000 | F197: KG | G197: Nc | H197: 191,500,000 | I197: Nc | J197: Nc | K197: CIMBURKINA 01BP 6337 OUAGA 01 BURKINA FASO | L197: Nc | M197: Burkina Faso | N197: 25231000000
A198: SCANTOGO | B198: E 4655 | C198: 2023-11-24 | D198: CLINKER EN VRAC | E198: 5,000,000 | F198: KG | G198: Nc | H198: 191,500,000 | I198: Nc | J198: Nc | K198: CIMBURKINA 01BP 6337 OUAGA 01 BURKINA FASO | L198: Nc | M198: Burkina Faso | N198: 25231000000
A199: SCANTOGO | B199: E 4658 | C199: 2023-11-24 | D199: CLINKER EN VRAC | E199: 5,000,000 | F199: KG | G199: Nc | H199: 191,500,000 | I199: Nc | J199: Nc | K199: CIMBURKINA 01BP 6337 OUAGA 01 BURKINA FASO | L199: Nc | M199: Burkina Faso | N199: 25231000000
A200: SCANTOGO | B200: E 256 | C200: 2023-07-03 | D200: CLINKER EN VRAC | E200: 451,060 | F200: KG | G200: Nc | H200: 27,669,148 | I200: Nc | J200: Nc | K200: CIMBENIN COTONOU-BENIN | L200: Nc | M200: Bénin | N200: 25231000000
A201: SCANTOGO | B201: E 257 | C201: 2023-07-03 | D201: CLINKER EN VRAC | E201: 923,540 | F201: KG | G201: Nc | H201: 56,783,532 | I201: Nc | J201: Nc | K201: CIMBENIN COTONOU-BENIN | L201: Nc | M201: Bénin | N201: 25231000000
... 130 more rows

Sheet 13
C1: Liste des entreprises retenues et les sociétés unilatérale
B3: N° | C3: Sociétés unilatérales | E3: N° | F3: Société retenue dans le périmetre
B4: 1 | C4: Société Africaine de Dragage (SAD) | E4: 1 | F4: SNPT
B5: 2 | C5: SOROUBAT - TOGO | E5: 2 | F5: SCANTOGO MINES
B6: 3 | C6: SOCIETE U.S.XIN-ALAFIA S.A | E6: 3 | F6: WACEM
B7: 4 | C7: ALMACAR TOGO | E7: 4 | F7: TOGO CARRIERE
B8: 5 | C8: CHINA ROAD AND BRIDGE CORPORATION (CRBC) | E8: 5 | F8: TDE
B9: 6 | C9: SOGECAR | E9: 6 | F9: POMAR TOGO
B10: 7 | C10: TGC SA / CENTRO ET XING FA SARLU | E10: 7 | F10: MING MING MATCO
B11: 8 | C11: PANAFRICAN GOLD CORPORATION - TOGO | E11: 8 | F11: Togolaise des Grands Caous
B12: 9 | C12: SOCIETE EMT | E12: 9 | F12: TOGO RAIL
B13: 10 | C13: ISAGES | E13: 10 | F13: GRANUTOGO
B14: 11 | C14: PLATEFORME INDUSTRIELLE D'ADETIOPE (P.I.A) | E14: 11 | F14: CIMCO
B15: 12 | C15: US XIN ALAFIA | E15: 12 | F15: SAMARIA
B16: 13 | C16: ETS RELAXED | E16: 13 | F16: Togolaise de Manganèse
B17: 14 | C17: VIRAS INDUSTRIE | E17: 14 | F17: Togo Invest Corporation SA
B18: 15 | C18: SEERMA SARL
B19: 16 | C19: RAKAKO BTP SARL
B20: 17 | C20: Etablissement ATTIO ET FILS
B21: 18 | C21: TOGO MINERALS
B22: 19 | C22: CORNERSTONE GROUP INTERNATIONAL
B23: 20 | C23: Etablissement BIDJOFILS
B24: 21 | C24: DIEU EST GRAND
B25: 22 | C25: MARANATHA
B26: 23 | C26: ETS LE PLATEAU
B27: 24 | C27: Etablissement ROSADE
B28: 25 | C28: Etablissement LAMA SAPHIR
B29: 26 | C29: Etablissement la GAZELLE
B30: 27 | C30: SOCIETE RECA - TOGO
B31: 28 | C31: ETS MEL
B32: 29 | C32: Etablissement NAT-MAT
B33: 30 | C33: A.K.A. BUSINESS
B34: 31 | C34: FAMOUS PRODUCTION
B35: 32 | C35: Société SESG
B36: 33 | C36: SOTESSGRAV
B37: 34 | C37: SESAG
B38: 35 | C38: TKS & FILS
B39: 36 | C39: LAGUDA & FILS
B40: 37 | C40: Ets UNION CHEZ NOVOR
B41: 38 | C41: MERCIFUL LIGHT
B42: 39 | C42: NOUVELLE GENERATION DE BATIMENT
B43: 40 | C43: NTIFAFA COME AND SEE
B44: 41 | C44: CARRIERE LUMIERE
B45: 42 | C45: ETS FIOKOUNA DE DIEU
B46: 43 | C46: Etablissement RAMBLAI
B47: 44 | C47: ENTREPRISE MNS/CRSSG-TOGO
B48: 45 | C48: ENTREPRISE NATIVITE INVESTE
B49: 46 | C49: TRAVAUX PUBLICS ET INFRASTRUCTURES GROUPE TPI
B50: 47 | C50: AME-ENO COMMERCE
B51: 48 | C51: COMMERZGROUP
B52: 49 | C52: TOGO MATERIAUX
B53: 50 | C53: BLEWU & FILS
B54: 51 | C54: 2ESG
B55: 52 | C55: THEE COREE SARLU
B56: 53 | C56: MM MINING
B57: 54 | C57: SYCHAR SERVICES
B58: 55 | C58: SOCIETE SOGECAR
B59: 56 | C59: Société XING FA SARLU
B60: 57 | C60: Sté ALMACAR SA
B61: 58 | C61: ECODES

Sheet 14
A1: Liste des sociétés non extractives
A4: Société | B4: Secteur | C4: Nature de société | D4: Nature de paiement | E4: Flux brut | F4: Régies | G4: Montant FCFA | H4: Affectation | I4: Source
A5: PLATEFORM INDUSTRIAL ADETIKOPE | B5: Minier | C5: Non extractive | D5: En numéraire | E5: Droits et taxes Douaniers (DD-RS-PCS-PC-RI - TVA-PUA-TLP-PNS et autres) | F5: CDDI | G5: 5,000 | H5: Trésor | I5: FD_CDDI
A6: PLATEFORM INDUSTRIAL ADETIKOPE | B6: Minier | C6: Non extractive | D6: En numéraire | E6: Droits et taxes Douaniers (DD-RS-PCS-PC-RI - TVA-PUA-TLP-PNS et autres) | F6: CDDI | G6: 5,000 | H6: Trésor | I6: FD_CDDI
A7: PLATEFORM INDUSTRIAL ADETIKOPE | B7: Minier | C7: Non extractive | D7: En numéraire | E7: Droits et taxes Douaniers (DD-RS-PCS-PC-RI - TVA-PUA-TLP-PNS et autres) | F7: CDDI | G7: 405,839 | H7: Trésor | I7: FD_CDDI
A8: PLATEFORM INDUSTRIAL ADETIKOPE | B8: Minier | C8: Non extractive | D8: En numéraire | E8: Droits et taxes Douaniers (DD-RS-PCS-PC-RI - TVA-PUA-TLP-PNS et autres) | F8: CDDI | G8: 45,000 | H8: Trésor | I8: FD_CDDI
A9: PLATEFORM INDUSTRIAL ADETIKOPE | B9: Minier | C9: Non extractive | D9: En numéraire | E9: Droits et taxes Douaniers (DD-RS-PCS-PC-RI - TVA-PUA-TLP-PNS et autres) | F9: CDDI | G9: 5,000 | H9: Trésor | I9: FD_CDDI
A10: PLATEFORM INDUSTRIAL ADETIKOPE | B10: Minier | C10: Non extractive | D10: En numéraire | E10: Droits et taxes Douaniers (DD-RS-PCS-PC-RI - TVA-PUA-TLP-PNS et autres) | F10: CDDI | G10: 5,000 | H10: Trésor | I10: FD_CDDI
A11: PLATEFORM INDUSTRIAL ADETIKOPE | B11: Minier | C11: Non extractive | D11: En numéraire | E11: Droits et taxes Douaniers (DD-RS-PCS-PC-RI - TVA-PUA-TLP-PNS et autres) | F11: CDDI | G11: 5,000 | H11: Trésor | I11: FD_CDDI
A12: PLATEFORM INDUSTRIAL ADETIKOPE | B12: Minier | C12: Non extractive | D12: En numéraire | E12: Droits et taxes Douaniers (DD-RS-PCS-PC-RI - TVA-PUA-TLP-PNS et autres) | F12: CDDI | G12: 5,000 | H12: Trésor | I12: FD_CDDI
A13: PLATEFORM INDUSTRIAL ADETIKOPE | B13: Minier | C13: Non extractive | D13: En numéraire | E13: Droits et taxes Douaniers (DD-RS-PCS-PC-RI - TVA-PUA-TLP-PNS et autres) | F13: CDDI | G13: 5,000 | H13: Trésor | I13: FD_CDDI
A14: PLATEFORM INDUSTRIAL ADETIKOPE | B14: Minier | C14: Non extractive | D14: En numéraire | E14: Droits et taxes Douaniers (DD-RS-PCS-PC-RI - TVA-PUA-TLP-PNS et autres) | F14: CDDI | G14: 5,000 | H14: Trésor | I14: FD_CDDI
A15: PLATEFORM INDUSTRIAL ADETIKOPE | B15: Minier | C15: Non extractive | D15: En numéraire | E15: Droits et taxes Douaniers (DD-RS-PCS-PC-RI - TVA-PUA-TLP-PNS et autres) | F15: CDDI | G15: 5,000 | H15: Trésor | I15: FD_CDDI
A16: PLATEFORM INDUSTRIAL ADETIKOPE | B16: Minier | C16: Non extractive | D16: En numéraire | E16: Droits et taxes Douaniers (DD-RS-PCS-PC-RI - TVA-PUA-TLP-PNS et autres) | F16: CDDI | G16: 5,000 | H16: Trésor | I16: FD_CDDI
A17: PLATEFORM INDUSTRIAL ADETIKOPE | B17: Minier | C17: Non extractive | D17: En numéraire | E17: Droits et taxes Douaniers (DD-RS-PCS-PC-RI - TVA-PUA-TLP-PNS et autres) | F17: CDDI | G17: 5,000 | H17: Trésor | I17: FD_CDDI
A18: PLATEFORM INDUSTRIAL ADETIKOPE | B18: Minier | C18: Non extractive | D18: En numéraire | E18: Droits et taxes Douaniers (DD-RS-PCS-PC-RI - TVA-PUA-TLP-PNS et autres) | F18: CDDI | G18: 45,000 | H18: Trésor | I18: FD_CDDI
A19: PLATEFORM INDUSTRIAL ADETIKOPE | B19: Minier | C19: Non extractive | D19: En numéraire | E19: Droits et taxes Douaniers (DD-RS-PCS-PC-RI - TVA-PUA-TLP-PNS et autres) | F19: CDDI | G19: 45,000 | H19: Trésor | I19: FD_CDDI
A20: PLATEFORM INDUSTRIAL ADETIKOPE | B20: Minier | C20: Non extractive | D20: En numéraire | E20: Droits et taxes Douaniers (DD-RS-PCS-PC-RI - TVA-PUA-TLP-PNS et autres) | F20: CDDI | G20: 5,000 | H20: Trésor | I20: FD_CDDI
A21: PLATEFORM INDUSTRIAL ADETIKOPE | B21: Minier | C21: Non extractive | D21: En numéraire | E21: Droits et taxes Douaniers (DD-RS-PCS-PC-RI - TVA-PUA-TLP-PNS et autres) | F21: CDDI | G21: 5,000 | H21: Trésor | I21: FD_CDDI
A22: PLATEFORM INDUSTRIAL ADETIKOPE | B22: Minier | C22: Non extractive | D22: En numéraire | E22: Droits et taxes Douaniers (DD-RS-PCS-PC-RI - TVA-PUA-TLP-PNS et autres) | F22: CDDI | G22: 5,000 | H22: Trésor | I22: FD_CDDI
A23: PLATEFORM INDUSTRIAL ADETIKOPE | B23: Minier | C23: Non extractive | D23: En numéraire | E23: Droits et taxes Douaniers (DD-RS-PCS-PC-RI - TVA-PUA-TLP-PNS et autres) | F23: CDDI | G23: 17,946 | H23: Trésor | I23: FD_CDDI
A24: PLATEFORM INDUSTRIAL ADETIKOPE | B24: Minier | C24: Non extractive | D24: En numéraire | E24: Droits et taxes Douaniers (DD-RS-PCS-PC-RI - TVA-PUA-TLP-PNS et autres) | F24: CDDI | G24: 21,468 | H24: Trésor | I24: FD_CDDI
A25: ENTREPRISE DES MINERAIS DU TOGO (E.MT) | B25: Minier | C25: Non extractive | D25: En numéraire | E25: Droits et taxes Douaniers (DD-RS-PCS-PC-RI - TVA-PUA-TLP-PNS et autres) | F25: CDDI | G25: 4,277,886 | H25: Trésor | I25: FD_CDDI
A26: ENTREPRISE DES MINERAIS DU TOGO (E.MT) | B26: Minier | C26: Non extractive | D26: En numéraire | E26: Droits et taxes Douaniers (DD-RS-PCS-PC-RI - TVA-PUA-TLP-PNS et autres) | F26: CDDI | G26: 4,807,220 | H26: Trésor | I26: FD_CDDI
A27: PLATEFORM INDUSTRIAL ADETIKOPE | B27: Minier | C27: Non extractive | D27: En numéraire | E27: Droits et taxes Douaniers (DD-RS-PCS-PC-RI - TVA-PUA-TLP-PNS et autres) | F27: CDDI | G27: 208,598 | H27: Trésor | I27: FD_CDDI
A28: PLATEFORM INDUSTRIAL ADETIKOPE | B28: Minier | C28: Non extractive | D28: En numéraire | E28: Droits et taxes Douaniers (DD-RS-PCS-PC-RI - TVA-PUA-TLP-PNS et autres) | F28: CDDI | G28: 1,023,213 | H28: Trésor | I28: FD_CDDI
A29: PLATEFORM INDUSTRIAL ADETIKOPE | B29: Minier | C29: Non extractive | D29: En numéraire | E29: Droits et taxes Douaniers (DD-RS-PCS-PC-RI - TVA-PUA-TLP-PNS et autres) | F29: CDDI | G29: 856,016 | H29: Trésor | I29: FD_CDDI
A30: PLATEFORM INDUSTRIAL ADETIKOPE | B30: Minier | C30: Non extractive | D30: En numéraire | E30: Droits et taxes Douaniers (DD-RS-PCS-PC-RI - TVA-PUA-TLP-PNS et autres) | F30: CDDI | G30: 440,990 | H30: Trésor | I30: FD_CDDI
A31: PLATEFORM INDUSTRIAL ADETIKOPE | B31: Minier | C31: Non extractive | D31: En numéraire | E31: Droits et taxes Douaniers (DD-RS-PCS-PC-RI - TVA-PUA-TLP-PNS et autres) | F31: CDDI | G31: 5,000 | H31: Trésor | I31: FD_CDDI
A32: PLATEFORM INDUSTRIAL ADETIKOPE | B32: Minier | C32: Non extractive | D32: En numéraire | E32: Droits et taxes Douaniers (DD-RS-PCS-PC-RI - TVA-PUA-TLP-PNS et autres) | F32: CDDI | G32: 45,000 | H32: Trésor | I32: FD_CDDI
A33: PLATEFORM INDUSTRIAL ADETIKOPE | B33: Minier | C33: Non extractive | D33: En numéraire | E33: Droits et taxes Douaniers (DD-RS-PCS-PC-RI - TVA-PUA-TLP-PNS et autres) | F33: CDDI | G33: 5,000 | H33: Trésor | I33: FD_CDDI
A34: PLATEFORM INDUSTRIAL ADETIKOPE | B34: Minier | C34: Non extractive | D34: En numéraire | E34: Droits et taxes Douaniers (DD-RS-PCS-PC-RI - TVA-PUA-TLP-PNS et autres) | F34: CDDI | G34: 5,000 | H34: Trésor | I34: FD_CDDI
A35: PLATEFORM INDUSTRIAL ADETIKOPE | B35: Minier | C35: Non extractive | D35: En numéraire | E35: Droits et taxes Douaniers (DD-RS-PCS-PC-RI - TVA-PUA-TLP-PNS et autres) | F35: CDDI | G35: 45,000 | H35: Trésor | I35: FD_CDDI
A36: PLATEFORM INDUSTRIAL ADETIKOPE | B36: Minier | C36: Non extractive | D36: En numéraire | E36: Droits et taxes Douaniers (DD-RS-PCS-PC-RI - TVA-PUA-TLP-PNS et autres) | F36: CDDI | G36: 45,000 | H36: Trésor | I36: FD_CDDI
A37: PLATEFORM INDUSTRIAL ADETIKOPE | B37: Minier | C37: Non extractive | D37: En numéraire | E37: Droits et taxes Douaniers (DD-RS-PCS-PC-RI - TVA-PUA-TLP-PNS et autres) | F37: CDDI | G37: 125,000 | H37: Trésor | I37: FD_CDDI
A38: PLATEFORM INDUSTRIAL ADETIKOPE | B38: Minier | C38: Non extractive | D38: En numéraire | E38: Droits et taxes Douaniers (DD-RS-PCS-PC-RI - TVA-PUA-TLP-PNS et autres) | F38: CDDI | G38: 959,788 | H38: Trésor | I38: FD_CDDI
A39: PLATEFORM INDUSTRIAL ADETIKOPE | B39: Minier | C39: Non extractive | D39: En numéraire | E39: Droits et taxes Douaniers (DD-RS-PCS-PC-RI - TVA-PUA-TLP-PNS et autres) | F39: CDDI | G39: 5,000 | H39: Trésor | I39: FD_CDDI
A40: PLATEFORM INDUSTRIAL ADETIKOPE | B40: Minier | C40: Non extractive | D40: En numéraire | E40: Droits et taxes Douaniers (DD-RS-PCS-PC-RI - TVA-PUA-TLP-PNS et autres) | F40: CDDI | G40: 5,000 | H40: Trésor | I40: FD_CDDI
A41: PLATEFORM INDUSTRIAL ADETIKOPE | B41: Minier | C41: Non extractive | D41: En numéraire | E41: Droits et taxes Douaniers (DD-RS-PCS-PC-RI - TVA-PUA-TLP-PNS et autres) | F41: CDDI | G41: 607,902 | H41: Trésor | I41: FD_CDDI
A42: PLATEFORM INDUSTRIAL ADETIKOPE | B42: Minier | C42: Non extractive | D42: En numéraire | E42: Droits et taxes Douaniers (DD-RS-PCS-PC-RI - TVA-PUA-TLP-PNS et autres) | F42: CDDI | G42: 45,000 | H42: Trésor | I42: FD_CDDI
A43: PLATEFORM INDUSTRIAL ADETIKOPE | B43: Minier | C43: Non extractive | D43: En numéraire | E43: Droits et taxes Douaniers (DD-RS-PCS-PC-RI - TVA-PUA-TLP-PNS et autres) | F43: CDDI | G43: 5,000 | H43: Trésor | I43: FD_CDDI
A44: PLATEFORM INDUSTRIAL ADETIKOPE | B44: Minier | C44: Non extractive | D44: En numéraire | E44: Droits et taxes Douaniers (DD-RS-PCS-PC-RI - TVA-PUA-TLP-PNS et autres) | F44: CDDI | G44: 236,197 | H44: Trésor | I44: FD_CDDI
A45: PLATEFORM INDUSTRIAL ADETIKOPE | B45: Minier | C45: Non extractive | D45: En numéraire | E45: Droits et taxes Douaniers (DD-RS-PCS-PC-RI - TVA-PUA-TLP-PNS et autres) | F45: CDDI | G45: 5,000 | H45: Trésor | I45: FD_CDDI
A46: PLATEFORM INDUSTRIAL ADETIKOPE | B46: Minier | C46: Non extractive | D46: En numéraire | E46: Droits et taxes Douaniers (DD-RS-PCS-PC-RI - TVA-PUA-TLP-PNS et autres) | F46: CDDI | G46: 5,000 | H46: Trésor | I46: FD_CDDI
A47: PLATEFORM INDUSTRIAL ADETIKOPE | B47: Minier | C47: Non extractive | D47: En numéraire | E47: Droits et taxes Douaniers (DD-RS-PCS-PC-RI - TVA-PUA-TLP-PNS et autres) | F47: CDDI | G47: 5,000 | H47: Trésor | I47: FD_CDDI
A48: PLATEFORM INDUSTRIAL ADETIKOPE | B48: Minier | C48: Non extractive | D48: En numéraire | E48: Droits et taxes Douaniers (DD-RS-PCS-PC-RI - TVA-PUA-TLP-PNS et autres) | F48: CDDI | G48: 551,779 | H48: Trésor | I48: FD_CDDI
A49: PLATEFORM INDUSTRIAL ADETIKOPE | B49: Minier | C49: Non extractive | D49: En numéraire | E49: Droits et taxes Douaniers (DD-RS-PCS-PC-RI - TVA-PUA-TLP-PNS et autres) | F49: CDDI | G49: 45,000 | H49: Trésor | I49: FD_CDDI
A50: PLATEFORM INDUSTRIAL ADETIKOPE | B50: Minier | C50: Non extractive | D50: En numéraire | E50: Droits et taxes Douaniers (DD-RS-PCS-PC-RI - TVA-PUA-TLP-PNS et autres) | F50: CDDI | G50: 5,000 | H50: Trésor | I50: FD_CDDI
A51: PLATEFORM INDUSTRIAL ADETIKOPE | B51: Minier | C51: Non extractive | D51: En numéraire | E51: Droits et taxes Douaniers (DD-RS-PCS-PC-RI - TVA-PUA-TLP-PNS et autres) | F51: CDDI | G51: 5,000 | H51: Trésor | I51: FD_CDDI
A52: PLATEFORM INDUSTRIAL ADETIKOPE | B52: Minier | C52: Non extractive | D52: En numéraire | E52: Droits et taxes Douaniers (DD-RS-PCS-PC-RI - TVA-PUA-TLP-PNS et autres) | F52: CDDI | G52: 20,059 | H52: Trésor | I52: FD_CDDI
A53: PLATEFORM INDUSTRIAL ADETIKOPE | B53: Minier | C53: Non extractive | D53: En numéraire | E53: Droits et taxes Douaniers (DD-RS-PCS-PC-RI - TVA-PUA-TLP-PNS et autres) | F53: CDDI | G53: 5,000 | H53: Trésor | I53: FD_CDDI
A54: PLATEFORM INDUSTRIAL ADETIKOPE | B54: Minier | C54: Non extractive | D54: En numéraire | E54: Droits et taxes Douaniers (DD-RS-PCS-PC-RI - TVA-PUA-TLP-PNS et autres) | F54: CDDI | G54: 5,000 | H54: Trésor | I54: FD_CDDI
A55: PLATEFORM INDUSTRIAL ADETIKOPE | B55: Minier | C55: Non extractive | D55: En numéraire | E55: Droits et taxes Douaniers (DD-RS-PCS-PC-RI - TVA-PUA-TLP-PNS et autres) | F55: CDDI | G55: 5,000 | H55: Trésor | I55: FD_CDDI
A56: PLATEFORM INDUSTRIAL ADETIKOPE | B56: Minier | C56: Non extractive | D56: En numéraire | E56: Droits et taxes Douaniers (DD-RS-PCS-PC-RI - TVA-PUA-TLP-PNS et autres) | F56: CDDI | G56: 5,000 | H56: Trésor | I56: FD_CDDI
A57: PLATEFORM INDUSTRIAL ADETIKOPE | B57: Minier | C57: Non extractive | D57: En numéraire | E57: Droits et taxes Douaniers (DD-RS-PCS-PC-RI - TVA-PUA-TLP-PNS et autres) | F57: CDDI | G57: 5,000 | H57: Trésor | I57: FD_CDDI
A58: PLATEFORM INDUSTRIAL ADETIKOPE | B58: Minier | C58: Non extractive | D58: En numéraire | E58: Droits et taxes Douaniers (DD-RS-PCS-PC-RI - TVA-PUA-TLP-PNS et autres) | F58: CDDI | G58: 5,000 | H58: Trésor | I58: FD_CDDI
A59: PLATEFORM INDUSTRIAL ADETIKOPE | B59: Minier | C59: Non extractive | D59: En numéraire | E59: Droits et taxes Douaniers (DD-RS-PCS-PC-RI - TVA-PUA-TLP-PNS et autres) | F59: CDDI | G59: 5,000 | H59: Trésor | I59: FD_CDDI
A60: PLATEFORM INDUSTRIAL ADETIKOPE | B60: Minier | C60: Non extractive | D60: En numéraire | E60: Droits et taxes Douaniers (DD-RS-PCS-PC-RI - TVA-PUA-TLP-PNS et autres) | F60: CDDI | G60: 5,000 | H60: Trésor | I60: FD_CDDI
A61: PLATEFORM INDUSTRIAL ADETIKOPE | B61: Minier | C61: Non extractive | D61: En numéraire | E61: Droits et taxes Douaniers (DD-RS-PCS-PC-RI - TVA-PUA-TLP-PNS et autres) | F61: CDDI | G61: 5,000 | H61: Trésor | I61: FD_CDDI
A62: PLATEFORM INDUSTRIAL ADETIKOPE | B62: Minier | C62: Non extractive | D62: En numéraire | E62: Droits et taxes Douaniers (DD-RS-PCS-PC-RI - TVA-PUA-TLP-PNS et autres) | F62: CDDI | G62: 5,000 | H62: Trésor | I62: FD_CDDI
A63: PLATEFORM INDUSTRIAL ADETIKOPE | B63: Minier | C63: Non extractive | D63: En numéraire | E63: Droits et taxes Douaniers (DD-RS-PCS-PC-RI - TVA-PUA-TLP-PNS et autres) | F63: CDDI | G63: 5,000 | H63: Trésor | I63: FD_CDDI
A64: PLATEFORM INDUSTRIAL ADETIKOPE | B64: Minier | C64: Non extractive | D64: En numéraire | E64: Droits et taxes Douaniers (DD-RS-PCS-PC-RI - TVA-PUA-TLP-PNS et autres) | F64: CDDI | G64: 45,000 | H64: Trésor | I64: FD_CDDI
A65: PLATEFORM INDUSTRIAL ADETIKOPE | B65: Minier | C65: Non extractive | D65: En numéraire | E65: Droits et taxes Douaniers (DD-RS-PCS-PC-RI - TVA-PUA-TLP-PNS et autres) | F65: CDDI | G65: 5,000 | H65: Trésor | I65: FD_CDDI
A66: PLATEFORM INDUSTRIAL ADETIKOPE | B66: Minier | C66: Non extractive | D66: En numéraire | E66: Droits et taxes Douaniers (DD-RS-PCS-PC-RI - TVA-PUA-TLP-PNS et autres) | F66: CDDI | G66: 45,000 | H66: Trésor | I66: FD_CDDI
A67: PLATEFORM INDUSTRIAL ADETIKOPE | B67: Minier | C67: Non extractive | D67: En numéraire | E67: Droits et taxes Douaniers (DD-RS-PCS-PC-RI - TVA-PUA-TLP-PNS et autres) | F67: CDDI | G67: 5,000 | H67: Trésor | I67: FD_CDDI
A68: PLATEFORM INDUSTRIAL ADETIKOPE | B68: Minier | C68: Non extractive | D68: En numéraire | E68: Droits et taxes Douaniers (DD-RS-PCS-PC-RI - TVA-PUA-TLP-PNS et autres) | F68: CDDI | G68: 5,000 | H68: Trésor | I68: FD_CDDI
A69: PLATEFORM INDUSTRIAL ADETIKOPE | B69: Minier | C69: Non extractive | D69: En numéraire | E69: Droits et taxes Douaniers (DD-RS-PCS-PC-RI - TVA-PUA-TLP-PNS et autres) | F69: CDDI | G69: 6,500 | H69: Trésor | I69: FD_CDDI
A70: PLATEFORM INDUSTRIAL ADETIKOPE | B70: Minier | C70: Non extractive | D70: En numéraire | E70: Droits et taxes Douaniers (DD-RS-PCS-PC-RI - TVA-PUA-TLP-PNS et autres) | F70: CDDI | G70: 5,000 | H70: Trésor | I70: FD_CDDI
A71: PLATEFORM INDUSTRIAL ADETIKOPE | B71: Minier | C71: Non extractive | D71: En numéraire | E71: Droits et taxes Douaniers (DD-RS-PCS-PC-RI - TVA-PUA-TLP-PNS et autres) | F71: CDDI | G71: 576,317 | H71: Trésor | I71: FD_CDDI
A72: PLATEFORM INDUSTRIAL ADETIKOPE | B72: Minier | C72: Non extractive | D72: En numéraire | E72: Droits et taxes Douaniers (DD-RS-PCS-PC-RI - TVA-PUA-TLP-PNS et autres) | F72: CDDI | G72: 5,000 | H72: Trésor | I72: FD_CDDI
A73: PLATEFORM INDUSTRIAL ADETIKOPE | B73: Minier | C73: Non extractive | D73: En numéraire | E73: Droits et taxes Douaniers (DD-RS-PCS-PC-RI - TVA-PUA-TLP-PNS et autres) | F73: CDDI | G73: 5,000 | H73: Trésor | I73: FD_CDDI
A74: PLATEFORM INDUSTRIAL ADETIKOPE | B74: Minier | C74: Non extractive | D74: En numéraire | E74: Droits et taxes Douaniers (DD-RS-PCS-PC-RI - TVA-PUA-TLP-PNS et autres) | F74: CDDI | G74: 5,000 | H74: Trésor | I74: FD_CDDI
A75: PLATEFORM INDUSTRIAL ADETIKOPE | B75: Minier | C75: Non extractive | D75: En numéraire | E75: Droits et taxes Douaniers (DD-RS-PCS-PC-RI - TVA-PUA-TLP-PNS et autres) | F75: CDDI | G75: 275,253 | H75: Trésor | I75: FD_CDDI
A76: PLATEFORM INDUSTRIAL ADETIKOPE | B76: Minier | C76: Non extractive | D76: En numéraire | E76: Droits et taxes Douaniers (DD-RS-PCS-PC-RI - TVA-PUA-TLP-PNS et autres) | F76: CDDI | G76: 757,540 | H76: Trésor | I76: FD_CDDI
A77: PLATEFORM INDUSTRIAL ADETIKOPE | B77: Minier | C77: Non extractive | D77: En numéraire | E77: Droits et taxes Douaniers (DD-RS-PCS-PC-RI - TVA-PUA-TLP-PNS et autres) | F77: CDDI | G77: 48,550 | H77: Trésor | I77: FD_CDDI
A78: PLATEFORM INDUSTRIAL ADETIKOPE | B78: Minier | C78: Non extractive | D78: En numéraire | E78: Droits et taxes Douaniers (DD-RS-PCS-PC-RI - TVA-PUA-TLP-PNS et autres) | F78: CDDI | G78: 28,443 | H78: Trésor | I78: FD_CDDI
A79: PLATEFORM INDUSTRIAL ADETIKOPE | B79: Minier | C79: Non extractive | D79: En numéraire | E79: Droits et taxes Douaniers (DD-RS-PCS-PC-RI - TVA-PUA-TLP-PNS et autres) | F79: CDDI | G79: 5,000 | H79: Trésor | I79: FD_CDDI
A80: PLATEFORM INDUSTRIAL ADETIKOPE | B80: Minier | C80: Non extractive | D80: En numéraire | E80: Droits et taxes Douaniers (DD-RS-PCS-PC-RI - TVA-PUA-TLP-PNS et autres) | F80: CDDI | G80: 5,000 | H80: Trésor | I80: FD_CDDI
A81: PLATEFORM INDUSTRIAL ADETIKOPE | B81: Minier | C81: Non extractive | D81: En numéraire | E81: Droits et taxes Douaniers (DD-RS-PCS-PC-RI - TVA-PUA-TLP-PNS et autres) | F81: CDDI | G81: 1,181,997 | H81: Trésor | I81: FD_CDDI
A82: PLATEFORM INDUSTRIAL ADETIKOPE | B82: Minier | C82: Non extractive | D82: En numéraire | E82: Droits et taxes Douaniers (DD-RS-PCS-PC-RI - TVA-PUA-TLP-PNS et autres) | F82: CDDI | G82: 1,251,549 | H82: Trésor | I82: FD_CDDI
A83: PLATEFORM INDUSTRIAL ADETIKOPE | B83: Minier | C83: Non extractive | D83: En numéraire | E83: Droits et taxes Douaniers (DD-RS-PCS-PC-RI - TVA-PUA-TLP-PNS et autres) | F83: CDDI | G83: 45,000 | H83: Trésor | I83: FD_CDDI
A84: PLATEFORM INDUSTRIAL ADETIKOPE | B84: Minier | C84: Non extractive | D84: En numéraire | E84: Droits et taxes Douaniers (DD-RS-PCS-PC-RI - TVA-PUA-TLP-PNS et autres) | F84: CDDI | G84: 5,000 | H84: Trésor | I84: FD_CDDI
A85: PLATEFORM INDUSTRIAL ADETIKOPE | B85: Minier | C85: Non extractive | D85: En numéraire | E85: Droits et taxes Douaniers (DD-RS-PCS-PC-RI - TVA-PUA-TLP-PNS et autres) | F85: CDDI | G85: 5,000 | H85: Trésor | I85: FD_CDDI
A86: PLATEFORM INDUSTRIAL ADETIKOPE | B86: Minier | C86: Non extractive | D86: En numéraire | E86: Droits et taxes Douaniers (DD-RS-PCS-PC-RI - TVA-PUA-TLP-PNS et autres) | F86: CDDI | G86: 19,827 | H86: Trésor | I86: FD_CDDI
A87: PLATEFORM INDUSTRIAL ADETIKOPE | B87: Minier | C87: Non extractive | D87: En numéraire | E87: Droits et taxes Douaniers (DD-RS-PCS-PC-RI - TVA-PUA-TLP-PNS et autres) | F87: CDDI | G87: 45,000 | H87: Trésor | I87: FD_CDDI
A88: PLATEFORM INDUSTRIAL ADETIKOPE | B88: Minier | C88: Non extractive | D88: En numéraire | E88: Droits et taxes Douaniers (DD-RS-PCS-PC-RI - TVA-PUA-TLP-PNS et autres) | F88: CDDI | G88: 5,000 | H88: Trésor | I88: FD_CDDI
A89: PLATEFORM INDUSTRIAL ADETIKOPE | B89: Minier | C89: Non extractive | D89: En numéraire | E89: Droits et taxes Douaniers (DD-RS-PCS-PC-RI - TVA-PUA-TLP-PNS et autres) | F89: CDDI | G89: 5,000 | H89: Trésor | I89: FD_CDDI
A90: PLATEFORM INDUSTRIAL ADETIKOPE | B90: Minier | C90: Non extractive | D90: En numéraire | E90: Droits et taxes Douaniers (DD-RS-PCS-PC-RI - TVA-PUA-TLP-PNS et autres) | F90: CDDI | G90: 45,000 | H90: Trésor | I90: FD_CDDI
A91: PLATEFORM INDUSTRIAL ADETIKOPE | B91: Minier | C91: Non extractive | D91: En numéraire | E91: Droits et taxes Douaniers (DD-RS-PCS-PC-RI - TVA-PUA-TLP-PNS et autres) | F91: CDDI | G91: 245,000 | H91: Trésor | I91: FD_CDDI
A92: PLATEFORM INDUSTRIAL ADETIKOPE | B92: Minier | C92: Non extractive | D92: En numéraire | E92: Droits et taxes Douaniers (DD-RS-PCS-PC-RI - TVA-PUA-TLP-PNS et autres) | F92: CDDI | G92: 245,000 | H92: Trésor | I92: FD_CDDI
A93: PLATEFORM INDUSTRIAL ADETIKOPE | B93: Minier | C93: Non extractive | D93: En numéraire | E93: Droits et taxes Douaniers (DD-RS-PCS-PC-RI - TVA-PUA-TLP-PNS et autres) | F93: CDDI | G93: 285,000 | H93: Trésor | I93: FD_CDDI
A94: PLATEFORM INDUSTRIAL ADETIKOPE | B94: Minier | C94: Non extractive | D94: En numéraire | E94: Droits et taxes Douaniers (DD-RS-PCS-PC-RI - TVA-PUA-TLP-PNS et autres) | F94: CDDI | G94: 5,000 | H94: Trésor | I94: FD_CDDI
A95: PLATEFORM INDUSTRIAL ADETIKOPE | B95: Minier | C95: Non extractive | D95: En numéraire | E95: Droits et taxes Douaniers (DD-RS-PCS-PC-RI - TVA-PUA-TLP-PNS et autres) | F95: CDDI | G95: 1,608,538 | H95: Trésor | I95: FD_CDDI
A96: RELAXED | B96: Minier | C96: Non extractive | D96: En numéraire | E96: Droits et taxes Douaniers (DD-RS-PCS-PC-RI - TVA-PUA-TLP-PNS et autres) | F96: CDDI | G96: 13,000,297 | H96: Trésor | I96: FD_CDDI
A97: PLATEFORM INDUSTRIAL ADETIKOPE | B97: Minier | C97: Non extractive | D97: En numéraire | E97: Droits et taxes Douaniers (DD-RS-PCS-PC-RI - TVA-PUA-TLP-PNS et autres) | F97: CDDI | G97: 5,000 | H97: Trésor | I97: FD_CDDI
A98: PLATEFORM INDUSTRIAL ADETIKOPE | B98: Minier | C98: Non extractive | D98: En numéraire | E98: Droits et taxes Douaniers (DD-RS-PCS-PC-RI - TVA-PUA-TLP-PNS et autres) | F98: CDDI | G98: 5,000 | H98: Trésor | I98: FD_CDDI
A99: PLATEFORM INDUSTRIAL ADETIKOPE | B99: Minier | C99: Non extractive | D99: En numéraire | E99: Droits et taxes Douaniers (DD-RS-PCS-PC-RI - TVA-PUA-TLP-PNS et autres) | F99: CDDI | G99: 1,684,848 | H99: Trésor | I99: FD_CDDI
A100: PLATEFORM INDUSTRIAL ADETIKOPE | B100: Minier | C100: Non extractive | D100: En numéraire | E100: Droits et taxes Douaniers (DD-RS-PCS-PC-RI - TVA-PUA-TLP-PNS et autres) | F100: CDDI | G100: 5,000 | H100: Trésor | I100: FD_CDDI
A101: PLATEFORM INDUSTRIAL ADETIKOPE | B101: Minier | C101: Non extractive | D101: En numéraire | E101: Droits et taxes Douaniers (DD-RS-PCS-PC-RI - TVA-PUA-TLP-PNS et autres) | F101: CDDI | G101: 5,000 | H101: Trésor | I101: FD_CDDI
A102: PLATEFORM INDUSTRIAL ADETIKOPE | B102: Minier | C102: Non extractive | D102: En numéraire | E102: Droits et taxes Douaniers (DD-RS-PCS-PC-RI - TVA-PUA-TLP-PNS et autres) | F102: CDDI | G102: 2,120,270 | H102: Trésor | I102: FD_CDDI
A103: PLATEFORM INDUSTRIAL ADETIKOPE | B103: Minier | C103: Non extractive | D103: En numéraire | E103: Droits et taxes Douaniers (DD-RS-PCS-PC-RI - TVA-PUA-TLP-PNS et autres) | F103: CDDI | G103: 977,456 | H103: Trésor | I103: FD_CDDI
A104: PLATEFORM INDUSTRIAL ADETIKOPE | B104: Minier | C104: Non extractive | D104: En numéraire | E104: Droits et taxes Douaniers (DD-RS-PCS-PC-RI - TVA-PUA-TLP-PNS et autres) | F104: CDDI | G104: 6,500 | H104: Trésor | I104: FD_CDDI
A105: PLATEFORM INDUSTRIAL ADETIKOPE | B105: Minier | C105: Non extractive | D105: En numéraire | E105: Droits et taxes Douaniers (DD-RS-PCS-PC-RI - TVA-PUA-TLP-PNS et autres) | F105: CDDI | G105: 5,000 | H105: Trésor | I105: FD_CDDI
A106: PLATEFORM INDUSTRIAL ADETIKOPE | B106: Minier | C106: Non extractive | D106: En numéraire | E106: Droits et taxes Douaniers (DD-RS-PCS-PC-RI - TVA-PUA-TLP-PNS et autres) | F106: CDDI | G106: 284,026 | H106: Trésor | I106: FD_CDDI
A107: PLATEFORM INDUSTRIAL ADETIKOPE | B107: Minier | C107: Non extractive | D107: En numéraire | E107: Droits et taxes Douaniers (DD-RS-PCS-PC-RI - TVA-PUA-TLP-PNS et autres) | F107: CDDI | G107: 5,000 | H107: Trésor | I107: FD_CDDI
A108: PLATEFORM INDUSTRIAL ADETIKOPE | B108: Minier | C108: Non extractive | D108: En numéraire | E108: Droits et taxes Douaniers (DD-RS-PCS-PC-RI - TVA-PUA-TLP-PNS et autres) | F108: CDDI | G108: 5,000 | H108: Trésor | I108: FD_CDDI
A109: PLATEFORM INDUSTRIAL ADETIKOPE | B109: Minier | C109: Non extractive | D109: En numéraire | E109: Droits et taxes Douaniers (DD-RS-PCS-PC-RI - TVA-PUA-TLP-PNS et autres) | F109: CDDI | G109: 5,000 | H109: Trésor | I109: FD_CDDI
A110: PLATEFORM INDUSTRIAL ADETIKOPE | B110: Minier | C110: Non extractive | D110: En numéraire | E110: Droits et taxes Douaniers (DD-RS-PCS-PC-RI - TVA-PUA-TLP-PNS et autres) | F110: CDDI | G110: 5,000 | H110: Trésor | I110: FD_CDDI
A111: PLATEFORM INDUSTRIAL ADETIKOPE | B111: Minier | C111: Non extractive | D111: En numéraire | E111: Droits et taxes Douaniers (DD-RS-PCS-PC-RI - TVA-PUA-TLP-PNS et autres) | F111: CDDI | G111: 5,000 | H111: Trésor | I111: FD_CDDI
A112: PLATEFORM INDUSTRIAL ADETIKOPE | B112: Minier | C112: Non extractive | D112: En numéraire | E112: Droits et taxes Douaniers (DD-RS-PCS-PC-RI - TVA-PUA-TLP-PNS et autres) | F112: CDDI | G112: 5,000 | H112: Trésor | I112: FD_CDDI
A113: PLATEFORM INDUSTRIAL ADETIKOPE | B113: Minier | C113: Non extractive | D113: En numéraire | E113: Droits et taxes Douaniers (DD-RS-PCS-PC-RI - TVA-PUA-TLP-PNS et autres) | F113: CDDI | G113: 5,000 | H113: Trésor | I113: FD_CDDI
A114: PLATEFORM INDUSTRIAL ADETIKOPE | B114: Minier | C114: Non extractive | D114: En numéraire | E114: Droits et taxes Douaniers (DD-RS-PCS-PC-RI - TVA-PUA-TLP-PNS et autres) | F114: CDDI | G114: 5,000 | H114: Trésor | I114: FD_CDDI
A115: PLATEFORM INDUSTRIAL ADETIKOPE | B115: Minier | C115: Non extractive | D115: En numéraire | E115: Droits et taxes Douaniers (DD-RS-PCS-PC-RI - TVA-PUA-TLP-PNS et autres) | F115: CDDI | G115: 5,000 | H115: Trésor | I115: FD_CDDI
A116: PLATEFORM INDUSTRIAL ADETIKOPE | B116: Minier | C116: Non extractive | D116: En numéraire | E116: Droits et taxes Douaniers (DD-RS-PCS-PC-RI - TVA-PUA-TLP-PNS et autres) | F116: CDDI | G116: 45,000 | H116: Trésor | I116: FD_CDDI
A117: PLATEFORM INDUSTRIAL ADETIKOPE | B117: Minier | C117: Non extractive | D117: En numéraire | E117: Droits et taxes Douaniers (DD-RS-PCS-PC-RI - TVA-PUA-TLP-PNS et autres) | F117: CDDI | G117: 45,000 | H117: Trésor | I117: FD_CDDI
A118: PLATEFORM INDUSTRIAL ADETIKOPE | B118: Minier | C118: Non extractive | D118: En numéraire | E118: Droits et taxes Douaniers (DD-RS-PCS-PC-RI - TVA-PUA-TLP-PNS et autres) | F118: CDDI | G118: 5,000 | H118: Trésor | I118: FD_CDDI
A119: PLATEFORM INDUSTRIAL ADETIKOPE | B119: Minier | C119: Non extractive | D119: En numéraire | E119: Droits et taxes Douaniers (DD-RS-PCS-PC-RI - TVA-PUA-TLP-PNS et autres) | F119: CDDI | G119: 736,298 | H119: Trésor | I119: FD_CDDI
A120: PLATEFORM INDUSTRIAL ADETIKOPE | B120: Minier | C120: Non extractive | D120: En numéraire | E120: Droits et taxes Douaniers (DD-RS-PCS-PC-RI - TVA-PUA-TLP-PNS et autres) | F120: CDDI | G120: 578,993 | H120: Trésor | I120: FD_CDDI
A121: PLATEFORM INDUSTRIAL ADETIKOPE | B121: Minier | C121: Non extractive | D121: En numéraire | E121: Droits et taxes Douaniers (DD-RS-PCS-PC-RI - TVA-PUA-TLP-PNS et autres) | F121: CDDI | G121: 5,000 | H121: Trésor | I121: FD_CDDI
A122: PLATEFORM INDUSTRIAL ADETIKOPE | B122: Minier | C122: Non extractive | D122: En numéraire | E122: Droits et taxes Douaniers (DD-RS-PCS-PC-RI - TVA-PUA-TLP-PNS et autres) | F122: CDDI | G122: 5,000 | H122: Trésor | I122: FD_CDDI
A123: PLATEFORM INDUSTRIAL ADETIKOPE | B123: Minier | C123: Non extractive | D123: En numéraire | E123: Droits et taxes Douaniers (DD-RS-PCS-PC-RI - TVA-PUA-TLP-PNS et autres) | F123: CDDI | G123: 5,000 | H123: Trésor | I123: FD_CDDI
A124: PLATEFORM INDUSTRIAL ADETIKOPE | B124: Minier | C124: Non extractive | D124: En numéraire | E124: Droits et taxes Douaniers (DD-RS-PCS-PC-RI - TVA-PUA-TLP-PNS et autres) | F124: CDDI | G124: 6,500 | H124: Trésor | I124: FD_CDDI
A125: ENTREPRISE DES MINERAIS DU TOGO (E.MT) | B125: Minier | C125: Non extractive | D125: En numéraire | E125: Droits et taxes Douaniers (DD-RS-PCS-PC-RI - TVA-PUA-TLP-PNS et autres) | F125: CDDI | G125: 4,457,520 | H125: Trésor | I125: FD_CDDI
A126: PLATEFORM INDUSTRIAL ADETIKOPE | B126: Minier | C126: Non extractive | D126: En numéraire | E126: Droits et taxes Douaniers (DD-RS-PCS-PC-RI - TVA-PUA-TLP-PNS et autres) | F126: CDDI | G126: 568,432 | H126: Trésor | I126: FD_CDDI
A127: PLATEFORM INDUSTRIAL ADETIKOPE | B127: Minier | C127: Non extractive | D127: En numéraire | E127: Droits et taxes Douaniers (DD-RS-PCS-PC-RI - TVA-PUA-TLP-PNS et autres) | F127: CDDI | G127: 45,000 | H127: Trésor | I127: FD_CDDI
A128: PLATEFORM INDUSTRIAL ADETIKOPE | B128: Minier | C128: Non extractive | D128: En numéraire | E128: Droits et taxes Douaniers (DD-RS-PCS-PC-RI - TVA-PUA-TLP-PNS et autres) | F128: CDDI | G128: 5,000 | H128: Trésor | I128: FD_CDDI
A129: PLATEFORM INDUSTRIAL ADETIKOPE | B129: Minier | C129: Non extractive | D129: En numéraire | E129: Droits et taxes Douaniers (DD-RS-PCS-PC-RI - TVA-PUA-TLP-PNS et autres) | F129: CDDI | G129: 5,000 | H129: Trésor | I129: FD_CDDI
A130: PLATEFORM INDUSTRIAL ADETIKOPE | B130: Minier | C130: Non extractive | D130: En numéraire | E130: Droits et taxes Douaniers (DD-RS-PCS-PC-RI - TVA-PUA-TLP-PNS et autres) | F130: CDDI | G130: 5,000 | H130: Trésor | I130: FD_CDDI
A131: PLATEFORM INDUSTRIAL ADETIKOPE | B131: Minier | C131: Non extractive | D131: En numéraire | E131: Droits et taxes Douaniers (DD-RS-PCS-PC-RI - TVA-PUA-TLP-PNS et autres) | F131: CDDI | G131: 5,000 | H131: Trésor | I131: FD_CDDI
A132: PLATEFORM INDUSTRIAL ADETIKOPE | B132: Minier | C132: Non extractive | D132: En numéraire | E132: Droits et taxes Douaniers (DD-RS-PCS-PC-RI - TVA-PUA-TLP-PNS et autres) | F132: CDDI | G132: 15,001 | H132: Trésor | I132: FD_CDDI
A133: PLATEFORM INDUSTRIAL ADETIKOPE | B133: Minier | C133: Non extractive | D133: En numéraire | E133: Droits et taxes Douaniers (DD-RS-PCS-PC-RI - TVA-PUA-TLP-PNS et autres) | F133: CDDI | G133: 69,695 | H133: Trésor | I133: FD_CDDI
A134: PLATEFORM INDUSTRIAL ADETIKOPE | B134: Minier | C134: Non extractive | D134: En numéraire | E134: Droits et taxes Douaniers (DD-RS-PCS-PC-RI - TVA-PUA-TLP-PNS et autres) | F134: CDDI | G134: 568,730 | H134: Trésor | I134: FD_CDDI
A135: PLATEFORM INDUSTRIAL ADETIKOPE | B135: Minier | C135: Non extractive | D135: En numéraire | E135: Droits et taxes Douaniers (DD-RS-PCS-PC-RI - TVA-PUA-TLP-PNS et autres) | F135: CDDI | G135: 4,492,034 | H135: Trésor | I135: FD_CDDI
A136: PLATEFORM INDUSTRIAL ADETIKOPE | B136: Minier | C136: Non extractive | D136: En numéraire | E136: Droits et taxes Douaniers (DD-RS-PCS-PC-RI - TVA-PUA-TLP-PNS et autres) | F136: CDDI | G136: 5,000 | H136: Trésor | I136: FD_CDDI
A137: PLATEFORM INDUSTRIAL ADETIKOPE | B137: Minier | C137: Non extractive | D137: En numéraire | E137: Droits et taxes Douaniers (DD-RS-PCS-PC-RI - TVA-PUA-TLP-PNS et autres) | F137: CDDI | G137: 5,000 | H137: Trésor | I137: FD_CDDI
A138: PLATEFORM INDUSTRIAL ADETIKOPE | B138: Minier | C138: Non extractive | D138: En numéraire | E138: Droits et taxes Douaniers (DD-RS-PCS-PC-RI - TVA-PUA-TLP-PNS et autres) | F138: CDDI | G138: 45,000 | H138: Trésor | I138: FD_CDDI
A139: PLATEFORM INDUSTRIAL ADETIKOPE | B139: Minier | C139: Non extractive | D139: En numéraire | E139: Droits et taxes Douaniers (DD-RS-PCS-PC-RI - TVA-PUA-TLP-PNS et autres) | F139: CDDI | G139: 45,000 | H139: Trésor | I139: FD_CDDI
A140: PLATEFORM INDUSTRIAL ADETIKOPE | B140: Minier | C140: Non extractive | D140: En numéraire | E140: Droits et taxes Douaniers (DD-RS-PCS-PC-RI - TVA-PUA-TLP-PNS et autres) | F140: CDDI | G140: 5,000 | H140: Trésor | I140: FD_CDDI
A141: PLATEFORM INDUSTRIAL ADETIKOPE | B141: Minier | C141: Non extractive | D141: En numéraire | E141: Droits et taxes Douaniers (DD-RS-PCS-PC-RI - TVA-PUA-TLP-PNS et autres) | F141: CDDI | G141: 16,161 | H141: Trésor | I141: FD_CDDI
A142: PLATEFORM INDUSTRIAL ADETIKOPE | B142: Minier | C142: Non extractive | D142: En numéraire | E142: Droits et taxes Douaniers (DD-RS-PCS-PC-RI - TVA-PUA-TLP-PNS et autres) | F142: CDDI | G142: 5,000 | H142: Trésor | I142: FD_CDDI
A143: PLATEFORM INDUSTRIAL ADETIKOPE | B143: Minier | C143: Non extractive | D143: En numéraire | E143: Droits et taxes Douaniers (DD-RS-PCS-PC-RI - TVA-PUA-TLP-PNS et autres) | F143: CDDI | G143: 5,000 | H143: Trésor | I143: FD_CDDI
A144: PLATEFORM INDUSTRIAL ADETIKOPE | B144: Minier | C144: Non extractive | D144: En numéraire | E144: Droits et taxes Douaniers (DD-RS-PCS-PC-RI - TVA-PUA-TLP-PNS et autres) | F144: CDDI | G144: 1,188,857 | H144: Trésor | I144: FD_CDDI
A145: ENTREPRISE DES MINERAIS DU TOGO (E.MT) | B145: Minier | C145: Non extractive | D145: En numéraire | E145: Droits et taxes Douaniers (DD-RS-PCS-PC-RI - TVA-PUA-TLP-PNS et autres) | F145: CDDI | G145: 4,883,099 | H145: Trésor | I145: FD_CDDI
A146: PLATEFORM INDUSTRIAL ADETIKOPE | B146: Minier | C146: Non extractive | D146: En numéraire | E146: Droits et taxes Douaniers (DD-RS-PCS-PC-RI - TVA-PUA-TLP-PNS et autres) | F146: CDDI | G146: 5,000 | H146: Trésor | I146: FD_CDDI
A147: PLATEFORM INDUSTRIAL ADETIKOPE | B147: Minier | C147: Non extractive | D147: En numéraire | E147: Droits et taxes Douaniers (DD-RS-PCS-PC-RI - TVA-PUA-TLP-PNS et autres) | F147: CDDI | G147: 5,000 | H147: Trésor | I147: FD_CDDI
A148: PLATEFORM INDUSTRIAL ADETIKOPE | B148: Minier | C148: Non extractive | D148: En numéraire | E148: Droits et taxes Douaniers (DD-RS-PCS-PC-RI - TVA-PUA-TLP-PNS et autres) | F148: CDDI | G148: 5,000 | H148: Trésor | I148: FD_CDDI
A149: PLATEFORM INDUSTRIAL ADETIKOPE | B149: Minier | C149: Non extractive | D149: En numéraire | E149: Droits et taxes Douaniers (DD-RS-PCS-PC-RI - TVA-PUA-TLP-PNS et autres) | F149: CDDI | G149: 5,000 | H149: Trésor | I149: FD_CDDI
A150: PLATEFORM INDUSTRIAL ADETIKOPE | B150: Minier | C150: Non extractive | D150: En numéraire | E150: Droits et taxes Douaniers (DD-RS-PCS-PC-RI - TVA-PUA-TLP-PNS et autres) | F150: CDDI | G150: 5,000 | H150: Trésor | I150: FD_CDDI
A151: PLATEFORM INDUSTRIAL ADETIKOPE | B151: Minier | C151: Non extractive | D151: En numéraire | E151: Droits et taxes Douaniers (DD-RS-PCS-PC-RI - TVA-PUA-TLP-PNS et autres) | F151: CDDI | G151: 5,000 | H151: Trésor | I151: FD_CDDI
A152: PLATEFORM INDUSTRIAL ADETIKOPE | B152: Minier | C152: Non extractive | D152: En numéraire | E152: Droits et taxes Douaniers (DD-RS-PCS-PC-RI - TVA-PUA-TLP-PNS et autres) | F152: CDDI | G152: 5,000 | H152: Trésor | I152: FD_CDDI
A153: PLATEFORM INDUSTRIAL ADETIKOPE | B153: Minier | C153: Non extractive | D153: En numéraire | E153: Droits et taxes Douaniers (DD-RS-PCS-PC-RI - TVA-PUA-TLP-PNS et autres) | F153: CDDI | G153: 5,000 | H153: Trésor | I153: FD_CDDI
A154: PLATEFORM INDUSTRIAL ADETIKOPE | B154: Minier | C154: Non extractive | D154: En numéraire | E154: Droits et taxes Douaniers (DD-RS-PCS-PC-RI - TVA-PUA-TLP-PNS et autres) | F154: CDDI | G154: 971,297 | H154: Trésor | I154: FD_CDDI
A155: PLATEFORM INDUSTRIAL ADETIKOPE | B155: Minier | C155: Non extractive | D155: En numéraire | E155: Droits et taxes Douaniers (DD-RS-PCS-PC-RI - TVA-PUA-TLP-PNS et autres) | F155: CDDI | G155: 5,000 | H155: Trésor | I155: FD_CDDI
A156: ENTREPRISE DES MINERAIS DU TOGO (E.MT) | B156: Minier | C156: Non extractive | D156: En numéraire | E156: Droits et taxes Douaniers (DD-RS-PCS-PC-RI - TVA-PUA-TLP-PNS et autres) | F156: CDDI | G156: 5,529,855 | H156: Trésor | I156: FD_CDDI
A157: PLATEFORM INDUSTRIAL ADETIKOPE | B157: Minier | C157: Non extractive | D157: En numéraire | E157: Droits et taxes Douaniers (DD-RS-PCS-PC-RI - TVA-PUA-TLP-PNS et autres) | F157: CDDI | G157: 5,000 | H157: Trésor | I157: FD_CDDI
A158: PLATEFORM INDUSTRIAL ADETIKOPE | B158: Minier | C158: Non extractive | D158: En numéraire | E158: Droits et taxes Douaniers (DD-RS-PCS-PC-RI - TVA-PUA-TLP-PNS et autres) | F158: CDDI | G158: 5,000 | H158: Trésor | I158: FD_CDDI
A159: PLATEFORM INDUSTRIAL ADETIKOPE | B159: Minier | C159: Non extractive | D159: En numéraire | E159: Droits et taxes Douaniers (DD-RS-PCS-PC-RI - TVA-PUA-TLP-PNS et autres) | F159: CDDI | G159: 5,000 | H159: Trésor | I159: FD_CDDI
A160: PLATEFORM INDUSTRIAL ADETIKOPE | B160: Minier | C160: Non extractive | D160: En numéraire | E160: Droits et taxes Douaniers (DD-RS-PCS-PC-RI - TVA-PUA-TLP-PNS et autres) | F160: CDDI | G160: 5,000 | H160: Trésor | I160: FD_CDDI
A161: PLATEFORM INDUSTRIAL ADETIKOPE | B161: Minier | C161: Non extractive | D161: En numéraire | E161: Droits et taxes Douaniers (DD-RS-PCS-PC-RI - TVA-PUA-TLP-PNS et autres) | F161: CDDI | G161: 5,000 | H161: Trésor | I161: FD_CDDI
A162: PLATEFORM INDUSTRIAL ADETIKOPE | B162: Minier | C162: Non extractive | D162: En numéraire | E162: Droits et taxes Douaniers (DD-RS-PCS-PC-RI - TVA-PUA-TLP-PNS et autres) | F162: CDDI | G162: 5,000 | H162: Trésor | I162: FD_CDDI
A163: PLATEFORM INDUSTRIAL ADETIKOPE | B163: Minier | C163: Non extractive | D163: En numéraire | E163: Droits et taxes Douaniers (DD-RS-PCS-PC-RI - TVA-PUA-TLP-PNS et autres) | F163: CDDI | G163: 5,000 | H163: Trésor | I163: FD_CDDI
A164: PLATEFORM INDUSTRIAL ADETIKOPE | B164: Minier | C164: Non extractive | D164: En numéraire | E164: Droits et taxes Douaniers (DD-RS-PCS-PC-RI - TVA-PUA-TLP-PNS et autres) | F164: CDDI | G164: 45,000 | H164: Trésor | I164: FD_CDDI
A165: PLATEFORM INDUSTRIAL ADETIKOPE | B165: Minier | C165: Non extractive | D165: En numéraire | E165: Droits et taxes Douaniers (DD-RS-PCS-PC-RI - TVA-PUA-TLP-PNS et autres) | F165: CDDI | G165: 855,931 | H165: Trésor | I165: FD_CDDI
A166: PLATEFORM INDUSTRIAL ADETIKOPE | B166: Minier | C166: Non extractive | D166: En numéraire | E166: Droits et taxes Douaniers (DD-RS-PCS-PC-RI - TVA-PUA-TLP-PNS et autres) | F166: CDDI | G166: 5,000 | H166: Trésor | I166: FD_CDDI
A167: PLATEFORM INDUSTRIAL ADETIKOPE | B167: Minier | C167: Non extractive | D167: En numéraire | E167: Droits et taxes Douaniers (DD-RS-PCS-PC-RI - TVA-PUA-TLP-PNS et autres) | F167: CDDI | G167: 45,000 | H167: Trésor | I167: FD_CDDI
A168: PLATEFORM INDUSTRIAL ADETIKOPE | B168: Minier | C168: Non extractive | D168: En numéraire | E168: Droits et taxes Douaniers (DD-RS-PCS-PC-RI - TVA-PUA-TLP-PNS et autres) | F168: CDDI | G168: 5,000 | H168: Trésor | I168: FD_CDDI
A169: PLATEFORM INDUSTRIAL ADETIKOPE | B169: Minier | C169: Non extractive | D169: En numéraire | E169: Droits et taxes Douaniers (DD-RS-PCS-PC-RI - TVA-PUA-TLP-PNS et autres) | F169: CDDI | G169: 1,200,543 | H169: Trésor | I169: FD_CDDI
A170: PLATEFORM INDUSTRIAL ADETIKOPE | B170: Minier | C170: Non extractive | D170: En numéraire | E170: Droits et taxes Douaniers (DD-RS-PCS-PC-RI - TVA-PUA-TLP-PNS et autres) | F170: CDDI | G170: 45,000 | H170: Trésor | I170: FD_CDDI
A171: PLATEFORM INDUSTRIAL ADETIKOPE | B171: Minier | C171: Non extractive | D171: En numéraire | E171: Droits et taxes Douaniers (DD-RS-PCS-PC-RI - TVA-PUA-TLP-PNS et autres) | F171: CDDI | G171: 45,000 | H171: Trésor | I171: FD_CDDI
A172: PLATEFORM INDUSTRIAL ADETIKOPE | B172: Minier | C172: Non extractive | D172: En numéraire | E172: Droits et taxes Douaniers (DD-RS-PCS-PC-RI - TVA-PUA-TLP-PNS et autres) | F172: CDDI | G172: 413,084 | H172: Trésor | I172: FD_CDDI
A173: PLATEFORM INDUSTRIAL ADETIKOPE | B173: Minier | C173: Non extractive | D173: En numéraire | E173: Droits et taxes Douaniers (DD-RS-PCS-PC-RI - TVA-PUA-TLP-PNS et autres) | F173: CDDI | G173: 5,000 | H173: Trésor | I173: FD_CDDI
A174: PLATEFORM INDUSTRIAL ADETIKOPE | B174: Minier | C174: Non extractive | D174: En numéraire | E174: Droits et taxes Douaniers (DD-RS-PCS-PC-RI - TVA-PUA-TLP-PNS et autres) | F174: CDDI | G174: 5,000 | H174: Trésor | I174: FD_CDDI
A175: PLATEFORM INDUSTRIAL ADETIKOPE | B175: Minier | C175: Non extractive | D175: En numéraire | E175: Droits et taxes Douaniers (DD-RS-PCS-PC-RI - TVA-PUA-TLP-PNS et autres) | F175: CDDI | G175: 1,418,358 | H175: Trésor | I175: FD_CDDI
A176: PLATEFORM INDUSTRIAL ADETIKOPE | B176: Minier | C176: Non extractive | D176: En numéraire | E176: Droits et taxes Douaniers (DD-RS-PCS-PC-RI - TVA-PUA-TLP-PNS et autres) | F176: CDDI | G176: 5,000 | H176: Trésor | I176: FD_CDDI
A177: PLATEFORM INDUSTRIAL ADETIKOPE | B177: Minier | C177: Non extractive | D177: En numéraire | E177: Droits et taxes Douaniers (DD-RS-PCS-PC-RI - TVA-PUA-TLP-PNS et autres) | F177: CDDI | G177: 5,000 | H177: Trésor | I177: FD_CDDI
A178: PLATEFORM INDUSTRIAL ADETIKOPE | B178: Minier | C178: Non extractive | D178: En numéraire | E178: Droits et taxes Douaniers (DD-RS-PCS-PC-RI - TVA-PUA-TLP-PNS et autres) | F178: CDDI | G178: 5,000 | H178: Trésor | I178: FD_CDDI
A179: PLATEFORM INDUSTRIAL ADETIKOPE | B179: Minier | C179: Non extractive | D179: En numéraire | E179: Droits et taxes Douaniers (DD-RS-PCS-PC-RI - TVA-PUA-TLP-PNS et autres) | F179: CDDI | G179: 956,950 | H179: Trésor | I179: FD_CDDI
A180: PLATEFORM INDUSTRIAL ADETIKOPE | B180: Minier | C180: Non extractive | D180: En numéraire | E180: Droits et taxes Douaniers (DD-RS-PCS-PC-RI - TVA-PUA-TLP-PNS et autres) | F180: CDDI | G180: 45,000 | H180: Trésor | I180: FD_CDDI
A181: PLATEFORM INDUSTRIAL ADETIKOPE | B181: Minier | C181: Non extractive | D181: En numéraire | E181: Droits et taxes Douaniers (DD-RS-PCS-PC-RI - TVA-PUA-TLP-PNS et autres) | F181: CDDI | G181: 5,000 | H181: Trésor | I181: FD_CDDI
A182: PLATEFORM INDUSTRIAL ADETIKOPE | B182: Minier | C182: Non extractive | D182: En numéraire | E182: Droits et taxes Douaniers (DD-RS-PCS-PC-RI - TVA-PUA-TLP-PNS et autres) | F182: CDDI | G182: 5,000 | H182: Trésor | I182: FD_CDDI
A183: PLATEFORM INDUSTRIAL ADETIKOPE | B183: Minier | C183: Non extractive | D183: En numéraire | E183: Droits et taxes Douaniers (DD-RS-PCS-PC-RI - TVA-PUA-TLP-PNS et autres) | F183: CDDI | G183: 5,000 | H183: Trésor | I183: FD_CDDI
A184: PLATEFORM INDUSTRIAL ADETIKOPE | B184: Minier | C184: Non extractive | D184: En numéraire | E184: Droits et taxes Douaniers (DD-RS-PCS-PC-RI - TVA-PUA-TLP-PNS et autres) | F184: CDDI | G184: 5,000 | H184: Trésor | I184: FD_CDDI
A185: PLATEFORM INDUSTRIAL ADETIKOPE | B185: Minier | C185: Non extractive | D185: En numéraire | E185: Droits et taxes Douaniers (DD-RS-PCS-PC-RI - TVA-PUA-TLP-PNS et autres) | F185: CDDI | G185: 5,000 | H185: Trésor | I185: FD_CDDI
A186: PLATEFORM INDUSTRIAL ADETIKOPE | B186: Minier | C186: Non extractive | D186: En numéraire | E186: Droits et taxes Douaniers (DD-RS-PCS-PC-RI - TVA-PUA-TLP-PNS et autres) | F186: CDDI | G186: 5,000 | H186: Trésor | I186: FD_CDDI
A187: PLATEFORM INDUSTRIAL ADETIKOPE | B187: Minier | C187: Non extractive | D187: En numéraire | E187: Droits et taxes Douaniers (DD-RS-PCS-PC-RI - TVA-PUA-TLP-PNS et autres) | F187: CDDI | G187: 45,000 | H187: Trésor | I187: FD_CDDI
A188: PLATEFORM INDUSTRIAL ADETIKOPE | B188: Minier | C188: Non extractive | D188: En numéraire | E188: Droits et taxes Douaniers (DD-RS-PCS-PC-RI - TVA-PUA-TLP-PNS et autres) | F188: CDDI | G188: 45,000 | H188: Trésor | I188: FD_CDDI
A189: PLATEFORM INDUSTRIAL ADETIKOPE | B189: Minier | C189: Non extractive | D189: En numéraire | E189: Droits et taxes Douaniers (DD-RS-PCS-PC-RI - TVA-PUA-TLP-PNS et autres) | F189: CDDI | G189: 5,000 | H189: Trésor | I189: FD_CDDI
A190: PLATEFORM INDUSTRIAL ADETIKOPE | B190: Minier | C190: Non extractive | D190: En numéraire | E190: Droits et taxes Douaniers (DD-RS-PCS-PC-RI - TVA-PUA-TLP-PNS et autres) | F190: CDDI | G190: 5,000 | H190: Trésor | I190: FD_CDDI
A191: PLATEFORM INDUSTRIAL ADETIKOPE | B191: Minier | C191: Non extractive | D191: En numéraire | E191: Droits et taxes Douaniers (DD-RS-PCS-PC-RI - TVA-PUA-TLP-PNS et autres) | F191: CDDI | G191: 5,000 | H191: Trésor | I191: FD_CDDI
A192: PLATEFORM INDUSTRIAL ADETIKOPE | B192: Minier | C192: Non extractive | D192: En numéraire | E192: Droits et taxes Douaniers (DD-RS-PCS-PC-RI - TVA-PUA-TLP-PNS et autres) | F192: CDDI | G192: 5,000 | H192: Trésor | I192: FD_CDDI
A193: PLATEFORM INDUSTRIAL ADETIKOPE | B193: Minier | C193: Non extractive | D193: En numéraire | E193: Droits et taxes Douaniers (DD-RS-PCS-PC-RI - TVA-PUA-TLP-PNS et autres) | F193: CDDI | G193: 5,000 | H193: Trésor | I193: FD_CDDI
A194: PLATEFORM INDUSTRIAL ADETIKOPE | B194: Minier | C194: Non extractive | D194: En numéraire | E194: Droits et taxes Douaniers (DD-RS-PCS-PC-RI - TVA-PUA-TLP-PNS et autres) | F194: CDDI | G194: 5,000 | H194: Trésor | I194: FD_CDDI
A195: PLATEFORM INDUSTRIAL ADETIKOPE | B195: Minier | C195: Non extractive | D195: En numéraire | E195: Droits et taxes Douaniers (DD-RS-PCS-PC-RI - TVA-PUA-TLP-PNS et autres) | F195: CDDI | G195: 45,000 | H195: Trésor | I195: FD_CDDI
A196: PLATEFORM INDUSTRIAL ADETIKOPE | B196: Minier | C196: Non extractive | D196: En numéraire | E196: Droits et taxes Douaniers (DD-RS-PCS-PC-RI - TVA-PUA-TLP-PNS et autres) | F196: CDDI | G196: 45,000 | H196: Trésor | I196: FD_CDDI
A197: PLATEFORM INDUSTRIAL ADETIKOPE | B197: Minier | C197: Non extractive | D197: En numéraire | E197: Droits et taxes Douaniers (DD-RS-PCS-PC-RI - TVA-PUA-TLP-PNS et autres) | F197: CDDI | G197: 45,000 | H197: Trésor | I197: FD_CDDI
A198: PLATEFORM INDUSTRIAL ADETIKOPE | B198: Minier | C198: Non extractive | D198: En numéraire | E198: Droits et taxes Douaniers (DD-RS-PCS-PC-RI - TVA-PUA-TLP-PNS et autres) | F198: CDDI | G198: 6,500 | H198: Trésor | I198: FD_CDDI
A199: PLATEFORM INDUSTRIAL ADETIKOPE | B199: Minier | C199: Non extractive | D199: En numéraire | E199: Droits et taxes Douaniers (DD-RS-PCS-PC-RI - TVA-PUA-TLP-PNS et autres) | F199: CDDI | G199: 205,000 | H199: Trésor | I199: FD_CDDI
A200: PLATEFORM INDUSTRIAL ADETIKOPE | B200: Minier | C200: Non extractive | D200: En numéraire | E200: Droits et taxes Douaniers (DD-RS-PCS-PC-RI - TVA-PUA-TLP-PNS et autres) | F200: CDDI | G200: 5,000 | H200: Trésor | I200: FD_CDDI
A201: RELAXED | B201: Minier | C201: Non extractive | D201: En numéraire | E201: Droits et taxes Douaniers (DD-RS-PCS-PC-RI - TVA-PUA-TLP-PNS et autres) | F201: CDDI | G201: 13,000,501 | H201: Trésor | I201: FD_CDDI
A202: PLATEFORM INDUSTRIAL ADETIKOPE | B202: Minier | C202: Non extractive | D202: En numéraire | E202: Droits et taxes Douaniers (DD-RS-PCS-PC-RI - TVA-PUA-TLP-PNS et autres) | F202: CDDI | G202: 6,500 | H202: Trésor | I202: FD_CDDI
... 365 more rows

Sheet 15
B4: Modèle du formulaire de déclaration
B9: Formulaire de déclaration 2023 Régies Financières
B17: Formulaire de déclaration 2023 Entreprises Privées

Sheet 16
A1: Compilation des paiements
A3: Société | B3: Secteur | C3: Nature de société | D3: Nature de paiement | E3: Périmètre /Uni | F3: Flux | G3: Flux traité | H3: Régies | I3: Montant FCFA | J3: Affectation | K3: Ajustement | L3: Montant à rapporter | M3: Montant en millions | N3: Source | O3: Budgétaire | P3: Prélevé dans le cadre du projet (O/N) | Q3: Déclaré par projet (O/N) | R3: Projet ( Ref du titre minier/Bloc pétrolier)
A4: Autres sociétés | B4: Minier | C4: Extractives | D4: En numéraire | E4: P | F4: Contribution financière au développement local et régional (décret N° 2017-023) | G4: Contribution financière au développement local et régional | H4: Commune | I4: 32,886,484 | J4: Commune | L4: =+I4+K4 -> 32,886,484 | M4: =+L4/1000000 -> 32.89 | N4: PDF_DGTCP 2022 | P4: Oui | Q4: Non | R4: NA
A5: Autres sociétés | B5: Minier | C5: Extractives | D5: En numéraire | E5: P | F5: Contribution financière au développement local et régional (décret N° 2017-023) | G5: Contribution financière au développement local et régional | H5: Commune | I5: 267,442,751 | J5: Commune | L5: =+I5+K5 -> 267,442,751 | M5: =+L5/1000000 -> 267.44 | N5: PDF_DGTCP 2022 | P5: Oui | Q5: Non | R5: NA
A6: Autres sociétés | B6: Minier | C6: Extractives | D6: En numéraire | E6: P | F6: Contribution financière au développement local et régional (décret N° 2017-023) | G6: Contribution financière au développement local et régional | H6: Commune | I6: 197,063,080 | J6: Commune | L6: 197,063,080 | M6: =+L6/1000000 -> 197.06 | N6: PDF_DGTCP 2022 | P6: Oui | Q6: Non | R6: NA
A7: Autres sociétés | B7: Minier | C7: Extractives | D7: En numéraire | E7: P | F7: Contribution financière au développement local et régional (décret N° 2017-023) | G7: Contribution financière au développement local et régional | H7: Commune | I7: 704,756,213 | J7: Commune | L7: 704,756,213 | M7: =+L7/1000000 -> 704.76 | N7: PDF_DGTCP 2022 | P7: Oui | Q7: Non | R7: NA
A8: Autres sociétés | B8: Minier | C8: Extractives | D8: En numéraire | E8: P | F8: Contribution financière au développement local et régional (décret N° 2017-023) | G8: Contribution financière au développement local et régional | H8: Commune | I8: 2,478,089 | J8: Commune | L8: 2,478,089 | M8: 2.48 | N8: PDF_DGTCP 2022 | P8: Oui | Q8: Non | R8: NA
A9: Autres sociétés | B9: Minier | C9: Extractives | D9: En numéraire | E9: P | F9: Contribution financière au développement local et régional (décret N° 2017-023) | G9: Contribution financière au développement local et régional | H9: Commune | I9: 10,142,945 | J9: Commune | L9: 10,142,945 | M9: 10.14 | N9: PDF_DGTCP 2022 | P9: Oui | Q9: Non | R9: NA
A10: Autres sociétés | B10: Minier | C10: Extractives | D10: En numéraire | E10: P | F10: Contribution financière au développement local et régional (décret N° 2017-023) | G10: Contribution financière au développement local et régional | H10: Commune | I10: 16,994,097 | J10: Commune | L10: 16,994,097 | M10: 16.99 | N10: PDF_DGTCP 2022 | P10: Oui | Q10: Non | R10: NA
A11: Autres sociétés | B11: Minier | C11: Extractives | D11: En numéraire | E11: P | F11: Contribution financière au développement local et régional (décret N° 2017-023) | G11: Contribution financière au développement local et régional | H11: Commune | I11: 8,673,655 | J11: Commune | L11: 8,673,655 | M11: 8.67 | N11: PDF_DGTCP 2022 | P11: Oui | Q11: Non | R11: NA
A12: Autres sociétés | B12: Minier | C12: Extractives | D12: En numéraire | E12: P | F12: Contribution financière au développement local et régional (décret N° 2017-023) | G12: Contribution financière au développement local et régional | H12: Commune | I12: 25,692,957 | J12: Commune | L12: 25,692,957 | M12: 25.69 | N12: PDF_DGTCP 2022 | P12: Oui | Q12: Non | R12: NA
A13: Autres sociétés | B13: Minier | C13: Extractives | D13: En numéraire | E13: P | F13: Contribution financière au développement local et régional (décret N° 2017-023) | G13: Contribution financière au développement local et régional | H13: Commune | I13: 492,912,022 | J13: Commune | L13: 492,912,022 | M13: 492.91 | N13: PDF_DGTCP 2022 | P13: Oui | Q13: Non | R13: NA
A14: Autres sociétés | B14: Minier | C14: Extractives | D14: En numéraire | E14: P | F14: Contribution financière au développement local et régional (décret N° 2017-023) | G14: Contribution financière au développement local et régional | H14: Commune | I14: 95,790 | J14: Commune | L14: 95,790 | M14: 0.10 | N14: PDF_DGTCP 2022 | P14: Oui | Q14: Non | R14: NA
A15: SNPT | B15: Minier | C15: Extractives | D15: En numéraire | E15: P | F15: Cotisations sociales | G15: Cotisations sociales | H15: CNSS | I15: 1,386,731,895 | J15: CNSS | L15: 1,386,731,895 | M15: 1,386.73 | N15: FD_CNSS | P15: Non | Q15: Non | R15: PE-97-0001 / PE-97-0002
A16: SCANTOGO MINES | B16: Minier | C16: Extractives | D16: En numéraire | E16: P | F16: Cotisations sociales | G16: Cotisations sociales | H16: CNSS | I16: 366,695,372 | J16: CNSS | L16: 366,695,372 | M16: 366.70 | N16: FD_CNSS | P16: Non | Q16: Non | R16: AP-24-0001 / PE-09-0002 / PEPE-20-0001 / PEPE-20-0002
A17: WEST AFRICAN CEMENT (WACEM) | B17: Minier | C17: Extractives | D17: En numéraire | E17: P | F17: Cotisations sociales | G17: Cotisations sociales | H17: CNSS | I17: 188,656,605 | J17: CNSS | L17: 188,656,605 | M17: 188.66 | N17: FD_CNSS | P17: Non | Q17: Oui | R17: PE-09-0001
A18: TOGO CARRIERE | B18: Minier | C18: Extractives | D18: En numéraire | E18: P | F18: Cotisations sociales | G18: Cotisations sociales | H18: CNSS | I18: 47,828,500 | J18: CNSS | L18: 47,828,500 | M18: 47.83 | N18: FD_CNSS | P18: Non | Q18: Oui | R18: PEMC-24-0007
A19: POMAR TOGO SA | B19: Minier | C19: Extractives | D19: En numéraire | E19: P | F19: Cotisations sociales | G19: Cotisations sociales | H19: CNSS | I19: 67,673,309 | J19: CNSS | L19: 67,673,309 | M19: 67.67 | N19: FD_CNSS | P19: Non | Q19: Oui | R19: PE 10-0001
A20: MING MING MATCO | B20: Minier | C20: Extractives | D20: En numéraire | E20: P | F20: Cotisations sociales | G20: Cotisations sociales | H20: CNSS | I20: 12,894,602 | J20: CNSS | L20: 12,894,602 | M20: 12.89 | N20: FD_CNSS | P20: Non | Q20: Oui | R20: PEPE 23-0009
A21: GRANUTOGO | B21: Minier | C21: Extractives | D21: En numéraire | E21: P | F21: Cotisations sociales | G21: Cotisations sociales | H21: CNSS | I21: 754,274 | J21: CNSS | L21: 754,274 | M21: 0.75 | N21: FD_CNSS | P21: Non | Q21: Oui | R21: PEPE-21-0001
A22: SAMARIA | B22: Minier | C22: Extractives | D22: En numéraire | E22: P | F22: Cotisations sociales | G22: Cotisations sociales | H22: CNSS | I22: 900,000 | J22: CNSS | L22: 900,000 | M22: 0.90 | N22: FD_CNSS | P22: Non | Q22: Non | R22: PEPE 20-0001 / PEPE 22-0006 / PEMC 16-0007
A23: SNPT | B23: Minier | C23: Extractives | D23: En numéraire | E23: P | F23: Dividende | G23: Dividende | H23: DGTCP | I23: 10,215,000,000 | J23: Trésor | L23: 10,215,000,000 | M23: 10,215.00 | N23: FD_DGTCP | O23: Oui | P23: Oui | Q23: Non | R23: PE-97-0001 / PE-97-0002
A24: MING MING MATCO | B24: Minier | C24: Extractives | D24: En numéraire | E24: P | F24: Frais d'étude et de visa des règlements intérieurs | G24: Frais d'étude et de visa des règlements intérieurs | H24: DGTLS | I24: 10,000 | J24: Trésor | L24: 10,000 | M24: 0.01 | N24: FD_DGTLS | O24: Oui | P24: Non | Q24: Oui | R24: PEPE 23-0009
A25: POMAR TOGO SA | B25: Minier | C25: Extractives | D25: En numéraire | E25: P | F25: Taxes de visa des contrats des étrangers | G25: Taxes de visa des contrats des étrangers | H25: DGTLS | I25: 41,000 | J25: Trésor | L25: 41,000 | M25: 0.04 | N25: FD_DGTLS | O25: Oui | P25: Non | Q25: Oui | R25: PE 10-0001
A26: SCANTOGO MINES | B26: Minier | C26: Extractives | D26: En numéraire | E26: P | F26: Taxes de visa des contrats des étrangers | G26: Taxes de visa des contrats des étrangers | H26: DGTLS | I26: 391,644 | J26: Trésor | L26: 391,644 | M26: 0.39 | N26: FD_DGTLS | O26: Oui | P26: Non | Q26: Non | R26: AP-24-0001 / PE-09-0002 / PEPE-20-0001 / PEPE-20-0002
A27: SCANTOGO MINES | B27: Minier | C27: Extractives | D27: En numéraire | E27: P | F27: Taxes de visa des contrats des étrangers | G27: Taxes de visa des contrats des étrangers | H27: DGTLS | I27: 2,114,251 | J27: Trésor | L27: 2,114,251 | M27: 2.11 | N27: FD_DGTLS | O27: Oui | P27: Non | Q27: Non | R27: AP-24-0001 / PE-09-0002 / PEPE-20-0001 / PEPE-20-0002
A28: SCANTOGO MINES | B28: Minier | C28: Extractives | D28: En numéraire | E28: P | F28: Taxes de visa des contrats des étrangers | G28: Taxes de visa des contrats des étrangers | H28: DGTLS | I28: 391,644 | J28: Trésor | L28: 391,644 | M28: 0.39 | N28: FD_DGTLS | O28: Oui | P28: Non | Q28: Non | R28: AP-24-0001 / PE-09-0002 / PEPE-20-0001 / PEPE-20-0002
A29: SCANTOGO MINES | B29: Minier | C29: Extractives | D29: En numéraire | E29: P | F29: Taxes de visa des contrats des étrangers | G29: Taxes de visa des contrats des étrangers | H29: DGTLS | I29: 1,003,539 | J29: Trésor | L29: 1,003,539 | M29: 1.00 | N29: FD_DGTLS | O29: Oui | P29: Non | Q29: Non | R29: AP-24-0001 / PE-09-0002 / PEPE-20-0001 / PEPE-20-0002
A30: SCANTOGO MINES | B30: Minier | C30: Extractives | D30: En numéraire | E30: P | F30: Taxes de visa des contrats des étrangers | G30: Taxes de visa des contrats des étrangers | H30: DGTLS | I30: 3,623,907 | J30: Trésor | L30: 3,623,907 | M30: 3.62 | N30: FD_DGTLS | O30: Oui | P30: Non | Q30: Non | R30: AP-24-0001 / PE-09-0002 / PEPE-20-0001 / PEPE-20-0002
A31: SCANTOGO MINES | B31: Minier | C31: Extractives | D31: En numéraire | E31: P | F31: Taxes de visa des contrats des étrangers | G31: Taxes de visa des contrats des étrangers | H31: DGTLS | I31: 881,119 | J31: Trésor | L31: 881,119 | M31: 0.88 | N31: FD_DGTLS | O31: Oui | P31: Non | Q31: Non | R31: AP-24-0001 / PE-09-0002 / PEPE-20-0001 / PEPE-20-0002
A32: SCANTOGO MINES | B32: Minier | C32: Extractives | D32: En numéraire | E32: P | F32: Taxes de visa des contrats des étrangers | G32: Taxes de visa des contrats des étrangers | H32: DGTLS | I32: 1,462,778 | J32: Trésor | L32: 1,462,778 | M32: 1.46 | N32: FD_DGTLS | O32: Oui | P32: Non | Q32: Non | R32: AP-24-0001 / PE-09-0002 / PEPE-20-0001 / PEPE-20-0002
A33: TOGO CARRIERE | B33: Minier | C33: Extractives | D33: En numéraire | E33: P | F33: Taxes de visa des contrats des étrangers | G33: Taxes de visa des contrats des étrangers | H33: DGTLS | I33: 166,805 | J33: Trésor | L33: 166,805 | M33: 0.17 | N33: FD_DGTLS | O33: Oui | P33: Non | Q33: Oui | R33: PEMC-24-0007
A34: TOGO CARRIERE | B34: Minier | C34: Extractives | D34: En numéraire | E34: P | F34: Taxes de visa des contrats des étrangers | G34: Taxes de visa des contrats des étrangers | H34: DGTLS | I34: 19,015 | J34: Trésor | L34: 19,015 | M34: 0.02 | N34: FD_DGTLS | O34: Oui | P34: Non | Q34: Oui | R34: PEMC-24-0007
A35: SOCIETE EMT | B35: Minier | C35: Extractives | D35: En numéraire | E35: U | F35: Taxes de visa des contrats des étrangers | G35: Taxes de visa des contrats des étrangers | H35: DGTLS | I35: 40,000 | J35: Trésor | L35: 40,000 | M35: 0.04 | N35: FD_DGTLS | O35: Oui | P35: Non | Q35: Non | R35: NA
A36: SEERMA SARL | B36: Minier | C36: Extractives | D36: En numéraire | E36: U | F36: Taxes de visa des contrats des étrangers | G36: Taxes de visa des contrats des étrangers | H36: DGTLS | I36: 12,000 | J36: Trésor | L36: 12,000 | M36: 0.01 | N36: FD_DGTLS | O36: Oui | P36: Non | Q36: Non | R36: NA
A37: TOGO MINERALS SARL | B37: Minier | C37: Extractives | D37: En numéraire | E37: U | F37: Taxe sur la délivrance de certificat de conformité environnementale | G37: Taxe sur la délivrance de certificat de conformité environnementale | H37: ANGE | I37: 152,021 | J37: ANGE | L37: 152,021 | M37: 0.15 | N37: FD_ANGE | P37: Oui | Q37: Oui | R37: PEMC-23-0006
A38: US XIN ALAFIA | B38: Minier | C38: Extractives | D38: En numéraire | E38: U | F38: Certificat de régularisation environnementale | G38: Certificat de régularisation environnementale | H38: ANGE | I38: 39,613 | J38: ANGE | L38: 39,613 | M38: 0.04 | N38: FD_ANGE | P38: Oui | Q38: Oui | R38: PEMC 16-0001
A39: ALMACAR TOGO SA | B39: Minier | C39: Extractives | D39: En numéraire | E39: U | F39: Certificat de régularisation environnementale | G39: Certificat de régularisation environnementale | H39: ANGE | I39: 67,375 | J39: ANGE | L39: 67,375 | M39: 0.07 | N39: FD_ANGE | P39: Oui | Q39: Oui | R39: PEMC-12-0008
A40: SCANTOGO MINES | B40: Minier | C40: Extractives | D40: En numéraire | E40: P | F40: Redevances superficiares | G40: Redevances superficiares | H40: DGMG | I40: 303,750 | J40: Trésor | L40: 303,750 | M40: 0.30 | N40: FD_DGMG | O40: Oui | P40: Oui | Q40: Non | R40: AP-24-0001 / PE-09-0002 / PEPE-20-0001 / PEPE-20-0002
A41: SCANTOGO MINES | B41: Minier | C41: Extractives | D41: En numéraire | E41: P | F41: Redevances superficiares | G41: Redevances superficiares | H41: DGMG | I41: 2,115,000 | J41: Trésor | L41: 2,115,000 | M41: 2.12 | N41: FD_DGMG | O41: Oui | P41: Oui | Q41: Non | R41: AP-24-0001 / PE-09-0002 / PEPE-20-0001 / PEPE-20-0002
A42: SCANTOGO MINES | B42: Minier | C42: Extractives | D42: En numéraire | E42: P | F42: Redevances superficiares | G42: Redevances superficiares | H42: DGMG | I42: 294,000 | J42: Trésor | L42: 294,000 | M42: 0.29 | N42: FD_DGMG | O42: Oui | P42: Oui | Q42: Non | R42: AP-24-0001 / PE-09-0002 / PEPE-20-0001 / PEPE-20-0002
A43: SCANTOGO MINES | B43: Minier | C43: Extractives | D43: En numéraire | E43: P | F43: Redeavnces minières | G43: Redevances Minières | H43: DGMG | I43: 1,228,233,850 | J43: Trésor | L43: 1,228,233,850 | M43: 1,228.23 | N43: FD_DGMG | O43: Oui | P43: Oui | Q43: Non | R43: AP-24-0001 / PE-09-0002 / PEPE-20-0001 / PEPE-20-0002
A44: SNPT | B44: Minier | C44: Extractives | D44: En numéraire | E44: P | F44: Redeavnces minières | G44: Redevances Minières | H44: DGMG | I44: 43,547,701,269 | J44: Trésor | L44: 43,547,701,269 | M44: 43,547.70 | N44: Rapport d'exécution du budget | O44: Oui | P44: Oui | Q44: Non | R44: PE-97-0001 / PE-97-0002
A45: SCANTOGO MINES | B45: Minier | C45: Extractives | D45: En numéraire | E45: P | F45: Redeavnces minières | G45: Redevances Minières | H45: DGMG | I45: 39,715,545 | J45: Trésor | L45: 39,715,545 | M45: 39.72 | N45: FD_DGMG | O45: Oui | P45: Oui | Q45: Non | R45: AP-24-0001 / PE-09-0002 / PEPE-20-0001 / PEPE-20-0002
A46: WEST AFRICAN CEMENT (WACEM) | B46: Minier | C46: Extractives | D46: En numéraire | E46: P | F46: Redeavnces minières | G46: Redevances superficiares | H46: DGMG | I46: 3,825,000 | J46: Trésor | L46: 3,825,000 | M46: 3.83 | N46: FD_DGMG | O46: Oui | P46: Oui | Q46: Oui | R46: PE-09-0001
A47: WEST AFRICAN CEMENT (WACEM) | B47: Minier | C47: Extractives | D47: En numéraire | E47: P | F47: Redeavnces minières | G47: Redevances Minières | H47: DGMG | I47: 200,000,000 | J47: Trésor | L47: 200,000,000 | M47: 200.00 | N47: FD_DGMG | O47: Oui | P47: Oui | Q47: Oui | R47: PE-09-0001
A48: WEST AFRICAN CEMENT (WACEM) | B48: Minier | C48: Extractives | D48: En numéraire | E48: P | F48: Redeavnces minières | G48: Redevances Minières | H48: DGMG | I48: 235,865,814 | J48: Trésor | L48: 235,865,814 | M48: 235.87 | N48: FD_DGMG | O48: Oui | P48: Oui | Q48: Oui | R48: PE-09-0001
A49: TOGO CARRIERE | B49: Minier | C49: Extractives | D49: En numéraire | E49: P | F49: Redeavnces minières | G49: Redevances superficiares | H49: DGMG | I49: 100,000 | J49: Trésor | L49: 100,000 | M49: 0.10 | N49: FD_DGMG | O49: Oui | P49: Oui | Q49: Oui | R49: PEMC-24-0007
A50: TOGO CARRIERE | B50: Minier | C50: Extractives | D50: En numéraire | E50: P | F50: Redeavnces minières | G50: Redevances Minières | H50: DGMG | I50: 3,741,200 | J50: Trésor | L50: 3,741,200 | M50: 3.74 | N50: FD_DGMG | O50: Oui | P50: Oui | Q50: Oui | R50: PEMC-24-0007
A51: TOGO CARRIERE | B51: Minier | C51: Extractives | D51: En numéraire | E51: P | F51: Redeavnces minières | G51: Redevances Minières | H51: DGMG | I51: 3,283,496 | J51: Trésor | L51: 3,283,496 | M51: 3.28 | N51: FD_DGMG | O51: Oui | P51: Oui | Q51: Oui | R51: PEMC-24-0007
A52: TOGO CARRIERE | B52: Minier | C52: Extractives | D52: En numéraire | E52: P | F52: Redeavnces minières | G52: Redevances Minières | H52: DGMG | I52: 8,918,500 | J52: Trésor | L52: 8,918,500 | M52: 8.92 | N52: FD_DGMG | O52: Oui | P52: Oui | Q52: Oui | R52: PEMC-24-0007
A53: TOGO CARRIERE | B53: Minier | C53: Extractives | D53: En numéraire | E53: P | F53: Redeavnces minières | G53: Redevances Minières | H53: DGMG | I53: 5,124,826 | J53: Trésor | L53: 5,124,826 | M53: 5.12 | N53: FD_DGMG | O53: Oui | P53: Oui | Q53: Oui | R53: PEMC-24-0007
A54: TOGO CARRIERE | B54: Minier | C54: Extractives | D54: En numéraire | E54: P | F54: Redeavnces minières | G54: Redevances Minières | H54: DGMG | I54: 7,584,981 | J54: Trésor | L54: 7,584,981 | M54: 7.58 | N54: FD_DGMG | O54: Oui | P54: Oui | Q54: Oui | R54: PEMC-24-0007
A55: TOGO RAIL | B55: Minier | C55: Extractives | D55: En numéraire | E55: P | F55: Redeavnces minières | G55: Redevances superficiares | H55: DGMG | I55: 100,000 | J55: Trésor | L55: 100,000 | M55: 0.10 | N55: FD_DGMG | O55: Oui | P55: Oui | Q55: Oui | R55: PEMC-18-0005
A56: TOGO RAIL | B56: Minier | C56: Extractives | D56: En numéraire | E56: P | F56: Redeavnces minières | G56: Redevances Minières | H56: DGMG | I56: 1,764,200 | J56: Trésor | L56: 1,764,200 | M56: 1.76 | N56: FD_DGMG | O56: Oui | P56: Oui | Q56: Oui | R56: PEMC-18-0005
A57: TOGO RAIL | B57: Minier | C57: Extractives | D57: En numéraire | E57: P | F57: Redeavnces minières | G57: Redevances Minières | H57: DGMG | I57: 1,043,500 | J57: Trésor | L57: 1,043,500 | M57: 1.04 | N57: FD_DGMG | O57: Oui | P57: Oui | Q57: Oui | R57: PEMC-18-0005
A58: TOGO RAIL | B58: Minier | C58: Extractives | D58: En numéraire | E58: P | F58: Redeavnces minières | G58: Redevances Minières | H58: DGMG | I58: 678,500 | J58: Trésor | L58: 678,500 | M58: 0.68 | N58: FD_DGMG | O58: Oui | P58: Oui | Q58: Oui | R58: PEMC-18-0005
A59: TOGO RAIL | B59: Minier | C59: Extractives | D59: En numéraire | E59: P | F59: Redeavnces minières | G59: Redevances Minières | H59: DGMG | I59: 573,800 | J59: Trésor | L59: 573,800 | M59: 0.57 | N59: FD_DGMG | O59: Oui | P59: Oui | Q59: Oui | R59: PEMC-18-0005
A60: GRANUTOGO | B60: Minier | C60: Extractives | D60: En numéraire | E60: P | F60: Redeavnces minières | G60: Redevances superficiares | H60: DGMG | I60: 75,000 | J60: Trésor | L60: 75,000 | M60: 0.08 | N60: FD_DGMG | O60: Oui | P60: Oui | Q60: Oui | R60: PEPE-21-0001
A61: GRANUTOGO | B61: Minier | C61: Extractives | D61: En numéraire | E61: P | F61: Redeavnces minières | G61: Redevances Minières | H61: DGMG | I61: 16,525,400 | J61: Trésor | L61: 16,525,400 | M61: 16.53 | N61: FD_DGMG | O61: Oui | P61: Oui | Q61: Oui | R61: PEPE-21-0001
A62: CIMCO | B62: Minier | C62: Extractives | D62: En numéraire | E62: P | F62: Redeavnces minières | G62: Redevances superficiares | H62: DGMG | I62: 210,000 | J62: Trésor | L62: 210,000 | M62: 0.21 | N62: FD_DGMG | O62: Oui | P62: Oui | Q62: Oui | R62: PEPE-22-0001
A63: CIMCO | B63: Minier | C63: Extractives | D63: En numéraire | E63: P | F63: Redeavnces minières | G63: Redevances Minières | H63: DGMG | I63: 11,073,848 | J63: Trésor | L63: 11,073,848 | M63: 11.07 | N63: FD_DGMG | O63: Oui | P63: Oui | Q63: Oui | R63: PEPE-22-0001
A64: CIMCO | B64: Minier | C64: Extractives | D64: En numéraire | E64: P | F64: Redeavnces minières | G64: Redevances Minières | H64: DGMG | I64: 4,494,488 | J64: Trésor | L64: 4,494,488 | M64: 4.49 | N64: FD_DGMG | O64: Oui | P64: Oui | Q64: Oui | R64: PEPE-22-0001
A65: SOROUBAT - TOGO | B65: Minier | C65: Extractives | D65: En numéraire | E65: U | F65: Frais d’instruction du dossier | G65: Frais d’instruction du dossier | H65: DGMG | I65: 350,000 | J65: Trésor | L65: 350,000 | M65: 0.35 | N65: FD_DGMG | O65: Oui | P65: Oui | Q65: Non | R65: PEMC 20-0002 / PEMC 23-0005
A66: CHINA ROAD AND BRIDGE CORPORATION (CRBC) | B66: Minier | C66: Extractives | D66: En numéraire | E66: U | F66: Frais d’instruction du dossier | G66: Frais d’instruction du dossier | H66: DGMG | I66: 500,000 | J66: Trésor | L66: 500,000 | M66: 0.50 | N66: FD_DGMG | O66: Oui | P66: Oui | Q66: Oui | R66: PEMC 23-0004
A67: TGC SA / CENTRO ET XING FA SARLU | B67: Minier | C67: Extractives | D67: En numéraire | E67: U | F67: Frais d’instruction du dossier | G67: Frais d’instruction du dossier | H67: DGMG | I67: 350,000 | J67: Trésor | L67: 350,000 | M67: 0.35 | N67: FD_DGMG | O67: Oui | P67: Oui | Q67: Oui | R67: PEMC 18-0009
A68: SOCIETE EMT | B68: Minier | C68: Extractives | D68: En numéraire | E68: U | F68: Frais d’instruction du dossier | G68: Frais d’instruction du dossier | H68: DGMG | I68: 350,000 | J68: Trésor | L68: 350,000 | M68: 0.35 | N68: FD_DGMG | O68: Oui | P68: Oui | Q68: Non | R68: NA
A69: ISAGES | B69: Minier | C69: Extractives | D69: En numéraire | E69: U | F69: Frais d’instruction du dossier | G69: Frais d’instruction du dossier | H69: DGMG | I69: 700,000 | J69: Trésor | L69: 700,000 | M69: 0.70 | N69: FD_DGMG | O69: Oui | P69: Oui | Q69: Non | R69: NA
A70: PLATEFORME INDUSTRIELLE D'ADETIOPE (P.I.A) | B70: Minier | C70: Extractives | D70: En numéraire | E70: U | F70: Frais d’instruction du dossier | G70: Frais d’instruction du dossier | H70: DGMG | I70: 1,050,000 | J70: Trésor | L70: =+I70+K70 -> 1,050,000 | M70: 1.05 | N70: FD_DGMG | O70: Oui | P70: Oui | Q70: Non | R70: NA
A71: US XIN ALAFIA | B71: Minier | C71: Extractives | D71: En numéraire | E71: U | F71: Frais d’instruction du dossier | G71: Frais d’instruction du dossier | H71: DGMG | I71: 350,000 | J71: Trésor | L71: 350,000 | M71: =+L71/1000000 -> 0.35 | N71: FD_DGMG | O71: Oui | P71: Oui | Q71: Oui | R71: PEMC 16-0001
A72: ETS RELAXED | B72: Minier | C72: Extractives | D72: En numéraire | E72: U | F72: Frais d’instruction du dossier | G72: Frais d’instruction du dossier | H72: DGMG | I72: 700,000 | J72: Trésor | L72: 700,000 | M72: 0.70 | N72: FD_DGMG | O72: Oui | P72: Oui | Q72: Oui | R72: AA-23-0038
A73: RAKAKO BTP SARL | B73: Minier | C73: Extractives | D73: En numéraire | E73: U | F73: Frais d’instruction du dossier | G73: Frais d’instruction du dossier | H73: DGMG | I73: 350,000 | J73: Trésor | L73: 350,000 | M73: 0.35 | N73: FD_DGMG | O73: Oui | P73: Oui | Q73: Oui | R73: AA-23-0023
A74: Etablissement ATTIO ET FILS | B74: Minier | C74: Extractives | D74: En numéraire | E74: U | F74: Frais d’instruction du dossier | G74: Frais d’instruction du dossier | H74: DGMG | I74: 350,000 | J74: Trésor | L74: 350,000 | M74: 0.35 | N74: FD_DGMG | O74: Oui | P74: Oui | Q74: Oui | R74: AA-18-0002
A75: TOGO MINERALS SARL | B75: Minier | C75: Extractives | D75: En numéraire | E75: U | F75: Frais d’instruction du dossier | G75: Frais d’instruction du dossier | H75: DGMG | I75: 350,000 | J75: Trésor | L75: 350,000 | M75: 0.35 | N75: FD_DGMG | O75: Oui | P75: Oui | Q75: Oui | R75: PEMC-23-0006
A76: CORNERSTONE GROUP INTERNATIONAL | B76: Minier | C76: Extractives | D76: En numéraire | E76: U | F76: Frais d’instruction du dossier | G76: Frais d’instruction du dossier | H76: DGMG | I76: 350,000 | J76: Trésor | L76: 350,000 | M76: 0.35 | N76: FD_DGMG | O76: Oui | P76: Oui | Q76: Oui | R76: PEMC-24-0001
A77: Etablissement BIDJOFILS | B77: Minier | C77: Extractives | D77: En numéraire | E77: U | F77: Frais d’instruction du dossier | G77: Frais d’instruction du dossier | H77: DGMG | I77: 350,000 | J77: Trésor | L77: 350,000 | M77: 0.35 | N77: FD_DGMG | O77: Oui | P77: Oui | Q77: Oui | R77: AA23-0034
A78: DIEU EST GRAND | B78: Minier | C78: Extractives | D78: En numéraire | E78: U | F78: Frais d’instruction du dossier | G78: Frais d’instruction du dossier | H78: DGMG | I78: 350,000 | J78: Trésor | L78: 350,000 | M78: 0.35 | N78: FD_DGMG | O78: Oui | P78: Oui | Q78: Oui | R78: AA23-0034
A79: ETS LE PLATEAU | B79: Minier | C79: Extractives | D79: En numéraire | E79: U | F79: Frais d’instruction du dossier | G79: Frais d’instruction du dossier | H79: DGMG | I79: 350,000 | J79: Trésor | L79: 350,000 | M79: 0.35 | N79: FD_DGMG | O79: Oui | P79: Oui | Q79: Oui | R79: AA-24-0002
A80: Etablissement ROSADE | B80: Minier | C80: Extractives | D80: En numéraire | E80: U | F80: Frais d’instruction du dossier | G80: Frais d’instruction du dossier | H80: DGMG | I80: 350,000 | J80: Trésor | L80: 350,000 | M80: 0.35 | N80: FD_DGMG | O80: Oui | P80: Oui | Q80: Oui | R80: AA-22-0003
A81: Etablissement LAMA SAPHIR | B81: Minier | C81: Extractives | D81: En numéraire | E81: U | F81: Frais d’instruction du dossier | G81: Frais d’instruction du dossier | H81: DGMG | I81: 350,000 | J81: Trésor | L81: 350,000 | M81: 0.35 | N81: FD_DGMG | O81: Oui | P81: Oui | Q81: Non | R81: AA-21-0004 & AA-22-0005
A82: Etablissement la GAZELLE | B82: Minier | C82: Extractives | D82: En numéraire | E82: U | F82: Frais d’instruction du dossier | G82: Frais d’instruction du dossier | H82: DGMG | I82: 350,000 | J82: Trésor | L82: 350,000 | M82: 0.35 | N82: FD_DGMG | O82: Oui | P82: Oui | Q82: Oui | R82: AA23-0040
A83: SOCIETE RECA - TOGO | B83: Minier | C83: Extractives | D83: En numéraire | E83: U | F83: Frais d’instruction du dossier | G83: Frais d’instruction du dossier | H83: DGMG | I83: 350,000 | J83: Trésor | L83: 350,000 | M83: 0.35 | N83: FD_DGMG | O83: Oui | P83: Oui | Q83: Oui | R83: AA-23-0039
A84: ETS MEL | B84: Minier | C84: Extractives | D84: En numéraire | E84: U | F84: Frais d’instruction du dossier | G84: Frais d’instruction du dossier | H84: DGMG | I84: 350,000 | J84: Trésor | L84: 350,000 | M84: 0.35 | N84: FD_DGMG | O84: Oui | P84: Oui | Q84: Non | R84: NA
A85: Etablissement NAT-MAT | B85: Minier | C85: Extractives | D85: En numéraire | E85: U | F85: Frais d’instruction du dossier | G85: Frais d’instruction du dossier | H85: DGMG | I85: 350,000 | J85: Trésor | L85: 350,000 | M85: 0.35 | N85: FD_DGMG | O85: Oui | P85: Oui | Q85: Oui | R85: AA-24-0003
A86: A.K.A. BUSINESS | B86: Minier | C86: Extractives | D86: En numéraire | E86: U | F86: Frais d’instruction du dossier | G86: Frais d’instruction du dossier | H86: DGMG | I86: 350,000 | J86: Trésor | L86: 350,000 | M86: 0.35 | N86: FD_DGMG | O86: Oui | P86: Oui | Q86: Non | R86: NA
A87: FAMOUS PRODUCTION | B87: Minier | C87: Extractives | D87: En numéraire | E87: U | F87: Frais d’instruction du dossier | G87: Frais d’instruction du dossier | H87: DGMG | I87: 350,000 | J87: Trésor | L87: 350,000 | M87: 0.35 | N87: FD_DGMG | O87: Oui | P87: Oui | Q87: Oui | R87: AA24-0001
A88: Société SESG | B88: Minier | C88: Extractives | D88: En numéraire | E88: U | F88: Frais d’instruction du dossier | G88: Frais d’instruction du dossier | H88: DGMG | I88: 350,000 | J88: Trésor | L88: 350,000 | M88: 0.35 | N88: FD_DGMG | O88: Oui | P88: Oui | Q88: Non | R88: NA
A89: NTIFAFA COME AND SEE | B89: Minier | C89: Extractives | D89: En numéraire | E89: U | F89: Frais d’instruction du dossier | G89: Frais d’instruction du dossier | H89: DGMG | I89: 350,000 | J89: Trésor | L89: 350,000 | M89: 0.35 | N89: FD_DGMG | O89: Oui | P89: Oui | Q89: Non | R89: NA
A90: CARRIERE LUMIERE | B90: Minier | C90: Extractives | D90: En numéraire | E90: U | F90: Frais d’instruction du dossier | G90: Frais d’instruction du dossier | H90: DGMG | I90: 350,000 | J90: Trésor | L90: 350,000 | M90: 0.35 | N90: FD_DGMG | O90: Oui | P90: Oui | Q90: Oui | R90: AA23-0042
A91: ETS FIOKOUNA DE DIEU | B91: Minier | C91: Extractives | D91: En numéraire | E91: U | F91: Frais d’instruction du dossier | G91: Frais d’instruction du dossier | H91: DGMG | I91: 350,000 | J91: Trésor | L91: 350,000 | M91: 0.35 | N91: FD_DGMG | O91: Oui | P91: Oui | Q91: Oui | R91: AA-18-0022
A92: Etablissement RAMBLAI | B92: Minier | C92: Extractives | D92: En numéraire | E92: U | F92: Frais d’instruction du dossier | G92: Frais d’instruction du dossier | H92: DGMG | I92: 350,000 | J92: Trésor | L92: 350,000 | M92: 0.35 | N92: FD_DGMG | O92: Oui | P92: Oui | Q92: Oui | R92: AA-23-0041
A93: ENTREPRISE MNS/CRSSG-TOGO | B93: Minier | C93: Extractives | D93: En numéraire | E93: U | F93: Frais d’instruction du dossier | G93: Frais d’instruction du dossier | H93: DGMG | I93: 350,000 | J93: Trésor | L93: 350,000 | M93: 0.35 | N93: FD_DGMG | O93: Oui | P93: Oui | Q93: Oui | R93: AA-23-0043
A94: SOROUBAT - TOGO | B94: Minier | C94: Extractives | D94: En numéraire | E94: U | F94: Droits Fixes | G94: Droits Fixes | H94: DGMG | I94: 1,000,000 | J94: Trésor | L94: 1,000,000 | M94: 1.00 | N94: FD_DGMG | O94: Oui | P94: Oui | Q94: Non | R94: PEMC 20-0002 / PEMC 23-0005
A95: CHINA ROAD AND BRIDGE CORPORATION (CRBC) | B95: Minier | C95: Extractives | D95: En numéraire | E95: U | F95: Droits Fixes | G95: Droits Fixes | H95: DGMG | I95: 4,500,000 | J95: Trésor | L95: 4,500,000 | M95: 4.50 | N95: FD_DGMG | O95: Oui | P95: Oui | Q95: Oui | R95: PEMC 23-0004
A96: TGC SA / CENTRO ET XING FA SARLU | B96: Minier | C96: Extractives | D96: En numéraire | E96: U | F96: Droits Fixes | G96: Droits Fixes | H96: DGMG | I96: 1,000,000 | J96: Trésor | L96: 1,000,000 | M96: 1.00 | N96: FD_DGMG | O96: Oui | P96: Oui | Q96: Oui | R96: PEMC 18-0009
A97: SOCIETE EMT | B97: Minier | C97: Extractives | D97: En numéraire | E97: U | F97: Droits Fixes | G97: Droits Fixes | H97: DGMG | I97: 1,000,000 | J97: Trésor | L97: 1,000,000 | M97: 1.00 | N97: FD_DGMG | O97: Oui | P97: Oui | Q97: Non | R97: NA
A98: ISAGES | B98: Minier | C98: Extractives | D98: En numéraire | E98: U | F98: Droits Fixes | G98: Droits Fixes | H98: DGMG | I98: 1,000,000 | J98: Trésor | L98: 1,000,000 | M98: 1.00 | N98: FD_DGMG | O98: Oui | P98: Oui | Q98: Non | R98: NA
A99: PLATEFORME INDUSTRIELLE D'ADETIOPE (P.I.A) | B99: Minier | C99: Extractives | D99: En numéraire | E99: U | F99: Droits Fixes | G99: Droits Fixes | H99: DGMG | I99: 1,500,000 | J99: Trésor | L99: 1,500,000 | M99: 1.50 | N99: FD_DGMG | O99: Oui | P99: Oui | Q99: Non | R99: NA
A100: US XIN ALAFIA | B100: Minier | C100: Extractives | D100: En numéraire | E100: U | F100: Droits Fixes | G100: Droits Fixes | H100: DGMG | I100: 1,000,000 | J100: Trésor | L100: 1,000,000 | M100: 1.00 | N100: FD_DGMG | O100: Oui | P100: Oui | Q100: Oui | R100: PEMC 16-0001
A101: ETS RELAXED | B101: Minier | C101: Extractives | D101: En numéraire | E101: U | F101: Droits Fixes | G101: Droits Fixes | H101: DGMG | I101: 1,000,000 | J101: Trésor | L101: 1,000,000 | M101: 1.00 | N101: FD_DGMG | O101: Oui | P101: Oui | Q101: Oui | R101: AA-23-0038
A102: RAKAKO BTP SARL | B102: Minier | C102: Extractives | D102: En numéraire | E102: U | F102: Droits Fixes | G102: Droits Fixes | H102: DGMG | I102: 500,000 | J102: Trésor | L102: 500,000 | M102: 0.50 | N102: FD_DGMG | O102: Oui | P102: Oui | Q102: Oui | R102: AA-23-0023
A103: Etablissement ATTIO ET FILS | B103: Minier | C103: Extractives | D103: En numéraire | E103: U | F103: Droits Fixes | G103: Droits Fixes | H103: DGMG | I103: 500,000 | J103: Trésor | L103: 500,000 | M103: 0.50 | N103: FD_DGMG | O103: Oui | P103: Oui | Q103: Oui | R103: AA-18-0002
A104: TOGO MINERALS SARL | B104: Minier | C104: Extractives | D104: En numéraire | E104: U | F104: Droits Fixes | G104: Droits Fixes | H104: DGMG | I104: 1,000,000 | J104: Trésor | L104: 1,000,000 | M104: 1.00 | N104: FD_DGMG | O104: Oui | P104: Oui | Q104: Oui | R104: PEMC-23-0006
A105: CORNERSTONE GROUP INTERNATIONAL | B105: Minier | C105: Extractives | D105: En numéraire | E105: U | F105: Droits Fixes | G105: Droits Fixes | H105: DGMG | I105: 1,000,000 | J105: Trésor | L105: 1,000,000 | M105: 1.00 | N105: FD_DGMG | O105: Oui | P105: Oui | Q105: Oui | R105: PEMC-24-0001
A106: Etablissement BIDJOFILS | B106: Minier | C106: Extractives | D106: En numéraire | E106: U | F106: Droits Fixes | G106: Droits Fixes | H106: DGMG | I106: 500,000 | J106: Trésor | L106: 500,000 | M106: 0.50 | N106: FD_DGMG | O106: Oui | P106: Oui | Q106: Oui | R106: AA23-0034
A107: DIEU EST GRAND | B107: Minier | C107: Extractives | D107: En numéraire | E107: U | F107: Droits Fixes | G107: Droits Fixes | H107: DGMG | I107: 500,000 | J107: Trésor | L107: 500,000 | M107: 0.50 | N107: FD_DGMG | O107: Oui | P107: Oui | Q107: Oui | R107: AA23-0034
A108: ETS LE PLATEAU | B108: Minier | C108: Extractives | D108: En numéraire | E108: U | F108: Droits Fixes | G108: Droits Fixes | H108: DGMG | I108: 500,000 | J108: Trésor | L108: 500,000 | M108: 0.50 | N108: FD_DGMG | O108: Oui | P108: Oui | Q108: Oui | R108: AA-24-0002
A109: Etablissement ROSADE | B109: Minier | C109: Extractives | D109: En numéraire | E109: U | F109: Droits Fixes | G109: Droits Fixes | H109: DGMG | I109: 500,000 | J109: Trésor | L109: 500,000 | M109: 0.50 | N109: FD_DGMG | O109: Oui | P109: Oui | Q109: Oui | R109: AA-22-0003
A110: Etablissement LAMA SAPHIR | B110: Minier | C110: Extractives | D110: En numéraire | E110: U | F110: Droits Fixes | G110: Droits Fixes | H110: DGMG | I110: 500,000 | J110: Trésor | L110: 500,000 | M110: 0.50 | N110: FD_DGMG | O110: Oui | P110: Oui | Q110: Non | R110: AA-21-0004 & AA-22-0005
A111: Etablissement la GAZELLE | B111: Minier | C111: Extractives | D111: En numéraire | E111: U | F111: Droits Fixes | G111: Droits Fixes | H111: DGMG | I111: 500,000 | J111: Trésor | L111: 500,000 | M111: 0.50 | N111: FD_DGMG | O111: Oui | P111: Oui | Q111: Oui | R111: AA23-0040
A112: SOCIETE RECA - TOGO | B112: Minier | C112: Extractives | D112: En numéraire | E112: U | F112: Droits Fixes | G112: Droits Fixes | H112: DGMG | I112: 500,000 | J112: Trésor | L112: 500,000 | M112: 0.50 | N112: FD_DGMG | O112: Oui | P112: Oui | Q112: Oui | R112: AA-23-0039
A113: ETS MEL | B113: Minier | C113: Extractives | D113: En numéraire | E113: U | F113: Droits Fixes | G113: Droits Fixes | H113: DGMG | I113: 500,000 | J113: Trésor | L113: 500,000 | M113: 0.50 | N113: FD_DGMG | O113: Oui | P113: Oui | Q113: Non | R113: NA
A114: Etablissement NAT-MAT | B114: Minier | C114: Extractives | D114: En numéraire | E114: U | F114: Droits Fixes | G114: Droits Fixes | H114: DGMG | I114: 500,000 | J114: Trésor | L114: 500,000 | M114: 0.50 | N114: FD_DGMG | O114: Oui | P114: Oui | Q114: Oui | R114: AA-24-0003
A115: A.K.A. BUSINESS | B115: Minier | C115: Extractives | D115: En numéraire | E115: U | F115: Droits Fixes | G115: Droits Fixes | H115: DGMG | I115: 500,000 | J115: Trésor | L115: 500,000 | M115: 0.50 | N115: FD_DGMG | O115: Oui | P115: Oui | Q115: Non | R115: NA
A116: FAMOUS PRODUCTION | B116: Minier | C116: Extractives | D116: En numéraire | E116: U | F116: Droits Fixes | G116: Droits Fixes | H116: DGMG | I116: 500,000 | J116: Trésor | L116: 500,000 | M116: 0.50 | N116: FD_DGMG | O116: Oui | P116: Oui | Q116: Oui | R116: AA24-0001
A117: Société SESG | B117: Minier | C117: Extractives | D117: En numéraire | E117: U | F117: Droits Fixes | G117: Droits Fixes | H117: DGMG | I117: 500,000 | J117: Trésor | L117: 500,000 | M117: 0.50 | N117: FD_DGMG | O117: Oui | P117: Oui | Q117: Non | R117: NA
A118: NTIFAFA COME AND SEE | B118: Minier | C118: Extractives | D118: En numéraire | E118: U | F118: Droits Fixes | G118: Droits Fixes | H118: DGMG | I118: 500,000 | J118: Trésor | L118: 500,000 | M118: 0.50 | N118: FD_DGMG | O118: Oui | P118: Oui | Q118: Non | R118: NA
A119: CARRIERE LUMIERE | B119: Minier | C119: Extractives | D119: En numéraire | E119: U | F119: Droits Fixes | G119: Droits Fixes | H119: DGMG | I119: 500,000 | J119: Trésor | L119: 500,000 | M119: 0.50 | N119: FD_DGMG | O119: Oui | P119: Oui | Q119: Oui | R119: AA23-0042
A120: ETS FIOKOUNA DE DIEU | B120: Minier | C120: Extractives | D120: En numéraire | E120: U | F120: Droits Fixes | G120: Droits Fixes | H120: DGMG | I120: 500,000 | J120: Trésor | L120: 500,000 | M120: 0.50 | N120: FD_DGMG | O120: Oui | P120: Oui | Q120: Oui | R120: AA-18-0022
A121: Etablissement RAMBLAI | B121: Minier | C121: Extractives | D121: En numéraire | E121: U | F121: Droits Fixes | G121: Droits Fixes | H121: DGMG | I121: 500,000 | J121: Trésor | L121: 500,000 | M121: 0.50 | N121: FD_DGMG | O121: Oui | P121: Oui | Q121: Oui | R121: AA-23-0041
A122: ENTREPRISE MNS/CRSSG-TOGO | B122: Minier | C122: Extractives | D122: En numéraire | E122: U | F122: Droits Fixes | G122: Droits Fixes | H122: DGMG | I122: 500,000 | J122: Trésor | L122: 500,000 | M122: 0.50 | N122: FD_DGMG | O122: Oui | P122: Oui | Q122: Oui | R122: AA-23-0043
A123: SOROUBAT - TOGO | B123: Minier | C123: Extractives | D123: En numéraire | E123: U | F123: Redevances Superficiaires | G123: Redevances superficiares | H123: DGMG | I123: 200,000 | J123: Trésor | L123: 200,000 | M123: 0.20 | N123: FD_DGMG | O123: Oui | P123: Oui | Q123: Non | R123: PEMC 20-0002 / PEMC 23-0005
A124: US XIN ALAFIA | B124: Minier | C124: Extractives | D124: En numéraire | E124: U | F124: Redevances Superficiaires | G124: Redevances superficiares | H124: DGMG | I124: 200,000 | J124: Trésor | L124: 200,000 | M124: 0.20 | N124: FD_DGMG | O124: Oui | P124: Oui | Q124: Oui | R124: PEMC 16-0001
A125: ALMACAR TOGO SA | B125: Minier | C125: Extractives | D125: En numéraire | E125: U | F125: Redevances Superficiaires | G125: Redevances superficiares | H125: DGMG | I125: 200,000 | J125: Trésor | L125: 200,000 | M125: 0.20 | N125: FD_DGMG | O125: Oui | P125: Oui | Q125: Oui | R125: PEMC-12-0008
A126: CHINA ROAD AND BRIDGE CORPORATION (CRBC) | B126: Minier | C126: Extractives | D126: En numéraire | E126: U | F126: Redevances Superficiaires | G126: Redevances superficiares | H126: DGMG | I126: 75,000 | J126: Trésor | L126: 75,000 | M126: 0.08 | N126: FD_DGMG | O126: Oui | P126: Oui | Q126: Oui | R126: PEMC 23-0004
A127: SOGECAR | B127: Minier | C127: Extractives | D127: En numéraire | E127: U | F127: Redevances Superficiaires | G127: Redevances superficiares | H127: DGMG | I127: 100,000 | J127: Trésor | L127: 100,000 | M127: 0.10 | N127: FD_DGMG | O127: Oui | P127: Oui | Q127: Oui | R127: PEMC-12-0001
A128: TGC SA / CENTRO ET XING FA SARLU | B128: Minier | C128: Extractives | D128: En numéraire | E128: U | F128: Redevances Superficiaires | G128: Redevances superficiares | H128: DGMG | I128: 300,000 | J128: Trésor | L128: 300,000 | M128: 0.30 | N128: FD_DGMG | O128: Oui | P128: Oui | Q128: Oui | R128: PEMC 18-0009
A129: SOCIETE EMT | B129: Minier | C129: Extractives | D129: En numéraire | E129: U | F129: Redevances Superficiaires | G129: Redevances superficiares | H129: DGMG | I129: 200,000 | J129: Trésor | L129: 200,000 | M129: 0.20 | N129: FD_DGMG | O129: Oui | P129: Oui | Q129: Non | R129: NA
A130: ISAGES | B130: Minier | C130: Extractives | D130: En numéraire | E130: U | F130: Redevances Superficiaires | G130: Redevances superficiares | H130: DGMG | I130: 129,000 | J130: Trésor | L130: 129,000 | M130: 0.13 | N130: FD_DGMG | O130: Oui | P130: Oui | Q130: Non | R130: NA
A131: PLATEFORME INDUSTRIELLE D'ADETIOPE (P.I.A) | B131: Minier | C131: Extractives | D131: En numéraire | E131: U | F131: Redevances Superficiaires | G131: Redevances superficiares | H131: DGMG | I131: 6,000 | J131: Trésor | L131: 6,000 | M131: 0.01 | N131: FD_DGMG | O131: Oui | P131: Oui | Q131: Non | R131: NA
A132: US XIN ALAFIA | B132: Minier | C132: Extractives | D132: En numéraire | E132: U | F132: Redevances Superficiaires | G132: Redevances superficiares | H132: DGMG | I132: 200,000 | J132: Trésor | L132: 200,000 | M132: 0.20 | N132: FD_DGMG | O132: Oui | P132: Oui | Q132: Oui | R132: PEMC 16-0001
A133: ETS RELAXED | B133: Minier | C133: Extractives | D133: En numéraire | E133: U | F133: Redevances Superficiaires | G133: Redevances superficiares | H133: DGMG | I133: 733,000 | J133: Trésor | L133: 733,000 | M133: 0.73 | N133: FD_DGMG | O133: Oui | P133: Oui | Q133: Oui | R133: AA-23-0038
A134: SEERMA SARL | B134: Minier | C134: Extractives | D134: En numéraire | E134: U | F134: Redevances Superficiaires | G134: Redevances superficiares | H134: DGMG | I134: 258,000 | J134: Trésor | L134: =+I134+K134 -> 258,000 | M134: 0.26 | N134: FD_DGMG | O134: Oui | P134: Oui | Q134: Non | R134: NA
A135: RAKAKO BTP SARL | B135: Minier | C135: Extractives | D135: En numéraire | E135: U | F135: Redevances Superficiaires | G135: Redevances superficiares | H135: DGMG | I135: 173,500 | J135: Trésor | L135: 173,500 | M135: =+L135/1000000 -> 0.17 | N135: FD_DGMG | O135: Oui | P135: Oui | Q135: Oui | R135: AA-23-0023
A136: Etablissement ATTIO ET FILS | B136: Minier | C136: Extractives | D136: En numéraire | E136: U | F136: Redevances Superficiaires | G136: Redevances superficiares | H136: DGMG | I136: 150,000 | J136: Trésor | L136: 150,000 | M136: 0.15 | N136: FD_DGMG | O136: Oui | P136: Oui | Q136: Oui | R136: AA-18-0002
A137: TOGO MINERALS SARL | B137: Minier | C137: Extractives | D137: En numéraire | E137: U | F137: Redevances Superficiaires | G137: Redevances superficiares | H137: DGMG | I137: 100,000 | J137: Trésor | L137: 100,000 | M137: 0.10 | N137: FD_DGMG | O137: Oui | P137: Oui | Q137: Oui | R137: PEMC-23-0006
A138: CORNERSTONE GROUP INTERNATIONAL | B138: Minier | C138: Extractives | D138: En numéraire | E138: U | F138: Redevances Superficiaires | G138: Redevances superficiares | H138: DGMG | I138: 100,000 | J138: Trésor | L138: 100,000 | M138: 0.10 | N138: FD_DGMG | O138: Oui | P138: Oui | Q138: Oui | R138: PEMC-24-0001
A139: Etablissement BIDJOFILS | B139: Minier | C139: Extractives | D139: En numéraire | E139: U | F139: Redevances Superficiaires | G139: Redevances superficiares | H139: DGMG | I139: 415,500 | J139: Trésor | L139: 415,500 | M139: 0.42 | N139: FD_DGMG | O139: Oui | P139: Oui | Q139: Oui | R139: AA23-0034
A140: DIEU EST GRAND | B140: Minier | C140: Extractives | D140: En numéraire | E140: U | F140: Redevances Superficiaires | G140: Redevances superficiares | H140: DGMG | I140: 199,000 | J140: Trésor | L140: 199,000 | M140: 0.20 | N140: FD_DGMG | O140: Oui | P140: Oui | Q140: Oui | R140: AA23-0034
A141: ETS LE PLATEAU | B141: Minier | C141: Extractives | D141: En numéraire | E141: U | F141: Redevances Superficiaires | G141: Redevances superficiares | H141: DGMG | I141: 400,445 | J141: Trésor | L141: 400,445 | M141: 0.40 | N141: FD_DGMG | O141: Oui | P141: Oui | Q141: Oui | R141: AA-24-0002
A142: Etablissement ROSADE | B142: Minier | C142: Extractives | D142: En numéraire | E142: U | F142: Redevances Superficiaires | G142: Redevances superficiares | H142: DGMG | I142: 348,000 | J142: Trésor | L142: 348,000 | M142: 0.35 | N142: FD_DGMG | O142: Oui | P142: Oui | Q142: Oui | R142: AA-22-0003
A143: Etablissement LAMA SAPHIR | B143: Minier | C143: Extractives | D143: En numéraire | E143: U | F143: Redevances Superficiaires | G143: Redevances superficiares | H143: DGMG | I143: 275,500 | J143: Trésor | L143: 275,500 | M143: 0.28 | N143: FD_DGMG | O143: Oui | P143: Oui | Q143: Non | R143: AA-21-0004 & AA-22-0005
A144: Etablissement la GAZELLE | B144: Minier | C144: Extractives | D144: En numéraire | E144: U | F144: Redevances Superficiaires | G144: Redevances superficiares | H144: DGMG | I144: 70,000 | J144: Trésor | L144: 70,000 | M144: 0.07 | N144: FD_DGMG | O144: Oui | P144: Oui | Q144: Oui | R144: AA23-0040
A145: SOCIETE RECA - TOGO | B145: Minier | C145: Extractives | D145: En numéraire | E145: U | F145: Redevances Superficiaires | G145: Redevances superficiares | H145: DGMG | I145: 206,000 | J145: Trésor | L145: 206,000 | M145: 0.21 | N145: FD_DGMG | O145: Oui | P145: Oui | Q145: Oui | R145: AA-23-0039
A146: ETS MEL | B146: Minier | C146: Extractives | D146: En numéraire | E146: U | F146: Redevances Superficiaires | G146: Redevances superficiares | H146: DGMG | I146: 203,000 | J146: Trésor | L146: 203,000 | M146: 0.20 | N146: FD_DGMG | O146: Oui | P146: Oui | Q146: Non | R146: NA
A147: Etablissement NAT-MAT | B147: Minier | C147: Extractives | D147: En numéraire | E147: U | F147: Redevances Superficiaires | G147: Redevances superficiares | H147: DGMG | I147: 200,000 | J147: Trésor | L147: 200,000 | M147: 0.20 | N147: FD_DGMG | O147: Oui | P147: Oui | Q147: Oui | R147: AA-24-0003
A148: A.K.A. BUSINESS | B148: Minier | C148: Extractives | D148: En numéraire | E148: U | F148: Redevances Superficiaires | G148: Redevances superficiares | H148: DGMG | I148: 167,500 | J148: Trésor | L148: 167,500 | M148: 0.17 | N148: FD_DGMG | O148: Oui | P148: Oui | Q148: Non | R148: NA
A149: FAMOUS PRODUCTION | B149: Minier | C149: Extractives | D149: En numéraire | E149: U | F149: Redevances Superficiaires | G149: Redevances superficiares | H149: DGMG | I149: 153,500 | J149: Trésor | L149: 153,500 | M149: 0.15 | N149: FD_DGMG | O149: Oui | P149: Oui | Q149: Oui | R149: AA24-0001
A150: Société SESG | B150: Minier | C150: Extractives | D150: En numéraire | E150: U | F150: Redevances Superficiaires | G150: Redevances superficiares | H150: DGMG | I150: 150,000 | J150: Trésor | L150: 150,000 | M150: 0.15 | N150: FD_DGMG | O150: Oui | P150: Oui | Q150: Non | R150: NA
A151: NTIFAFA COME AND SEE | B151: Minier | C151: Extractives | D151: En numéraire | E151: U | F151: Redevances Superficiaires | G151: Redevances superficiares | H151: DGMG | I151: 134,500 | J151: Trésor | L151: 134,500 | M151: 0.13 | N151: FD_DGMG | O151: Oui | P151: Oui | Q151: Non | R151: NA
A152: CARRIERE LUMIERE | B152: Minier | C152: Extractives | D152: En numéraire | E152: U | F152: Redevances Superficiaires | G152: Redevances superficiares | H152: DGMG | I152: 132,500 | J152: Trésor | L152: 132,500 | M152: 0.13 | N152: FD_DGMG | O152: Oui | P152: Oui | Q152: Oui | R152: AA23-0042
A153: ETS FIOKOUNA DE DIEU | B153: Minier | C153: Extractives | D153: En numéraire | E153: U | F153: Redevances Superficiaires | G153: Redevances superficiares | H153: DGMG | I153: 115,500 | J153: Trésor | L153: 115,500 | M153: 0.12 | N153: FD_DGMG | O153: Oui | P153: Oui | Q153: Oui | R153: AA-18-0022
A154: Etablissement RAMBLAI | B154: Minier | C154: Extractives | D154: En numéraire | E154: U | F154: Redevances Superficiaires | G154: Redevances superficiares | H154: DGMG | I154: 75,500 | J154: Trésor | L154: 75,500 | M154: 0.08 | N154: FD_DGMG | O154: Oui | P154: Oui | Q154: Oui | R154: AA-23-0041
A155: ENTREPRISE MNS/CRSSG-TOGO | B155: Minier | C155: Extractives | D155: En numéraire | E155: U | F155: Redevances Superficiaires | G155: Redevances superficiares | H155: DGMG | I155: 51,745 | J155: Trésor | L155: 51,745 | M155: 0.05 | N155: FD_DGMG | O155: Oui | P155: Oui | Q155: Oui | R155: AA-23-0043
A156: TRAVAUX PUBLICS ET INFRASTRUCTURES GROUPE TPI | B156: Minier | C156: Extractives | D156: En numéraire | E156: U | F156: Redevances Superficiaires | G156: Redevances superficiares | H156: DGMG | I156: 100,000 | J156: Trésor | L156: 100,000 | M156: 0.10 | N156: FD_DGMG | O156: Oui | P156: Oui | Q156: Non | R156: NA
A157: THEE COREE SARLU | B157: Minier | C157: Extractives | D157: En numéraire | E157: U | F157: Redevances Superficiaires | G157: Redevances superficiares | H157: DGMG | I157: 100,000 | J157: Trésor | L157: 100,000 | M157: 0.10 | N157: FD_DGMG | O157: Oui | P157: Oui | Q157: Non | R157: NA
A158: SOCIETE SOGECAR | B158: Minier | C158: Extractives | D158: En numéraire | E158: U | F158: Redevances Superficiaires | G158: Redevances superficiares | H158: DGMG | I158: 100,000 | J158: Trésor | L158: 100,000 | M158: 0.10 | N158: FD_DGMG | O158: Oui | P158: Oui | Q158: Oui | R158: PEMC-12-0001
A159: Société XING FA SARLU | B159: Minier | C159: Extractives | D159: En numéraire | E159: U | F159: Redevances Superficiaires | G159: Redevances superficiares | H159: DGMG | I159: 100,000 | J159: Trésor | L159: 100,000 | M159: 0.10 | N159: FD_DGMG | O159: Oui | P159: Oui | Q159: Oui | R159: PEMC 18-0009
A160: ALMACAR TOGO SA | B160: Minier | C160: Extractives | D160: En numéraire | E160: U | F160: Redevances Superficiaires | G160: Redevances superficiares | H160: DGMG | I160: 200,000 | J160: Trésor | L160: 200,000 | M160: 0.20 | N160: FD_DGMG | O160: Oui | P160: Oui | Q160: Oui | R160: PEMC-12-0008
A161: SOROUBAT - TOGO | B161: Minier | C161: Extractives | D161: En numéraire | E161: U | F161: Redevances Minières | G161: Redevances Minières | H161: DGMG | I161: 6,820,000 | J161: Trésor | L161: 6,820,000 | M161: 6.82 | N161: FD_DGMG | O161: Oui | P161: Oui | Q161: Non | R161: PEMC 20-0002 / PEMC 23-0005
A162: ALMACAR TOGO SA | B162: Minier | C162: Extractives | D162: En numéraire | E162: U | F162: Redevances Minières | G162: Redevances Minières | H162: DGMG | I162: =293400+4280284 -> 4,573,684 | J162: Trésor | L162: 4,573,684 | M162: 4.57 | N162: FD_DGMG | O162: Oui | P162: Oui | Q162: Oui | R162: PEMC-12-0008
A163: SOGECAR | B163: Minier | C163: Extractives | D163: En numéraire | E163: U | F163: Redevances Minières | G163: Redevances Minières | H163: DGMG | I163: 7,947,500 | J163: Trésor | L163: 7,947,500 | M163: 7.95 | N163: FD_DGMG | O163: Oui | P163: Oui | Q163: Oui | R163: PEMC-12-0001
A164: TGC SA / CENTRO ET XING FA SARLU | B164: Minier | C164: Extractives | D164: En numéraire | E164: U | F164: Redevances Minières | G164: Redevances Minières | H164: DGMG | I164: 6,475,041 | J164: Trésor | L164: 6,475,041 | M164: 6.48 | N164: FD_DGMG | O164: Oui | P164: Oui | Q164: Oui | R164: PEMC 18-0009
A165: PANAFRICAN GOLD CORPORATION - TOGO | B165: Minier | C165: Extractives | D165: En numéraire | E165: U | F165: Redevances Minières | G165: Redevances Minières | H165: DGMG | I165: 1,189,870 | J165: Trésor | L165: 1,189,870 | M165: 1.19 | N165: FD_DGMG | O165: Oui | P165: Oui | Q165: Oui | R165: PEPE-23-0012
A166: SOCIETE EMT | B166: Minier | C166: Extractives | D166: En numéraire | E166: U | F166: Redevances Minières | G166: Redevances Minières | H166: DGMG | I166: 3,950,000 | J166: Trésor | L166: 3,950,000 | M166: 3.95 | N166: FD_DGMG | O166: Oui | P166: Oui | Q166: Non | R166: NA
A167: US XIN ALAFIA | B167: Minier | C167: Extractives | D167: En numéraire | E167: U | F167: Redevances Minières | G167: Redevances Minières | H167: DGMG | I167: 2,495,000 | J167: Trésor | L167: 2,495,000 | M167: 2.50 | N167: FD_DGMG | O167: Oui | P167: Oui | Q167: Oui | R167: PEMC 16-0001
A168: SEERMA SARL | B168: Minier | C168: Extractives | D168: En numéraire | E168: U | F168: Redevances Minières | G168: Redevances Minières | H168: DGMG | I168: 1,663,300 | J168: Trésor | L168: 1,663,300 | M168: 1.66 | N168: FD_DGMG | O168: Oui | P168: Oui | Q168: Non | R168: NA
A169: TRAVAUX PUBLICS ET INFRASTRUCTURES GROUPE TPI | B169: Minier | C169: Extractives | D169: En numéraire | E169: U | F169: Redevances Minières | G169: Redevances Minières | H169: DGMG | I169: 452,000 | J169: Trésor | L169: 452,000 | M169: 0.45 | N169: FD_DGMG | O169: Oui | P169: Oui | Q169: Non | R169: NA
A170: TOGO MATERIAUX | B170: Minier | C170: Extractives | D170: En numéraire | E170: U | F170: Redevances Minières | G170: Redevances Minières | H170: DGMG | I170: 486,000 | J170: Trésor | L170: 486,000 | M170: 0.49 | N170: FD_DGMG | O170: Oui | P170: Oui | Q170: Oui | R170: PEMC-16-0010
A171: SOROUBAT - TOGO | B171: Minier | C171: Extractives | D171: En numéraire | E171: U | F171: Pénalités aux infractions minières | G171: Pénalités aux infractions minières | H171: DGMG | I171: 10,000,000 | J171: Trésor | L171: 10,000,000 | M171: 10.00 | N171: FD_DGMG | O171: Oui | P171: Oui | Q171: Non | R171: PEMC 20-0002 / PEMC 23-0005
A172: CHINA ROAD AND BRIDGE CORPORATION (CRBC) | B172: Minier | C172: Extractives | D172: En numéraire | E172: U | F172: Pénalités aux infractions minières | G172: Pénalités aux infractions minières | H172: DGMG | I172: 500,000 | J172: Trésor | L172: 500,000 | M172: 0.50 | N172: FD_DGMG | O172: Oui | P172: Oui | Q172: Oui | R172: PEMC 23-0004
A173: RAKAKO BTP SARL | B173: Minier | C173: Extractives | D173: En numéraire | E173: U | F173: Pénalités aux infractions minières | G173: Pénalités aux infractions minières | H173: DGMG | I173: 1,000,000 | J173: Trésor | L173: 1,000,000 | M173: 1.00 | N173: FD_DGMG | O173: Oui | P173: Oui | Q173: Oui | R173: AA-23-0023
A174: Etablissement ATTIO ET FILS | B174: Minier | C174: Extractives | D174: En numéraire | E174: U | F174: Pénalités aux infractions minières | G174: Pénalités aux infractions minières | H174: DGMG | I174: 1,000,000 | J174: Trésor | L174: 1,000,000 | M174: 1.00 | N174: FD_DGMG | O174: Oui | P174: Oui | Q174: Oui | R174: AA-18-0002
A175: DIEU EST GRAND | B175: Minier | C175: Extractives | D175: En numéraire | E175: U | F175: Pénalités aux infractions minières | G175: Pénalités aux infractions minières | H175: DGMG | I175: 209,800 | J175: Trésor | L175: 209,800 | M175: 0.21 | N175: FD_DGMG | O175: Oui | P175: Oui | Q175: Oui | R175: AA23-0034
A176: Etablissement la GAZELLE | B176: Minier | C176: Extractives | D176: En numéraire | E176: U | F176: Pénalités aux infractions minières | G176: Pénalités aux infractions minières | H176: DGMG | I176: 184,000 | J176: Trésor | L176: 184,000 | M176: 0.18 | N176: FD_DGMG | O176: Oui | P176: Oui | Q176: Oui | R176: AA23-0040
A177: SOTESSGRAV | B177: Minier | C177: Extractives | D177: En numéraire | E177: U | F177: Pénalités aux infractions minières | G177: Pénalités aux infractions minières | H177: DGMG | I177: 1,000,000 | J177: Trésor | L177: 1,000,000 | M177: 1.00 | N177: FD_DGMG | O177: Oui | P177: Oui | Q177: Non | R177: NA
A178: SESAG | B178: Minier | C178: Extractives | D178: En numéraire | E178: U | F178: Pénalités aux infractions minières | G178: Pénalités aux infractions minières | H178: DGMG | I178: 1,000,000 | J178: Trésor | L178: 1,000,000 | M178: 1.00 | N178: FD_DGMG | O178: Oui | P178: Oui | Q178: Non | R178: PEMC-18-0004 & AA-18-0012
A179: TKS & FILS | B179: Minier | C179: Extractives | D179: En numéraire | E179: U | F179: Pénalités aux infractions minières | G179: Pénalités aux infractions minières | H179: DGMG | I179: 1,000,000 | J179: Trésor | L179: 1,000,000 | M179: 1.00 | N179: FD_DGMG | O179: Oui | P179: Oui | Q179: Oui | R179: PEMC 18-0007
A180: Ets UNION CHEZ NOVOR | B180: Minier | C180: Extractives | D180: En numéraire | E180: U | F180: Pénalités aux infractions minières | G180: Pénalités aux infractions minières | H180: DGMG | I180: 1,000,000 | J180: Trésor | L180: 1,000,000 | M180: 1.00 | N180: FD_DGMG | O180: Oui | P180: Oui | Q180: Non | R180: AA 22-0005 / AA 23-0014 / PEMC 22-0005
A181: MERCIFUL LIGHT | B181: Minier | C181: Extractives | D181: En numéraire | E181: U | F181: Pénalités aux infractions minières | G181: Pénalités aux infractions minières | H181: DGMG | I181: 1,000,000 | J181: Trésor | L181: 1,000,000 | M181: 1.00 | N181: FD_DGMG | O181: Oui | P181: Oui | Q181: Non | R181: NA
A182: NOUVELLE GENERATION DE BATIMENT | B182: Minier | C182: Extractives | D182: En numéraire | E182: U | F182: Pénalités aux infractions minières | G182: Pénalités aux infractions minières | H182: DGMG | I182: 1,000,000 | J182: Trésor | L182: 1,000,000 | M182: 1.00 | N182: FD_DGMG | O182: Oui | P182: Oui | Q182: Non | R182: NA
A183: COMMERZGROUP | B183: Minier | C183: Extractives | D183: En numéraire | E183: U | F183: Pénalités aux infractions minières | G183: Pénalités aux infractions minières | H183: DGMG | I183: 500,000 | J183: Trésor | L183: 500,000 | M183: 0.50 | N183: FD_DGMG | O183: Oui | P183: Oui | Q183: Non | R183: NA
A184: 2ESG | B184: Minier | C184: Extractives | D184: En numéraire | E184: U | F184: Pénalités aux infractions minières | G184: Pénalités aux infractions minières | H184: DGMG | I184: 200,000 | J184: Trésor | L184: 200,000 | M184: 0.20 | N184: FD_DGMG | O184: Oui | P184: Oui | Q184: Non | R184: NA
A185: Société Africaine de Dragage (SAD) | B185: Minier | C185: Extractives | D185: En numéraire | E185: U | F185: Pénalités aux infractions minières | G185: Pénalités aux infractions minières | H185: DGMG | I185: 3,383,250 | J185: Trésor | L185: 3,383,250 | M185: 3.38 | N185: FD_DGMG | O185: Oui | P185: Oui | Q185: Oui | R185: PEPE-16-0001
A186: MARANATHA | B186: Minier | C186: Extractives | D186: En numéraire | E186: U | F186: Pénalités aux infractions minières | G186: Pénalités aux infractions minières | H186: DGMG | I186: 1,254,000 | J186: Trésor | L186: 1,254,000 | M186: 1.25 | N186: FD_DGMG | O186: Oui | P186: Oui | Q186: Non | R186: AA 23-0025 / AA 23-0024
A187: WEST AFRICAN CEMENT (WACEM) | B187: Minier | C187: Extractives | D187: En numéraire | E187: P | F187: RETENUES SUR LES SOMMES VERSEES A DES RESIDENTS | G187: Retenue sur prestation de services (RSPS) | H187: CI | I187: 130,925 | J187: Trésor | L187: 130,925 | M187: 0.13 | N187: FD_CI | O187: Oui | P187: Non | Q187: Oui | R187: PE-09-0001
A188: WEST AFRICAN CEMENT (WACEM) | B188: Minier | C188: Extractives | D188: En numéraire | E188: P | F188: RETENUE SUR LES TRAITEMENTS ET SALAIRES | G188: Impôt sur le Revenu des Personnes Physiques IRPP/IRTS | H188: CI | I188: 641,951 | J188: Trésor | L188: 641,951 | M188: 0.64 | N188: FD_CI | O188: Oui | P188: Non | Q188: Oui | R188: PE-09-0001
A189: WEST AFRICAN CEMENT (WACEM) | B189: Minier | C189: Extractives | D189: En numéraire | E189: P | F189: RETENUE SUR LES TRAITEMENTS ET SALAIRES | G189: Impôt sur le Revenu des Personnes Physiques IRPP/IRTS | H189: CI | I189: 685,797 | J189: Trésor | L189: 685,797 | M189: 0.69 | N189: FD_CI | O189: Oui | P189: Non | Q189: Oui | R189: PE-09-0001
A190: WEST AFRICAN CEMENT (WACEM) | B190: Minier | C190: Extractives | D190: En numéraire | E190: P | F190: DROIT DE PATENTE | G190: Taxe professionnelle (TP) | H190: CI | I190: 8,505,967 | J190: Trésor | L190: 8,505,967 | M190: 8.51 | N190: FD_CI | O190: Oui | P190: Non | Q190: Oui | R190: PE-09-0001
A191: WEST AFRICAN CEMENT (WACEM) | B191: Minier | C191: Extractives | D191: En numéraire | E191: P | F191: RETENUE SUR LES TRAITEMENTS ET SALAIRES | G191: Impôt sur le Revenu des Personnes Physiques IRPP/IRTS | H191: CI | I191: 647,637 | J191: Trésor | L191: 647,637 | M191: 0.65 | N191: FD_CI | O191: Oui | P191: Non | Q191: Oui | R191: PE-09-0001
A192: WEST AFRICAN CEMENT (WACEM) | B192: Minier | C192: Extractives | D192: En numéraire | E192: P | F192: RETENUES SUR LES SOMMES VERSEES A DES RESIDENTS | G192: Retenue sur prestation de services (RSPS) | H192: CI | I192: 203,625 | J192: Trésor | L192: 203,625 | M192: 0.20 | N192: FD_CI | O192: Oui | P192: Non | Q192: Oui | R192: PE-09-0001
A193: WEST AFRICAN CEMENT (WACEM) | B193: Minier | C193: Extractives | D193: En numéraire | E193: P | F193: RETENUES SUR LES SOMMES VERSEES A DES RESIDENTS | G193: Retenue sur prestation de services (RSPS) | H193: CI | I193: 204,275 | J193: Trésor | L193: 204,275 | M193: 0.20 | N193: FD_CI | O193: Oui | P193: Non | Q193: Oui | R193: PE-09-0001
A194: WEST AFRICAN CEMENT (WACEM) | B194: Minier | C194: Extractives | D194: En numéraire | E194: P | F194: RETENUE SUR LES TRAITEMENTS ET SALAIRES | G194: Impôt sur le Revenu des Personnes Physiques IRPP/IRTS | H194: CI | I194: 745,169 | J194: Trésor | L194: 745,169 | M194: 0.75 | N194: FD_CI | O194: Oui | P194: Non | Q194: Oui | R194: PE-09-0001
A195: WEST AFRICAN CEMENT (WACEM) | B195: Minier | C195: Extractives | D195: En numéraire | E195: P | F195: IMPOT SUR LES SOCIETES | G195: Impôt sur les Sociétés (IS) | H195: CI | I195: 65,340,760 | J195: Trésor | L195: 65,340,760 | M195: 65.34 | N195: FD_CI | O195: Oui | P195: Non | Q195: Oui | R195: PE-09-0001
A196: WEST AFRICAN CEMENT (WACEM) | B196: Minier | C196: Extractives | D196: En numéraire | E196: P | F196: DROIT DE PATENTE | G196: Taxe professionnelle (TP) | H196: CI | I196: 192,801,915 | J196: Trésor | L196: 192,801,915 | M196: 192.80 | N196: FD_CI | O196: Oui | P196: Non | Q196: Oui | R196: PE-09-0001
A197: WEST AFRICAN CEMENT (WACEM) | B197: Minier | C197: Extractives | D197: En numéraire | E197: P | F197: TAXE FONCIERE SUR LES PROPRIéTéS BâTIES | G197: Taxes Foncières (TF) | H197: CI | I197: 24,790,369 | J197: Trésor | L197: 24,790,369 | M197: 24.79 | N197: FD_CI | O197: Oui | P197: Non | Q197: Oui | R197: PE-09-0001
A198: WEST AFRICAN CEMENT (WACEM) | B198: Minier | C198: Extractives | D198: En numéraire | E198: P | F198: RETENUE SUR LES TRAITEMENTS ET SALAIRES | G198: Impôt sur le Revenu des Personnes Physiques IRPP/IRTS | H198: CI | I198: 763,662 | J198: Trésor | L198: =+I198+K198 -> 763,662 | M198: 0.76 | N198: FD_CI | O198: Oui | P198: Non | Q198: Oui | R198: PE-09-0001
A199: WEST AFRICAN CEMENT (WACEM) | B199: Minier | C199: Extractives | D199: En numéraire | E199: P | F199: RETENUES SUR LES SOMMES VERSEES A DES RESIDENTS | G199: Retenue sur prestation de services (RSPS) | H199: CI | I199: 157,050 | J199: Trésor | L199: 157,050 | M199: =+L199/1000000 -> 0.16 | N199: FD_CI | O199: Oui | P199: Non | Q199: Oui | R199: PE-09-0001
A200: WEST AFRICAN CEMENT (WACEM) | B200: Minier | C200: Extractives | D200: En numéraire | E200: P | F200: Droits d'Enregistrement sur les Actes | G200: Droits d’enregistrement | H200: CI | I200: 5,000 | J200: Trésor | L200: 5,000 | M200: 0.01 | N200: FD_CI | O200: Oui | P200: Non | Q200: Oui | R200: PE-09-0001
A201: WEST AFRICAN CEMENT (WACEM) | B201: Minier | C201: Extractives | D201: En numéraire | E201: P | F201: RETENUE SUR LES TRAITEMENTS ET SALAIRES | G201: Impôt sur le Revenu des Personnes Physiques IRPP/IRTS | H201: CI | I201: 675,257 | J201: Trésor | L201: 675,257 | M201: 0.68 | N201: FD_CI | O201: Oui | P201: Non | Q201: Oui | R201: PE-09-0001
... 1484 more rows

Sheet 17
B1: Compilation des communes
B3: Commune | C3: Flux | D3: Date de paiement | E3: Montant FCFA | F3: N° du reçu/ quittance | G3: Reçu de | H3: Lieu de paiement
B4: ANIE 1 | C4: Produits d’exploitation des carrières | D4: 2023-01-03 | E4: 20,000 | F4: 644694 | G4: YOUSSOUF Rachid | H4: TRESORERIE D'ANIE
B5: ANIE 1 | C5: Produits d’exploitation des carrières | D5: 2023-01-16 | E5: 30,000 | F5: 644823 | G5: YOUSSOUF Rachid | H5: TRESORERIE D'ANIE
B6: ANIE 1 | C6: Produits d’exploitation des carrières | D6: 2023-01-16 | E6: 25,000 | F6: 644853 | G6: YAYEMI Bakou | H6: TRESORERIE D'ANIE
B7: ANIE 1 | C7: Produits d’exploitation des carrières | D7: 2023-01-24 | E7: 40,000 | F7: 644959 | G7: BAKELO Bidjaga | H7: TRESORERIE D'ANIE
B8: ANIE 1 | C8: Produits d’exploitation des carrières | D8: 2023-01-26 | E8: 25,000 | F8: 644964 | G8: YAYEMI Bakou | H8: TRESORERIE D'ANIE
B9: ANIE 1 | C9: Produits d’exploitation des carrières | D9: 2023-01-27 | E9: 20,000 | F9: 376507 | G9: YOUSSOUF Rachid | H9: TRESORERIE D'ANIE
B10: ANIE 1 | C10: Produits d’exploitation des carrières | D10: 2023-01-31 | E10: 10,000 | F10: 376538 | G10: BAKELO Bidjaga | H10: TRESORERIE D'ANIE
B11: ANIE 1 | C11: Produits d’exploitation des carrières | D11: 2023-02-27 | E11: 30,000 | F11: 376853 | G11: YOUSSOUF Rachid | H11: TRESORERIE D'ANIE
B12: ANIE 1 | C12: Produits d’exploitation des carrières | D12: 2023-03-03 | E12: 20,000 | F12: 647011 | G12: YOUSSOUF Rachid | H12: TRESORERIE D'ANIE
B13: ANIE 1 | C13: Produits d’exploitation des carrières | D13: 2023-03-20 | E13: 30,000 | F13: 647089 | G13: YAYEMI Bakou | H13: TRESORERIE D'ANIE
B14: ANIE 1 | C14: Produits d’exploitation des carrières | D14: 2023-03-20 | E14: 20,000 | F14: 647095 | G14: YOUSSOUF Rachid | H14: TRESORERIE D'ANIE
B15: ANIE 1 | C15: Produits d’exploitation des carrières | D15: 2023-03-27 | E15: 40,000 | F15: 647142 | G15: HAMIDOU Bassarou | H15: TRESORERIE D'ANIE
B16: ANIE 1 | C16: Produits d’exploitation des carrières | D16: 2023-04-17 | E16: 60,000 | F16: 647371 | G16: YOUSSOUF Rachid | H16: TRESORERIE D'ANIE
B17: ANIE 1 | C17: Produits d’exploitation des carrières | D17: 2023-04-19 | E17: 40,000 | F17: 647407 | G17: SONDOU Badawassou | H17: TRESORERIE D'ANIE
B18: ANIE 1 | C18: Produits d’exploitation des carrières | D18: 2023-04-26 | E18: 30,000 | F18: 647468 | G18: SONDOU Badawassou | H18: TRESORERIE D'ANIE
B19: ANIE 1 | C19: Produits d’exploitation des carrières | D19: 2023-05-04 | E19: 20,000 | F19: 647521 | G19: SONDOU Badawassou | H19: TRESORERIE D'ANIE
B20: ANIE 1 | C20: Produits d’exploitation des carrières | D20: 2023-05-11 | E20: 25,000 | F20: 647582 | G20: SONDOU Badawassou | H20: TRESORERIE D'ANIE
B21: ANIE 1 | C21: Produits d’exploitation des carrières | D21: 2023-05-15 | E21: 40,000 | F21: 647636 | G21: YOUSSOUF Rachid | H21: TRESORERIE D'ANIE
B22: ANIE 1 | C22: Produits d’exploitation des carrières | D22: 2023-05-22 | E22: 20,000 | F22: 647671 | G22: SONDOU Badawassou | H22: TRESORERIE D'ANIE
B23: ANIE 1 | C23: Produits d’exploitation des carrières | D23: 2023-05-26 | E23: 20,000 | F23: 647751 | G23: SONDOU Badawassou | H23: TRESORERIE D'ANIE
B24: ANIE 1 | C24: Produits d’exploitation des carrières | D24: 2023-05-30 | E24: 20,000 | F24: 647779 | G24: ASSOUMA Issa | H24: TRESORERIE D'ANIE
B25: ANIE 1 | C25: Produits d’exploitation des carrières | D25: 2023-05-31 | E25: 20,000 | F25: 647800 | G25: YAYEMI Bakou | H25: TRESORERIE D'ANIE
B26: ANIE 1 | C26: Produits d’exploitation des carrières | D26: 2023-06-02 | E26: 20,000 | F26: 647845 | G26: SONDOU Badawassou | H26: TRESORERIE D'ANIE
B27: ANIE 1 | C27: Produits d’exploitation des carrières | D27: 2023-06-14 | E27: 30,000 | F27: 648004 | G27: KATARO Yassainte | H27: TRESORERIE D'ANIE
B28: ANIE 1 | C28: Produits d’exploitation des carrières | D28: 2023-06-23 | E28: 25,000 | F28: 648116 | G28: SONDOU Badawassou | H28: TRESORERIE D'ANIE
B29: ANIE 1 | C29: Produits d’exploitation des carrières | D29: 2023-07-10 | E29: 20,000 | F29: 648281 | G29: SONDOU Badawassou | H29: TRESORERIE D'ANIE
B30: ANIE 1 | C30: Produits d’exploitation des carrières | D30: 2023-07-10 | E30: 20,000 | F30: 648285 | G30: ASSOUMA Issa | H30: TRESORERIE D'ANIE
B31: ANIE 1 | C31: Produits d’exploitation des carrières | D31: 2023-07-28 | E31: 10,000 | F31: 646524 | G31: SONDOU Badawassou | H31: TRESORERIE D'ANIE
B32: ANIE 1 | C32: Produits d’exploitation des carrières | D32: 2023-11-07 | E32: 20,000 | F32: 295259 | G32: ASSOUMA Issa | H32: TRESORERIE D'ANIE
B33: ANIE 1 | C33: Produits d’exploitation des carrières | D33: 2023-11-17 | E33: 20,000 | F33: 295393 | G33: ASSOUMA Issa | H33: TRESORERIE D'ANIE
B34: ANIE 1 | C34: Produits d’exploitation des carrières | D34: 2023-11-24 | E34: 10,000 | F34: 295487 | G34: BAWA Abdoulaziz | H34: TRESORERIE D'ANIE
B35: ANIE 1 | C35: Produits d’exploitation des carrières | D35: 2023-12-01 | E35: 20,000 | F35: 296070 | G35: ASSOUMA Issa | H35: TRESORERIE D'ANIE
B36: ANIE 1 | C36: Produits d’exploitation des carrières | D36: 2023-12-04 | E36: 35,000 | F36: 296100 | G36: BAWA Abdoulaziz | H36: TRESORERIE D'ANIE
B37: ANIE 1 | C37: Produits d’exploitation des carrières | D37: 2023-12-08 | E37: 20,000 | F37: 296159 | G37: ASSOUMA Issa | H37: TRESORERIE D'ANIE
B38: ANIE 1 | C38: Produits d’exploitation des carrières | D38: 2023-12-15 | E38: 20,000 | F38: 296239 | G38: ASSOUMA Issa | H38: TRESORERIE D'ANIE
B39: ANIE 1 | C39: Produits d’exploitation des carrières | D39: 2023-12-15 | E39: 18,000 | F39: 296242 | G39: ADAMOU Mouhamed | H39: TRESORERIE D'ANIE
B40: ANIE 1 | C40: Produits d’exploitation des carrières | D40: 2023-12-19 | E40: 40,000 | F40: 296276 | G40: BAWA Abdoulaziz | H40: TRESORERIE D'ANIE
B41: ANIE 1 | C41: Produits d’exploitation des carrières | D41: 2023-12-22 | E41: 20,000 | F41: 296317 | G41: ASSOUMA Issa | H41: TRESORERIE D'ANIE
B42: ANIE 1 | C42: Produits d’exploitation des carrières | D42: 2023-12-29 | E42: 18,000 | F42: 296380 | G42: ADAMOU Mouhamed | H42: TRESORERIE D'ANIE
B43: ANIE 1 | C43: Produits d’exploitation des carrières | D43: 2023-12-27 | E43: 20,000 | F43: 296361 | G43: KOSSI Atchou | H43: TRESORERIE D'ANIE
B44: BLITTA 2 | C44: Produits d’exploitation des carrières | D44: 2023-01-06 | E44: 25,000 | F44: 619680 | G44: Nc | H44: Régie des recettes
B45: BLITTA 2 | C45: Produits d’exploitation des carrières | D45: 2023-01-06 | E45: 30,000 | F45: 619681 | G45: Nc | H45: Régie des recettes
B46: BLITTA 2 | C46: Produits d’exploitation des carrières | D46: 2023-01-06 | E46: 30,000 | F46: 619682 | G46: Nc | H46: Régie des recettes
B47: BLITTA 2 | C47: Produits d’exploitation des carrières | D47: 2023-01-09 | E47: 50,000 | F47: 619685 | G47: Nc | H47: Régie des recettes
B48: BLITTA 2 | C48: Produits d’exploitation des carrières | D48: 2023-01-09 | E48: 50,000 | F48: 619686 | G48: Nc | H48: Régie des recettes
B49: BLITTA 2 | C49: Produits d’exploitation des carrières | D49: 2023-01-09 | E49: 50,000 | F49: 619692 | G49: Nc | H49: Régie des recettes
B50: BLITTA 2 | C50: Produits d’exploitation des carrières | D50: 2023-01-09 | E50: 50,000 | F50: 619693 | G50: Nc | H50: Régie des recettes
B51: BLITTA 2 | C51: Produits d’exploitation des carrières | D51: 2023-01-09 | E51: 50,000 | F51: 619694 | G51: Nc | H51: Régie des recettes
B52: BLITTA 2 | C52: Produits d’exploitation des carrières | D52: 2023-01-09 | E52: 50,000 | F52: 619696 | G52: Nc | H52: Régie des recettes
B53: BLITTA 2 | C53: Produits d’exploitation des carrières | D53: 2023-01-09 | E53: 50,000 | F53: 619697 | G53: Nc | H53: Régie des recettes
B54: BLITTA 2 | C54: Produits d’exploitation des carrières | D54: 2023-01-09 | E54: 20,000 | F54: 619703 | G54: Nc | H54: Régie des recettes
B55: BLITTA 2 | C55: Produits d’exploitation des carrières | D55: 2023-01-13 | E55: 20000 | F55: 619733 | G55: Nc | H55: Régie des recettes
B56: BLITTA 2 | C56: Produits d’exploitation des carrières | D56: 2023-01-15 | E56: 25,000 | F56: 619738 | G56: Nc | H56: Régie des recettes
B57: BLITTA 2 | C57: Produits d’exploitation des carrières | D57: 2023-01-16 | E57: 30,000 | F57: 619741 | G57: Nc | H57: Régie des recettes
B58: BLITTA 2 | C58: Produits d’exploitation des carrières | D58: 2023-01-24 | E58: 50,000 | F58: 619771 | G58: Nc | H58: Régie des recettes
B59: BLITTA 2 | C59: Produits d’exploitation des carrières | D59: 2023-01-24 | E59: 25,000 | F59: 619775 | G59: Nc | H59: Régie des recettes
B60: BLITTA 2 | C60: Produits d’exploitation des carrières | D60: 2023-01-24 | E60: 70,000 | F60: 619777 | G60: Nc | H60: Régie des recettes
B61: BLITTA 2 | C61: Produits d’exploitation des carrières | D61: 2023-01-25 | E61: 20,000 | F61: 619784 | G61: Nc | H61: Régie des recettes
B62: BLITTA 2 | C62: Produits d’exploitation des carrières | D62: 2023-01-26 | E62: 20,000 | F62: 619807 | G62: Nc | H62: Régie des recettes
B63: BLITTA 2 | C63: Produits d’exploitation des carrières | D63: 2023-01-31 | E63: 15,225 | F63: 619826 | G63: Nc | H63: Régie des recettes
B64: BLITTA 2 | C64: Produits d’exploitation des carrières | D64: 2023-03-15 | E64: 10,000 | F64: 619989 | G64: Nc | H64: Régie des recettes
B65: BLITTA 2 | C65: Produits d’exploitation des carrières | D65: 2023-09-15 | E65: 40,000 | F65: 441553 | G65: Nc | H65: Régie des recettes
B66: BLITTA 2 | C66: Produits d’exploitation des carrières | D66: 2023-09-08 | E66: 20,000 | F66: 441570 | G66: Nc | H66: Régie des recettes
B67: BLITTA 2 | C67: Produits d’exploitation des carrières | D67: 2023-09-14 | E67: 40,000 | F67: 441602 | G67: Nc | H67: Régie des recettes
B68: BLITTA 2 | C68: Produits d’exploitation des carrières | D68: 2023-10-11 | E68: 11,000 | F68: 441669 | G68: Nc | H68: Régie des recettes
B69: BLITTA 2 | C69: Produits d’exploitation des carrières | D69: 2023-10-11 | E69: 6,500 | F69: 441697 | G69: Nc | H69: Régie des recettes
B70: BLITTA 2 | C70: Produits d’exploitation des carrières | D70: 2023-10-31 | E70: 8,000 | F70: 441727 | G70: Nc | H70: Régie des recettes
B71: BLITTA 2 | C71: Produits d’exploitation des carrières | D71: 2023-11-01 | E71: 7,000 | F71: 441783 | G71: Nc | H71: Régie des recettes
B72: BLITTA 2 | C72: Produits d’exploitation des carrières | D72: 2023-12-14 | E72: 8,000 | F72: 441933 | G72: Nc | H72: Régie des recettes
B73: BLITTA 2 | C73: Produits d’exploitation des carrières | D73: 2023-12-14 | E73: 10,000 | F73: 441934 | G73: Nc | H73: Régie des recettes
B74: BLITTA 2 | C74: Patente | D74: 2023-12-31 | E74: 1,164,416 | F74: Nc | G74: Nc | H74: Trésor Publique
B75: BLITTA 3 | C75: Produits d’exploitation des carrières | D75: 2023-08-16 | E75: 1,500,000.00 | F75: 52360919 | G75: POMAR SA Togo | H75: Lomé
B76: BLITTA 3 | C76: Produits d’exploitation des carrières | D76: 2023-10-31 | E76: 14,500.00 | F76: 4425111 | G76: AMELE Kokou | H76: M'Poti
B77: BLITTA 3 | C77: Produits d’exploitation des carrières | D77: 2023-11-30 | E77: 5,500.00 | F77: 442663 | G77: AMELE Kokou | H77: M'Poti
B78: BLITTA 3 | C78: Produits d’exploitation des carrières | D78: 2023-12-29 | E78: 57,500.00 | F78: 442830 | G78: AMELE Kokou | H78: M'Poti
B79: DANKPEN 2 | C79: Taxe Professionnelle Unique | E79: 408,033 | F79: 41687 | G79: OTR | H79: Trésor Publique
B80: HAHO 3 | C80: Produits d’exploitation des carrières | D80: 2023-01-05 | E80: 5,000 | F80: 400919 | G80: DJAGNIKPOR | H80: A la régie de haho3
B81: HAHO 3 | C81: Produits d’exploitation des carrières | D81: 2023-01-09 | E81: 15,000 | F81: 400940 | G81: DJAGNIKPOR | H81: A la régie de haho3
B82: HAHO 3 | C82: Produits d’exploitation des carrières | D82: 2023-01-11 | E82: 5,000 | F82: 400949 | G82: DJAGNIKPOR | H82: A la régie de haho3
B83: HAHO 3 | C83: Produits d’exploitation des carrières | D83: 2023-01-12 | E83: 19,000 | F83: 400955 | G83: BOUKARI Yaovi | H83: A la régie de haho3
B84: HAHO 3 | C84: Produits d’exploitation des carrières | D84: 2023-01-18 | E84: 17,000 | F84: 400983 | G84: BOUKARI Yaovi | H84: A la régie de haho3
B85: HAHO 3 | C85: Produits d’exploitation des carrières | D85: 2023-01-18 | E85: 24,000 | F85: 400984 | G85: BOUKARI Yaovi | H85: A la régie de haho3
B86: HAHO 3 | C86: Produits d’exploitation des carrières | D86: 2023-01-23 | E86: 32,000 | F86: 400995 | G86: BOUKARI Yaovi | H86: A la régie de haho3
B87: HAHO 3 | C87: Produits d’exploitation des carrières | D87: 2023-01-25 | E87: 7,000 | F87: 80032 | G87: BOUKARI Yaovi | H87: A la régie de haho3
B88: HAHO 3 | C88: Produits d’exploitation des carrières | D88: 2023-01-31 | E88: 3,000 | F88: 80066 | G88: BOUKARI Yaovi | H88: A la régie de haho3
B89: HAHO 3 | C89: Produits d’exploitation des carrières | D89: 2023-02-14 | E89: 3,000 | F89: 80144 | G89: BOUKARI Yaovi | H89: A la régie de haho3
B90: HAHO 3 | C90: Produits d’exploitation des carrières | D90: 2023-02-21 | E90: 14,000 | F90: 80169 | G90: BOUKARI Yaovi | H90: A la régie de haho3
B91: HAHO 3 | C91: Produits d’exploitation des carrières | D91: 2023-03-06 | E91: 8,000 | F91: 80217 | G91: BOUKARI Yaovi | H91: A la régie de haho3
B92: HAHO 3 | C92: Produits d’exploitation des carrières | D92: 2023-03-17 | E92: 4,000 | F92: 80255 | G92: BOUKARI Yaovi | H92: A la régie de haho3
B93: HAHO 3 | C93: Produits d’exploitation des carrières | D93: 2023-03-30 | E93: 31,000 | F93: 80315 | G93: BOUKARI Yaovi | H93: A la régie de haho3
B94: HAHO 3 | C94: Produits d’exploitation des carrières | D94: 2023-04-17 | E94: 12,000 | F94: 80354 | G94: BOUKARI Yaovi | H94: A la régie de haho3
B95: HAHO 3 | C95: Produits d’exploitation des carrières | D95: 2023-04-20 | E95: 11,000 | F95: 80364 | G95: BOUKARI Yaovi | H95: A la régie de haho3
B96: HAHO 3 | C96: Produits d’exploitation des carrières | D96: 2023-05-02 | E96: 14,000 | F96: 80383 | G96: BOUKARI Yaovi | H96: A la régie de haho3
B97: HAHO 3 | C97: Produits d’exploitation des carrières | D97: 2023-05-09 | E97: 16,000 | F97: 80413 | G97: BOUKARI Yaovi | H97: A la régie de haho3
B98: HAHO 3 | C98: Produits d’exploitation des carrières | D98: 2023-05-15 | E98: 24,000 | F98: 83525 | G98: BOUKARI Yaovi | H98: A la régie de haho3
B99: HAHO 3 | C99: Produits d’exploitation des carrières | D99: 2023-05-22 | E99: 32,000 | F99: 83597 | G99: BOUKARI Yaovi | H99: A la régie de haho3
B100: HAHO 3 | C100: Produits d’exploitation des carrières | D100: 2023-05-30 | E100: 36,000 | F100: 83627 | G100: BOUKARI Yaovi | H100: A la régie de haho3
B101: HAHO 3 | C101: Produits d’exploitation des carrières | D101: 2023-06-12 | E101: 47,000 | F101: 83685 | G101: BOUKARI Yaovi | H101: A la régie de haho3
B102: HAHO 3 | C102: Produits d’exploitation des carrières | D102: 2023-06-20 | E102: 31,000 | F102: 83741 | G102: BOUKARI Yaovi | H102: A la régie de haho3
B103: HAHO 3 | C103: Produits d’exploitation des carrières | D103: 2023-07-10 | E103: 21,000 | F103: 83847 | G103: BOUKARI Yaovi | H103: A la régie de haho3
B104: HAHO 3 | C104: Produits d’exploitation des carrières | D104: 2023-07-18 | E104: 21,000 | F104: 83897 | G104: BOUKARI Yaovi | H104: A la régie de haho3
B105: HAHO 3 | C105: Produits d’exploitation des carrières | D105: 2023-07-31 | E105: 5,000 | F105: 83947 | G105: BOUKARI Yaovi | H105: A la régie de haho3
B106: HAHO 3 | C106: Produits d’exploitation des carrières | D106: 2023-08-03 | E106: 13,000 | F106: 83969 | G106: BOUKARI Yaovi | H106: A la régie de haho3
B107: HAHO 3 | C107: Produits d’exploitation des carrières | D107: 2023-08-10 | E107: 8,000 | F107: 943010 | G107: BOUKARI Yaovi | H107: A la régie de haho3
B108: HAHO 3 | C108: Produits d’exploitation des carrières | D108: 2023-08-21 | E108: 33,000 | F108: 943054 | G108: BOUKARI Yaovi | H108: A la régie de haho3
B109: HAHO 3 | C109: Produits d’exploitation des carrières | D109: 2023-08-29 | E109: 29,000 | F109: 943106 | G109: BOUKARI Yaovi | H109: A la régie de haho3
B110: HAHO 3 | C110: Produits d’exploitation des carrières | D110: 2023-08-31 | E110: 24,000 | F110: 943132 | G110: BOUKARI Yaovi | H110: A la régie de haho3
B111: HAHO 3 | C111: Produits d’exploitation des carrières | D111: 2023-09-05 | E111: 12,000 | F111: 943148 | G111: BOUKARI Yaovi | H111: A la régie de haho3
B112: HAHO 3 | C112: Produits d’exploitation des carrières | D112: 2023-09-12 | E112: 11,000 | F112: 943177 | G112: BOUKARI Yaovi | H112: A la régie de haho3
B113: HAHO 3 | C113: Produits d’exploitation des carrières | D113: 2023-09-19 | E113: 10,500 | F113: 943215 | G113: BOUKARI Yaovi | H113: A la régie de haho3
B114: HAHO 3 | C114: Produits d’exploitation des carrières | D114: 2023-09-26 | E114: 30,000 | F114: 943242 | G114: BOUKARI Yaovi | H114: A la régie de haho3
B115: HAHO 3 | C115: Produits d’exploitation des carrières | D115: 2023-09-29 | E115: 35,000 | F115: 943279 | G115: BOUKARI Yaovi | H115: A la régie de haho3
B116: HAHO 3 | C116: Produits d’exploitation des carrières | D116: 2023-10-03 | E116: 25,500 | F116: 943297 | G116: BOUKARI Yaovi | H116: A la régie de haho3
B117: HAHO 3 | C117: Produits d’exploitation des carrières | D117: 2023-10-09 | E117: 35,000 | F117: 943469 | G117: BOUKARI Yaovi | H117: A la régie de haho3
B118: HAHO 3 | C118: Produits d’exploitation des carrières | D118: 2023-10-18 | E118: 8,900 | F118: 630526 | G118: BOUKARI Yaovi | H118: A la régie de haho3
B119: HAHO 3 | C119: Produits d’exploitation des carrières | D119: 2023-10-25 | E119: 30,000 | F119: 630563 | G119: BOUKARI Yaovi | H119: A la régie de haho3
B120: HAHO 3 | C120: Produits d’exploitation des carrières | D120: 2023-10-26 | E120: 10,000 | F120: 630572 | G120: BOUKARI Yaovi | H120: A la régie de haho3
B121: HAHO 3 | C121: Produits d’exploitation des carrières | D121: 2023-10-31 | E121: 26,000 | F121: 630586 | G121: BOUKARI Yaovi | H121: A la régie de haho3
B122: HAHO 3 | C122: Produits d’exploitation des carrières | D122: 2023-11-06 | E122: 16,000 | F122: 630621 | G122: BOUKARI Yaovi | H122: A la régie de haho3
B123: HAHO 3 | C123: Produits d’exploitation des carrières | D123: 2023-11-14 | E123: 12,000 | F123: 630673 | G123: BOUKARI Yaovi | H123: A la régie de haho3
B124: HAHO 3 | C124: Produits d’exploitation des carrières | D124: 2023-11-22 | E124: 16,000 | F124: 630712 | G124: BOUKARI Yaovi | H124: A la régie de haho3
B125: HAHO 3 | C125: Produits d’exploitation des carrières | D125: 2023-11-28 | E125: 15,000 | F125: 630741 | G125: BOUKARI Yaovi | H125: A la régie de haho3
B126: HAHO 3 | C126: Produits d’exploitation des carrières | D126: 2023-12-06 | E126: 11,000 | F126: 630793 | G126: BOUKARI Yaovi | H126: A la régie de haho3
B127: HAHO 3 | C127: Produits d’exploitation des carrières | D127: 2023-12-11 | E127: 14,000 | F127: 630816 | G127: BOUKARI Yaovi | H127: A la régie de haho3
B128: HAHO 3 | C128: Produits d’exploitation des carrières | D128: 2023-12-19 | E128: 7,000 | F128: 630862 | G128: BOUKARI Yaovi | H128: A la régie de haho3
B129: HAHO 3 | C129: Produits d’exploitation des carrières | D129: 2023-12-28 | E129: 20,000 | F129: 630897 | G129: BOUKARI Yaovi | H129: A la régie de haho3
B130: KOZAH 2 | C130: Redevance d’exploitation des carrières et des mines | D130: 2023-01-20 | E130: 50,000 | F130: Nc | G130: Nc | H130: Nc
B131: KOZAH 2 | C131: Redevance d’exploitation des carrières et des mines | D131: 2023-04-18 | E131: 50,000 | F131: Nc | G131: Nc | H131: Nc
B132: KOZAH 2 | C132: Redevance d’exploitation des carrières et des mines | D132: 2023-05-12 | E132: 100,000 | F132: Nc | G132: Nc | H132: Nc
B133: KOZAH 2 | C133: Redevance d’exploitation des carrières et des mines | D133: 2023-05-25 | E133: 100,000 | F133: Nc | G133: Nc | H133: Nc
B134: KOZAH 2 | C134: Produits d’exploitation des carrières | D134: 2023-06-07 | E134: 200,000 | F134: Nc | G134: Nc | H134: Nc
B135: KOZAH 2 | C135: Produits d’exploitation des carrières | D135: 2023-06-07 | E135: 200,000 | F135: Nc | G135: Nc | H135: Nc
B136: KOZAH 2 | C136: Produits d’exploitation des carrières | D136: 2023-06-12 | E136: 1,000,000 | F136: Nc | G136: Nc | H136: Nc
B137: KOZAH 2 | C137: Produits d’exploitation des carrières | D137: 2023-06-19 | E137: 24,000 | F137: Nc | G137: Nc | H137: Nc
B138: KOZAH 2 | C138: Produits d’exploitation des carrières | D138: 2023-06-29 | E138: 100,000 | F138: Nc | G138: Nc | H138: Nc
B139: KOZAH 2 | C139: Redevance d’exploitation des carrières et des mines | D139: 2023-06-29 | E139: 50,000 | F139: Nc | G139: Nc | H139: Nc
B140: KOZAH 2 | C140: Redevance d’exploitation des carrières et des mines | D140: 2023-10-26 | E140: 50,000 | F140: Nc | G140: Nc | H140: Nc
B141: KOZAH 2 | C141: Produits d’exploitation des carrières | D141: 2023-11-10 | E141: 100,000 | F141: Nc | G141: Nc | H141: Nc
B142: KOZAH 2 | C142: Produits d’exploitation des carrières | D142: 2023-12-11 | E142: 100,000 | F142: Nc | G142: Nc | H142: Nc
B143: KOZAH 2 | C143: Redevance d’exploitation des carrières et des mines | D143: 2023-12-18 | E143: 50,000 | F143: Nc | G143: Nc | H143: Nc
B144: KOZAH 2 | C144: Produits d’exploitation des carrières | D144: 2023 | E144: 662,500 | F144: Nc | G144: Nc | H144: Nc
B145: KOZAH 2 | C145: Taxe d’habitation | D145: 2023 | E145: 3,253,660 | F145: Nc | G145: Nc | H145: Nc
B146: KOZAH 2 | C146: Autre taxe | D146: 2023 | E146: 85,000 | F146: Nc | G146: Nc | H146: Nc
B147: KOZAH 2 | C147: Taxes foncières | D147: 2023 | E147: 2,614,016 | F147: Nc | G147: Nc | H147: Nc
B148: KOZAH 2 | C148: Patente | D148: 2023 | E148: 31,938,595 | F148: Nc | G148: Nc | H148: Nc
B149: KOZAH 2 | C149: Taxe Professionnelle Unique | D149: 2023 | E149: 6,680,331 | F149: Nc | G149: Nc | H149: Nc
B150: KOZAH 2 | C150: Taxe sur les produits de jeux de hasard | D150: 2023 | E150: 653,222 | F150: Nc | G150: Nc | H150: Nc
B151: KOZAH 3 | C151: Produits d’exploitation des carrières | D151: 2023-01-25 | E151: 54,000 | F151: 0660135 | G151: Entreprise ECOB | H151: Régie des recettes
B152: KOZAH 3 | C152: Produits d’exploitation des carrières | D152: 2023-06-23 | E152: 80,000 | F152: 0660962 | G152: Entreprise ECOB | H152: Régie des recettes
B153: KOZAH 3 | C153: Produits d’exploitation des carrières | D153: 2023-09-11 | E153: 65,000 | F153: 0670335 | G153: Entreprise ECOB | H153: Régie des recettes
B154: KOZAH 3 | C154: Produits d’exploitation des carrières | D154: 2023 | E154: 2,436,300 | F154: Nc | G154: Divers Débiteurs | H154: Régie des recettes
B155: KOZAH 3 | C155: Taxe d’habitation | D155: 2023-12-31 | E155: 1,750,920 | F155: Nc | G155: Divers Débiteurs | H155: OTR
B156: KOZAH 3 | C156: Taxes foncières | D156: 2023-12-31 | E156: 1,352,027 | F156: Nc | G156: Divers Débiteurs | H156: OTR
B157: KOZAH 3 | C157: Patente | D157: 2023-12-31 | E157: 85,520,986 | F157: Nc | G157: Divers Débiteurs | H157: OTR
B158: KOZAH 3 | C158: Taxe Professionnelle Unique | D158: 2023-12-31 | E158: 3,588,768 | F158: Nc | G158: Divers Débiteurs | H158: OTR
B159: KOZAH 3 | C159: Taxe sur les produits de jeux de hasard | D159: 2023-12-31 | E159: 654,191 | F159: Nc | G159: Divers Débiteurs | H159: OTR
B160: KOZAH 3 | C160: Autres recettes fiscales partagées | D160: 2023-12-31 | E160: 418,907 | F160: Nc | G160: Divers Débiteurs | H160: OTR
B161: TCHAOUDJO 3 | C161: Autres produits du sol et du sous-sol | D161: 2023-01-24 | E161: 66,000 | F161: 878294 | G161: T3 | H161: Aléhéridè
